Workbook

Sheet Benvenuto
P3: LEGENDA
P4: Campi Non Editabili | Q4: Campi Editabili
P6: Opzioni 20% | Q6: Qtà 20%
P8: Errore nella Selezione | Q8: Verifica Positiva

Sheet Lotto6_R940_1
I2: Convenzione Tecnologie Server 4 - Lotto 6 | K2: =IF(U105>1,"ERRORE NELLA CONFIGURAZIONE","") ->  | N2: =IF(N6<0,"Superata Quota 20%","") -> 
N3: Articoli 20% Totali | S3: Check CPU | T3: Check RAM | U3: Check NVME | V3: Check PCI | W3: Check Win | X3: Check Tot
I4: =IF(W13="vsan","Selezionando la soluzione vSAN si accetta la sostituzione del controller 745 con il HBA355, comprensivo di BOSS Card Certificati per vSAN",IF(W13="v2tb","Selezionando la soluzione vSAN si accetta la sostituzione del controller 745 con il HBA355, comprensivo di BOSS Card Certificati per vSAN","")) ->  | K4: =IF(X4>1,"Errori nella Configurazione",IF(S4>0,"Errore nella Selezione della CPU",IF(T4>0,"Errore Nella Selezione della RAM",IF(U4>0,"Errore Nella selezione dello Chassis per Dischi nVME",IF(V4>0,"Errore nella Selezione Slot PCI",IF(W4>0,"Errore nella Selezione Licenze Windows","")))))) ->  | L4: Totale Altre Opzioni | N4: =Riepilogo_Ordine!K140 -> 0 | S4: =IF(L19<>"",1,0) -> 0 | T4: =IF(L24<>"",1,0) -> 0 | U4: =IF(I14<>"",1,0) -> 0 | V4: =IF(K83<>"",1,0) -> 0 | W4: =IF(L27<>"",1,0) -> 0 | X4: =SUM(S4:W4) -> 0
L5: =Altre_Opzioni!H3 -> 0 | N5: Quota residua 20 %
K6: Guida alla Convenzione | L6: Totale Configurazione | N6: =Riepilogo_Ordine!G141 -> 0
I7: =IF(Riepilogo_Ordine!Q3>0,"Compilare i Dati Necessari all'Ordine per Stampare in PDF o Controllare le Configurazioni","Dati Completi") -> Compilare i Dati Necessari all'Ordine per Stampare in PDF o Controllare le Configurazioni | L7: =$L$140 -> 0 | N7: Totale Ordine Iva Esclusa | S7: =IF(AND($W$13="vsan64GB",L22=0),ConfTS4L6!$A$47:$A$48,IF(AND($W$13="vsan64GB",$L$22=1),ConfTS4L6!$A$51:$A$52,"")) -> 
I8: DELL POWEREDGE R940 | K8: Quantità Server | L8: 0 | N8: =Riepilogo_Ordine!K141 -> 0
I12: Base | V12: PowerEdge R940 Server (General Purpose)
I13: PowerEdge R940 Server (General Purpose) | K13: =IF($L$8>0,VLOOKUP(I13,ConfTS4L6!A3:M7,13,FALSE),"") ->  | L13: =IF($L$8>0,1,"") ->  | N13: =R13 -> 5754.51 | R13: =VLOOKUP($I$13,TSL6_ALL,10,FALSE) -> 5754.51 | T13: =VLOOKUP($I13,TS4L6_BASE,12,FALSE) -> L6N01 | V13: =IF(AND(I13=ConfTS4L6!A12,L22=0),"nVME1",IF(AND(I13=ConfTS4L6!A12,L22=1),"NVME2","")) ->  | W13: =IF(I13=ConfTS4L6!A13,"vsan",IF(I13=ConfTS4L6!A15,"Boss3TB",IF(I13=ConfTS4L6!A14,"vsan64GB",""))) ->  | X13: =IF(I13=ConfTS4L6!A15,"Boss3TB","") -> 
I14: =IF(AND($K$63>0,$I$13="PowerEdge R940 Server (General Purpose)"),"▲ Per Selezionare dischi nVME selezionare Chassis nVME o vSAN ▲","") ->  | W14: =IF(AND(I13="PowerEdge R940 Server (General Purpose)",L22=0),"GP1",IF(AND(I13="PowerEdge R940 Server (General Purpose)",L22=1),"GP2","")) -> GP2
I15: Chassis Configuration | K15: =IF($V$82="SW","MAX 4 GPU",IF($V$82="DW","MAX 2 GPU","")) -> 
I16: =IF($L$22=1,VLOOKUP($I$13,TS4L6_Chassis,3,FALSE),VLOOKUP($I$13,TS4L6_Chassis,2,FALSE)) -> Chassis with Up to 12X 2.5 SAS/SATA + 12X 2.5 for 4CPU Configuration | K16: =IF(T16="L6N122",Tabella_prezzi!F85,IF(T16="L6N123",Tabella_prezzi!F86,IF(T16="L6N124",Tabella_prezzi!F87,IF(T16="L6N125",Tabella_prezzi!F88,IF($L$22=1,VLOOKUP($I$13,TS4L6_Chassis,13,FALSE),VLOOKUP($I$13,TS4L6_Chassis,13,FALSE)))))) ->  | L16: =IF(I13=V12,VLOOKUP($I$13,TS4L6_Chassis,6,FALSE),VLOOKUP($I$13,TS4L6_Chassis,7,FALSE)) ->  | N16: =R16+S16 -> 0 | R16: =VLOOKUP($I$13,TS4L6_Chassis,10,FALSE) -> 0 | S16: =IF(T16="L6N125",Tabella_prezzi!D88,IF(T16="L6N122",Tabella_prezzi!D85,IF(T16="L6N123",Tabella_prezzi!D86,IF(T16="L6N124",Tabella_prezzi!D87,VLOOKUP(I13,TS4L6_Chassis,11,FALSE))))) -> 0 | T16: =IF(AND(W13="vsan64GB",I26=1024),"L6N123",IF(AND(W13="vsan64GB",I26=1536),"L6N122",IF(AND(W13="vsan64GB",I26=2048),"L6N124",IF(AND(W13="Boss3TB",I26=3072),"L6N125",VLOOKUP($I13,TS4L6_Chassis,12,FALSE))))) -> 0 | V16: Chassis with Up to 24 x 2.5'' Hard Drives for 2CPU Configuration | W16: 1
I18: Processor
I19: 2 x Intel Xeon Gold 6252N, 2.3G, 24C/48T, 10.4GT/s, 35.75M Cache, Turbo, HT (150W) DDR4-2933 | L19: =IF(AND(W13="boss3TB",L22=0),"Selezionare Processori Aggiuntivi per Configurazione BOSS 3TB",IF(AND(W13="vsan64GBb",L22=0),"Selezionare Processori Aggiuntivi per Configurazione vSAN 2 TB",IF(AND(V13="nVME",L22=0),"Selezionare Processori Aggiuntivi per Configurazione nVME",IF(AND(W13=2048,L22=""),"Selezionare Processore Aggiuntivo per Configurazione vSAN",IF(AND(X13="Nutanix",L22=""),"Selezionare Processore Aggiuntivo per Configurazione Nutanix",""))))) ->  | R19: =IF(L16=1,VLOOKUP($I$19,TS4L6_CPU,11,FALSE),VLOOKUP($I$19,TS4L6_CPU,11,FALSE)) -> 0 | S19: =IF(L16=1,VLOOKUP($I$19,TS4L6_CPU,11,FALSE),VLOOKUP($I$19,TS4L6_CPU,11,FALSE)) -> 0 | T19: =IF(S19=0,0,VLOOKUP($I19,TS4L6_CPU,12,FALSE)) -> 0
I21: Additional Processor
I22: 2 x Intel Xeon Gold 6252N, 2.3G, 24C/48T, 10.4GT/s, 35.75M Cache, Turbo, HT (150W) DDR4-2933 | K22: =IF(L16=1,VLOOKUP($I$19,TS4L6_CPU,13,FALSE),VLOOKUP($I$22,TS4L6_CPU,13,FALSE)) -> TS4L6-CPU | L22: =IF(L16=1,VLOOKUP($I$22,TS4L6_CPU,7,FALSE),VLOOKUP($I$22,TS4L6_CPU,7,FALSE)) -> 1 | N22: =R22 -> 1908.9 | R22: =IF(L22=1,VLOOKUP($I$19,TS4L6_CPU,10,FALSE),VLOOKUP($I$22,TS4L6_CPU,10,FALSE)) -> 1908.9 | S22: =IF(L16=1,VLOOKUP($I$19,TS4L6_CPU,11,FALSE),VLOOKUP($I$22,TS4L6_CPU,11,FALSE)) -> 0 | T22: =IF(L22=1,VLOOKUP(I19,TSL6_ALL,12,FALSE),VLOOKUP($I22,TS4L6_CPU,12,FALSE)) -> L6N02 | V22: =IF(L16=1,"2 x Intel Xeon Gold 6252N, 2.3G, 24C/48T, 10.4GT/s, 35.75M Cache, Turbo, HT (150W) DDR4-2933",I22) -> 2 x Intel Xeon Gold 6252N, 2.3G, 24C/48T, 10.4GT/s, 35.75M Cache, Turbo, HT (150W) DDR4-2933
I24: Memory Capacity (GB) | L24: =IF(AND(W13="vsan",L22=0,I25<>512,I25<>768),"Selezionare RAM Corretta",IF(AND(W13="vsan",L22=1,I25<>1024,I25<>1536),"Selezionare RAM Corretta",IF(AND(W13="v2tb",I25<>2048),"Selezionare 2 TB RAM",IF(AND(W13="v2tb",L22=0),"Selezionare Processori",IF(AND(X13="vsan",L22="",I25>768),"Selezionare RAM Corretta",IF(AND(W14="GP1",I25>768),"Selezionare RAM Corretta",IF(AND(W14="GP2",I25>1536),"Selezionare RAM Corretta",IF(AND(V13="nVME1",I25>768),"Selezionare RAM Corretta",IF(AND(V13="NVME2",I25>1536),"Selezionare RAM Corretta",IF(AND(I25<>"",I26>2000,W13="vsan64GB"),"Deselezionare RAM 32GB e Aggiungere RAM 64GB",IF(AND(W13<>"vsan64GB",W13<>"Boss3TB",I26<>"",I25=0),"Deselezionare RAM 64 GB",IF(AND(W13="Boss3TB",I26="",I25=""),"Selezionare RAM 64",IF(AND(W13<>"vsan64GB",I26="",I25=""),"Selezionare RAM 32",IF(AND(I25="",I26="",W13="vsan64GB"),"Selezionare RAM 64",IF(AND(L22=1,W13="vsan64GB",I26<2000),"Selezionare RAM 64 GB Corretta",IF(AND(L22=0,W13="vsan64GB",I26>2000),"Selezionare Processore Aggiuntivo per 2TB",IF(AND(L22=1,W13="Boss3TB",I26<3000),"Selezionare RAM 64 Corretta",IF(AND(L22=1,W13="Boss3TB",I25<>""),"Deselezionare RAM 32",IF(AND(L22=1,W13="vsan64GB",I26>3000),"Selezionare RAM 64 Corretta",IF(AND(W13="vsan",I26<>""),"Deselezionare RAM 64","")))))))))))))))))))) -> 
I25: 512 | K25: TS4L6-RAM32 | L25: =W25 -> 0 | N25: =R25+R26 -> 0 | R25: =X25 -> 0 | T25: =Y25 -> L6N03 | W25: =IF(Lotto6_R940_1!L24<>"",0,IF(OR(W13="vsan64GB",W13="Boss3TB"),0,IF(AND(W13="v2tb",L22=1),VLOOKUP(I25,ConfTS4L6!A51:S51,11,FALSE),IF($L$22=1,VLOOKUP($I$25,TS4L6_RAM2CPU,7,FALSE),VLOOKUP($I$25,TS4L6_RAM1CPU,7,FALSE))))) -> 0 | X25: =IF(Lotto6_R940_1!L24<>"",0,IF(OR(W13="vsan64GB",W13="Boss3TB"),0,IF(AND(W13="v2tb",L22=1),VLOOKUP(I25,ConfTS4L6!A51:S51,11,FALSE),IF($L$22=1,VLOOKUP($I$25,TS4L6_RAM2CPU,10,FALSE),VLOOKUP($I$25,TS4L6_RAM1CPU,10,FALSE))))) -> 0 | Y25: =IF(Lotto6_R940_1!L24<>"","",IF(OR(W13="vsan64GB",W13="Boss3TB"),0,IF($L$22=1,VLOOKUP($I$25,ConfTS4L6!A56:M75,12,FALSE),VLOOKUP($I$25,TS4L6_RAM1CPU,12,FALSE)))) -> L6N03
K26: TS4L6-RAM64 | L26: =W26 -> 0 | R26: =X26 -> 0 | T26: =Y26 -> 0 | W26: =IF(L19<>"","",IF(L24<>"",0,IF(W13="vsan",0,IF(W13="",0,IF(W13="Boss3TB",VLOOKUP(I26,TS4L6_64GB,7,FALSE),IF(AND(W13="vsan64GB",L22<>0),VLOOKUP(I26,TS4L6_64GB,7,FALSE),IF(AND(W13="vsan64GB",L22=0),VLOOKUP(I26,TS4L6_2cpu64gb,7,FALSE)))))))) -> 0 | X26: =IF(L19<>"",0,IF(L24<>"",0,IF(W13="vsan",0,IF(W13="",0,IF(W13="Boss3TB",VLOOKUP(I26,TS4L6_64GB,10,FALSE),IF(AND(W13="vsan64GB",L22<>0),VLOOKUP(I26,TS4L6_64GB,10,FALSE),IF(AND(W13="vsan64GB",L22=0),VLOOKUP(I26,TS4L6_2cpu64gb,10,FALSE)))))))) -> 0 | Y26: =IF(L19<>"","",IF(L24<>"",0,IF(W13="vsan",0,IF(W13="",0,IF(W13="Boss3TB",VLOOKUP(I26,TS4L6_64GB,12,FALSE),IF(AND(W13="vsan64GB",L22<>0),VLOOKUP(I26,TS4L6_64GB,12,FALSE),IF(AND(W13="vsan64GB",L22=0),VLOOKUP(I26,TS4L6_2cpu64gb,12,FALSE)))))))) -> 0
I28: Operating System STANDARD | L28: =IF(AND(I29="Ubuntu Server 22.04 LTS 64 Bit",L30<>""),"Deselezionare Licenze 2 Core",IF(I29="Ubuntu Server 22.04 LTS 64 Bit","",IF(AND(L29=1,L30=0),"Selezionare Licenze 2 Core",IF(AND(L22=0,L30>64),"Selezionare Licenze 2 Core Corrette",IF(AND(L22=1,L30=16),"Selezionare Licenze 2 Core Corrette",IF(AND(L29=0,L30>0),"Deselezionare Licenze 2 Core","")))))) -> 
I29: No Operating System | K29: =VLOOKUP($I$29,TS4L6_OS,13,FALSE) ->  | L29: =IF(I29="Windows Server 2022,Standard,ROK,16CORE",1,IF(I29="Ubuntu Server 22.04 LTS 64 Bit",1,0)) -> 0 | N29: =R29 -> 0 | R29: =VLOOKUP($I$29,TS4L6_OS,10,FALSE)*L29 -> 0 | S29: =VLOOKUP($I$29,TS4L6_OS,11,FALSE) -> 0 | T29: =VLOOKUP($I29,TSL6_ALL,12,FALSE) -> 
I30: Windows Server 2022 Standard Edition, Add License,2CORE | K30: =VLOOKUP($I$30,TS4L6_OS,13,FALSE) -> TS4L6-WINSRV2C | N30: =R30 -> 0 | R30: =IF(L28<>"",0,VLOOKUP($I$30,TS4L6_OS,10,FALSE))*L30 -> 0 | S30: =VLOOKUP($I$29,TS4L6_OS,11,FALSE) -> 0 | T30: =IF(L28<>"","",VLOOKUP($I30,TSL6_ALL,12,FALSE)) -> L6N25
I32: Operating System DATACENTER
I33: No Operating System | K33: =VLOOKUP($I$33,ConfTS4L6!A79:X88,13,FALSE) ->  | L33: =IF(I33="Windows Server 2022,Datacenter,ROK,16CORE",1,0) -> 0 | N33: =R33 -> 0 | R33: =VLOOKUP($I$33,ConfTS4L6!A79:X86,10,FALSE)*L33 -> 0 | S33: =VLOOKUP($I$29,TS4L6_OS,11,FALSE) -> 0 | T33: =VLOOKUP($I33,TSL6_ALL,12,FALSE) -> 
I34: Windows Server 2022 / 2019 Datacenter Edition,Add License,2CORE | K34: =VLOOKUP($I$34,TS4L6_OS,13,FALSE) -> TS4L6-WinServDC2core | L34: =IF(AND(L22=1,L33=1),40,IF(AND(L22=1,L33=0),0,IF(AND(L22=0,L33=1),16,IF(AND(L22="",L33=""),0,0)))) -> 0 | N34: =R34 -> 0 | R34: =VLOOKUP($I$34,TS4L6_OS,10,FALSE)*L34 -> 0 | S34: =VLOOKUP($I$29,TS4L6_OS,11,FALSE) -> 0 | T34: =VLOOKUP($I34,TS4L6_OS,12,FALSE) -> L6N27
I36: Operating System Device CAL / User CAL
I37: 1-pack of Windows Server 2022/2019 Device CALs (STD or DC) | K37: =VLOOKUP($I$37,ConfTS4L6!A83:X84,13,FALSE) -> TS4L6-WINDEVCAL | L37: 0 | N37: =R37 -> 0 | R37: =VLOOKUP($I$37,ConfTS4L6!A83:O84,10,FALSE)*L37 -> 0 | S37: =VLOOKUP($I$29,TS4L6_OS,11,FALSE) -> 0 | T37: =VLOOKUP($I37,TSL6_ALL,12,FALSE) -> L6N23
I38: 1-pack of Windows Server 2022/2019 User CALs (STD or DC) | K38: =VLOOKUP($I$38,ConfTS4L6!A84:X85,13,FALSE) -> TS4L6-WINUSRCAL | L38: 0 | N38: =R38 -> 0 | R38: =VLOOKUP($I$38,ConfTS4L6!A84:O85,10,FALSE)*L38 -> 0 | S38: =VLOOKUP($I$29,TS4L6_OS,11,FALSE) -> 0 | T38: =VLOOKUP($I38,TSL6_ALL,12,FALSE) -> L6N24
I40: Disk Controller (PCI SLOT 1)
G41: =IF($K$16="TS3L4-VSAN","vSAN HCL","") ->  | I41: =IF(W13="vsan64GB",ConfTS4L6!A116,IF(W13="vsan",ConfTS4L6!A116,ConfTS4L6!A115)) -> PERC H740P RAID Controller, 8Gb NV Cache, Adapter, Full Height | K41: =IF($W$13<>"","",IF(L41>0,VLOOKUP($I41,TS4L6_CRTL,13,FALSE),"")) ->  | L41: =IF($W$13<>"","",VLOOKUP($I41,TS4L6_CRTL,7,FALSE)) ->  | N41: =R41+S41 -> 0 | R41: =IF(I41=ConfTS4L6!A59,0,VLOOKUP($I41,TS4L6_CRTL,10,FALSE)) -> 0 | S41: =IF(W13="v2tb",0,IF(W13="v512",0,VLOOKUP($I41,TS4L6_CRTL,11,FALSE))) -> 0 | T41: =IF(W13="v2tb","",IF(W13="vsan","",IF(W13="v512","",VLOOKUP($I41,TSL6_ALL,12,FALSE)))) -> L6N44 | V41: =IF(K41="TS3L4-HBA330-L",1,0) -> 0 | W41: =IF(I41="PERC H740P RAID Controller, 8GB NV Cache",1,0) -> 0 | X41: =IF(Y41=1,Y41*V41,W41*V41) -> 0 | Y41: =IF(N7="",1,0) -> 0
I43: Hard Drivers Bays n° 12 - 2 bay occupate dai dischi 960GB SSD di base | K43: Usati | L43: Disponibili
K44: =L46+L48+L50+L56+L58+L52+L54+L60 -> 2 | L44: =12-K44 -> 10
I46: =ConfTS4L6!A91 -> 2.4TB 10k SAS ISE 12Gbps | K46: =VLOOKUP($I46,TS4L6_HDD,13,FALSE) -> TS4L6-HDD2TB | L46: 0 | N46: =R46 -> 0 | R46: =VLOOKUP($I46,TS4L6_HDD,10,FALSE)*L46 -> 0 | S46: =VLOOKUP($I46,TS4L6_HDD,11,FALSE) -> 0 | T46: =VLOOKUP($I46,TSL6_ALL,12,FALSE) -> L6N11
I48: =ConfTS4L6!A92 -> 1.2TB 10K RPM SAS ISE 12Gbps | K48: =VLOOKUP($I48,TS4L6_HDD,13,FALSE) -> TS4L6-HDD1TB | L48: 0 | N48: =R48 -> 0 | R48: =VLOOKUP($I48,TS4L6_HDD,10,FALSE)*L48 -> 0 | S48: =VLOOKUP($I48,TS4L6_HDD,11,FALSE) -> 0 | T48: =VLOOKUP($I48,TSL6_ALL,12,FALSE) -> L6N12
I50: =ConfTS4L6!A93 -> 3.84TB SSD SAS ISE RI 12Gbps | K50: =VLOOKUP($I50,TS4L6_HDD,13,FALSE) -> TS4L6-SSD-RI3,8TB | L50: 0 | N50: =R50 -> 0 | R50: =VLOOKUP($I50,TS4L6_HDD,10,FALSE)*L50 -> 0 | S50: =VLOOKUP($I50,TS4L6_HDD,11,FALSE) -> 0 | T50: =VLOOKUP($I50,TSL6_ALL,12,FALSE) -> L6N13
I52: =ConfTS4L6!A94 -> 1.92TB SSD SAS ISE RI 12Gbps | K52: =VLOOKUP($I52,TS4L6_HDD,13,FALSE) -> TS4L6-SSD-RI1,6TB | L52: 0 | N52: =R52 -> 0 | R52: =VLOOKUP($I52,TS4L6_HDD,10,FALSE)*L52 -> 0 | S52: =VLOOKUP($I52,TS4L6_HDD,11,FALSE) -> 0 | T52: =VLOOKUP($I52,TSL6_ALL,12,FALSE) -> L6N14
I54: =ConfTS4L6!A95 -> 1.6TB SSD SAS ISE MU 12Gbps | K54: =VLOOKUP($I54,TS4L6_HDD,13,FALSE) -> TS4L6-SSD-MU1,6TB | L54: 0 | N54: =R54 -> 0 | R54: =VLOOKUP($I54,TS4L6_HDD,10,FALSE)*L54 -> 0 | S54: =VLOOKUP($I54,TS4L6_HDD,11,FALSE) -> 0 | T54: =VLOOKUP($I54,TSL6_ALL,12,FALSE) -> L6N15
I56: =ConfTS4L6!A96 -> 960GB SSD SAS ISE RI 12Gbps | K56: =VLOOKUP($I56,TS4L6_HDD,13,FALSE) -> TS4L6-SSD-RI800GB | L56: 2 | N56: =R56 -> 0 | R56: =IF(L56>2,(VLOOKUP($I56,TS4L6_HDD,10,FALSE)*(L56-2)),0) -> 0 | S56: =VLOOKUP($I56,TS4L6_HDD,11,FALSE)*L56 -> 0 | T56: =VLOOKUP($I56,TSL6_ALL,12,FALSE) -> L6N16
I58: =ConfTS4L6!A97 -> 800GB SSD SAS ISE Mix Use 12Gbps | K58: =VLOOKUP($I58,TS4L6_HDD,13,FALSE) -> TS4L6-SSD-MU800GB | L58: 0 | N58: =R58 -> 0 | R58: =VLOOKUP($I58,TS4L6_HDD,10,FALSE)*L58 -> 0 | S58: =VLOOKUP($I58,TS4L6_HDD,11,FALSE)*L58 -> 0 | T58: =VLOOKUP($I58,TSL6_ALL,12,FALSE) -> L6N17
I60: =ConfTS4L6!A99 -> 7.68TB SSD RI SAS ISE 12Gbps | K60: =VLOOKUP($I60,TS4L6_HDD,13,FALSE) -> TS4L6-SSD7.68RI | L60: 0 | N60: =R60+S60 -> 0 | R60: =VLOOKUP($I60,TS4L6_HDD,11,FALSE)*L60 -> 0 | S60: =VLOOKUP($I60,TS4L6_HDD,10,FALSE)*L60 -> 0 | T60: =VLOOKUP($I60,TSL6_ALL,12,FALSE) -> L6N32
I62: NVMe Bays N° 12 | K62: Usati | L62: Disponibili
I63: =IF(AND($K$63>0,$I$13="PowerEdge R940 Server (General Purpose)"),"▲ Per Selezionare dischi nVME selezionare Chassis nVME o vSAN ▲","") ->  | K63: =SUM(L64:L70) -> 0 | L63: =12-K63 -> 12
I64: =ConfTS4L6!A98 -> 1.6TB Enterprise NVMe Mixed Use Drive U.2 | K64: =VLOOKUP($I64,TS4L6_HDD,13,FALSE) -> TS4L6-NVME1,6TB | L64: 0 | N64: =R64 -> 0 | R64: =VLOOKUP($I64,TS4L6_HDD,10,FALSE)*L64 -> 0 | S64: =VLOOKUP($I64,TS4L6_HDD,11,FALSE) -> 0 | T64: =VLOOKUP($I64,TSL6_ALL,12,FALSE) -> L6N18
I66: =ConfTS4L6!A100 -> 3.2TB, Enterprise, NVMe, Mixed Use | K66: =VLOOKUP($I66,TS4L6_HDD,13,FALSE) -> TS4L6-NVMe3.2MU | L66: 0 | N66: =R66 -> 0 | R66: =VLOOKUP($I66,TS4L6_HDD,10,FALSE)*L66 -> 0 | S66: =VLOOKUP($I66,TS4L6_HDD,11,FALSE) -> 0 | T66: =VLOOKUP($I66,TSL6_ALL,12,FALSE) -> L6N33
I68: =ConfTS4L6!A101 -> 1.92TB, Enterprise, NVMe, Read Intensive | K68: =VLOOKUP($I68,TS4L6_HDD,13,FALSE) -> TS4L6-NVMe1.92RI | L68: 0 | N68: =R68 -> 0 | R68: =VLOOKUP($I68,TS4L6_HDD,10,FALSE)*L68 -> 0 | S68: =VLOOKUP($I68,TS4L6_HDD,11,FALSE) -> 0 | T68: =VLOOKUP($I68,TSL6_ALL,12,FALSE) -> L6N34
I70: =ConfTS4L6!A102 -> 3.84TB, Enterprise, NVMe, Read Intensive | K70: =VLOOKUP($I70,TS4L6_HDD,13,FALSE) -> TS4L6-NVMe3.84RI | L70: 0 | N70: =R70 -> 0 | R70: =VLOOKUP($I70,TS4L6_HDD,10,FALSE)*L70 -> 0 | S70: =VLOOKUP($I70,TS4L6_HDD,11,FALSE) -> 0 | T70: =VLOOKUP($I70,TSL6_ALL,12,FALSE) -> L6N35
I72: BOSS controller card
I73: =IF(W13="",ConfTS4L6!A119,IF(W13<>"",ConfTS4L6!A121,ConfTS4L6!A119)) -> No Boss card | K73: =IF(L73>0,VLOOKUP($I73,TS4L6_ISDM,13,FALSE),"") ->  | L73: =VLOOKUP($I73,TS4L6_ISDM,7,FALSE) ->  | N73: =R73+S73 -> 0 | R73: =VLOOKUP($I73,TS4L6_ISDM,10,FALSE) -> 0 | S73: =IF(W13="v2tb",0,IF(W13="v512",0,VLOOKUP($I73,TS4L6_ISDM,11,FALSE))) -> 0 | T73: =IF(W13="v2tb",0,IF(W13="vsan",0,IF(W13="v512",0,VLOOKUP($I73,TSL6_ALL,12,FALSE)))) -> 
I75: Power Supply | J75: =IF(N75="","",U76) -> 
I76: =IF(W16=1,"Dual, Hot-plug Power Supply (1+1), 1400W",IF($K$16="TS3L4-GPUDW","Dual, Hot-plug Power Supply (1+1), 2000W",IF($K$16="TS3L4-GPUSW","Dual, Hot-plug Power Supply (1+1), 2000W","Dual, Hot-plug, Redundant Power Supply (1+1), 750W"))) -> Dual, Hot-plug Power Supply (1+1), 1400W | K76: =VLOOKUP($I76,TS4L6_PSU,13,FALSE) -> TS4L6-PSU1400W | L76: =VLOOKUP($I76,TS4L6_PSU,7,FALSE) -> 1 | R76: =VLOOKUP($I76,TS4L6_PSU,10,FALSE) -> 0 | S76: =VLOOKUP($I76,TS4L6_PSU,11,FALSE) -> 0 | T76: =VLOOKUP($I76,TSL6_ALL,12,FALSE) -> L6N49 | U76: ⚠
I78: Embedded Systems Management
I79: iDRAC9,Enterprise
U82: =IF($K$16="TS3L4-GPUDW","1",IF($K$16="TS3L4-GPUSW","20",IF($L$22=1,"300","4000"))) -> 300
I83: PCI Slot 1 Processor 1 x8 PCIe for HL/FH | K83: =IF(AND(L22=0,SUM(L105:L120)>0),"Selezionare Processore Aggiuntivo o Deselezionare Schede PCI","") -> 
I84: Riservato per PERC
I86: PCI Slot 2 Processor 1 x16 PCIe for HL/FH | K86: =IF(OR($W$14="GP1",$V$13="nVME1"),"Slot non utilizzabile in Configurazione 2 CPU",IF(AND($W$14<>"GP1",I102="Non utilizzabile in configrazione 2CPU"),"Slot Utilizzabile",IF(AND($V$13="NVME2",I102="Non utilizzabile in Configurazione 2CPU"),"Slot Utilizzabile",IF(AND($W$13="vsan64GB",$I$22="No Additional Processor"),"Non utilizzabile in configurazione 2CPU",IF(AND($W$13="vsan",$I$22="No Additional Processor"),"Non utilizzabile in configurazione 2CPU",""))))) -> 
K87: =IF(K86<>"","",VLOOKUP($I87,TSL6_ALL,13,FALSE)) -> 0 | L87: =IF(K86<>"",0,VLOOKUP($I87,TSL6_ALL,7,FALSE)) -> 0 | N87: =R87+S87 -> 0 | R87: =IF(K86<>"",0,VLOOKUP($I87,TSL6_ALL,10,FALSE)) -> 0 | S87: =IF(K86<>"",0,VLOOKUP($I87,TSL6_ALL,11,FALSE)) -> 0 | T87: =VLOOKUP($I87,TSL6_ALL,12,FALSE) -> 0
I89: PCI Slot 3 Processor 1 x16 PCIe for HL/FH
K90: =VLOOKUP($I90,TSL6_ALL,13,FALSE) -> 0 | L90: =VLOOKUP($I90,TSL6_ALL,7,FALSE) -> 0 | N90: =R90+S90 -> 0 | R90: =VLOOKUP($I90,TSL6_ALL,10,FALSE) -> 0 | S90: =VLOOKUP($I90,TSL6_ALL,11,FALSE) -> 0 | T90: =VLOOKUP($I90,TSL6_ALL,12,FALSE) -> 0
I92: PCI Slot 4 Processor 2 x16 PCIe for HL/FH | J92: =IF($V$82="SW","GPU Slot",IF($V$82="DW","GPU Slot","")) ->  | K92: =IF(OR($W$14="GP1",$V$13="nVME1"),"Slot non utilizzabile in Configurazione 2 CPU",IF(AND($W$14<>"GP1",I102="Non utilizzabile in configrazione 2CPU"),"Slot Utilizzabile",IF(AND($V$13="NVME2",I102="Non utilizzabile in Configurazione 2CPU"),"Slot Utilizzabile",IF(AND($W$13="vsan64GB",$I$22="No Additional Processor"),"Non utilizzabile in configurazione 2CPU",IF(AND($W$13="vsan",$I$22="No Additional Processor"),"Non utilizzabile in configurazione 2CPU",""))))) -> 
K93: =VLOOKUP($I93,TSL6_ALL,13,FALSE) -> 0 | L93: =VLOOKUP($I93,TSL6_ALL,7,FALSE) -> 0 | N93: =R93+S93 -> 0 | R93: =VLOOKUP($I93,TSL6_ALL,10,FALSE) -> 0 | S93: =VLOOKUP($I93,TSL6_ALL,11,FALSE) -> 0 | T93: =VLOOKUP($I93,TSL6_ALL,12,FALSE) -> 0
I95: PCI Slot 5 Processor 2 x8 PCIe for HL/FH | J95: =IF($V$82="SW","GPU Slot","") ->  | K95: =IF(AND(I96<>"",I96<>"Riservato BOSS Card",W13="v2tb"),"Slot dedicato a BOSS Card",IF(AND(I96<>"",I96<>"Riservato BOSS Card",W13="vsan"),"Slot dedicato a BOSS Card",IF(AND(I96="Riservato BOSS Card",W14="GP1"),"← E' Possibile utilizzare lo SLOT PCI",IF(AND(I96="Riservato BOSS Card",W14="GP2"),"← E' Possibile utilizzare lo SLOT PCI",IF(AND(I96="Riservato BOSS Card",V13="NVME1"),"← E' Possibile utilizzare lo SLOT PCI",IF(AND(I96="Riservato BOSS Card",V13="NVME2"),"← E' Possibile utilizzare lo SLOT PCI","")))))) -> 
K96: =VLOOKUP($I96,TSL6_ALL,13,FALSE) -> 0 | L96: =VLOOKUP($I96,TSL6_ALL,7,FALSE) -> 0 | N96: =R96+S96 -> 0 | R96: =IF(K95="Slot dedicato a BOSS Card",0,VLOOKUP($I96,TSL6_ALL,10,FALSE)) -> 0 | S96: =VLOOKUP($I96,TSL6_ALL,11,FALSE) -> 0 | T96: =IF(K95="Slot dedicato a BOSS card","",VLOOKUP($I96,TSL6_ALL,12,FALSE)) -> 0
I98: PCI Slot 6 Processor 2 x8 PCIe for HL/FH
K99: =VLOOKUP($I99,TSL6_ALL,13,FALSE) -> 0 | L99: =IF($V$13="VxFlex",1,VLOOKUP($I99,TSL6_ALL,7,FALSE)) -> 0 | N99: =R99+S99 -> 0 | R99: =IF($V$13="VxFlex",419,VLOOKUP($I99,TSL6_ALL,10,FALSE)) -> 0 | T99: =VLOOKUP($I99,TSL6_ALL,12,FALSE) -> 0
I101: PCI Slot 7 Processor 2 x16 PCIe for HL/FH | J101: =IF($V$82="SW","GPU Slot","") ->  | K101: =IF(OR($W$14="GP1",$V$13="nVME1"),"Slot non utilizzabile in Configurazione 2 CPU",IF(AND($W$14<>"GP1",I102="Non utilizzabile in configrazione 2CPU"),"Slot Utilizzabile",IF(AND($V$13="NVME2",I102="Non utilizzabile in Configurazione 2CPU"),"Slot Utilizzabile",IF(AND($W$13="vsan64GB",$I$22="No Additional Processor"),"Non utilizzabile in configurazione 2CPU",IF(AND($W$13="vsan",$I$22="No Additional Processor"),"Non utilizzabile in configurazione 2CPU",""))))) -> 
K102: =VLOOKUP($I102,TSL6_ALL,13,FALSE) -> 0 | L102: =VLOOKUP($I102,TSL6_ALL,7,FALSE) -> 0 | N102: =R102+S102 -> 0 | R102: =VLOOKUP($I102,TSL6_ALL,10,FALSE) -> 0 | S102: =VLOOKUP($I102,TSL6_ALL,11,FALSE) -> 0 | T102: =VLOOKUP($I102,TSL6_ALL,12,FALSE) -> 0
H104: =IF($I$22="No Additional Processor","Gli Slot 8-13 sono disponibili aggiungendo Terzo e Quarto Processore","") ->  | I104: PCI Slot 8 Processor 3 x16 PCIe for HL/FH | J104: =IF($V$82="SW","GPU Slot","") ->  | K104: =IF(AND(W13="vsan",I22<>"No Additional Processor"),"Non utilizzabile in configurazione 4CPU",IF(AND(W13="boss3TB",I22<>"No Additional Processor"),"Non utilizzabile in configurazione 4CPU",IF(AND(W13="vsan64GB",I22<>"No Additional Processor"),"Non utilizzabile in configurazione 4CPU",IF(OR($W$14="GP2",$V$13="nVME2"),"Slot non utilizzabile in Configurazione 4 CPU",IF(AND($W$14<>"GP2",I105="Non utilizzabile in configurazione 4CPU"),"Aggiungere Terzo e Quarto Processore",IF(AND($V$13<>"nVME2",I105="Non utilizzabile in configurazione 4CPU"),"Aggiungere Terzo e Quarto Processore","")))))) -> Slot non utilizzabile in Configurazione 4 CPU
K105: =VLOOKUP($I105,TSL6_ALL,13,FALSE) -> 0 | L105: =VLOOKUP($I105,TSL6_ALL,7,FALSE) -> 0 | N105: =R105+S105 -> 0 | R105: =VLOOKUP($I105,TSL6_ALL,10,FALSE) -> 0 | S105: =VLOOKUP($I105,TSL6_ALL,11,FALSE) -> 0 | T105: =VLOOKUP($I105,TSL6_ALL,12,FALSE) -> 0
I107: PCI Slot 9 Processor 3 x16 PCIe for HL/FH | J107: =IF($V$82="SW","GPU Slot",IF($V$82="DW","GPU Slot","")) -> 
K108: =VLOOKUP($I108,TSL6_ALL,13,FALSE) -> 0 | L108: =VLOOKUP($I108,TSL6_ALL,7,FALSE) -> 0 | N108: =R108+S108 -> 0 | R108: =VLOOKUP($I108,TSL6_ALL,10,FALSE) -> 0 | S108: =VLOOKUP($I108,TSL6_ALL,11,FALSE) -> 0 | T108: =VLOOKUP($I108,TSL6_ALL,12,FALSE) -> 0
I110: PCI Slot 10 Processor 3 x16 PCIe for HL/FH | J110: =IF($V$82="SW","GPU Slot",IF($V$82="DW","GPU Slot","")) -> 
K111: =VLOOKUP($I111,TSL6_ALL,13,FALSE) -> 0 | L111: =VLOOKUP($I111,TSL6_ALL,7,FALSE) -> 0 | N111: =R111+S111 -> 0 | R111: =VLOOKUP($I111,TSL6_ALL,10,FALSE) -> 0 | S111: =VLOOKUP($I111,TSL6_ALL,11,FALSE) -> 0 | T111: =VLOOKUP($I111,TSL6_ALL,12,FALSE) -> 0
I113: PCI Slot 11 Processor 4 x16 PCIe for HL/FH | J113: =IF($V$82="SW","GPU Slot",IF($V$82="DW","GPU Slot","")) ->  | K113: =IF(AND(W13="vsan",I22<>"No Additional Processor"),"Non utilizzabile in configurazione 4CPU",IF(AND($W$13="boss3TB",$I$22<>"No Additional Processor"),"Non utilizzabile in configurazione 4CPU",IF(AND($W$13="vsan64GB",$I$22<>"No Additional Processor"),"Non utilizzabile in configurazione 4CPU",IF(OR($W$14="GP2",$V$13="nVME2"),"Slot non utilizzabile in Configurazione 4 CPU",IF(AND($W$14<>"GP2",$I$105="Non utilizzabile in configurazione 4CPU"),"Aggiungere Terzo e Quarto Processore",IF(AND($V$13<>"nVME2",$I$105="Non utilizzabile in configurazione 4CPU"),"Aggiungere Terzo e Quarto Processore","")))))) -> Slot non utilizzabile in Configurazione 4 CPU
K114: =VLOOKUP($I114,TSL6_ALL,13,FALSE) -> 0 | L114: =VLOOKUP($I114,TSL6_ALL,7,FALSE) -> 0 | N114: =R114+S114 -> 0 | R114: =VLOOKUP($I114,TSL6_ALL,10,FALSE) -> 0 | S114: =VLOOKUP($I114,TSL6_ALL,11,FALSE) -> 0 | T114: =VLOOKUP($I114,TSL6_ALL,12,FALSE) -> 0
I116: PCI Slot 12 Processor 4 x16 PCIe for HL/FH | J116: =IF($V$82="SW","GPU Slot",IF($V$82="DW","GPU Slot","")) ->  | K116: =IF(AND(W13="vsan",I22<>"No Additional Processor"),"Non utilizzabile in configurazione 4CPU",IF(AND($W$13="boss3TB",$I$22<>"No Additional Processor"),"Non utilizzabile in configurazione 4CPU",IF(AND($W$13="vsan64GB",$I$22<>"No Additional Processor"),"Non utilizzabile in configurazione 4CPU",IF(OR($W$14="GP2",$V$13="nVME2"),"Slot non utilizzabile in Configurazione 4 CPU",IF(AND($W$14<>"GP2",$I$105="Non utilizzabile in configurazione 4CPU"),"Aggiungere Terzo e Quarto Processore",IF(AND($V$13<>"nVME2",$I$105="Non utilizzabile in configurazione 4CPU"),"Aggiungere Terzo e Quarto Processore","")))))) -> Slot non utilizzabile in Configurazione 4 CPU
K117: =VLOOKUP($I117,TSL6_ALL,13,FALSE) -> 0 | L117: =VLOOKUP($I117,TSL6_ALL,7,FALSE) -> 0 | N117: =R117+S117 -> 0 | R117: =VLOOKUP($I117,TSL6_ALL,10,FALSE) -> 0 | S117: =VLOOKUP($I117,TSL6_ALL,11,FALSE) -> 0 | T117: =VLOOKUP($I117,TSL6_ALL,12,FALSE) -> 0
N118: =IF(T117="L4N33",IF($U$105>1,"ERRORE: SOLO UNA BOSS CARD PUO' ESSERE CONFIGURATA",""),"") -> 
I119: PCI Slot 13 Processor 4 x16 PCIe for HL/FH | J119: =IF($V$82="SW","GPU Slot",IF($V$82="DW","GPU Slot","")) -> 
K120: =VLOOKUP($I120,TSL6_ALL,13,FALSE) -> 0 | L120: =VLOOKUP($I120,TSL6_ALL,7,FALSE) -> 0 | N120: =R120+S120 -> 0 | R120: =VLOOKUP($I120,TSL6_ALL,10,FALSE) -> 0 | S120: =VLOOKUP($I120,TSL6_ALL,11,FALSE) -> 0 | T120: =VLOOKUP($I120,TSL6_ALL,12,FALSE) -> 0
I122: SFP+ Transceivers 10 Gbps
I123: =ConfTS4L6!A165 -> SFP+ SR Optic for all SFP+ ports except high temp validation warning cards | K123: =VLOOKUP($I123,TS4L6_SFP,13,FALSE) -> TS4L6-OT10GB | L123: 0 | N123: =R123+S123 -> 0 | R123: =VLOOKUP($I123,TS4L6_SFP,10,FALSE) -> 0 | S123: =VLOOKUP($I123,TS4L6_SFP,11,FALSE)*L123 -> 0 | T123: =IF(L123>0,VLOOKUP($I123,TS4L6_SFP,12,FALSE),"") -> 
I125: SFP28 - 25GbE
I126: =ConfTS4L6!A166 -> SFP28 SR Optic, 25GbE, 85C, for all SFP28 ports | K126: =VLOOKUP($I126,TS4L6_SFP,13,FALSE) -> TS4L6-OT25GB | L126: 0 | N126: =R126+S126 -> 0 | R126: =VLOOKUP($I126,TS4L6_SFP,10,FALSE) -> 0 | S126: =VLOOKUP($I126,TS4L6_SFP,11,FALSE)*L126 -> 0 | T126: =IF(L126>0,VLOOKUP($I126,TS4L6_SFP,12,FALSE),"") -> 
I128: QSFP28 Transceivers
I129: =ConfTS4L6!A167 -> Dell EMC PowerEdge QSFP28 SR4 100GbE 85C optic | K129: =VLOOKUP($I129,TS4L6_SFP,13,FALSE) -> TS4L6-OT100GB | L129: 0 | N129: =R129+S129 -> 0 | R129: =VLOOKUP($I129,TS4L6_SFP,10,FALSE) -> 0 | S129: =VLOOKUP($I129,TS4L6_SFP,11,FALSE)*L129 -> 0 | T129: =IF(L129>0,VLOOKUP($I129,TS4L6_SFP,12,FALSE),"") -> 
I131: Garanzia
I132: Manutenzione in garanzia (36 mesi) | K132: =VLOOKUP($I132,TS4L6_WARRANTY,13,FALSE) ->  | L132: =VLOOKUP($I132,TSL6_ALL,7,FALSE) ->  | N132: =R132 -> 0 | R132: =VLOOKUP($I132,TS4L6_WARRANTY,10,FALSE) -> 0 | S132: =VLOOKUP($I132,TS4L6_WARRANTY,11,FALSE) -> 0 | T132: =VLOOKUP($I132,TSL6_ALL,12,FALSE) -> 
I134: Hard Disk Retention | L134: =IF(AND(I135="Hard disk Retention 60 mesi",L132=""),"Selezionare Estensione di Garanzia 60 Mesi",IF(AND(L132=1,I135="Hard Disk Retention 36 mesi"),"Selezionare Hard Disk Retention 60 Mesi","")) -> 
K135: =VLOOKUP($I135,TS4L6_HDDRET,13,FALSE) ->  | L135: =IF(I135="","",1) ->  | N135: =R135 ->  | R135: =IFERROR(W135,VLOOKUP(I135,TS4L6_HDDRET,10,FALSE)) ->  | S135: =IFERROR(X135,VLOOKUP(I135,TSL6_ALL,11,FALSE)) -> 0 | T135: =IFERROR(Y135,VLOOKUP(I135,TS4L6_HDDRET,12,FALSE)) ->  | V135: =IF(L132+L135=2,VLOOKUP("Hard Disk Retention 60 mesi",TSL6_ALL,13,FALSE),VLOOKUP(I135,TSL6_ALL,13,FALSE)) ->  | W135: =IF(L132+L135=2,VLOOKUP("Hard Disk Retention 60 mesi",TSL6_ALL,10,FALSE),VLOOKUP(I135,TSL6_ALL,10,FALSE)) ->  | X135: =IF(L132+L135=2,VLOOKUP("Hard Disk Retention (60 mesi)",TSL6_ALL,11,FALSE),VLOOKUP(I135,TSL6_ALL,11,FALSE)) ->  | Y135: =IF(L132+L135=2,VLOOKUP("Hard Disk Retention 60 mesi",TSL6_ALL,12,FALSE),VLOOKUP(I135,TSL6_ALL,12,FALSE)) -> 
K138: Configurazione | L138: =SUM(R13:R135)*L8 -> 0 | R138: =SUM(L105:L120) -> 0
K139: 0.2 | L139: =SUM(S13:S135)*L8 -> 0
K140: Totale | L140: =SUM(L138:L139) -> 0
I142: NOTE

Sheet Lotto6_R940_2
I2: Convenzione Tecnologie Server 4 - Lotto 6 | K2: =IF(U105>1,"ERRORE NELLA CONFIGURAZIONE","") ->  | N2: =IF(N6<0,"Superata Quota 20%","") -> 
N3: Articoli 20% Totali | S3: Check CPU | T3: Check RAM | U3: Check NVME | V3: Check PCI | W3: Check Win | X3: Check Tot
I4: =IF(W13="vsan","Selezionando la soluzione vSAN si accetta la sostituzione del controller 745 con il HBA355, comprensivo di BOSS Card Certificati per vSAN",IF(W13="v2tb","Selezionando la soluzione vSAN si accetta la sostituzione del controller 745 con il HBA355, comprensivo di BOSS Card Certificati per vSAN","")) ->  | K4: =IF(X4>1,"Errori nella Configurazione",IF(S4>0,"Errore nella Selezione della CPU",IF(T4>0,"Errore Nella Selezione della RAM",IF(U4>0,"Errore Nella selezione dello Chassis per Dischi nVME",IF(V4>0,"Errore nella Selezione Slot PCI",IF(W4>0,"Errore nella Selezione Licenze Windows","")))))) ->  | L4: Totale Altre Opzioni | N4: =Riepilogo_Ordine!K140 -> 0 | S4: =IF(L19<>"",1,0) -> 0 | T4: =IF(L24<>"",1,0) -> 0 | U4: =IF(I14<>"",1,0) -> 0 | V4: =IF(K83<>"",1,0) -> 0 | W4: =IF(L27<>"",1,0) -> 0 | X4: =SUM(S4:W4) -> 0
L5: =Altre_Opzioni!H3 -> 0 | N5: Quota residua 20 %
K6: Guida alla Convenzione | L6: Totale Configurazione | N6: =Riepilogo_Ordine!G141 -> 0
I7: =IF(Riepilogo_Ordine!Q3>0,"Compilare i Dati Necessari all'Ordine per Stampare in PDF o Controllare le Configurazioni","Dati Completi") -> Compilare i Dati Necessari all'Ordine per Stampare in PDF o Controllare le Configurazioni | L7: =$L$140 -> 0 | N7: Totale Ordine Iva Esclusa | S7: =IF(AND($W$13="vsan64GB",L22=0),ConfTS4L6!$A$47:$A$48,IF(AND($W$13="vsan64GB",$L$22=1),ConfTS4L6!$A$51:$A$52,"")) -> 
I8: DELL POWEREDGE R940 | K8: Quantità Server | L8: 0 | N8: =Riepilogo_Ordine!K141 -> 0
I12: Base | V12: PowerEdge R940 Server (General Purpose)
I13: PowerEdge R940 Server (General Purpose) | K13: =IF($L$8>0,VLOOKUP(I13,ConfTS4L6!A3:M7,13,FALSE),"") ->  | L13: =IF($L$8>0,1,"") ->  | N13: =R13 -> 5754.51 | R13: =VLOOKUP($I$13,TSL6_ALL,10,FALSE) -> 5754.51 | T13: =VLOOKUP($I13,TS4L6_BASE,12,FALSE) -> L6N01 | V13: =IF(AND(I13=ConfTS4L6!A12,L22=0),"nVME1",IF(AND(I13=ConfTS4L6!A12,L22=1),"NVME2","")) ->  | W13: =IF(I13=ConfTS4L6!A13,"vsan",IF(I13=ConfTS4L6!A15,"Boss3TB",IF(I13=ConfTS4L6!A14,"vsan64GB",""))) ->  | X13: =IF(I13=ConfTS4L6!A15,"Boss3TB","") -> 
I14: =IF(AND($K$63>0,$I$13="PowerEdge R940 Server (General Purpose)"),"▲ Per Selezionare dischi nVME selezionare Chassis nVME o vSAN ▲","") ->  | W14: =IF(AND(I13="PowerEdge R940 Server (General Purpose)",L22=0),"GP1",IF(AND(I13="PowerEdge R940 Server (General Purpose)",L22=1),"GP2","")) -> GP1
I15: Chassis Configuration | K15: =IF($V$82="SW","MAX 4 GPU",IF($V$82="DW","MAX 2 GPU","")) -> 
I16: =IF($L$22=1,VLOOKUP($I$13,TS4L6_Chassis,3,FALSE),VLOOKUP($I$13,TS4L6_Chassis,2,FALSE)) -> Chassis with Up to 12X 2.5 SAS/SATA + 12X 2.5 for 2CPU Configuration | K16: =IF(T16="L6N122",Tabella_prezzi!F85,IF(T16="L6N123",Tabella_prezzi!F86,IF(T16="L6N124",Tabella_prezzi!F87,IF(T16="L6N125",Tabella_prezzi!F88,IF($L$22=1,VLOOKUP($I$13,TS4L6_Chassis,13,FALSE),VLOOKUP($I$13,TS4L6_Chassis,13,FALSE)))))) ->  | L16: =IF(I13=V12,VLOOKUP($I$13,TS4L6_Chassis,6,FALSE),VLOOKUP($I$13,TS4L6_Chassis,7,FALSE)) ->  | N16: =R16+S16 -> 0 | R16: =VLOOKUP($I$13,TS4L6_Chassis,10,FALSE) -> 0 | S16: =IF(T16="L6N125",Tabella_prezzi!D88,IF(T16="L6N122",Tabella_prezzi!D85,IF(T16="L6N123",Tabella_prezzi!D86,IF(T16="L6N124",Tabella_prezzi!D87,VLOOKUP(I13,TS4L6_Chassis,11,FALSE))))) -> 0 | T16: =IF(AND(W13="vsan64GB",I26=1024),"L6N123",IF(AND(W13="vsan64GB",I26=1536),"L6N122",IF(AND(W13="vsan64GB",I26=2048),"L6N124",IF(AND(W13="Boss3TB",I26=3072),"L6N125",VLOOKUP($I13,TS4L6_Chassis,12,FALSE))))) -> 0 | V16: Chassis with Up to 24 x 2.5'' Hard Drives for 2CPU Configuration | W16: 1
I18: Processor
I19: 2 x Intel Xeon Gold 6252N, 2.3G, 24C/48T, 10.4GT/s, 35.75M Cache, Turbo, HT (150W) DDR4-2933 | L19: =IF(AND(W13="boss3TB",L22=0),"Selezionare Processori Aggiuntivi per Configurazione BOSS 3TB",IF(AND(W13="vsan64GBb",L22=0),"Selezionare Processori Aggiuntivi per Configurazione vSAN 2 TB",IF(AND(V13="nVME",L22=0),"Selezionare Processori Aggiuntivi per Configurazione nVME",IF(AND(W13=2048,L22=""),"Selezionare Processore Aggiuntivo per Configurazione vSAN",IF(AND(X13="Nutanix",L22=""),"Selezionare Processore Aggiuntivo per Configurazione Nutanix",""))))) ->  | R19: =IF(L16=1,VLOOKUP($I$19,TS4L6_CPU,11,FALSE),VLOOKUP($I$19,TS4L6_CPU,11,FALSE)) -> 0 | S19: =IF(L16=1,VLOOKUP($I$19,TS4L6_CPU,11,FALSE),VLOOKUP($I$19,TS4L6_CPU,11,FALSE)) -> 0 | T19: =IF(S19=0,0,VLOOKUP($I19,TS4L6_CPU,12,FALSE)) -> 0
I21: Additional Processor
I22: No Additional Processor | K22: =IF(L16=1,VLOOKUP($I$19,TS4L6_CPU,13,FALSE),VLOOKUP($I$22,TS4L6_CPU,13,FALSE)) ->  | L22: =IF(L16=1,VLOOKUP($I$22,TS4L6_CPU,7,FALSE),VLOOKUP($I$22,TS4L6_CPU,7,FALSE)) -> 0 | N22: =R22 -> 0 | R22: =IF(L22=1,VLOOKUP($I$19,TS4L6_CPU,10,FALSE),VLOOKUP($I$22,TS4L6_CPU,10,FALSE)) -> 0 | S22: =IF(L16=1,VLOOKUP($I$19,TS4L6_CPU,11,FALSE),VLOOKUP($I$22,TS4L6_CPU,11,FALSE)) -> 0 | T22: =IF(L22=1,VLOOKUP(I19,TSL6_ALL,12,FALSE),VLOOKUP($I22,TS4L6_CPU,12,FALSE)) ->  | V22: =IF(L16=1,"2 x Intel Xeon Gold 6252N, 2.3G, 24C/48T, 10.4GT/s, 35.75M Cache, Turbo, HT (150W) DDR4-2933",I22) -> No Additional Processor
I24: Memory Capacity (GB) | L24: =IF(AND(W13="vsan",L22=0,I25<>512,I25<>768),"Selezionare RAM Corretta",IF(AND(W13="vsan",L22=1,I25<>1024,I25<>1536),"Selezionare RAM Corretta",IF(AND(W13="v2tb",I25<>2048),"Selezionare 2 TB RAM",IF(AND(W13="v2tb",L22=0),"Selezionare Processori",IF(AND(X13="vsan",L22="",I25>768),"Selezionare RAM Corretta",IF(AND(W14="GP1",I25>768),"Selezionare RAM Corretta",IF(AND(W14="GP2",I25>1536),"Selezionare RAM Corretta",IF(AND(V13="nVME1",I25>768),"Selezionare RAM Corretta",IF(AND(V13="NVME2",I25>1536),"Selezionare RAM Corretta",IF(AND(I25<>"",I26>2000,W13="vsan64GB"),"Deselezionare RAM 32GB e Aggiungere RAM 64GB",IF(AND(W13<>"vsan64GB",W13<>"Boss3TB",I26<>"",I25=0),"Deselezionare RAM 64 GB",IF(AND(W13="Boss3TB",I26="",I25=""),"Selezionare RAM 64",IF(AND(W13<>"vsan64GB",I26="",I25=""),"Selezionare RAM 32",IF(AND(I25="",I26="",W13="vsan64GB"),"Selezionare RAM 64",IF(AND(L22=1,W13="vsan64GB",I26<2000),"Selezionare RAM 64 GB Corretta",IF(AND(L22=0,W13="vsan64GB",I26>2000),"Selezionare Processore Aggiuntivo per 2TB",IF(AND(L22=1,W13="Boss3TB",I26<3000),"Selezionare RAM 64 Corretta",IF(AND(L22=1,W13="Boss3TB",I25<>""),"Deselezionare RAM 32",IF(AND(L22=1,W13="vsan64GB",I26>3000),"Selezionare RAM 64 Corretta",IF(AND(W13="vsan",I26<>""),"Deselezionare RAM 64","")))))))))))))))))))) -> 
I25: 512 | K25: TS4L6-RAM32 | L25: =W25 -> 0 | N25: =R25+R26 -> 0 | R25: =X25 -> 0 | T25: =Y25 -> L6N03 | W25: =IF(L24<>"",0,IF(OR(W13="vsan64GB",W13="Boss3TB"),0,IF(AND(W13="v2tb",L22=1),VLOOKUP(I25,ConfTS4L6!A51:S51,11,FALSE),IF($L$22=1,VLOOKUP($I$25,TS4L6_RAM2CPU,7,FALSE),VLOOKUP($I$25,TS4L6_RAM1CPU,7,FALSE))))) -> 0 | X25: =IF(L24<>"",0,IF(OR(W13="vsan64GB",W13="Boss3TB"),0,IF(AND(W13="v2tb",L22=1),VLOOKUP(I25,ConfTS4L6!A51:S51,11,FALSE),IF($L$22=1,VLOOKUP($I$25,TS4L6_RAM2CPU,10,FALSE),VLOOKUP($I$25,TS4L6_RAM1CPU,10,FALSE))))) -> 0 | Y25: =IF(L24<>"","",IF(OR(W13="vsan64GB",W13="Boss3TB"),0,IF($L$22=1,VLOOKUP($I$25,ConfTS4L6!A56:M75,12,FALSE),VLOOKUP($I$25,TS4L6_RAM1CPU,12,FALSE)))) -> L6N03
K26: TS4L6-RAM64 | L26: =W26 -> 0 | R26: =X26 -> 0 | T26: =Y26 -> 0 | W26: =IF(L19<>"","",IF(L24<>"",0,IF(W13="vsan",0,IF(W13="",0,IF(W13="Boss3TB",VLOOKUP(I26,TS4L6_64GB,7,FALSE),IF(AND(W13="vsan64GB",L22<>0),VLOOKUP(I26,TS4L6_64GB,7,FALSE),IF(AND(W13="vsan64GB",L22=0),VLOOKUP(I26,TS4L6_2cpu64gb,7,FALSE)))))))) -> 0 | X26: =IF(L19<>"",0,IF(L24<>"",0,IF(W13="vsan",0,IF(W13="",0,IF(W13="Boss3TB",VLOOKUP(I26,TS4L6_64GB,10,FALSE),IF(AND(W13="vsan64GB",L22<>0),VLOOKUP(I26,TS4L6_64GB,10,FALSE),IF(AND(W13="vsan64GB",L22=0),VLOOKUP(I26,TS4L6_2cpu64gb,10,FALSE)))))))) -> 0 | Y26: =IF(L19<>"","",IF(L24<>"",0,IF(W13="vsan",0,IF(W13="",0,IF(W13="Boss3TB",VLOOKUP(I26,TS4L6_64GB,12,FALSE),IF(AND(W13="vsan64GB",L22<>0),VLOOKUP(I26,TS4L6_64GB,12,FALSE),IF(AND(W13="vsan64GB",L22=0),VLOOKUP(I26,TS4L6_2cpu64gb,12,FALSE)))))))) -> 0
I28: Operating System STANDARD | L28: =IF(AND(I29="Ubuntu Server 22.04 LTS 64 Bit",L30<>""),"Deselezionare Licenze 2 Core",IF(I29="Ubuntu Server 22.04 LTS 64 Bit","",IF(AND(L29=1,L30=0),"Selezionare Licenze 2 Core",IF(AND(L22=0,L30>64),"Selezionare Licenze 2 Core Corrette",IF(AND(L22=1,L30=16),"Selezionare Licenze 2 Core Corrette",IF(AND(L29=0,L30>0),"Deselezionare Licenze 2 Core","")))))) -> 
I29: No Operating System | K29: =VLOOKUP($I$29,TS4L6_OS,13,FALSE) ->  | L29: =IF(I29="Windows Server 2022,Standard,ROK,16CORE",1,IF(I29="Ubuntu Server 22.04 LTS 64 Bit",1,0)) -> 0 | N29: =R29 -> 0 | R29: =VLOOKUP($I$29,TS4L6_OS,10,FALSE)*L29 -> 0 | S29: =VLOOKUP($I$29,TS4L6_OS,11,FALSE) -> 0 | T29: =VLOOKUP($I29,TSL6_ALL,12,FALSE) -> 
I30: Windows Server 2022 Standard Edition, Add License,2CORE | K30: =VLOOKUP($I$30,TS4L6_OS,13,FALSE) -> TS4L6-WINSRV2C | N30: =R30 -> 0 | R30: =IF(L28<>"",0,VLOOKUP($I$30,TS4L6_OS,10,FALSE))*L30 -> 0 | S30: =VLOOKUP($I$29,TS4L6_OS,11,FALSE) -> 0 | T30: =IF(L28<>"","",VLOOKUP($I30,TSL6_ALL,12,FALSE)) -> L6N25
I32: Operating System DATACENTER
I33: No Operating System | K33: =VLOOKUP($I$33,ConfTS4L6!A79:X88,13,FALSE) ->  | L33: =IF(I33="Windows Server 2022,Datacenter,ROK,16CORE",1,0) -> 0 | N33: =R33 -> 0 | R33: =VLOOKUP($I$33,ConfTS4L6!A79:X86,10,FALSE)*L33 -> 0 | S33: =VLOOKUP($I$29,TS4L6_OS,11,FALSE) -> 0 | T33: =VLOOKUP($I33,TSL6_ALL,12,FALSE) -> 
I34: Windows Server 2022 / 2019 Datacenter Edition,Add License,2CORE | K34: =VLOOKUP($I$34,TS4L6_OS,13,FALSE) -> TS4L6-WinServDC2core | L34: =IF(AND(L22=1,L33=1),40,IF(AND(L22=1,L33=0),0,IF(AND(L22=0,L33=1),16,IF(AND(L22="",L33=""),0,0)))) -> 0 | N34: =R34 -> 0 | R34: =VLOOKUP($I$34,TS4L6_OS,10,FALSE)*L34 -> 0 | S34: =VLOOKUP($I$29,TS4L6_OS,11,FALSE) -> 0 | T34: =VLOOKUP($I34,TS4L6_OS,12,FALSE) -> L6N27
I36: Operating System Device CAL / User CAL
I37: 1-pack of Windows Server 2022/2019 Device CALs (STD or DC) | K37: =VLOOKUP($I$37,ConfTS4L6!A83:X84,13,FALSE) -> TS4L6-WINDEVCAL | L37: 0 | N37: =R37 -> 0 | R37: =VLOOKUP($I$37,ConfTS4L6!A83:O84,10,FALSE)*L37 -> 0 | S37: =VLOOKUP($I$29,TS4L6_OS,11,FALSE) -> 0 | T37: =VLOOKUP($I37,TSL6_ALL,12,FALSE) -> L6N23
I38: 1-pack of Windows Server 2022/2019 User CALs (STD or DC) | K38: =VLOOKUP($I$38,ConfTS4L6!A84:X85,13,FALSE) -> TS4L6-WINUSRCAL | L38: 0 | N38: =R38 -> 0 | R38: =VLOOKUP($I$38,ConfTS4L6!A84:O85,10,FALSE)*L38 -> 0 | S38: =VLOOKUP($I$29,TS4L6_OS,11,FALSE) -> 0 | T38: =VLOOKUP($I38,TSL6_ALL,12,FALSE) -> L6N24
I40: Disk Controller (PCI SLOT 1)
G41: =IF($K$16="TS3L4-VSAN","vSAN HCL","") ->  | I41: =IF(W13="vsan64GB",ConfTS4L6!A116,IF(W13="vsan",ConfTS4L6!A116,ConfTS4L6!A115)) -> PERC H740P RAID Controller, 8Gb NV Cache, Adapter, Full Height | K41: =IF($W$13<>"","",IF(L41>0,VLOOKUP($I41,TS4L6_CRTL,13,FALSE),"")) ->  | L41: =IF($W$13<>"","",VLOOKUP($I41,TS4L6_CRTL,7,FALSE)) ->  | N41: =R41+S41 -> 0 | R41: =IF(I41=ConfTS4L6!A59,0,VLOOKUP($I41,TS4L6_CRTL,10,FALSE)) -> 0 | S41: =IF(W13="v2tb",0,IF(W13="v512",0,VLOOKUP($I41,TS4L6_CRTL,11,FALSE))) -> 0 | T41: =IF(W13="v2tb","",IF(W13="vsan","",IF(W13="v512","",VLOOKUP($I41,TSL6_ALL,12,FALSE)))) -> L6N44 | V41: =IF(K41="TS3L4-HBA330-L",1,0) -> 0 | W41: =IF(I41="PERC H740P RAID Controller, 8GB NV Cache",1,0) -> 0 | X41: =IF(Y41=1,Y41*V41,W41*V41) -> 0 | Y41: =IF(N7="",1,0) -> 0
I43: Hard Drivers Bays n° 12 - 2 bay occupate dai dischi 960GB SSD di base | K43: Usati | L43: Disponibili
K44: =L46+L48+L50+L56+L58+L52+L54+L60 -> 2 | L44: =12-K44 -> 10
I46: =ConfTS4L6!A91 -> 2.4TB 10k SAS ISE 12Gbps | K46: =VLOOKUP($I46,TS4L6_HDD,13,FALSE) -> TS4L6-HDD2TB | L46: 0 | N46: =R46 -> 0 | R46: =VLOOKUP($I46,TS4L6_HDD,10,FALSE)*L46 -> 0 | S46: =VLOOKUP($I46,TS4L6_HDD,11,FALSE) -> 0 | T46: =VLOOKUP($I46,TSL6_ALL,12,FALSE) -> L6N11
I48: =ConfTS4L6!A92 -> 1.2TB 10K RPM SAS ISE 12Gbps | K48: =VLOOKUP($I48,TS4L6_HDD,13,FALSE) -> TS4L6-HDD1TB | L48: 0 | N48: =R48 -> 0 | R48: =VLOOKUP($I48,TS4L6_HDD,10,FALSE)*L48 -> 0 | S48: =VLOOKUP($I48,TS4L6_HDD,11,FALSE) -> 0 | T48: =VLOOKUP($I48,TSL6_ALL,12,FALSE) -> L6N12
I50: =ConfTS4L6!A93 -> 3.84TB SSD SAS ISE RI 12Gbps | K50: =VLOOKUP($I50,TS4L6_HDD,13,FALSE) -> TS4L6-SSD-RI3,8TB | L50: 0 | N50: =R50 -> 0 | R50: =VLOOKUP($I50,TS4L6_HDD,10,FALSE)*L50 -> 0 | S50: =VLOOKUP($I50,TS4L6_HDD,11,FALSE) -> 0 | T50: =VLOOKUP($I50,TSL6_ALL,12,FALSE) -> L6N13
I52: =ConfTS4L6!A94 -> 1.92TB SSD SAS ISE RI 12Gbps | K52: =VLOOKUP($I52,TS4L6_HDD,13,FALSE) -> TS4L6-SSD-RI1,6TB | L52: 0 | N52: =R52 -> 0 | R52: =VLOOKUP($I52,TS4L6_HDD,10,FALSE)*L52 -> 0 | S52: =VLOOKUP($I52,TS4L6_HDD,11,FALSE) -> 0 | T52: =VLOOKUP($I52,TSL6_ALL,12,FALSE) -> L6N14
I54: =ConfTS4L6!A95 -> 1.6TB SSD SAS ISE MU 12Gbps | K54: =VLOOKUP($I54,TS4L6_HDD,13,FALSE) -> TS4L6-SSD-MU1,6TB | L54: 0 | N54: =R54 -> 0 | R54: =VLOOKUP($I54,TS4L6_HDD,10,FALSE)*L54 -> 0 | S54: =VLOOKUP($I54,TS4L6_HDD,11,FALSE) -> 0 | T54: =VLOOKUP($I54,TSL6_ALL,12,FALSE) -> L6N15
I56: =ConfTS4L6!A96 -> 960GB SSD SAS ISE RI 12Gbps | K56: =VLOOKUP($I56,TS4L6_HDD,13,FALSE) -> TS4L6-SSD-RI800GB | L56: 2 | N56: =R56 -> 0 | R56: =IF(L56>2,(VLOOKUP($I56,TS4L6_HDD,10,FALSE)*(L56-2)),0) -> 0 | S56: =VLOOKUP($I56,TS4L6_HDD,11,FALSE)*L56 -> 0 | T56: =VLOOKUP($I56,TSL6_ALL,12,FALSE) -> L6N16
I58: =ConfTS4L6!A97 -> 800GB SSD SAS ISE Mix Use 12Gbps | K58: =VLOOKUP($I58,TS4L6_HDD,13,FALSE) -> TS4L6-SSD-MU800GB | L58: 0 | N58: =R58 -> 0 | R58: =VLOOKUP($I58,TS4L6_HDD,10,FALSE)*L58 -> 0 | S58: =VLOOKUP($I58,TS4L6_HDD,11,FALSE)*L58 -> 0 | T58: =VLOOKUP($I58,TSL6_ALL,12,FALSE) -> L6N17
I60: =ConfTS4L6!A99 -> 7.68TB SSD RI SAS ISE 12Gbps | K60: =VLOOKUP($I60,TS4L6_HDD,13,FALSE) -> TS4L6-SSD7.68RI | L60: 0 | N60: =R60+S60 -> 0 | R60: =VLOOKUP($I60,TS4L6_HDD,11,FALSE)*L60 -> 0 | S60: =VLOOKUP($I60,TS4L6_HDD,10,FALSE)*L60 -> 0 | T60: =VLOOKUP($I60,TSL6_ALL,12,FALSE) -> L6N32
I62: NVMe Bays N° 12 | K62: Usati | L62: Disponibili
I63: =IF(AND($K$63>0,$I$13="PowerEdge R940 Server (General Purpose)"),"▲ Per Selezionare dischi nVME selezionare Chassis nVME o vSAN ▲","") ->  | K63: =SUM(L64:L70) -> 0 | L63: =12-K63 -> 12
I64: =ConfTS4L6!A98 -> 1.6TB Enterprise NVMe Mixed Use Drive U.2 | K64: =VLOOKUP($I64,TS4L6_HDD,13,FALSE) -> TS4L6-NVME1,6TB | L64: 0 | N64: =R64 -> 0 | R64: =VLOOKUP($I64,TS4L6_HDD,10,FALSE)*L64 -> 0 | S64: =VLOOKUP($I64,TS4L6_HDD,11,FALSE) -> 0 | T64: =VLOOKUP($I64,TSL6_ALL,12,FALSE) -> L6N18
I66: =ConfTS4L6!A100 -> 3.2TB, Enterprise, NVMe, Mixed Use | K66: =VLOOKUP($I66,TS4L6_HDD,13,FALSE) -> TS4L6-NVMe3.2MU | L66: 0 | N66: =R66 -> 0 | R66: =VLOOKUP($I66,TS4L6_HDD,10,FALSE)*L66 -> 0 | S66: =VLOOKUP($I66,TS4L6_HDD,11,FALSE) -> 0 | T66: =VLOOKUP($I66,TSL6_ALL,12,FALSE) -> L6N33
I68: =ConfTS4L6!A101 -> 1.92TB, Enterprise, NVMe, Read Intensive | K68: =VLOOKUP($I68,TS4L6_HDD,13,FALSE) -> TS4L6-NVMe1.92RI | L68: 0 | N68: =R68 -> 0 | R68: =VLOOKUP($I68,TS4L6_HDD,10,FALSE)*L68 -> 0 | S68: =VLOOKUP($I68,TS4L6_HDD,11,FALSE) -> 0 | T68: =VLOOKUP($I68,TSL6_ALL,12,FALSE) -> L6N34
I70: =ConfTS4L6!A102 -> 3.84TB, Enterprise, NVMe, Read Intensive | K70: =VLOOKUP($I70,TS4L6_HDD,13,FALSE) -> TS4L6-NVMe3.84RI | L70: 0 | N70: =R70 -> 0 | R70: =VLOOKUP($I70,TS4L6_HDD,10,FALSE)*L70 -> 0 | S70: =VLOOKUP($I70,TS4L6_HDD,11,FALSE) -> 0 | T70: =VLOOKUP($I70,TSL6_ALL,12,FALSE) -> L6N35
I72: BOSS controller card
I73: =IF(W13="",ConfTS4L6!A119,IF(W13<>"",ConfTS4L6!A121,ConfTS4L6!A119)) -> No Boss card | K73: =IF(L73>0,VLOOKUP($I73,TS4L6_ISDM,13,FALSE),"") ->  | L73: =VLOOKUP($I73,TS4L6_ISDM,7,FALSE) ->  | N73: =R73+S73 -> 0 | R73: =VLOOKUP($I73,TS4L6_ISDM,10,FALSE) -> 0 | S73: =IF(W13="v2tb",0,IF(W13="v512",0,VLOOKUP($I73,TS4L6_ISDM,11,FALSE))) -> 0 | T73: =IF(W13="v2tb",0,IF(W13="vsan",0,IF(W13="v512",0,VLOOKUP($I73,TSL6_ALL,12,FALSE)))) -> 
I75: Power Supply | J75: =IF(N75="","",U76) -> 
I76: =IF(W16=1,"Dual, Hot-plug Power Supply (1+1), 1400W",IF($K$16="TS3L4-GPUDW","Dual, Hot-plug Power Supply (1+1), 2000W",IF($K$16="TS3L4-GPUSW","Dual, Hot-plug Power Supply (1+1), 2000W","Dual, Hot-plug, Redundant Power Supply (1+1), 750W"))) -> Dual, Hot-plug Power Supply (1+1), 1400W | K76: =VLOOKUP($I76,TS4L6_PSU,13,FALSE) -> TS4L6-PSU1400W | L76: =VLOOKUP($I76,TS4L6_PSU,7,FALSE) -> 1 | R76: =VLOOKUP($I76,TS4L6_PSU,10,FALSE) -> 0 | S76: =VLOOKUP($I76,TS4L6_PSU,11,FALSE) -> 0 | T76: =VLOOKUP($I76,TSL6_ALL,12,FALSE) -> L6N49 | U76: ⚠
I78: Embedded Systems Management
I79: iDRAC9,Enterprise
U82: =IF($K$16="TS3L4-GPUDW","1",IF($K$16="TS3L4-GPUSW","20",IF($L$22=1,"300","4000"))) -> 4000
I83: PCI Slot 1 Processor 1 x8 PCIe for HL/FH | K83: =IF(AND(L22=0,SUM(L105:L120)>0),"Selezionare Processore Aggiuntivo o Deselezionare Schede PCI","") -> 
I84: Riservato per PERC
I86: PCI Slot 2 Processor 1 x16 PCIe for HL/FH | K86: =IF(OR($W$14="GP1",$V$13="nVME1"),"Slot non utilizzabile in Configurazione 2 CPU",IF(AND($W$14<>"GP1",I102="Non utilizzabile in configrazione 2CPU"),"Slot Utilizzabile",IF(AND($V$13="NVME2",I102="Non utilizzabile in Configurazione 2CPU"),"Slot Utilizzabile",IF(AND($W$13="vsan64GB",$I$22="No Additional Processor"),"Non utilizzabile in configurazione 2CPU",IF(AND($W$13="vsan",$I$22="No Additional Processor"),"Non utilizzabile in configurazione 2CPU",""))))) -> Slot non utilizzabile in Configurazione 2 CPU
K87: =IF(K86<>"","",VLOOKUP($I87,TSL6_ALL,13,FALSE)) ->  | L87: =IF(K86<>"",0,VLOOKUP($I87,TSL6_ALL,7,FALSE)) -> 0 | N87: =R87+S87 -> 0 | R87: =IF(K86<>"",0,VLOOKUP($I87,TSL6_ALL,10,FALSE)) -> 0 | S87: =IF(K86<>"",0,VLOOKUP($I87,TSL6_ALL,11,FALSE)) -> 0 | T87: =VLOOKUP($I87,TSL6_ALL,12,FALSE) -> 0
I89: PCI Slot 3 Processor 1 x16 PCIe for HL/FH
K90: =VLOOKUP($I90,TSL6_ALL,13,FALSE) -> 0 | L90: =VLOOKUP($I90,TSL6_ALL,7,FALSE) -> 0 | N90: =R90+S90 -> 0 | R90: =VLOOKUP($I90,TSL6_ALL,10,FALSE) -> 0 | S90: =VLOOKUP($I90,TSL6_ALL,11,FALSE) -> 0 | T90: =VLOOKUP($I90,TSL6_ALL,12,FALSE) -> 0
I92: PCI Slot 4 Processor 2 x16 PCIe for HL/FH | J92: =IF($V$82="SW","GPU Slot",IF($V$82="DW","GPU Slot","")) ->  | K92: =IF(OR($W$14="GP1",$V$13="nVME1"),"Slot non utilizzabile in Configurazione 2 CPU",IF(AND($W$14<>"GP1",I102="Non utilizzabile in configrazione 2CPU"),"Slot Utilizzabile",IF(AND($V$13="NVME2",I102="Non utilizzabile in Configurazione 2CPU"),"Slot Utilizzabile",IF(AND($W$13="vsan64GB",$I$22="No Additional Processor"),"Non utilizzabile in configurazione 2CPU",IF(AND($W$13="vsan",$I$22="No Additional Processor"),"Non utilizzabile in configurazione 2CPU",""))))) -> Slot non utilizzabile in Configurazione 2 CPU
K93: =VLOOKUP($I93,TSL6_ALL,13,FALSE) -> 0 | L93: =VLOOKUP($I93,TSL6_ALL,7,FALSE) -> 0 | N93: =R93+S93 -> 0 | R93: =VLOOKUP($I93,TSL6_ALL,10,FALSE) -> 0 | S93: =VLOOKUP($I93,TSL6_ALL,11,FALSE) -> 0 | T93: =VLOOKUP($I93,TSL6_ALL,12,FALSE) -> 0
I95: PCI Slot 5 Processor 2 x8 PCIe for HL/FH | J95: =IF($V$82="SW","GPU Slot","") ->  | K95: =IF(AND(I96<>"",I96<>"Riservato BOSS Card",W13="v2tb"),"Slot dedicato a BOSS Card",IF(AND(I96<>"",I96<>"Riservato BOSS Card",W13="vsan"),"Slot dedicato a BOSS Card",IF(AND(I96="Riservato BOSS Card",W14="GP1"),"← E' Possibile utilizzare lo SLOT PCI",IF(AND(I96="Riservato BOSS Card",W14="GP2"),"← E' Possibile utilizzare lo SLOT PCI",IF(AND(I96="Riservato BOSS Card",V13="NVME1"),"← E' Possibile utilizzare lo SLOT PCI",IF(AND(I96="Riservato BOSS Card",V13="NVME2"),"← E' Possibile utilizzare lo SLOT PCI","")))))) -> 
K96: =VLOOKUP($I96,TSL6_ALL,13,FALSE) -> 0 | L96: =VLOOKUP($I96,TSL6_ALL,7,FALSE) -> 0 | N96: =R96+S96 -> 0 | R96: =IF(K95="Slot dedicato a BOSS Card",0,VLOOKUP($I96,TSL6_ALL,10,FALSE)) -> 0 | S96: =VLOOKUP($I96,TSL6_ALL,11,FALSE) -> 0 | T96: =IF(K95="Slot dedicato a BOSS card","",VLOOKUP($I96,TSL6_ALL,12,FALSE)) -> 0
I98: PCI Slot 6 Processor 2 x8 PCIe for HL/FH
K99: =VLOOKUP($I99,TSL6_ALL,13,FALSE) -> 0 | L99: =IF($V$13="VxFlex",1,VLOOKUP($I99,TSL6_ALL,7,FALSE)) -> 0 | N99: =R99+S99 -> 0 | R99: =IF($V$13="VxFlex",419,VLOOKUP($I99,TSL6_ALL,10,FALSE)) -> 0 | T99: =VLOOKUP($I99,TSL6_ALL,12,FALSE) -> 0
I101: PCI Slot 7 Processor 2 x16 PCIe for HL/FH | J101: =IF($V$82="SW","GPU Slot","") ->  | K101: =IF(OR($W$14="GP1",$V$13="nVME1"),"Slot non utilizzabile in Configurazione 2 CPU",IF(AND($W$14<>"GP1",I102="Non utilizzabile in configrazione 2CPU"),"Slot Utilizzabile",IF(AND($V$13="NVME2",I102="Non utilizzabile in Configurazione 2CPU"),"Slot Utilizzabile",IF(AND($W$13="vsan64GB",$I$22="No Additional Processor"),"Non utilizzabile in configurazione 2CPU",IF(AND($W$13="vsan",$I$22="No Additional Processor"),"Non utilizzabile in configurazione 2CPU",""))))) -> Slot non utilizzabile in Configurazione 2 CPU
K102: =VLOOKUP($I102,TSL6_ALL,13,FALSE) -> 0 | L102: =VLOOKUP($I102,TSL6_ALL,7,FALSE) -> 0 | N102: =R102+S102 -> 0 | R102: =VLOOKUP($I102,TSL6_ALL,10,FALSE) -> 0 | S102: =VLOOKUP($I102,TSL6_ALL,11,FALSE) -> 0 | T102: =VLOOKUP($I102,TSL6_ALL,12,FALSE) -> 0
H104: =IF($I$22="No Additional Processor","Gli Slot 8-13 sono disponibili aggiungendo Terzo e Quarto Processore","") -> Gli Slot 8-13 sono disponibili aggiungendo Terzo e Quarto Processore | I104: PCI Slot 8 Processor 32 x16 PCIe for HL/FH | J104: =IF($V$82="SW","GPU Slot","") ->  | K104: =IF(AND(W13="vsan",I22<>"No Additional Processor"),"Non utilizzabile in configurazione 4CPU",IF(AND(W13="boss3TB",I22<>"No Additional Processor"),"Non utilizzabile in configurazione 4CPU",IF(AND(W13="vsan64GB",I22<>"No Additional Processor"),"Non utilizzabile in configurazione 4CPU",IF(OR($W$14="GP2",$V$13="nVME2"),"Slot non utilizzabile in Configurazione 4 CPU",IF(AND($W$14<>"GP2",I105="Non utilizzabile in configurazione 4CPU"),"Aggiungere Terzo e Quarto Processore",IF(AND($V$13<>"nVME2",I105="Non utilizzabile in configurazione 4CPU"),"Aggiungere Terzo e Quarto Processore","")))))) -> 
K105: =VLOOKUP($I105,TSL6_ALL,13,FALSE) -> 0 | L105: =VLOOKUP($I105,TSL6_ALL,7,FALSE) -> 0 | N105: =R105+S105 -> 0 | R105: =VLOOKUP($I105,TSL6_ALL,10,FALSE) -> 0 | S105: =VLOOKUP($I105,TSL6_ALL,11,FALSE) -> 0 | T105: =VLOOKUP($I105,TSL6_ALL,12,FALSE) -> 0
I107: PCI Slot 9 Processor 3 x16 PCIe for HL/FH | J107: =IF($V$82="SW","GPU Slot",IF($V$82="DW","GPU Slot","")) -> 
K108: =VLOOKUP($I108,TSL6_ALL,13,FALSE) -> 0 | L108: =VLOOKUP($I108,TSL6_ALL,7,FALSE) -> 0 | N108: =R108+S108 -> 0 | R108: =VLOOKUP($I108,TSL6_ALL,10,FALSE) -> 0 | S108: =VLOOKUP($I108,TSL6_ALL,11,FALSE) -> 0 | T108: =VLOOKUP($I108,TSL6_ALL,12,FALSE) -> 0
I110: PCI Slot 10 Processor 3 x16 PCIe for HL/FH | J110: =IF($V$82="SW","GPU Slot",IF($V$82="DW","GPU Slot","")) -> 
K111: =VLOOKUP($I111,TSL6_ALL,13,FALSE) -> 0 | L111: =VLOOKUP($I111,TSL6_ALL,7,FALSE) -> 0 | N111: =R111+S111 -> 0 | R111: =VLOOKUP($I111,TSL6_ALL,10,FALSE) -> 0 | S111: =VLOOKUP($I111,TSL6_ALL,11,FALSE) -> 0 | T111: =VLOOKUP($I111,TSL6_ALL,12,FALSE) -> 0
I113: PCI Slot 11 Processor 4 x16 PCIe for HL/FH | J113: =IF($V$82="SW","GPU Slot",IF($V$82="DW","GPU Slot","")) ->  | K113: =IF(AND(W13="vsan",I22<>"No Additional Processor"),"Non utilizzabile in configurazione 4CPU",IF(AND($W$13="boss3TB",$I$22<>"No Additional Processor"),"Non utilizzabile in configurazione 4CPU",IF(AND($W$13="vsan64GB",$I$22<>"No Additional Processor"),"Non utilizzabile in configurazione 4CPU",IF(OR($W$14="GP2",$V$13="nVME2"),"Slot non utilizzabile in Configurazione 4 CPU",IF(AND($W$14<>"GP2",$I$105="Non utilizzabile in configurazione 4CPU"),"Aggiungere Terzo e Quarto Processore",IF(AND($V$13<>"nVME2",$I$105="Non utilizzabile in configurazione 4CPU"),"Aggiungere Terzo e Quarto Processore","")))))) -> 
K114: =VLOOKUP($I114,TSL6_ALL,13,FALSE) -> 0 | L114: =VLOOKUP($I114,TSL6_ALL,7,FALSE) -> 0 | N114: =R114+S114 -> 0 | R114: =VLOOKUP($I114,TSL6_ALL,10,FALSE) -> 0 | S114: =VLOOKUP($I114,TSL6_ALL,11,FALSE) -> 0 | T114: =VLOOKUP($I114,TSL6_ALL,12,FALSE) -> 0
I116: PCI Slot 12 Processor 4 x16 PCIe for HL/FH | J116: =IF($V$82="SW","GPU Slot",IF($V$82="DW","GPU Slot","")) ->  | K116: =IF(AND(W13="vsan",I22<>"No Additional Processor"),"Non utilizzabile in configurazione 4CPU",IF(AND($W$13="boss3TB",$I$22<>"No Additional Processor"),"Non utilizzabile in configurazione 4CPU",IF(AND($W$13="vsan64GB",$I$22<>"No Additional Processor"),"Non utilizzabile in configurazione 4CPU",IF(OR($W$14="GP2",$V$13="nVME2"),"Slot non utilizzabile in Configurazione 4 CPU",IF(AND($W$14<>"GP2",$I$105="Non utilizzabile in configurazione 4CPU"),"Aggiungere Terzo e Quarto Processore",IF(AND($V$13<>"nVME2",$I$105="Non utilizzabile in configurazione 4CPU"),"Aggiungere Terzo e Quarto Processore","")))))) -> 
K117: =VLOOKUP($I117,TSL6_ALL,13,FALSE) -> 0 | L117: =VLOOKUP($I117,TSL6_ALL,7,FALSE) -> 0 | N117: =R117+S117 -> 0 | R117: =VLOOKUP($I117,TSL6_ALL,10,FALSE) -> 0 | S117: =VLOOKUP($I117,TSL6_ALL,11,FALSE) -> 0 | T117: =VLOOKUP($I117,TSL6_ALL,12,FALSE) -> 0
N118: =IF(T117="L4N33",IF($U$105>1,"ERRORE: SOLO UNA BOSS CARD PUO' ESSERE CONFIGURATA",""),"") -> 
I119: PCI Slot 13 Processor 4 x16 PCIe for HL/FH | J119: =IF($V$82="SW","GPU Slot",IF($V$82="DW","GPU Slot","")) -> 
K120: =VLOOKUP($I120,TSL6_ALL,13,FALSE) -> 0 | L120: =VLOOKUP($I120,TSL6_ALL,7,FALSE) -> 0 | N120: =R120+S120 -> 0 | R120: =VLOOKUP($I120,TSL6_ALL,10,FALSE) -> 0 | S120: =VLOOKUP($I120,TSL6_ALL,11,FALSE) -> 0 | T120: =VLOOKUP($I120,TSL6_ALL,12,FALSE) -> 0
I122: SFP+ Transceivers 10 Gbps
I123: =ConfTS4L6!A165 -> SFP+ SR Optic for all SFP+ ports except high temp validation warning cards | K123: =VLOOKUP($I123,TS4L6_SFP,13,FALSE) -> TS4L6-OT10GB | L123: 0 | N123: =R123+S123 -> 0 | R123: =VLOOKUP($I123,TS4L6_SFP,10,FALSE) -> 0 | S123: =VLOOKUP($I123,TS4L6_SFP,11,FALSE)*L123 -> 0 | T123: =IF(L123>0,VLOOKUP($I123,TS4L6_SFP,12,FALSE),"") -> 
I125: SFP28 - 25GbE
I126: =ConfTS4L6!A166 -> SFP28 SR Optic, 25GbE, 85C, for all SFP28 ports | K126: =VLOOKUP($I126,TS4L6_SFP,13,FALSE) -> TS4L6-OT25GB | L126: 0 | N126: =R126+S126 -> 0 | R126: =VLOOKUP($I126,TS4L6_SFP,10,FALSE) -> 0 | S126: =VLOOKUP($I126,TS4L6_SFP,11,FALSE)*L126 -> 0 | T126: =IF(L126>0,VLOOKUP($I126,TS4L6_SFP,12,FALSE),"") -> 
I128: QSFP28 Transceivers
I129: =ConfTS4L6!A167 -> Dell EMC PowerEdge QSFP28 SR4 100GbE 85C optic | K129: =VLOOKUP($I129,TS4L6_SFP,13,FALSE) -> TS4L6-OT100GB | L129: 0 | N129: =R129+S129 -> 0 | R129: =VLOOKUP($I129,TS4L6_SFP,10,FALSE) -> 0 | S129: =VLOOKUP($I129,TS4L6_SFP,11,FALSE)*L129 -> 0 | T129: =IF(L129>0,VLOOKUP($I129,TS4L6_SFP,12,FALSE),"") -> 
I131: Garanzia
I132: Manutenzione in garanzia (36 mesi) | K132: =VLOOKUP($I132,TS4L6_WARRANTY,13,FALSE) ->  | L132: =VLOOKUP($I132,TSL6_ALL,7,FALSE) ->  | N132: =R132 -> 0 | R132: =VLOOKUP($I132,TS4L6_WARRANTY,10,FALSE) -> 0 | S132: =VLOOKUP($I132,TS4L6_WARRANTY,11,FALSE) -> 0 | T132: =VLOOKUP($I132,TSL6_ALL,12,FALSE) -> 
I134: Hard Disk Retention | L134: =IF(AND(I135="Hard disk Retention 60 mesi",L132=""),"Selezionare Estensione di Garanzia 60 Mesi",IF(AND(L132=1,I135="Hard Disk Retention 36 mesi"),"Selezionare Hard Disk Retention 60 Mesi","")) -> 
K135: =VLOOKUP($I135,TS4L6_HDDRET,13,FALSE) ->  | L135: =IF(I135="","",1) ->  | N135: =R135 ->  | R135: =IFERROR(W135,VLOOKUP(I135,TS4L6_HDDRET,10,FALSE)) ->  | S135: =IFERROR(X135,VLOOKUP(I135,TSL6_ALL,11,FALSE)) -> 0 | T135: =IFERROR(Y135,VLOOKUP(I135,TS4L6_HDDRET,12,FALSE)) ->  | V135: =IF(L132+L135=2,VLOOKUP("Hard Disk Retention 60 mesi",TSL6_ALL,13,FALSE),VLOOKUP(I135,TSL6_ALL,13,FALSE)) ->  | W135: =IF(L132+L135=2,VLOOKUP("Hard Disk Retention 60 mesi",TSL6_ALL,10,FALSE),VLOOKUP(I135,TSL6_ALL,10,FALSE)) ->  | X135: =IF(L132+L135=2,VLOOKUP("Hard Disk Retention (60 mesi)",TSL6_ALL,11,FALSE),VLOOKUP(I135,TSL6_ALL,11,FALSE)) ->  | Y135: =IF(L132+L135=2,VLOOKUP("Hard Disk Retention 60 mesi",TSL6_ALL,12,FALSE),VLOOKUP(I135,TSL6_ALL,12,FALSE)) -> 
K138: Configurazione | L138: =SUM(R13:R135)*L8 -> 0 | R138: =SUM(L105:L120) -> 0
K139: 0.2 | L139: =SUM(S13:S135)*L8 -> 0
K140: Totale | L140: =SUM(L138:L139) -> 0
I142: NOTE

Sheet Lotto6_R940_3
I2: Convenzione Tecnologie Server 4 - Lotto 6 | K2: =IF(U105>1,"ERRORE NELLA CONFIGURAZIONE","") ->  | N2: =IF(N6<0,"Superata Quota 20%","") -> 
N3: Articoli 20% Totali | S3: Check CPU | T3: Check RAM | U3: Check NVME | V3: Check PCI | W3: Check Win | X3: Check Tot
I4: =IF(W13="vsan","Selezionando la soluzione vSAN si accetta la sostituzione del controller 745 con il HBA355, comprensivo di BOSS Card Certificati per vSAN",IF(W13="v2tb","Selezionando la soluzione vSAN si accetta la sostituzione del controller 745 con il HBA355, comprensivo di BOSS Card Certificati per vSAN","")) ->  | K4: =IF(X4>1,"Errori nella Configurazione",IF(S4>0,"Errore nella Selezione della CPU",IF(T4>0,"Errore Nella Selezione della RAM",IF(U4>0,"Errore Nella selezione dello Chassis per Dischi nVME",IF(V4>0,"Errore nella Selezione Slot PCI",IF(W4>0,"Errore nella Selezione Licenze Windows","")))))) ->  | L4: Totale Altre Opzioni | N4: =Riepilogo_Ordine!K140 -> 0 | S4: =IF(L19<>"",1,0) -> 0 | T4: =IF(L24<>"",1,0) -> 0 | U4: =IF(I14<>"",1,0) -> 0 | V4: =IF(K83<>"",1,0) -> 0 | W4: =IF(L27<>"",1,0) -> 0 | X4: =SUM(S4:W4) -> 0
L5: =Altre_Opzioni!H3 -> 0 | N5: Quota residua 20 %
K6: Guida alla Convenzione | L6: Totale Configurazione | N6: =Riepilogo_Ordine!G141 -> 0
I7: =IF(Riepilogo_Ordine!Q3>0,"Compilare i Dati Necessari all'Ordine per Stampare in PDF o Controllare le Configurazioni","Dati Completi") -> Compilare i Dati Necessari all'Ordine per Stampare in PDF o Controllare le Configurazioni | L7: =$L$140 -> 0 | N7: Totale Ordine Iva Esclusa | S7: =IF(AND($W$13="vsan64GB",L22=0),ConfTS4L6!$A$47:$A$48,IF(AND($W$13="vsan64GB",$L$22=1),ConfTS4L6!$A$51:$A$52,"")) -> 
I8: DELL POWEREDGE R940 | K8: Quantità Server | L8: 0 | N8: =Riepilogo_Ordine!K141 -> 0
I12: Base | V12: PowerEdge R940 Server (General Purpose)
I13: PowerEdge R940 Server (General Purpose) | K13: =IF($L$8>0,VLOOKUP(I13,ConfTS4L6!A3:M7,13,FALSE),"") ->  | L13: =IF($L$8>0,1,"") ->  | N13: =R13 -> 5754.51 | R13: =VLOOKUP($I$13,TSL6_ALL,10,FALSE) -> 5754.51 | T13: =VLOOKUP($I13,TS4L6_BASE,12,FALSE) -> L6N01 | V13: =IF(AND(I13=ConfTS4L6!A12,L22=0),"nVME1",IF(AND(I13=ConfTS4L6!A12,L22=1),"NVME2","")) ->  | W13: =IF(I13=ConfTS4L6!A13,"vsan",IF(I13=ConfTS4L6!A15,"Boss3TB",IF(I13=ConfTS4L6!A14,"vsan64GB",""))) ->  | X13: =IF(I13=ConfTS4L6!A15,"Boss3TB","") -> 
I14: =IF(AND($K$63>0,$I$13="PowerEdge R940 Server (General Purpose)"),"▲ Per Selezionare dischi nVME selezionare Chassis nVME o vSAN ▲","") ->  | W14: =IF(AND(I13="PowerEdge R940 Server (General Purpose)",L22=0),"GP1",IF(AND(I13="PowerEdge R940 Server (General Purpose)",L22=1),"GP2","")) -> GP1
I15: Chassis Configuration | K15: =IF($V$82="SW","MAX 4 GPU",IF($V$82="DW","MAX 2 GPU","")) -> 
I16: =IF($L$22=1,VLOOKUP($I$13,TS4L6_Chassis,3,FALSE),VLOOKUP($I$13,TS4L6_Chassis,2,FALSE)) -> Chassis with Up to 12X 2.5 SAS/SATA + 12X 2.5 for 2CPU Configuration | K16: =IF(T16="L6N122",Tabella_prezzi!F85,IF(T16="L6N123",Tabella_prezzi!F86,IF(T16="L6N124",Tabella_prezzi!F87,IF(T16="L6N125",Tabella_prezzi!F88,IF($L$22=1,VLOOKUP($I$13,TS4L6_Chassis,13,FALSE),VLOOKUP($I$13,TS4L6_Chassis,13,FALSE)))))) ->  | L16: =IF(I13=V12,VLOOKUP($I$13,TS4L6_Chassis,6,FALSE),VLOOKUP($I$13,TS4L6_Chassis,7,FALSE)) ->  | N16: =R16+S16 -> 0 | R16: =VLOOKUP($I$13,TS4L6_Chassis,10,FALSE) -> 0 | S16: =IF(T16="L6N125",Tabella_prezzi!D88,IF(T16="L6N122",Tabella_prezzi!D85,IF(T16="L6N123",Tabella_prezzi!D86,IF(T16="L6N124",Tabella_prezzi!D87,VLOOKUP(I13,TS4L6_Chassis,11,FALSE))))) -> 0 | T16: =IF(AND(W13="vsan64GB",I26=1024),"L6N123",IF(AND(W13="vsan64GB",I26=1536),"L6N122",IF(AND(W13="vsan64GB",I26=2048),"L6N124",IF(AND(W13="Boss3TB",I26=3072),"L6N125",VLOOKUP($I13,TS4L6_Chassis,12,FALSE))))) -> 0 | V16: Chassis with Up to 24 x 2.5'' Hard Drives for 2CPU Configuration | W16: 1
I18: Processor
I19: 2 x Intel Xeon Gold 6252N, 2.3G, 24C/48T, 10.4GT/s, 35.75M Cache, Turbo, HT (150W) DDR4-2933 | L19: =IF(AND(W13="boss3TB",L22=0),"Selezionare Processori Aggiuntivi per Configurazione BOSS 3TB",IF(AND(W13="vsan64GBb",L22=0),"Selezionare Processori Aggiuntivi per Configurazione vSAN 2 TB",IF(AND(V13="nVME",L22=0),"Selezionare Processori Aggiuntivi per Configurazione nVME",IF(AND(W13=2048,L22=""),"Selezionare Processore Aggiuntivo per Configurazione vSAN",IF(AND(X13="Nutanix",L22=""),"Selezionare Processore Aggiuntivo per Configurazione Nutanix",""))))) ->  | R19: =IF(L16=1,VLOOKUP($I$19,TS4L6_CPU,11,FALSE),VLOOKUP($I$19,TS4L6_CPU,11,FALSE)) -> 0 | S19: =IF(L16=1,VLOOKUP($I$19,TS4L6_CPU,11,FALSE),VLOOKUP($I$19,TS4L6_CPU,11,FALSE)) -> 0 | T19: =IF(S19=0,0,VLOOKUP($I19,TS4L6_CPU,12,FALSE)) -> 0
I21: Additional Processor
I22: No Additional Processor | K22: =IF(L16=1,VLOOKUP($I$19,TS4L6_CPU,13,FALSE),VLOOKUP($I$22,TS4L6_CPU,13,FALSE)) ->  | L22: =IF(L16=1,VLOOKUP($I$22,TS4L6_CPU,7,FALSE),VLOOKUP($I$22,TS4L6_CPU,7,FALSE)) -> 0 | N22: =R22 -> 0 | R22: =IF(L22=1,VLOOKUP($I$19,TS4L6_CPU,10,FALSE),VLOOKUP($I$22,TS4L6_CPU,10,FALSE)) -> 0 | S22: =IF(L16=1,VLOOKUP($I$19,TS4L6_CPU,11,FALSE),VLOOKUP($I$22,TS4L6_CPU,11,FALSE)) -> 0 | T22: =IF(L22=1,VLOOKUP(I19,TSL6_ALL,12,FALSE),VLOOKUP($I22,TS4L6_CPU,12,FALSE)) ->  | V22: =IF(L16=1,"2 x Intel Xeon Gold 6252N, 2.3G, 24C/48T, 10.4GT/s, 35.75M Cache, Turbo, HT (150W) DDR4-2933",I22) -> No Additional Processor
I24: Memory Capacity (GB) | L24: =IF(AND(W13="vsan",L22=0,I25<>512,I25<>768),"Selezionare RAM Corretta",IF(AND(W13="vsan",L22=1,I25<>1024,I25<>1536),"Selezionare RAM Corretta",IF(AND(W13="v2tb",I25<>2048),"Selezionare 2 TB RAM",IF(AND(W13="v2tb",L22=0),"Selezionare Processori",IF(AND(X13="vsan",L22="",I25>768),"Selezionare RAM Corretta",IF(AND(W14="GP1",I25>768),"Selezionare RAM Corretta",IF(AND(W14="GP2",I25>1536),"Selezionare RAM Corretta",IF(AND(V13="nVME1",I25>768),"Selezionare RAM Corretta",IF(AND(V13="NVME2",I25>1536),"Selezionare RAM Corretta",IF(AND(I25<>"",I26>2000,W13="vsan64GB"),"Deselezionare RAM 32GB e Aggiungere RAM 64GB",IF(AND(W13<>"vsan64GB",W13<>"Boss3TB",I26<>"",I25=0),"Deselezionare RAM 64 GB",IF(AND(W13="Boss3TB",I26="",I25=""),"Selezionare RAM 64",IF(AND(W13<>"vsan64GB",I26="",I25=""),"Selezionare RAM 32",IF(AND(I25="",I26="",W13="vsan64GB"),"Selezionare RAM 64",IF(AND(L22=1,W13="vsan64GB",I26<2000),"Selezionare RAM 64 GB Corretta",IF(AND(L22=0,W13="vsan64GB",I26>2000),"Selezionare Processore Aggiuntivo per 2TB",IF(AND(L22=1,W13="Boss3TB",I26<3000),"Selezionare RAM 64 Corretta",IF(AND(L22=1,W13="Boss3TB",I25<>""),"Deselezionare RAM 32",IF(AND(L22=1,W13="vsan64GB",I26>3000),"Selezionare RAM 64 Corretta",IF(AND(W13="vsan",I26<>""),"Deselezionare RAM 64","")))))))))))))))))))) -> 
I25: 512 | K25: TS4L6-RAM32 | L25: =W25 -> 0 | N25: =R25+R26 -> 0 | R25: =X25 -> 0 | T25: =Y25 -> L6N03 | W25: =IF(L24<>"",0,IF(OR(W13="vsan64GB",W13="Boss3TB"),0,IF(AND(W13="v2tb",L22=1),VLOOKUP(I25,ConfTS4L6!A51:S51,11,FALSE),IF($L$22=1,VLOOKUP($I$25,TS4L6_RAM2CPU,7,FALSE),VLOOKUP($I$25,TS4L6_RAM1CPU,7,FALSE))))) -> 0 | X25: =IF(L24<>"",0,IF(OR(W13="vsan64GB",W13="Boss3TB"),0,IF(AND(W13="v2tb",L22=1),VLOOKUP(I25,ConfTS4L6!A51:S51,11,FALSE),IF($L$22=1,VLOOKUP($I$25,TS4L6_RAM2CPU,10,FALSE),VLOOKUP($I$25,TS4L6_RAM1CPU,10,FALSE))))) -> 0 | Y25: =IF(L24<>"","",IF(OR(W13="vsan64GB",W13="Boss3TB"),0,IF($L$22=1,VLOOKUP($I$25,ConfTS4L6!A56:M75,12,FALSE),VLOOKUP($I$25,TS4L6_RAM1CPU,12,FALSE)))) -> L6N03
K26: TS4L6-RAM64 | L26: =W26 -> 0 | R26: =X26 -> 0 | T26: =Y26 -> 0 | W26: =IF(L19<>"","",IF(L24<>"",0,IF(W13="vsan",0,IF(W13="",0,IF(W13="Boss3TB",VLOOKUP(I26,TS4L6_64GB,7,FALSE),IF(AND(W13="vsan64GB",L22<>0),VLOOKUP(I26,TS4L6_64GB,7,FALSE),IF(AND(W13="vsan64GB",L22=0),VLOOKUP(I26,TS4L6_2cpu64gb,7,FALSE)))))))) -> 0 | X26: =IF(L19<>"",0,IF(L24<>"",0,IF(W13="vsan",0,IF(W13="",0,IF(W13="Boss3TB",VLOOKUP(I26,TS4L6_64GB,10,FALSE),IF(AND(W13="vsan64GB",L22<>0),VLOOKUP(I26,TS4L6_64GB,10,FALSE),IF(AND(W13="vsan64GB",L22=0),VLOOKUP(I26,TS4L6_2cpu64gb,10,FALSE)))))))) -> 0 | Y26: =IF(L19<>"","",IF(L24<>"",0,IF(W13="vsan",0,IF(W13="",0,IF(W13="Boss3TB",VLOOKUP(I26,TS4L6_64GB,12,FALSE),IF(AND(W13="vsan64GB",L22<>0),VLOOKUP(I26,TS4L6_64GB,12,FALSE),IF(AND(W13="vsan64GB",L22=0),VLOOKUP(I26,TS4L6_2cpu64gb,12,FALSE)))))))) -> 0
I28: Operating System STANDARD | L28: =IF(AND(I29="Ubuntu Server 22.04 LTS 64 Bit",L30<>""),"Deselezionare Licenze 2 Core",IF(I29="Ubuntu Server 22.04 LTS 64 Bit","",IF(AND(L29=1,L30=0),"Selezionare Licenze 2 Core",IF(AND(L22=0,L30>64),"Selezionare Licenze 2 Core Corrette",IF(AND(L22=1,L30=16),"Selezionare Licenze 2 Core Corrette",IF(AND(L29=0,L30>0),"Deselezionare Licenze 2 Core","")))))) -> 
I29: No Operating System | K29: =VLOOKUP($I$29,TS4L6_OS,13,FALSE) ->  | L29: =IF(I29="Windows Server 2022,Standard,ROK,16CORE",1,IF(I29="Ubuntu Server 22.04 LTS 64 Bit",1,0)) -> 0 | N29: =R29 -> 0 | R29: =VLOOKUP($I$29,TS4L6_OS,10,FALSE)*L29 -> 0 | S29: =VLOOKUP($I$29,TS4L6_OS,11,FALSE) -> 0 | T29: =VLOOKUP($I29,TSL6_ALL,12,FALSE) -> 
I30: Windows Server 2022 Standard Edition, Add License,2CORE | K30: =VLOOKUP($I$30,TS4L6_OS,13,FALSE) -> TS4L6-WINSRV2C | N30: =R30 -> 0 | R30: =IF(L28<>"",0,VLOOKUP($I$30,TS4L6_OS,10,FALSE))*L30 -> 0 | S30: =VLOOKUP($I$29,TS4L6_OS,11,FALSE) -> 0 | T30: =IF(L28<>"","",VLOOKUP($I30,TSL6_ALL,12,FALSE)) -> L6N25
I32: Operating System DATACENTER
I33: No Operating System | K33: =VLOOKUP($I$33,ConfTS4L6!A79:X88,13,FALSE) ->  | L33: =IF(I33="Windows Server 2022,Datacenter,ROK,16CORE",1,0) -> 0 | N33: =R33 -> 0 | R33: =VLOOKUP($I$33,ConfTS4L6!A79:X86,10,FALSE)*L33 -> 0 | S33: =VLOOKUP($I$29,TS4L6_OS,11,FALSE) -> 0 | T33: =VLOOKUP($I33,TSL6_ALL,12,FALSE) -> 
I34: Windows Server 2022 / 2019 Datacenter Edition,Add License,2CORE | K34: =VLOOKUP($I$34,TS4L6_OS,13,FALSE) -> TS4L6-WinServDC2core | L34: =IF(AND(L22=1,L33=1),40,IF(AND(L22=1,L33=0),0,IF(AND(L22=0,L33=1),16,IF(AND(L22="",L33=""),0,0)))) -> 0 | N34: =R34 -> 0 | R34: =VLOOKUP($I$34,TS4L6_OS,10,FALSE)*L34 -> 0 | S34: =VLOOKUP($I$29,TS4L6_OS,11,FALSE) -> 0 | T34: =VLOOKUP($I34,TS4L6_OS,12,FALSE) -> L6N27
I36: Operating System Device CAL / User CAL
I37: 1-pack of Windows Server 2022/2019 Device CALs (STD or DC) | K37: =VLOOKUP($I$37,ConfTS4L6!A83:X84,13,FALSE) -> TS4L6-WINDEVCAL | L37: 0 | N37: =R37 -> 0 | R37: =VLOOKUP($I$37,ConfTS4L6!A83:O84,10,FALSE)*L37 -> 0 | S37: =VLOOKUP($I$29,TS4L6_OS,11,FALSE) -> 0 | T37: =VLOOKUP($I37,TSL6_ALL,12,FALSE) -> L6N23
I38: 1-pack of Windows Server 2022/2019 User CALs (STD or DC) | K38: =VLOOKUP($I$38,ConfTS4L6!A84:X85,13,FALSE) -> TS4L6-WINUSRCAL | L38: 0 | N38: =R38 -> 0 | R38: =VLOOKUP($I$38,ConfTS4L6!A84:O85,10,FALSE)*L38 -> 0 | S38: =VLOOKUP($I$29,TS4L6_OS,11,FALSE) -> 0 | T38: =VLOOKUP($I38,TSL6_ALL,12,FALSE) -> L6N24
I40: Disk Controller (PCI SLOT 1)
G41: =IF($K$16="TS3L4-VSAN","vSAN HCL","") ->  | I41: =IF(W13="vsan64GB",ConfTS4L6!A116,IF(W13="vsan",ConfTS4L6!A116,ConfTS4L6!A115)) -> PERC H740P RAID Controller, 8Gb NV Cache, Adapter, Full Height | K41: =IF($W$13<>"","",IF(L41>0,VLOOKUP($I41,TS4L6_CRTL,13,FALSE),"")) ->  | L41: =IF($W$13<>"","",VLOOKUP($I41,TS4L6_CRTL,7,FALSE)) ->  | N41: =R41+S41 -> 0 | R41: =IF(I41=ConfTS4L6!A59,0,VLOOKUP($I41,TS4L6_CRTL,10,FALSE)) -> 0 | S41: =IF(W13="v2tb",0,IF(W13="v512",0,VLOOKUP($I41,TS4L6_CRTL,11,FALSE))) -> 0 | T41: =IF(W13="v2tb","",IF(W13="vsan","",IF(W13="v512","",VLOOKUP($I41,TSL6_ALL,12,FALSE)))) -> L6N44 | V41: =IF(K41="TS3L4-HBA330-L",1,0) -> 0 | W41: =IF(I41="PERC H740P RAID Controller, 8GB NV Cache",1,0) -> 0 | X41: =IF(Y41=1,Y41*V41,W41*V41) -> 0 | Y41: =IF(N7="",1,0) -> 0
I43: Hard Drivers Bays n° 12 - 2 bay occupate dai dischi 960GB SSD di base | K43: Usati | L43: Disponibili
K44: =L46+L48+L50+L56+L58+L52+L54+L60 -> 2 | L44: =12-K44 -> 10
I46: =ConfTS4L6!A91 -> 2.4TB 10k SAS ISE 12Gbps | K46: =VLOOKUP($I46,TS4L6_HDD,13,FALSE) -> TS4L6-HDD2TB | L46: 0 | N46: =R46 -> 0 | R46: =VLOOKUP($I46,TS4L6_HDD,10,FALSE)*L46 -> 0 | S46: =VLOOKUP($I46,TS4L6_HDD,11,FALSE) -> 0 | T46: =VLOOKUP($I46,TSL6_ALL,12,FALSE) -> L6N11
I48: =ConfTS4L6!A92 -> 1.2TB 10K RPM SAS ISE 12Gbps | K48: =VLOOKUP($I48,TS4L6_HDD,13,FALSE) -> TS4L6-HDD1TB | L48: 0 | N48: =R48 -> 0 | R48: =VLOOKUP($I48,TS4L6_HDD,10,FALSE)*L48 -> 0 | S48: =VLOOKUP($I48,TS4L6_HDD,11,FALSE) -> 0 | T48: =VLOOKUP($I48,TSL6_ALL,12,FALSE) -> L6N12
I50: =ConfTS4L6!A93 -> 3.84TB SSD SAS ISE RI 12Gbps | K50: =VLOOKUP($I50,TS4L6_HDD,13,FALSE) -> TS4L6-SSD-RI3,8TB | L50: 0 | N50: =R50 -> 0 | R50: =VLOOKUP($I50,TS4L6_HDD,10,FALSE)*L50 -> 0 | S50: =VLOOKUP($I50,TS4L6_HDD,11,FALSE) -> 0 | T50: =VLOOKUP($I50,TSL6_ALL,12,FALSE) -> L6N13
I52: =ConfTS4L6!A94 -> 1.92TB SSD SAS ISE RI 12Gbps | K52: =VLOOKUP($I52,TS4L6_HDD,13,FALSE) -> TS4L6-SSD-RI1,6TB | L52: 0 | N52: =R52 -> 0 | R52: =VLOOKUP($I52,TS4L6_HDD,10,FALSE)*L52 -> 0 | S52: =VLOOKUP($I52,TS4L6_HDD,11,FALSE) -> 0 | T52: =VLOOKUP($I52,TSL6_ALL,12,FALSE) -> L6N14
I54: =ConfTS4L6!A95 -> 1.6TB SSD SAS ISE MU 12Gbps | K54: =VLOOKUP($I54,TS4L6_HDD,13,FALSE) -> TS4L6-SSD-MU1,6TB | L54: 0 | N54: =R54 -> 0 | R54: =VLOOKUP($I54,TS4L6_HDD,10,FALSE)*L54 -> 0 | S54: =VLOOKUP($I54,TS4L6_HDD,11,FALSE) -> 0 | T54: =VLOOKUP($I54,TSL6_ALL,12,FALSE) -> L6N15
I56: =ConfTS4L6!A96 -> 960GB SSD SAS ISE RI 12Gbps | K56: =VLOOKUP($I56,TS4L6_HDD,13,FALSE) -> TS4L6-SSD-RI800GB | L56: 2 | N56: =R56 -> 0 | R56: =IF(L56>2,(VLOOKUP($I56,TS4L6_HDD,10,FALSE)*(L56-2)),0) -> 0 | S56: =VLOOKUP($I56,TS4L6_HDD,11,FALSE)*L56 -> 0 | T56: =VLOOKUP($I56,TSL6_ALL,12,FALSE) -> L6N16
I58: =ConfTS4L6!A97 -> 800GB SSD SAS ISE Mix Use 12Gbps | K58: =VLOOKUP($I58,TS4L6_HDD,13,FALSE) -> TS4L6-SSD-MU800GB | L58: 0 | N58: =R58 -> 0 | R58: =VLOOKUP($I58,TS4L6_HDD,10,FALSE)*L58 -> 0 | S58: =VLOOKUP($I58,TS4L6_HDD,11,FALSE)*L58 -> 0 | T58: =VLOOKUP($I58,TSL6_ALL,12,FALSE) -> L6N17
I60: =ConfTS4L6!A99 -> 7.68TB SSD RI SAS ISE 12Gbps | K60: =VLOOKUP($I60,TS4L6_HDD,13,FALSE) -> TS4L6-SSD7.68RI | L60: 0 | N60: =R60+S60 -> 0 | R60: =VLOOKUP($I60,TS4L6_HDD,11,FALSE)*L60 -> 0 | S60: =VLOOKUP($I60,TS4L6_HDD,10,FALSE)*L60 -> 0 | T60: =VLOOKUP($I60,TSL6_ALL,12,FALSE) -> L6N32
I62: NVMe Bays N° 12 | K62: Usati | L62: Disponibili
I63: =IF(AND($K$63>0,$I$13="PowerEdge R940 Server (General Purpose)"),"▲ Per Selezionare dischi nVME selezionare Chassis nVME o vSAN ▲","") ->  | K63: =SUM(L64:L70) -> 0 | L63: =12-K63 -> 12
I64: =ConfTS4L6!A98 -> 1.6TB Enterprise NVMe Mixed Use Drive U.2 | K64: =VLOOKUP($I64,TS4L6_HDD,13,FALSE) -> TS4L6-NVME1,6TB | L64: 0 | N64: =R64 -> 0 | R64: =VLOOKUP($I64,TS4L6_HDD,10,FALSE)*L64 -> 0 | S64: =VLOOKUP($I64,TS4L6_HDD,11,FALSE) -> 0 | T64: =VLOOKUP($I64,TSL6_ALL,12,FALSE) -> L6N18
I66: =ConfTS4L6!A100 -> 3.2TB, Enterprise, NVMe, Mixed Use | K66: =VLOOKUP($I66,TS4L6_HDD,13,FALSE) -> TS4L6-NVMe3.2MU | L66: 0 | N66: =R66 -> 0 | R66: =VLOOKUP($I66,TS4L6_HDD,10,FALSE)*L66 -> 0 | S66: =VLOOKUP($I66,TS4L6_HDD,11,FALSE) -> 0 | T66: =VLOOKUP($I66,TSL6_ALL,12,FALSE) -> L6N33
I68: =ConfTS4L6!A101 -> 1.92TB, Enterprise, NVMe, Read Intensive | K68: =VLOOKUP($I68,TS4L6_HDD,13,FALSE) -> TS4L6-NVMe1.92RI | L68: 0 | N68: =R68 -> 0 | R68: =VLOOKUP($I68,TS4L6_HDD,10,FALSE)*L68 -> 0 | S68: =VLOOKUP($I68,TS4L6_HDD,11,FALSE) -> 0 | T68: =VLOOKUP($I68,TSL6_ALL,12,FALSE) -> L6N34
I70: =ConfTS4L6!A102 -> 3.84TB, Enterprise, NVMe, Read Intensive | K70: =VLOOKUP($I70,TS4L6_HDD,13,FALSE) -> TS4L6-NVMe3.84RI | L70: 0 | N70: =R70 -> 0 | R70: =VLOOKUP($I70,TS4L6_HDD,10,FALSE)*L70 -> 0 | S70: =VLOOKUP($I70,TS4L6_HDD,11,FALSE) -> 0 | T70: =VLOOKUP($I70,TSL6_ALL,12,FALSE) -> L6N35
I72: BOSS controller card
I73: =IF(W13="",ConfTS4L6!A119,IF(W13<>"",ConfTS4L6!A121,ConfTS4L6!A119)) -> No Boss card | K73: =IF(L73>0,VLOOKUP($I73,TS4L6_ISDM,13,FALSE),"") ->  | L73: =VLOOKUP($I73,TS4L6_ISDM,7,FALSE) ->  | N73: =R73+S73 -> 0 | R73: =VLOOKUP($I73,TS4L6_ISDM,10,FALSE) -> 0 | S73: =IF(W13="v2tb",0,IF(W13="v512",0,VLOOKUP($I73,TS4L6_ISDM,11,FALSE))) -> 0 | T73: =IF(W13="v2tb",0,IF(W13="vsan",0,IF(W13="v512",0,VLOOKUP($I73,TSL6_ALL,12,FALSE)))) -> 
I75: Power Supply | J75: =IF(N75="","",U76) -> 
I76: =IF(W16=1,"Dual, Hot-plug Power Supply (1+1), 1400W",IF($K$16="TS3L4-GPUDW","Dual, Hot-plug Power Supply (1+1), 2000W",IF($K$16="TS3L4-GPUSW","Dual, Hot-plug Power Supply (1+1), 2000W","Dual, Hot-plug, Redundant Power Supply (1+1), 750W"))) -> Dual, Hot-plug Power Supply (1+1), 1400W | K76: =VLOOKUP($I76,TS4L6_PSU,13,FALSE) -> TS4L6-PSU1400W | L76: =VLOOKUP($I76,TS4L6_PSU,7,FALSE) -> 1 | R76: =VLOOKUP($I76,TS4L6_PSU,10,FALSE) -> 0 | S76: =VLOOKUP($I76,TS4L6_PSU,11,FALSE) -> 0 | T76: =VLOOKUP($I76,TSL6_ALL,12,FALSE) -> L6N49 | U76: ⚠
I78: Embedded Systems Management
I79: iDRAC9,Enterprise
U82: =IF($K$16="TS3L4-GPUDW","1",IF($K$16="TS3L4-GPUSW","20",IF($L$22=1,"300","4000"))) -> 4000
I83: PCI Slot 1 Processor 1 x8 PCIe for HL/FH | K83: =IF(AND(L22=0,SUM(L105:L120)>0),"Selezionare Processore Aggiuntivo o Deselezionare Schede PCI","") -> 
I84: Riservato per PERC
I86: PCI Slot 2 Processor 1 x16 PCIe for HL/FH | K86: =IF(OR($W$14="GP1",$V$13="nVME1"),"Slot non utilizzabile in Configurazione 2 CPU",IF(AND($W$14<>"GP1",I102="Non utilizzabile in configrazione 2CPU"),"Slot Utilizzabile",IF(AND($V$13="NVME2",I102="Non utilizzabile in Configurazione 2CPU"),"Slot Utilizzabile",IF(AND($W$13="vsan64GB",$I$22="No Additional Processor"),"Non utilizzabile in configurazione 2CPU",IF(AND($W$13="vsan",$I$22="No Additional Processor"),"Non utilizzabile in configurazione 2CPU",""))))) -> Slot non utilizzabile in Configurazione 2 CPU
K87: =IF(K86<>"","",VLOOKUP($I87,TSL6_ALL,13,FALSE)) ->  | L87: =IF(K86<>"",0,VLOOKUP($I87,TSL6_ALL,7,FALSE)) -> 0 | N87: =R87+S87 -> 0 | R87: =IF(K86<>"",0,VLOOKUP($I87,TSL6_ALL,10,FALSE)) -> 0 | S87: =IF(K86<>"",0,VLOOKUP($I87,TSL6_ALL,11,FALSE)) -> 0 | T87: =VLOOKUP($I87,TSL6_ALL,12,FALSE) -> 0
I89: PCI Slot 3 Processor 1 x16 PCIe for HL/FH
K90: =VLOOKUP($I90,TSL6_ALL,13,FALSE) -> 0 | L90: =VLOOKUP($I90,TSL6_ALL,7,FALSE) -> 0 | N90: =R90+S90 -> 0 | R90: =VLOOKUP($I90,TSL6_ALL,10,FALSE) -> 0 | S90: =VLOOKUP($I90,TSL6_ALL,11,FALSE) -> 0 | T90: =VLOOKUP($I90,TSL6_ALL,12,FALSE) -> 0
I92: PCI Slot 4 Processor 2 x16 PCIe for HL/FH | J92: =IF($V$82="SW","GPU Slot",IF($V$82="DW","GPU Slot","")) ->  | K92: =IF(OR($W$14="GP1",$V$13="nVME1"),"Slot non utilizzabile in Configurazione 2 CPU",IF(AND($W$14<>"GP1",I102="Non utilizzabile in configrazione 2CPU"),"Slot Utilizzabile",IF(AND($V$13="NVME2",I102="Non utilizzabile in Configurazione 2CPU"),"Slot Utilizzabile",IF(AND($W$13="vsan64GB",$I$22="No Additional Processor"),"Non utilizzabile in configurazione 2CPU",IF(AND($W$13="vsan",$I$22="No Additional Processor"),"Non utilizzabile in configurazione 2CPU",""))))) -> Slot non utilizzabile in Configurazione 2 CPU
K93: =VLOOKUP($I93,TSL6_ALL,13,FALSE) -> 0 | L93: =VLOOKUP($I93,TSL6_ALL,7,FALSE) -> 0 | N93: =R93+S93 -> 0 | R93: =VLOOKUP($I93,TSL6_ALL,10,FALSE) -> 0 | S93: =VLOOKUP($I93,TSL6_ALL,11,FALSE) -> 0 | T93: =VLOOKUP($I93,TSL6_ALL,12,FALSE) -> 0
I95: PCI Slot 5 Processor 2 x8 PCIe for HL/FH | J95: =IF($V$82="SW","GPU Slot","") ->  | K95: =IF(AND(I96<>"",I96<>"Riservato BOSS Card",W13="v2tb"),"Slot dedicato a BOSS Card",IF(AND(I96<>"",I96<>"Riservato BOSS Card",W13="vsan"),"Slot dedicato a BOSS Card",IF(AND(I96="Riservato BOSS Card",W14="GP1"),"← E' Possibile utilizzare lo SLOT PCI",IF(AND(I96="Riservato BOSS Card",W14="GP2"),"← E' Possibile utilizzare lo SLOT PCI",IF(AND(I96="Riservato BOSS Card",V13="NVME1"),"← E' Possibile utilizzare lo SLOT PCI",IF(AND(I96="Riservato BOSS Card",V13="NVME2"),"← E' Possibile utilizzare lo SLOT PCI","")))))) -> 
K96: =VLOOKUP($I96,TSL6_ALL,13,FALSE) -> 0 | L96: =VLOOKUP($I96,TSL6_ALL,7,FALSE) -> 0 | N96: =R96+S96 -> 0 | R96: =IF(K95="Slot dedicato a BOSS Card",0,VLOOKUP($I96,TSL6_ALL,10,FALSE)) -> 0 | S96: =VLOOKUP($I96,TSL6_ALL,11,FALSE) -> 0 | T96: =IF(K95="Slot dedicato a BOSS card","",VLOOKUP($I96,TSL6_ALL,12,FALSE)) -> 0
I98: PCI Slot 6 Processor 2 x8 PCIe for HL/FH
K99: =VLOOKUP($I99,TSL6_ALL,13,FALSE) -> 0 | L99: =IF($V$13="VxFlex",1,VLOOKUP($I99,TSL6_ALL,7,FALSE)) -> 0 | N99: =R99+S99 -> 0 | R99: =IF($V$13="VxFlex",419,VLOOKUP($I99,TSL6_ALL,10,FALSE)) -> 0 | T99: =VLOOKUP($I99,TSL6_ALL,12,FALSE) -> 0
I101: PCI Slot 7 Processor 2 x16 PCIe for HL/FH | J101: =IF($V$82="SW","GPU Slot","") ->  | K101: =IF(OR($W$14="GP1",$V$13="nVME1"),"Slot non utilizzabile in Configurazione 2 CPU",IF(AND($W$14<>"GP1",I102="Non utilizzabile in configrazione 2CPU"),"Slot Utilizzabile",IF(AND($V$13="NVME2",I102="Non utilizzabile in Configurazione 2CPU"),"Slot Utilizzabile",IF(AND($W$13="vsan64GB",$I$22="No Additional Processor"),"Non utilizzabile in configurazione 2CPU",IF(AND($W$13="vsan",$I$22="No Additional Processor"),"Non utilizzabile in configurazione 2CPU",""))))) -> Slot non utilizzabile in Configurazione 2 CPU
K102: =VLOOKUP($I102,TSL6_ALL,13,FALSE) -> 0 | L102: =VLOOKUP($I102,TSL6_ALL,7,FALSE) -> 0 | N102: =R102+S102 -> 0 | R102: =VLOOKUP($I102,TSL6_ALL,10,FALSE) -> 0 | S102: =VLOOKUP($I102,TSL6_ALL,11,FALSE) -> 0 | T102: =VLOOKUP($I102,TSL6_ALL,12,FALSE) -> 0
H104: =IF($I$22="No Additional Processor","Gli Slot 8-13 sono disponibili aggiungendo Terzo e Quarto Processore","") -> Gli Slot 8-13 sono disponibili aggiungendo Terzo e Quarto Processore | I104: PCI Slot 8 Processor 32 x16 PCIe for HL/FH | J104: =IF($V$82="SW","GPU Slot","") ->  | K104: =IF(AND(W13="vsan",I22<>"No Additional Processor"),"Non utilizzabile in configurazione 4CPU",IF(AND(W13="boss3TB",I22<>"No Additional Processor"),"Non utilizzabile in configurazione 4CPU",IF(AND(W13="vsan64GB",I22<>"No Additional Processor"),"Non utilizzabile in configurazione 4CPU",IF(OR($W$14="GP2",$V$13="nVME2"),"Slot non utilizzabile in Configurazione 4 CPU",IF(AND($W$14<>"GP2",I105="Non utilizzabile in configurazione 4CPU"),"Aggiungere Terzo e Quarto Processore",IF(AND($V$13<>"nVME2",I105="Non utilizzabile in configurazione 4CPU"),"Aggiungere Terzo e Quarto Processore","")))))) -> 
K105: =VLOOKUP($I105,TSL6_ALL,13,FALSE) -> 0 | L105: =VLOOKUP($I105,TSL6_ALL,7,FALSE) -> 0 | N105: =R105+S105 -> 0 | R105: =VLOOKUP($I105,TSL6_ALL,10,FALSE) -> 0 | S105: =VLOOKUP($I105,TSL6_ALL,11,FALSE) -> 0 | T105: =VLOOKUP($I105,TSL6_ALL,12,FALSE) -> 0
I107: PCI Slot 9 Processor 3 x16 PCIe for HL/FH | J107: =IF($V$82="SW","GPU Slot",IF($V$82="DW","GPU Slot","")) -> 
K108: =VLOOKUP($I108,TSL6_ALL,13,FALSE) -> 0 | L108: =VLOOKUP($I108,TSL6_ALL,7,FALSE) -> 0 | N108: =R108+S108 -> 0 | R108: =VLOOKUP($I108,TSL6_ALL,10,FALSE) -> 0 | S108: =VLOOKUP($I108,TSL6_ALL,11,FALSE) -> 0 | T108: =VLOOKUP($I108,TSL6_ALL,12,FALSE) -> 0
I110: PCI Slot 10 Processor 3 x16 PCIe for HL/FH | J110: =IF($V$82="SW","GPU Slot",IF($V$82="DW","GPU Slot","")) -> 
K111: =VLOOKUP($I111,TSL6_ALL,13,FALSE) -> 0 | L111: =VLOOKUP($I111,TSL6_ALL,7,FALSE) -> 0 | N111: =R111+S111 -> 0 | R111: =VLOOKUP($I111,TSL6_ALL,10,FALSE) -> 0 | S111: =VLOOKUP($I111,TSL6_ALL,11,FALSE) -> 0 | T111: =VLOOKUP($I111,TSL6_ALL,12,FALSE) -> 0
I113: PCI Slot 11 Processor 4 x16 PCIe for HL/FH | J113: =IF($V$82="SW","GPU Slot",IF($V$82="DW","GPU Slot","")) ->  | K113: =IF(AND(W13="vsan",I22<>"No Additional Processor"),"Non utilizzabile in configurazione 4CPU",IF(AND($W$13="boss3TB",$I$22<>"No Additional Processor"),"Non utilizzabile in configurazione 4CPU",IF(AND($W$13="vsan64GB",$I$22<>"No Additional Processor"),"Non utilizzabile in configurazione 4CPU",IF(OR($W$14="GP2",$V$13="nVME2"),"Slot non utilizzabile in Configurazione 4 CPU",IF(AND($W$14<>"GP2",$I$105="Non utilizzabile in configurazione 4CPU"),"Aggiungere Terzo e Quarto Processore",IF(AND($V$13<>"nVME2",$I$105="Non utilizzabile in configurazione 4CPU"),"Aggiungere Terzo e Quarto Processore","")))))) -> 
K114: =VLOOKUP($I114,TSL6_ALL,13,FALSE) -> 0 | L114: =VLOOKUP($I114,TSL6_ALL,7,FALSE) -> 0 | N114: =R114+S114 -> 0 | R114: =VLOOKUP($I114,TSL6_ALL,10,FALSE) -> 0 | S114: =VLOOKUP($I114,TSL6_ALL,11,FALSE) -> 0 | T114: =VLOOKUP($I114,TSL6_ALL,12,FALSE) -> 0
I116: PCI Slot 12 Processor 4 x16 PCIe for HL/FH | J116: =IF($V$82="SW","GPU Slot",IF($V$82="DW","GPU Slot","")) ->  | K116: =IF(AND(W13="vsan",I22<>"No Additional Processor"),"Non utilizzabile in configurazione 4CPU",IF(AND($W$13="boss3TB",$I$22<>"No Additional Processor"),"Non utilizzabile in configurazione 4CPU",IF(AND($W$13="vsan64GB",$I$22<>"No Additional Processor"),"Non utilizzabile in configurazione 4CPU",IF(OR($W$14="GP2",$V$13="nVME2"),"Slot non utilizzabile in Configurazione 4 CPU",IF(AND($W$14<>"GP2",$I$105="Non utilizzabile in configurazione 4CPU"),"Aggiungere Terzo e Quarto Processore",IF(AND($V$13<>"nVME2",$I$105="Non utilizzabile in configurazione 4CPU"),"Aggiungere Terzo e Quarto Processore","")))))) -> 
K117: =VLOOKUP($I117,TSL6_ALL,13,FALSE) -> 0 | L117: =VLOOKUP($I117,TSL6_ALL,7,FALSE) -> 0 | N117: =R117+S117 -> 0 | R117: =VLOOKUP($I117,TSL6_ALL,10,FALSE) -> 0 | S117: =VLOOKUP($I117,TSL6_ALL,11,FALSE) -> 0 | T117: =VLOOKUP($I117,TSL6_ALL,12,FALSE) -> 0
N118: =IF(T117="L4N33",IF($U$105>1,"ERRORE: SOLO UNA BOSS CARD PUO' ESSERE CONFIGURATA",""),"") -> 
I119: PCI Slot 13 Processor 4 x16 PCIe for HL/FH | J119: =IF($V$82="SW","GPU Slot",IF($V$82="DW","GPU Slot","")) -> 
K120: =VLOOKUP($I120,TSL6_ALL,13,FALSE) -> 0 | L120: =VLOOKUP($I120,TSL6_ALL,7,FALSE) -> 0 | N120: =R120+S120 -> 0 | R120: =VLOOKUP($I120,TSL6_ALL,10,FALSE) -> 0 | S120: =VLOOKUP($I120,TSL6_ALL,11,FALSE) -> 0 | T120: =VLOOKUP($I120,TSL6_ALL,12,FALSE) -> 0
I122: SFP+ Transceivers 10 Gbps
I123: =ConfTS4L6!A165 -> SFP+ SR Optic for all SFP+ ports except high temp validation warning cards | K123: =VLOOKUP($I123,TS4L6_SFP,13,FALSE) -> TS4L6-OT10GB | L123: 0 | N123: =R123+S123 -> 0 | R123: =VLOOKUP($I123,TS4L6_SFP,10,FALSE) -> 0 | S123: =VLOOKUP($I123,TS4L6_SFP,11,FALSE)*L123 -> 0 | T123: =IF(L123>0,VLOOKUP($I123,TS4L6_SFP,12,FALSE),"") -> 
I125: SFP28 - 25GbE
I126: =ConfTS4L6!A166 -> SFP28 SR Optic, 25GbE, 85C, for all SFP28 ports | K126: =VLOOKUP($I126,TS4L6_SFP,13,FALSE) -> TS4L6-OT25GB | L126: 0 | N126: =R126+S126 -> 0 | R126: =VLOOKUP($I126,TS4L6_SFP,10,FALSE) -> 0 | S126: =VLOOKUP($I126,TS4L6_SFP,11,FALSE)*L126 -> 0 | T126: =IF(L126>0,VLOOKUP($I126,TS4L6_SFP,12,FALSE),"") -> 
I128: QSFP28 Transceivers
I129: =ConfTS4L6!A167 -> Dell EMC PowerEdge QSFP28 SR4 100GbE 85C optic | K129: =VLOOKUP($I129,TS4L6_SFP,13,FALSE) -> TS4L6-OT100GB | L129: 0 | N129: =R129+S129 -> 0 | R129: =VLOOKUP($I129,TS4L6_SFP,10,FALSE) -> 0 | S129: =VLOOKUP($I129,TS4L6_SFP,11,FALSE)*L129 -> 0 | T129: =IF(L129>0,VLOOKUP($I129,TS4L6_SFP,12,FALSE),"") -> 
I131: Garanzia
I132: Manutenzione in garanzia (36 mesi) | K132: =VLOOKUP($I132,TS4L6_WARRANTY,13,FALSE) ->  | L132: =VLOOKUP($I132,TSL6_ALL,7,FALSE) ->  | N132: =R132 -> 0 | R132: =VLOOKUP($I132,TS4L6_WARRANTY,10,FALSE) -> 0 | S132: =VLOOKUP($I132,TS4L6_WARRANTY,11,FALSE) -> 0 | T132: =VLOOKUP($I132,TSL6_ALL,12,FALSE) -> 
I134: Hard Disk Retention | L134: =IF(AND(I135="Hard disk Retention 60 mesi",L132=""),"Selezionare Estensione di Garanzia 60 Mesi",IF(AND(L132=1,I135="Hard Disk Retention 36 mesi"),"Selezionare Hard Disk Retention 60 Mesi","")) -> 
K135: =VLOOKUP($I135,TS4L6_HDDRET,13,FALSE) ->  | L135: =IF(I135="","",1) ->  | N135: =R135 ->  | R135: =IFERROR(W135,VLOOKUP(I135,TS4L6_HDDRET,10,FALSE)) ->  | S135: =IFERROR(X135,VLOOKUP(I135,TSL6_ALL,11,FALSE)) -> 0 | T135: =IFERROR(Y135,VLOOKUP(I135,TS4L6_HDDRET,12,FALSE)) ->  | V135: =IF(L132+L135=2,VLOOKUP("Hard Disk Retention 60 mesi",TSL6_ALL,13,FALSE),VLOOKUP(I135,TSL6_ALL,13,FALSE)) ->  | W135: =IF(L132+L135=2,VLOOKUP("Hard Disk Retention 60 mesi",TSL6_ALL,10,FALSE),VLOOKUP(I135,TSL6_ALL,10,FALSE)) ->  | X135: =IF(L132+L135=2,VLOOKUP("Hard Disk Retention (60 mesi)",TSL6_ALL,11,FALSE),VLOOKUP(I135,TSL6_ALL,11,FALSE)) ->  | Y135: =IF(L132+L135=2,VLOOKUP("Hard Disk Retention 60 mesi",TSL6_ALL,12,FALSE),VLOOKUP(I135,TSL6_ALL,12,FALSE)) -> 
K138: Configurazione | L138: =SUM(R13:R135)*L8 -> 0 | R138: =SUM(L105:L120) -> 0
K139: 0.2 | L139: =SUM(S13:S135)*L8 -> 0
K140: Totale | L140: =SUM(L138:L139) -> 0
I142: NOTE

Sheet Altre_Opzioni
E2: Opzioni | H2: Totale altre opzioni
H3: =SUM(J6:J45) -> 0
E6: OpzRack DELL
E7: =ConfTS4L6!A177 -> Rack 42RU DellEmc | G7: =VLOOKUP($E7,TS4L6_20X100,13,FALSE) -> TS4L6-RACK-D | H7: 0 | J7: =L7+M7 -> 0 | L7: =VLOOKUP($E7,TS4L6_20X100,10,FALSE)*H7 -> 0 | M7: =VLOOKUP($E7,TS4L6_20X100,11,FALSE)*H7 -> 0 | N7: =VLOOKUP($E7,TS4L6_20X100,12,FALSE) -> L6N112
E9: OpzPDU Mono
E10: =ConfTS4L6!A178 -> PDU 220 mono output 20-C13 + 4-C19 IEC 320, input C20 | G10: =VLOOKUP($E10,TS4L6_20X100,13,FALSE) -> TS4L6-PDU-M | H10: 0 | J10: =L10+M10 -> 0 | L10: =VLOOKUP($E10,TS4L6_20X100,10,FALSE)*H10 -> 0 | M10: =VLOOKUP($E10,TS4L6_20X100,11,FALSE)*H10 -> 0 | N10: =VLOOKUP($E10,TS4L6_20X100,12,FALSE) -> L6N113
E12: OpzPDU Trifase
E13: =ConfTS4L6!A179 -> PDU 220 Trifase output 6-C19 e 36-C13, input Spina 3P+T 400V 16A | G13: =VLOOKUP($E13,TS4L6_20X100,13,FALSE) -> TS4L6-PDU-T | H13: 0 | J13: =L13+M13 -> 0 | L13: =VLOOKUP($E13,TS4L6_20X100,10,FALSE)*H13 -> 0 | M13: =VLOOKUP($E13,TS4L6_20X100,11,FALSE)*H13 -> 0 | N13: =VLOOKUP($E13,TS4L6_20X100,12,FALSE) -> L6N114
E15: OpzKVM DELL
E16: =ConfTS4L6!A180 -> Dell KVM + Switch 8 porte + cavi | G16: =VLOOKUP($E16,TS4L6_20X100,13,FALSE) -> TS4L6-KVM-D | H16: 0 | J16: =L16+M16 -> 0 | L16: =VLOOKUP($E16,TS4L6_20X100,10,FALSE)*H16 -> 0 | M16: =VLOOKUP($E16,TS4L6_20X100,11,FALSE)*H16 -> 0 | N16: =VLOOKUP($E16,TS4L6_20X100,12,FALSE) -> L6N115
E18: Opz CMA
E19: =ConfTS4L6!A182 -> Cable Management Arm for PowerEdge Systems | G19: =VLOOKUP($E19,TS4L6_20X100,13,FALSE) -> TS4L6-CMA | H19: 0 | J19: =L19+M19 -> 0 | L19: =VLOOKUP($E19,TS4L6_20X100,10,FALSE)*H19 -> 0 | M19: =VLOOKUP($E19,TS4L6_20X100,11,FALSE)*H19 -> 0 | N19: =VLOOKUP($E19,TS4L6_20X100,12,FALSE) -> L6N117
E21: Opz JBOD (NO DISK)
E22: =ConfTS4L6!A183 -> Enclosure di espansione JBOD 12 slot 3,5'' + HBA (H840) | G22: =VLOOKUP($E22,TS4L6_20X100,13,FALSE) -> TS4L6-JBOD | H22: 0 | J22: =L22+M22 -> 0 | L22: =VLOOKUP($E22,TS4L6_20X100,10,FALSE)*H22 -> 0 | M22: =VLOOKUP($E22,TS4L6_20X100,11,FALSE)*H22 -> 0 | N22: =VLOOKUP($E22,TS4L6_20X100,12,FALSE) -> L6N118
E24: Opz 12TB 7,2 RPM - per JBOD
E25: =ConfTS4L6!A184 -> 12TB 7.2K RPM NLSAS ISE 12Gbps 512e 3.5in Hot-plug Hard Drive | G25: =VLOOKUP($E25,TS4L6_20X100,13,FALSE) -> TS4L6-12TBNLSAS | H25: 0 | J25: =L25+M25 -> 0 | L25: =VLOOKUP($E25,TS4L6_20X100,10,FALSE)*H25 -> 0 | M25: =VLOOKUP($E25,TS4L6_20X100,11,FALSE)*H25 -> 0 | N25: =VLOOKUP($E25,TS4L6_20X100,12,FALSE) -> L6N119
E27: Opz 16TB 7,2 RPM - per JBOD
E28: =ConfTS4L6!A185 -> 16TB Hard Drive SAS ISE 12Gbps 7.2K 512e 3.5in Hot-Plug | G28: =VLOOKUP($E28,TS4L6_20X100,13,FALSE) -> TS4L6-16TBSAS | H28: 0 | J28: =L28+M28 -> 0 | L28: =VLOOKUP($E28,TS4L6_20X100,10,FALSE)*H28 -> 0 | M28: =VLOOKUP($E28,TS4L6_20X100,11,FALSE)*H28 -> 0 | N28: =VLOOKUP($E28,TS4L6_20X100,12,FALSE) -> L6N120
E30: Opz 20TB 7,2 RPM - per JBOD
E31: =ConfTS4L6!A186 -> 20TB HDD SAS ISE 12Gbps 7.2K 512e 3.5in Hot-Plug | G31: =VLOOKUP($E31,TS4L6_20X100,13,FALSE) -> TS4L6-20TBSAS | H31: 0 | J31: =L31+M31 -> 0 | L31: =VLOOKUP($E31,TS4L6_20X100,10,FALSE)*H31 -> 0 | M31: =VLOOKUP($E31,TS4L6_20X100,11,FALSE)*H31 -> 0 | N31: =VLOOKUP($E31,TS4L6_20X100,12,FALSE) -> L6N121
E35: OpzRack
E36: =ConfTS4L6!A141 -> Armadio Rack 42U | G36: =VLOOKUP($E36,ConfTS4L6!1:1048576,13,FALSE) -> TS4L6-RACK | H36: 0 | J36: =L36 -> 0 | L36: =VLOOKUP($E36,ConfTS4L6!1:1048576,10,FALSE)*H36 -> 0 | M36: =VLOOKUP($E36,ConfTS4L6!1:1048576,11,FALSE) -> 0 | N36: =VLOOKUP($E36,ConfTS4L6!1:1048576,12,FALSE) -> L6N31
E38: OpzUps (3000VA)
E39: =ConfTS4L6!A136 -> Dispositivo UPS di tipo On-line doppia conversione, strutturato per il montaggio a rack da 19” | G39: =VLOOKUP($E39,ConfTS4L6!1:1048576,13,FALSE) -> TS4L6-UPS | H39: 0 | J39: =L39 -> 0 | L39: =VLOOKUP($E39,ConfTS4L6!1:1048576,10,FALSE)*H39 -> 0 | M39: =VLOOKUP($E39,ConfTS4L6!1:1048576,11,FALSE)*I39 -> 0 | N39: =VLOOKUP($E39,ConfTS4L6!1:1048576,12,FALSE) -> L6N19
E41: OpzGUI
E42: =ConfTS4L6!A137 -> Unità KVM - monitor 17", cavo combi PS/2&USB da 1,8mt, tastiera italiana, touch pad | G42: =VLOOKUP($E42,ConfTS4L6!1:1048576,13,FALSE) -> TS4L6-GUI | H42: 0 | J42: =L42 -> 0 | L42: =VLOOKUP($E42,ConfTS4L6!1:1048576,10,FALSE)*H42 -> 0 | M42: =VLOOKUP($E42,ConfTS4L6!1:1048576,11,FALSE)*H42 -> 0 | N42: =VLOOKUP($E42,ConfTS4L6!1:1048576,12,FALSE) -> L6N20
E44: OpzKVM
E45: =ConfTS4L6!A138 -> KVM Switch IP per GUI 16P | G45: =VLOOKUP($E45,ConfTS4L6!1:1048576,13,FALSE) -> TS4L6-KVM | H45: 0 | J45: =L45 -> 0 | L45: =VLOOKUP($E45,ConfTS4L6!1:1048576,10,FALSE)*H45 -> 0 | M45: =VLOOKUP($E45,ConfTS4L6!1:1048576,11,FALSE)*H45 -> 0 | N45: =VLOOKUP($E45,ConfTS4L6!1:1048576,12,FALSE) -> L6N21

Sheet Riepilogo_Ordine
F2: Convenzione Tecnologie Server 4 - Lotto 6 | I2: =IF(Q3>0,"Compilare i Dati Necessari all'Ordine per Stampare in PDF o Controllare Configurazioni","Dati Completi") -> Compilare i Dati Necessari all'Ordine per Stampare in PDF o Controllare Configurazioni | Y2: SI
F3: Riepilogo Ordine N° (*) | Q3: =P8+U8 -> 9 | R3: =IF(Lotto6_R940_1!L8>0,1,0) -> 0 | S3: =IF(Lotto6_R940_2!L8>0,1,0) -> 0 | T3: =IF(Lotto6_R940_3!L8>0,1,0) -> 0 | V3: =SUM(R3:T3) -> 0 | Y3: SI
Y4: SI
F5: Ente Ordinante (*) | I5: Data (*) | P5: Ordine | Q5: Ente | R5: data | S5: Ref Cons | T5: mail | U5: tel | V5: Ref Inst | W5: mail | X5: Tel | Y5: SI
P6: =IF(F4>0,0,1) -> 1 | Q6: =IF(F6>0,0,1) -> 1 | R6: =IF(I6>0,0,1) -> 1 | S6: =IF(F8>0,0,1) -> 1 | T6: =IF(H8>0,0,1) -> 1 | U6: =IF(K8>0,0,1) -> 1 | V6: =IF(F10>0,0,1) -> 1 | W6: =IF(H10>0,0,1) -> 1 | X6: =IF(K10>0,0,1) -> 1 | Y6: SI
F7: Referente Consegna (*) | H7: Mail (*) | K7: Tel (*) | Y7: SI
P8: =SUM(P6:X6) -> 9 | R8: =IF(F11<>"",1,0) -> 0 | S8: =IF(H11<>"",1,0) -> 0 | T8: =IF(J11<>"",1,0) -> 0 | U8: =SUM(R8:T8) -> 0 | Y8: SI
F9: Referente Installazione (*) | H9: Mail (*) | K9: Tel (*) | Y9: SI
Y10: SI
F11: =IF(Lotto6_R940_1!K4<> "","Errore Configurazione 1","") ->  | H11: =IF(Lotto6_R940_2!K4<> "","Errore Configurazione 2","") ->  | J11: =IF(Lotto6_R940_3!K4<> "","Errore Configurazione 3","") ->  | Y11: SI
F12: Articoli in convenzione | R12: Config 1 | S12: Config 2 | T12: Config 3 | U12: Totale | Y12: SI
F13: Codice Produttore | G13: Codice Convenzione | H13: Descrizione | I13: Qtà | J13: Costo unitario | K13: Costo Totale | P13: N° | Q13: Codice Convenzione | R13: =Lotto6_R940_1!L8 -> 0 | S13: =Lotto6_R940_2!L8 -> 0 | T13: =Lotto6_R940_3!L8 -> 0 | Y13: SI
F14: =IF(I14="","",VLOOKUP(P14,Tabella_Prezzi,10,FALSE)) ->  | G14: =IF(I14="","",VLOOKUP(P14,Tabella_Prezzi,6,FALSE)) ->  | H14: =IF(I14="","",VLOOKUP(P14,Tabella_Prezzi,8,FALSE)) ->  | I14: =IF(U14>0,U14,"") ->  | J14: =IF(I14="","",VLOOKUP(P14,Tabella_Prezzi,4,FALSE)) ->  | K14: =IF(F14="","",J14*I14) ->  | P14: L6N01 | Q14: TS4L6-SRV | R14: =COUNTIF(TS4L6_1,P14)*$R$13 -> 0 | S14: =COUNTIF(TS4L6_2,P14)*$S$13 -> 0 | T14: =COUNTIF(TS4L6_3,P14)*$T$13 -> 0 | U14: =SUM(R14:T14) -> 0 | Y14: =IF(I14<>"","SI","NO") -> NO
I15: =IF(U15>0,U15,"") ->  | K15: =IF(F15="","",J15*I15) ->  | P15: L6N01-NVMe | Q15: TS4L6-SRV-NVME | R15: =COUNTIF(TS4L6_1,P15)*$R$13 -> 0 | S15: =COUNTIF(TS4L6_2,P15)*$S$13 -> 0 | T15: =COUNTIF(TS4L6_3,P15)*$T$13 -> 0 | U15: 0 | Y15: =IF(I15<>"","SI","NO") -> NO
P16: L6N01-vSAN | Q16: TS4L6-SRV-vSAN | R16: =COUNTIF(TS4L6_1,P16)*$R$13 -> 0 | S16: =COUNTIF(TS4L6_2,P16)*$S$13 -> 0 | T16: =COUNTIF(TS4L6_3,P16)*$T$13 -> 0 | U16: 0 | Y16: NO
G17: =IF(I17="","",VLOOKUP(P17,Tabella_Prezzi,6,FALSE)) ->  | P17: L6N02 | Q17: TS4L6-CPU | R17: =IF($R$14>0,COUNTIF(TS4L6_1,P17)*$R$13,0) -> 0 | S17: =IF($S$14>0,COUNTIF(TS4L6_2,P17)*$S$13,0) -> 0 | T17: =IF($T$14>0,COUNTIF(TS4L6_3,P17)*$T$13,0) -> 0 | U17: 0 | Y17: NO
G18: =IF(I18="","",VLOOKUP(P18,Tabella_Prezzi,6,FALSE)) ->  | P18: L6N03 | Q18: TS4L6-RAM32 | R18: =IF($R$14>0,COUNTIF(TS4L6_1,P18)*Lotto6_R940_1!$L$25*R13,0) -> 0 | S18: =IF($S$14>0,COUNTIF(TS4L6_2,P18)*Lotto6_R940_2!$L$25*S13,0) -> 0 | T18: =IF($T$14>0,COUNTIF(TS4L6_3,P18)*Lotto6_R940_3!$L$25*T13,0) -> 0 | U18: 0 | Y18: NO
P19: L6N04 | Q19: TS4L6-RAM64 | R19: =IF($R$14>0,COUNTIF(TS4L6_1,P19)*Lotto6_R940_1!$L$26*R13,0) -> 0 | S19: =IF($S$14>0,COUNTIF(TS4L6_2,P19)*Lotto6_R940_2!$L$26*$S$13,0) -> 0 | T19: =IF($T$14>0,COUNTIF(TS4L6_3,P19)*Lotto6_R940_3!$L$26*$T$13,0) -> 0 | U19: 0 | Y19: NO
P20: L6N05 | Q20: TS4L6-LAN1 | R20: =IF($R$14>0,COUNTIF(TS4L6_1,P20)*$R$13,0) -> 0 | S20: =IF($S$14>0,COUNTIF(TS4L6_2,P20)*$S$13,0) -> 0 | T20: =IF($T$14>0,COUNTIF(TS4L6_3,P20)*$T$13,0) -> 0 | U20: 0 | Y20: NO
P21: L6N75 | Q21: TS4L6-LAN1-L | R21: 0 | S21: 0 | T21: 0 | U21: 0 | Y21: NO
P22: L6N06 | Q22: TS4L6-LAN10 | R22: 0 | S22: 0 | T22: 0 | U22: 0 | Y22: NO
P23: L6N76 | Q23: TS4L6-LAN10-L | R23: 0 | S23: 0 | T23: 0 | U23: 0 | Y23: NO
P24: L6N07 | Q24: TS4L6-LAN25 | R24: 0 | S24: 0 | T24: 0 | U24: 0 | Y24: NO
P25: L6N77 | Q25: TS4L6-LAN25-L | R25: 0 | S25: 0 | T25: 0 | U25: 0 | Y25: NO
P26: L6N08 | Q26: TS4L6-CNA10 | R26: 0 | S26: 0 | T26: 0 | U26: 0 | Y26: NO
P27: L6N78 | Q27: TS4L6-CNA10-L | R27: 0 | S27: 0 | T27: 0 | U27: 0 | Y27: NO
P28: L6N09 | Q28: TS4L6-BaseT | R28: 0 | S28: 0 | T28: 0 | U28: 0 | Y28: NO
P29: L6N79 | Q29: TS4L6- BaseT-L | R29: 0 | S29: 0 | T29: 0 | U29: 0 | Y29: NO
P30: L6N10 | Q30: TS4L6- FibreChannel | R30: 0 | S30: 0 | T30: 0 | U30: 0 | Y30: NO
P31: L6N101 | Q31: TS4L6- FibreChannel | R31: 0 | S31: 0 | T31: 0 | U31: 0 | V31: Quantità 1 | W31: Quantità 2 | X31: Quantità 3 | Y31: NO
P32: L6N11 | Q32: TS4L6-HDD2TB | R32: =IF($R$14>0,COUNTIF(TS4L6_1,P32)*V32*$R$13,0) -> 0 | S32: =IF($S$14>0,COUNTIF(TS4L6_2,P32)*W32*$S$13,0) -> 0 | T32: =IF($T$14>0,COUNTIF(TS4L6_3,P32)*X32*$T$13,0) -> 0 | U32: 0 | V32: =Lotto6_R940_1!$L$46 -> 0 | W32: =Lotto6_R940_2!$L$46 -> 0 | X32: =Lotto6_R940_3!$L$46 -> 0 | Y32: NO
P33: L6N12 | Q33: TS4L6-HDD1TB | R33: 0 | S33: 0 | T33: 0 | U33: 0 | V33: =Lotto6_R940_1!$L$48 -> 0 | W33: =Lotto6_R940_2!$L$48 -> 0 | X33: =Lotto6_R940_3!$L$48 -> 0 | Y33: NO
P34: L6N13 | Q34: TS4L6-SSD-RI3,8TB | R34: 0 | S34: 0 | T34: 0 | U34: 0 | V34: =Lotto6_R940_1!$L$50 -> 0 | W34: =Lotto6_R940_2!$L$50 -> 0 | X34: =Lotto6_R940_3!$L$50 -> 0 | Y34: NO
P35: L6N14 | Q35: TS4L6-SSD-RI1,6TB | R35: 0 | S35: 0 | T35: 0 | U35: 0 | V35: =Lotto6_R940_1!$L$52 -> 0 | W35: =Lotto6_R940_2!$L$52 -> 0 | X35: =Lotto6_R940_3!$L$52 -> 0 | Y35: NO
P36: L6N15 | Q36: TS4L6-SSD-MU1,6TB | R36: 0 | S36: 0 | T36: 0 | U36: 0 | V36: =Lotto6_R940_1!$L$54 -> 0 | W36: =Lotto6_R940_2!$L$54 -> 0 | X36: =Lotto6_R940_3!$L$54 -> 0 | Y36: NO
P37: L6N16 | Q37: TS4L6-SSD-RI800GB | R37: 0 | S37: 0 | T37: 0 | U37: 0 | V37: =IF(Lotto6_R940_1!$L$56<=2,0,Lotto6_R940_1!$L$56-2) -> 0 | W37: =IF(Lotto6_R940_2!$L$56<=2,0,Lotto6_R940_2!$L$56-2) -> 0 | X37: =IF(Lotto6_R940_3!$L$56<=2,0,Lotto6_R940_3!$L$56-2) -> 0 | Y37: NO
P38: L6N17 | Q38: TS4L6-SSD-MU800GB | R38: 0 | S38: 0 | T38: 0 | U38: 0 | V38: =Lotto6_R940_1!$L$58 -> 0 | W38: =Lotto6_R940_2!$L$58 -> 0 | X38: =Lotto6_R940_3!$L$58 -> 0 | Y38: NO
P39: L6N18 | Q39: TS4L6-NVME1,6TB | R39: 0 | S39: 0 | T39: 0 | U39: 0 | V39: =Lotto6_R940_1!$L$64 -> 0 | W39: =Lotto6_R940_2!$L$64 -> 0 | X39: =Lotto6_R940_3!$L$64 -> 0 | Y39: NO
P40: L6N19 | Q40: TS4L6-UPS | U40: =Altre_Opzioni!H39 -> 0 | Y40: NO
P41: L6N20 | Q41: TS4L6-GUI | U41: =Altre_Opzioni!H42 -> 0 | Y41: NO
P42: L6N21 | Q42: TS4L6-SWKVM | U42: =Altre_Opzioni!H45 -> 0 | Y42: NO
P43: L6N22 | Q43: TS4L6-WINSRVSTD | R43: =IF($R$14>0,COUNTIF(TS4L6_1,P43)*V43*$R$13,0) -> 0 | S43: =IF($S$14>0,COUNTIF(TS4L6_2,P43)*W43*$S$13,0) -> 0 | T43: =IF($T$14>0,COUNTIF(TS4L6_3,P43)*X43*$T$13,0) -> 0 | U43: =SUM(R43:T43) -> 0 | V43: =Lotto6_R940_1!$L$29 -> 0 | W43: =Lotto6_R940_2!$L$29 -> 0 | X43: =Lotto6_R940_3!$L$29 -> 0 | Y43: NO
P44: L6N23 | Q44: TS4L6-WINDEVCAL | R44: 0 | S44: 0 | T44: 0 | U44: 0 | V44: =Lotto6_R940_1!$L$37 -> 0 | W44: =Lotto6_R940_2!$L$37 -> 0 | X44: =Lotto6_R940_3!$L$37 -> 0 | Y44: NO
P45: L6N24 | Q45: TS4L6-WINUSRCAL | R45: 0 | S45: 0 | T45: 0 | U45: 0 | V45: =Lotto6_R940_1!$L$38 -> 0 | W45: =Lotto6_R940_2!$L$38 -> 0 | X45: =Lotto6_R940_3!$L$38 -> 0 | Y45: NO
P46: L6N25 | Q46: TS4L6-WINSRV2C | R46: 0 | S46: 0 | T46: 0 | U46: 0 | V46: =Lotto6_R940_1!$L$30 -> 0 | W46: =Lotto6_R940_2!$L$30 -> 0 | X46: =Lotto6_R940_3!$L$30 -> 0 | Y46: NO
P47: L6N26 | Q47: TS4L6-WinServDC | R47: 0 | S47: 0 | T47: 0 | U47: 0 | V47: =Lotto6_R940_1!$L$33 -> 0 | W47: =Lotto6_R940_2!$L$33 -> 0 | X47: =Lotto6_R940_3!$L$33 -> 0 | Y47: NO
P48: L6N27 | Q48: TS4L6-WinServDC2core | R48: 0 | S48: 0 | T48: 0 | U48: 0 | V48: =Lotto6_R940_1!$L$34 -> 0 | W48: =Lotto6_R940_2!$L$34 -> 0 | X48: =Lotto6_R940_3!$L$34 -> 0 | Y48: NO
P49: L6N28 | Q49: TS4L6-LINUX | R49: 0 | S49: 0 | T49: 0 | U49: 0 | V49: =Lotto6_R940_1!L33 -> 0 | W49: =Lotto6_R940_2!M33 -> 0 | X49: =Lotto6_R940_3!N33 -> 0 | Y49: NO
P50: L6N29 | Q50: TS4L6-HDRTN36 | R50: =IF($R$14>0,COUNTIF(TS4L6_1,P50)*$R$13,0) -> 0 | S50: =IF($S$14>0,COUNTIF(TS4L6_2,P50)*$S$13,0) -> 0 | T50: =IF($T$14>0,COUNTIF(TS4L6_3,P50)*$T$13,0) -> 0 | U50: 0 | Y50: NO
P51: L6N29b | Q51: TS4L6-HDRTN60 | R51: =IF($R$14>0,COUNTIF(TS4L6_1,P51)*$R$13,0) -> 0 | S51: =IF($S$14>0,COUNTIF(TS4L6_2,P51)*$S$13,0) -> 0 | T51: =IF($T$14>0,COUNTIF(TS4L6_3,P51)*$T$13,0) -> 0 | U51: 0 | Y51: NO
P52: L6N30 | Q52: TS4L6-OpzEst24 | R52: =IF($R$14>0,COUNTIF(TS4L6_1,P52)*$R$13,0) -> 0 | S52: =IF($S$14>0,COUNTIF(TS4L6_2,P52)*$S$13,0) -> 0 | T52: =IF($T$14>0,COUNTIF(TS4L6_3,P52)*$T$13,0) -> 0 | U52: 0 | Y52: NO
P53: L6N31 | Q53: TS4L6-RACK | U53: =Altre_Opzioni!H36 -> 0 | Y53: NO
F54: =IF(I54="","",VLOOKUP(P54,Tabella_Prezzi,10,FALSE)) ->  | G54: =IF(I54="","",VLOOKUP(P54,Tabella_Prezzi,13,FALSE)) ->  | H54: =IF(I54="","",VLOOKUP(P54,Tabella_Prezzi,8,FALSE)) ->  | I54: =IF(U54>0,U54,"") ->  | J54: =IF(I54="","",VLOOKUP(P54,Tabella_Prezzi,4,FALSE)) ->  | K54: =IF(F54="","",J54*I54) ->  | P54: L6N02 | Q54: TS4L6-CPU-NVME | R54: =IF($R$15>0,COUNTIF(TS4L6_1,P54)*$R$13,0) -> 0 | S54: =IF($S$15>0,COUNTIF(TS4L6_2,P54)*$S$13,0) -> 0 | T54: =IF($T$15>0,COUNTIF(TS4L6_3,P54)*$T$13,0) -> 0 | U54: =SUM(R54:T54) -> 0 | Y54: =IF(I54<>"","SI","NO") -> NO
P55: L6N03 | Q55: TS4L6-RAM32-NVME | R55: =IF($R$15>0,COUNTIF(TS4L6_1,P55)*Lotto6_R940_1!$L$25*R15,0) -> 0 | S55: =IF($S$15>0,COUNTIF(TS4L6_2,P55)*Lotto6_R940_2!$L$25*S15,0) -> 0 | T55: =IF($T$15>0,COUNTIF(TS4L6_3,P55)*Lotto6_R940_3!$L$25*T15,0) -> 0 | U55: 0 | Y55: NO
P56: L6N04 | Q56: TS4L6-RAM64-NVME | R56: =IF($R$15>0,COUNTIF(TS4L6_1,P56)*Lotto6_R940_1!$L$26*R15,0) -> 0 | S56: =IF($S$15>0,COUNTIF(TS4L6_2,P56)*Lotto6_R940_2!$L$26*$S$15,0) -> 0 | T56: =IF($T$15>0,COUNTIF(TS4L6_3,P56)*Lotto6_R940_3!$L$26*$T$15,0) -> 0 | U56: 0 | Y56: NO
P57: L6N05 | Q57: TS4L6-LAN1-NVME | R57: =IF($R$15>0,COUNTIF(TS4L6_1,P57)*$R$13,0) -> 0 | S57: =IF($S$15>0,COUNTIF(TS4L6_2,P57)*$S$13,0) -> 0 | T57: =IF($T$15>0,COUNTIF(TS4L6_3,P57)*$T$13,0) -> 0 | U57: 0 | Y57: NO
P58: L6N75 | Q58: TS4L6-LAN1-L-NVME | R58: 0 | S58: 0 | T58: 0 | U58: 0 | Y58: NO
P59: L6N06 | Q59: TS4L6-LAN10-NVME | R59: 0 | S59: 0 | T59: 0 | U59: 0 | Y59: NO
P60: L6N76 | Q60: TS4L6-LAN10-L-NVME | R60: 0 | S60: 0 | T60: 0 | U60: 0 | Y60: NO
P61: L6N07 | Q61: TS4L6-LAN25-NVME | R61: 0 | S61: 0 | T61: 0 | U61: 0 | Y61: NO
P62: L6N77 | Q62: TS4L6-LAN25-L-NVME | R62: 0 | S62: 0 | T62: 0 | U62: 0 | Y62: NO
P63: L6N08 | Q63: TS4L6-CNA10-NVME | R63: 0 | S63: 0 | T63: 0 | U63: 0 | Y63: NO
P64: L6N78 | Q64: TS4L6-CNA10-L-NVME | R64: 0 | S64: 0 | T64: 0 | U64: 0 | Y64: NO
P65: L6N09 | Q65: TS4L6-BaseT-NVME | R65: 0 | S65: 0 | T65: 0 | U65: 0 | Y65: NO
P66: L6N79 | Q66: TS4L6- BaseT-L-NVME | R66: 0 | S66: 0 | T66: 0 | U66: 0 | Y66: NO
P67: L6N10 | Q67: TS4L6- FibreChannel-NVME | R67: 0 | S67: 0 | T67: 0 | U67: 0 | Y67: NO
P68: L6N101 | Q68: TS4L6- FibreChannel-NVME | R68: 0 | S68: 0 | T68: 0 | U68: 0 | V68: Quantità 1 | W68: Quantità 2 | X68: Quantità 3 | Y68: NO
P69: L6N11 | Q69: TS4L6-HDD2TB-NVME | R69: =IF($R$15>0,COUNTIF(TS4L6_1,P69)*V69*$R$13,0) -> 0 | S69: =IF($S$15>0,COUNTIF(TS4L6_2,P69)*W69*$S$13,0) -> 0 | T69: =IF($T$15>0,COUNTIF(TS4L6_3,P69)*X69*$T$13,0) -> 0 | U69: 0 | V69: =Lotto6_R940_1!$L$46 -> 0 | W69: =Lotto6_R940_2!$L$46 -> 0 | X69: =Lotto6_R940_3!$L$46 -> 0 | Y69: NO
P70: L6N12 | Q70: TS4L6-HDD1TB-NVME | R70: 0 | S70: 0 | T70: 0 | U70: 0 | V70: =Lotto6_R940_1!$L$48 -> 0 | W70: =Lotto6_R940_2!$L$48 -> 0 | X70: =Lotto6_R940_3!$L$48 -> 0 | Y70: NO
P71: L6N13 | Q71: TS4L6-SSD-RI3,8TB-NVME | R71: 0 | S71: 0 | T71: 0 | U71: 0 | V71: =Lotto6_R940_1!$L$50 -> 0 | W71: =Lotto6_R940_2!$L$50 -> 0 | X71: =Lotto6_R940_3!$L$50 -> 0 | Y71: NO
P72: L6N14 | Q72: TS4L6-SSD-RI1,6TB-NVME | R72: 0 | S72: 0 | T72: 0 | U72: 0 | V72: =Lotto6_R940_1!$L$52 -> 0 | W72: =Lotto6_R940_2!$L$52 -> 0 | X72: =Lotto6_R940_3!$L$52 -> 0 | Y72: NO
P73: L6N15 | Q73: TS4L6-SSD-MU1,6TB-NVME | R73: 0 | S73: 0 | T73: 0 | U73: 0 | V73: =Lotto6_R940_1!$L$54 -> 0 | W73: =Lotto6_R940_2!$L$54 -> 0 | X73: =Lotto6_R940_3!$L$54 -> 0 | Y73: NO
P74: L6N16 | Q74: TS4L6-SSD-RI800GB-NVME | R74: 0 | S74: 0 | T74: 0 | U74: 0 | V74: =IF(Lotto6_R940_1!$L$56<=2,0,Lotto6_R940_1!$L$56-2) -> 0 | W74: =IF(Lotto6_R940_2!$L$56<=2,0,Lotto6_R940_2!$L$56-2) -> 0 | X74: =IF(Lotto6_R940_3!$L$56<=2,0,Lotto6_R940_3!$L$56-2) -> 0 | Y74: NO
P75: L6N17 | Q75: TS4L6-SSD-MU800GB-NVME | R75: 0 | S75: 0 | T75: 0 | U75: 0 | V75: =Lotto6_R940_1!$L$58 -> 0 | W75: =Lotto6_R940_2!$L$58 -> 0 | X75: =Lotto6_R940_3!$L$58 -> 0 | Y75: NO
P76: L6N18 | Q76: TS4L6-NVME1,6TB-NVME | R76: 0 | S76: 0 | T76: 0 | U76: 0 | V76: =Lotto6_R940_1!$L$64 -> 0 | W76: =Lotto6_R940_2!$L$64 -> 0 | X76: =Lotto6_R940_3!$L$64 -> 0 | Y76: NO
P77: L6N22 | Q77: TS4L6-WINSRVSTD-NVME | R77: 0 | S77: 0 | T77: 0 | U77: 0 | V77: =Lotto6_R940_1!$L$29 -> 0 | W77: =Lotto6_R940_2!$L$29 -> 0 | X77: =Lotto6_R940_3!$L$29 -> 0 | Y77: NO
P78: L6N23 | Q78: TS4L6-WINDEVCAL-NVME | R78: 0 | S78: 0 | T78: 0 | U78: 0 | V78: =Lotto6_R940_1!$L$37 -> 0 | W78: =Lotto6_R940_2!$L$37 -> 0 | X78: =Lotto6_R940_3!$L$37 -> 0 | Y78: NO
P79: L6N24 | Q79: TS4L6-WINUSRCAL-NVME | R79: 0 | S79: 0 | T79: 0 | U79: 0 | V79: =Lotto6_R940_1!$L$38 -> 0 | W79: =Lotto6_R940_2!$L$38 -> 0 | X79: =Lotto6_R940_3!$L$38 -> 0 | Y79: NO
P80: L6N25 | Q80: TS4L6-WINSRV2C-NVME | R80: 0 | S80: 0 | T80: 0 | U80: 0 | V80: =Lotto6_R940_1!$L$30 -> 0 | W80: =Lotto6_R940_2!$L$30 -> 0 | X80: =Lotto6_R940_3!$L$30 -> 0 | Y80: NO
P81: L6N26 | Q81: TS4L6-WinServDC-NVME | R81: 0 | S81: 0 | T81: 0 | U81: 0 | V81: =Lotto6_R940_1!$L$33 -> 0 | W81: =Lotto6_R940_2!$L$33 -> 0 | X81: =Lotto6_R940_3!$L$33 -> 0 | Y81: NO
P82: L6N27 | Q82: TS4L6-WinServDC2core-NVME | R82: 0 | S82: 0 | T82: 0 | U82: 0 | V82: =Lotto6_R940_1!$L$34 -> 0 | W82: =Lotto6_R940_2!$L$34 -> 0 | X82: =Lotto6_R940_3!$L$34 -> 0 | Y82: NO
P83: L6N28 | Q83: TS4L6-LINUX-NVME | R83: 0 | S83: 0 | T83: 0 | U83: 0 | V83: =Lotto6_R940_1!L67 -> 0 | W83: =Lotto6_R940_2!M67 -> 0 | X83: =Lotto6_R940_3!N67 -> 0 | Y83: NO
P84: L6N29 | Q84: TS4L6-HDRTN36 | R84: =IF($R$15>0,COUNTIF(TS4L6_1,P84)*$R$13,0) -> 0 | S84: =IF($S$15>0,COUNTIF(TS4L6_2,P84)*$S$13,0) -> 0 | T84: =IF($T$15>0,COUNTIF(TS4L6_3,P84)*$T$13,0) -> 0 | U84: 0 | Y84: NO
P85: L6N29b | Q85: TS4L6-HDRTN60 | R85: =IF($R$15>0,COUNTIF(TS4L6_1,P85)*$R$13,0) -> 0 | S85: =IF($S$15>0,COUNTIF(TS4L6_2,P85)*$S$13,0) -> 0 | T85: =IF($T$15>0,COUNTIF(TS4L6_3,P85)*$T$13,0) -> 0 | U85: 0 | Y85: NO
P86: L6N30 | Q86: TS4L6-OpzEst24 | R86: =IF($R$15>0,COUNTIF(TS4L6_1,P86)*$R$13,0) -> 0 | S86: =IF($S$15>0,COUNTIF(TS4L6_2,P86)*$S$13,0) -> 0 | T86: =IF($T$15>0,COUNTIF(TS4L6_3,P86)*$T$13,0) -> 0 | U86: 0 | Y86: NO
Y87: SI
F88: =IF(G141<0,"Superata Quota 20%","") ->  | Y88: SI
F89: Opzioni 20 % | Y89: =IF(K140>0,"SI","NO") -> NO
F90: Codice Produttore | G90: Codice Convenzione | H90: Descrizione | I90: Qtà | J90: Costo unitario | K90: Costo Totale | P90: N° | Q90: Codice Convenzione | U90: =SUM(R90:T90) -> 0 | Y90: =IF(K140>0,"SI","NO") -> NO
F91: =IF(I91="","",VLOOKUP(P91,Tabella_Prezzi,10,FALSE)) ->  | G91: =IF(I91="","",VLOOKUP(P91,Tabella_Prezzi,6,FALSE)) ->  | H91: =IF(I91="","",VLOOKUP(P91,Tabella_Prezzi,8,FALSE)) ->  | I91: =IF(U91>0,U91,"") ->  | J91: =IF(I91="","",VLOOKUP(P91,Tabella_Prezzi,4,FALSE)) ->  | K91: =IF(F91="","",J91*I91) ->  | P91: L6N32 | Q91: TS4L6-SSD7.68RI | R91: =IF($R$14>0,COUNTIF(TS4L6_1,P91)*V91*$R$13,0) -> 0 | S91: =IF($S$14>0,COUNTIF(TS4L6_2,P91)*W91*$S$13,0) -> 0 | T91: =IF($T$14>0,COUNTIF(TS4L6_3,P91)*X91*$T$13,0) -> 0 | U91: 0 | V91: =Lotto6_R940_1!$L$60 -> 0 | W91: =Lotto6_R940_2!$L$60 -> 0 | X91: =Lotto6_R940_3!$L$60 -> 0 | Y91: =IF($I91<>"","SI","NO") -> NO
P92: L6N33 | Q92: TS4L6-NVMe3.2MU | R92: =IF($R$14>0,COUNTIF(TS4L6_1,P92)*V92*$R$13,0) -> 0 | S92: =IF($S$14>0,COUNTIF(TS4L6_2,P92)*W92*$S$13,0) -> 0 | T92: =IF($T$14>0,COUNTIF(TS4L6_3,P92)*X92*$T$13,0) -> 0 | U92: 0 | V92: =Lotto6_R940_1!$L$66 -> 0 | W92: =Lotto6_R940_2!$L$66 -> 0 | X92: =Lotto6_R940_3!$L$66 -> 0 | Y92: =IF($I92<>"","SI","NO") -> NO
P93: L6N34 | Q93: TS4L6-NVMe1.92RI | R93: =IF($R$14>0,COUNTIF(TS4L6_1,P93)*V93*$R$13,0) -> 0 | S93: =IF($S$14>0,COUNTIF(TS4L6_2,P93)*W93*$S$13,0) -> 0 | T93: =IF($T$14>0,COUNTIF(TS4L6_3,P93)*X93*$T$13,0) -> 0 | U93: 0 | V93: =Lotto6_R940_1!$L$68 -> 0 | W93: =Lotto6_R940_2!$L$68 -> 0 | X93: =Lotto6_R940_3!$L$68 -> 0 | Y93: NO
P94: L6N35 | Q94: TS4L6-NVMe3.84RI | R94: =IF($R$14>0,COUNTIF(TS4L6_1,P94)*V94*$R$13,0) -> 0 | S94: =IF($S$14>0,COUNTIF(TS4L6_2,P94)*W94*$S$13,0) -> 0 | T94: =IF($T$14>0,COUNTIF(TS4L6_3,P94)*X94*$T$13,0) -> 0 | U94: 0 | V94: =Lotto6_R940_1!$L$70 -> 0 | W94: =Lotto6_R940_2!$L$70 -> 0 | X94: =Lotto6_R940_3!$L$70 -> 0 | Y94: NO
P95: L6N36 | Q95: TS4L6-10GBs-INTQP | R95: =IF($R$14>0,COUNTIF(TS4L6_1,P95)*$R$13,0) -> 0 | S95: =IF($S$14>0,COUNTIF(TS4L6_2,P95)*$S$13,0) -> 0 | T95: =IF($T$14>0,COUNTIF(TS4L6_3,P95)*$T$13,0) -> 0 | U95: 0 | Y95: =IF($I95<>"","SI","NO") -> NO
P96: L6N38 | Q96: TS4L6-100GBs-M | R96: =IF($R$14>0,COUNTIF(TS4L6_1,P96)*$R$13,0) -> 0 | S96: =IF($S$14>0,COUNTIF(TS4L6_2,P96)*$S$13,0) -> 0 | T96: =IF($T$14>0,COUNTIF(TS4L6_3,P96)*$T$13,0) -> 0 | U96: 0 | Y96: NO
P97: L6N39 | Q97: TS4L6-100GBs-B | R97: =IF($R$14>0,COUNTIF(TS4L6_1,P97)*$R$13,0) -> 0 | S97: =IF($S$14>0,COUNTIF(TS4L6_2,P97)*$S$13,0) -> 0 | T97: =IF($T$14>0,COUNTIF(TS4L6_3,P97)*$T$13,0) -> 0 | U97: 0 | Y97: NO
P98: L6N40 | Q98: TS4L6-100GBs-INT | R98: =IF($R$14>0,COUNTIF(TS4L6_1,P98)*$R$13,0) -> 0 | S98: =IF($S$14>0,COUNTIF(TS4L6_2,P98)*$S$13,0) -> 0 | T98: =IF($T$14>0,COUNTIF(TS4L6_3,P98)*$T$13,0) -> 0 | U98: 0 | Y98: NO
P99: L6N41 | Q99: TS4L6-100GBs-INF | R99: =IF($R$14>0,COUNTIF(TS4L6_1,P99)*$R$13,0) -> 0 | S99: =IF($S$14>0,COUNTIF(TS4L6_2,P99)*$S$13,0) -> 0 | T99: =IF($T$14>0,COUNTIF(TS4L6_3,P99)*$T$13,0) -> 0 | U99: 0 | Y99: NO
P100: L6N42 | Q100: TS4L6-OpzBOSS | R100: =IF($R$14>0,COUNTIF(TS4L6_1,P100)*$R$90,0) -> 0 | S100: =IF($S$14>0,COUNTIF(TS4L6_2,P100)*$S$90,0) -> 0 | T100: =IF($T$14>0,COUNTIF(TS4L6_3,P100)*$T$90,0) -> 0 | U100: =SUM(R100:T100) -> 0 | Y100: NO
P101: L6N50 | Q101: TS4L6-OT10GB | R101: =IF($R$14>0,COUNTIF(TS4L6_1,P101)*V101*$R$13,0) -> 0 | S101: =IF($S$14>0,COUNTIF(TS4L6_2,P101)*W101*$S$13,0) -> 0 | T101: =IF($T$14>0,COUNTIF(TS4L6_3,P101)*X101*$T$13,0) -> 0 | U101: 0 | V101: =Lotto6_R940_1!L123 -> 0 | W101: =Lotto6_R940_2!L123 -> 0 | X101: =Lotto6_R940_3!L123 -> 0 | Y101: NO
P102: L6N51 | Q102: TS4L6-OT25GB | R102: =IF($R$14>0,COUNTIF(TS4L6_1,P102)*V102*$R$13,0) -> 0 | S102: =IF($S$14>0,COUNTIF(TS4L6_2,P102)*W102*$S$13,0) -> 0 | T102: =IF($T$14>0,COUNTIF(TS4L6_3,P102)*X102*$T$13,0) -> 0 | U102: 0 | V102: =Lotto6_R940_1!L126 -> 0 | W102: =Lotto6_R940_2!L126 -> 0 | X102: =Lotto6_R940_3!L126 -> 0 | Y102: NO
P103: L6N52 | Q103: TS4L6-OT100GB | R103: =IF($R$14>0,COUNTIF(TS4L6_1,P103)*V103*$R$13,0) -> 0 | S103: =IF($S$14>0,COUNTIF(TS4L6_2,P103)*W103*$S$13,0) -> 0 | T103: =IF($T$14>0,COUNTIF(TS4L6_3,P103)*X103*$T$13,0) -> 0 | U103: 0 | V103: =Lotto6_R940_1!L129 -> 0 | W103: =Lotto6_R940_2!L129 -> 0 | X103: =Lotto6_R940_3!L129 -> 0 | Y103: NO
F104: =IF(I104="","",VLOOKUP(P104,Tabella_Prezzi,10,FALSE)) ->  | G104: =IF(I104="","",VLOOKUP(P104,Tabella_Prezzi,13,FALSE)) ->  | H104: =IF(I104="","",VLOOKUP(P104,Tabella_Prezzi,8,FALSE)) ->  | I104: =IF(U104>0,U104,"") ->  | J104: =IF(I104="","",VLOOKUP(P104,Tabella_Prezzi,4,FALSE)) ->  | K104: =IF(F104="","",J104*I104) ->  | P104: L6N32 | Q104: TS4L6-SSD7.68RI-NVME | R104: =IF($R$15>0,COUNTIF(TS4L6_1,P104)*V104*$R$13,0) -> 0 | S104: =IF($S$15>0,COUNTIF(TS4L6_2,P104)*W104*$S$13,0) -> 0 | T104: =IF($T$15>0,COUNTIF(TS4L6_3,P104)*X104*$T$13,0) -> 0 | U104: 0 | V104: =Lotto6_R940_1!$L$60 -> 0 | W104: =Lotto6_R940_2!$L$60 -> 0 | X104: =Lotto6_R940_3!$L$60 -> 0 | Y104: =IF($I104<>"","SI","NO") -> NO
P105: L6N33 | Q105: TS4L6-NVMe3.2MU-NVME | R105: =IF($R$15>0,COUNTIF(TS4L6_1,P105)*V105*$R$13,0) -> 0 | S105: =IF($S$15>0,COUNTIF(TS4L6_2,P105)*W105*$S$13,0) -> 0 | T105: =IF($T$15>0,COUNTIF(TS4L6_3,P105)*X105*$T$13,0) -> 0 | U105: 0 | V105: =Lotto6_R940_1!$L$66 -> 0 | W105: =Lotto6_R940_2!$L$66 -> 0 | X105: =Lotto6_R940_3!$L$66 -> 0 | Y105: NO
P106: L6N34 | Q106: TS4L6-NVMe1.92RI-NVME | R106: =IF($R$15>0,COUNTIF(TS4L6_1,P106)*V106*$R$13,0) -> 0 | S106: =IF($S$15>0,COUNTIF(TS4L6_2,P106)*W106*$S$13,0) -> 0 | T106: =IF($T$15>0,COUNTIF(TS4L6_3,P106)*X106*$T$13,0) -> 0 | U106: 0 | V106: =Lotto6_R940_1!$L$68 -> 0 | W106: =Lotto6_R940_2!$L$68 -> 0 | X106: =Lotto6_R940_3!$L$68 -> 0 | Y106: NO
P107: L6N35 | Q107: TS4L6-NVMe3.84RI-NVME | R107: =IF($R$15>0,COUNTIF(TS4L6_1,P107)*V107*$R$13,0) -> 0 | S107: =IF($S$15>0,COUNTIF(TS4L6_2,P107)*W107*$S$13,0) -> 0 | T107: =IF($T$15>0,COUNTIF(TS4L6_3,P107)*X107*$T$13,0) -> 0 | U107: 0 | V107: =Lotto6_R940_1!$L$70 -> 0 | W107: =Lotto6_R940_2!$L$70 -> 0 | X107: =Lotto6_R940_3!$L$70 -> 0 | Y107: NO
P108: L6N36 | Q108: TS4L6-10GBs-INTQP-NVME | R108: =IF($R$15>0,COUNTIF(TS4L6_1,P108)*$R$13,0) -> 0 | S108: =IF($S$15>0,COUNTIF(TS4L6_2,P108)*$S$13,0) -> 0 | T108: =IF($T$15>0,COUNTIF(TS4L6_3,P108)*$T$13,0) -> 0 | U108: 0 | Y108: =IF($I108<>"","SI","NO") -> NO
P109: L6N38 | Q109: TS4L6-100GBs-M-NVME | R109: =IF($R$15>0,COUNTIF(TS4L6_1,P109)*$R$13,0) -> 0 | S109: =IF($S$15>0,COUNTIF(TS4L6_2,P109)*$S$13,0) -> 0 | T109: =IF($T$15>0,COUNTIF(TS4L6_3,P109)*$T$13,0) -> 0 | U109: 0 | Y109: NO
P110: L6N39 | Q110: TS4L6-100GBs-B-NVME | R110: =IF($R$15>0,COUNTIF(TS4L6_1,P110)*$R$13,0) -> 0 | S110: =IF($S$15>0,COUNTIF(TS4L6_2,P110)*$S$13,0) -> 0 | T110: =IF($T$15>0,COUNTIF(TS4L6_3,P110)*$T$13,0) -> 0 | U110: 0 | Y110: NO
P111: L6N40 | Q111: TS4L6-100GBs-INT-NVME | R111: =IF($R$15>0,COUNTIF(TS4L6_1,P111)*$R$13,0) -> 0 | S111: =IF($S$15>0,COUNTIF(TS4L6_2,P111)*$S$13,0) -> 0 | T111: =IF($T$15>0,COUNTIF(TS4L6_3,P111)*$T$13,0) -> 0 | U111: 0 | Y111: NO
P112: L6N41 | Q112: TS4L6-100GBs-INF-NVME | R112: =IF($R$15>0,COUNTIF(TS4L6_1,P112)*$R$13,0) -> 0 | S112: =IF($S$15>0,COUNTIF(TS4L6_2,P112)*$S$13,0) -> 0 | T112: =IF($T$15>0,COUNTIF(TS4L6_3,P112)*$T$13,0) -> 0 | U112: 0 | Y112: NO
P113: L6N42 | Q113: TS4L6-OpzBOSS-NVME | R113: =IF($R$15>0,COUNTIF(TS4L6_1,P113)*$R$90,0) -> 0 | S113: =IF($S$15>0,COUNTIF(TS4L6_2,P113)*$S$90,0) -> 0 | T113: =IF($T$15>0,COUNTIF(TS4L6_3,P113)*$T$90,0) -> 0 | U113: =SUM(R113:T113) -> 0 | Y113: NO
P114: L6N50 | Q114: TS4L6-OT10GB-NVME | R114: =IF($R$15>0,COUNTIF(TS4L6_1,P114)*V114*$R$13,0) -> 0 | S114: =IF($S$15>0,COUNTIF(TS4L6_2,P114)*W114*$S$13,0) -> 0 | T114: =IF($T$15>0,COUNTIF(TS4L6_3,P114)*X114*$T$13,0) -> 0 | U114: 0 | V114: =Lotto6_R940_1!L123 -> 0 | W114: =Lotto6_R940_2!L123 -> 0 | X114: =Lotto6_R940_3!L123 -> 0 | Y114: NO
P115: L6N51 | Q115: TS4L6-OT25GB-NVME | R115: =IF($R$15>0,COUNTIF(TS4L6_1,P115)*V115*$R$13,0) -> 0 | S115: =IF($S$15>0,COUNTIF(TS4L6_2,P115)*W115*$S$13,0) -> 0 | T115: =IF($T$15>0,COUNTIF(TS4L6_3,P115)*X115*$T$13,0) -> 0 | U115: 0 | V115: =Lotto6_R940_1!L126 -> 0 | W115: =Lotto6_R940_2!L126 -> 0 | X115: =Lotto6_R940_3!L126 -> 0 | Y115: NO
P116: L6N52 | Q116: TS4L6-OT100GB-NVME | R116: =IF($R$15>0,COUNTIF(TS4L6_1,P116)*V116*$R$13,0) -> 0 | S116: =IF($S$15>0,COUNTIF(TS4L6_2,P116)*W116*$S$13,0) -> 0 | T116: =IF($T$15>0,COUNTIF(TS4L6_3,P116)*X116*$T$13,0) -> 0 | U116: 0 | V116: =Lotto6_R940_1!L129 -> 0 | W116: =Lotto6_R940_2!L129 -> 0 | X116: =Lotto6_R940_3!L129 -> 0 | Y116: NO
P117: L6N53 | Q117: TS4L6-HBA | R117: =COUNTIF(TS4L6_1,P117)*$R$90 -> 0 | S117: =COUNTIF(TS4L6_2,P117)*$S$90 -> 0 | T117: =COUNTIF(TS4L6_3,P117)*$T$90 -> 0 | U117: 0 | Y117: NO
P118: L6N54 | Q118: TS4L6-OpzCMA | R118: =COUNTIF(TS4L6_1,P118)*$R$90 -> 0 | S118: =COUNTIF(TS4L6_2,P118)*$S$90 -> 0 | T118: =COUNTIF(TS4L6_3,P118)*$T$90 -> 0 | U118: 0 | Y118: NO
P119: L6N110 | Q119: TS4L6-2CPU-vSAN-NVMe | R119: =COUNTIF(TS4L6_1,P119)*$R$13 -> 0 | S119: =COUNTIF(TS4L6_2,P119)*$S$13 -> 0 | T119: =COUNTIF(TS4L6_3,P119)*$T$13 -> 0 | U119: 0 | Y119: NO
P120: L6N111 | Q120: TS4L6-4CPU-vSAN-2TB-NVMe | R120: =COUNTIF(TS4L6_1,P120)*$R$13 -> 0 | S120: =COUNTIF(TS4L6_2,P120)*$S$13 -> 0 | T120: =COUNTIF(TS4L6_3,P120)*$T$13 -> 0 | U120: 0 | Y120: NO
G121: =IF(I121="","",VLOOKUP(P121,Tabella_Prezzi,13,FALSE)) ->  | P121: L6N112 | Q121: TS4L6-RACK-D | U121: =Altre_Opzioni!H7 -> 0 | Y121: NO
P122: L6N113 | Q122: TS4L6-PDU-M | U122: =Altre_Opzioni!H10 -> 0 | Y122: =IF($I122<>"","SI","NO") -> NO
P123: L6N114 | Q123: TS4L6-PDU-T | U123: =Altre_Opzioni!H13 -> 0 | Y123: NO
P124: L6N115 | Q124: TS4L6-KVM-D | U124: =Altre_Opzioni!H16 -> 0 | Y124: NO
P125: L6N116 | Q125: TS4L6-ROCK | R125: =IF($R$15>0,COUNTIF(TS4L6_1,P125)*$R$13,0) -> 0 | S125: =IF($S$15>0,COUNTIF(TS4L6_2,P125)*$S$13,0) -> 0 | T125: =IF($T$15>0,COUNTIF(TS4L6_3,P125)*$T$13,0) -> 0 | U125: =SUM(R125:T125) -> 0 | Y125: NO
P126: L6N117 | Q126: TS4L6-CMA | U126: =Altre_Opzioni!H19 -> 0 | Y126: NO
P127: L6N118 | Q127: TS4L6-JBOD | U127: =Altre_Opzioni!H22 -> 0 | Y127: NO
P128: L6N119 | Q128: TS4L6-12TBNLSAS | U128: =Altre_Opzioni!H25 -> 0 | Y128: NO
P129: L6N120 | Q129: TS4L6-16TBSAS | U129: =Altre_Opzioni!H28 -> 0 | Y129: NO
P130: L6N121 | Q130: TS4L6-20TBSAS | U130: =Altre_Opzioni!H31 -> 0 | Y130: NO
F131: =IF(I131="","",VLOOKUP(P131,Tabella_Prezzi,10,FALSE)) ->  | H131: =IF(I131="","",VLOOKUP(P131,Tabella_Prezzi,8,FALSE)) ->  | I131: =IF(U131>0,U131,"") ->  | J131: =IF(I131="","",VLOOKUP(P131,Tabella_Prezzi,4,FALSE)) ->  | K131: =IF(F131="","",J131*I131) ->  | P131: L6N122 | Q131: TS4L6-vSAN-2CPU-1.5TB | R131: =COUNTIF(TS4L6_1,P131)*$R$13 -> 0 | S131: =COUNTIF(TS4L6_2,P131)*$S$13 -> 0 | T131: =COUNTIF(TS4L6_3,P131)*$T$13 -> 0 | U131: 0 | Y131: NO
P132: L6N123 | Q132: TS4L6-vSAN-2CPU-1TB | R132: =COUNTIF(TS4L6_1,P132)*$R$13 -> 0 | S132: =COUNTIF(TS4L6_2,P132)*$S$13 -> 0 | T132: =COUNTIF(TS4L6_3,P132)*$T$13 -> 0 | U132: 0 | Y132: NO
P133: L6N124 | Q133: TS4L6-vSAN-4CPU-2TB | R133: =COUNTIF(TS4L6_1,P133)*$R$13 -> 0 | S133: =COUNTIF(TS4L6_2,P133)*$S$13 -> 0 | T133: =COUNTIF(TS4L6_3,P133)*$T$13 -> 0 | U133: 0 | Y133: NO
P134: L6N125 | Q134: TS4L6-BOSS-4CPU-3TB | R134: =COUNTIF(TS4L6_1,P134)*$R$13 -> 0 | S134: =COUNTIF(TS4L6_2,P134)*$S$13 -> 0 | T134: =COUNTIF(TS4L6_3,P134)*$T$13 -> 0 | U134: 0 | Y134: NO
Y135: SI
Y138: SI
I139: Totale Convenzione | K139: =SUM(K14:K86) -> 0 | Y139: SI
F140: Quota Massima 20% | G140: =K142*0.2 -> 0 | I140: Totale 20% | K140: =SUM(K91:K134) -> 0 | Y140: SI
F141: Quota Residua 20% | G141: =G140-K140 -> 0 | I141: Totale Iva Esclusa | K141: =K139+K140 -> 0 | Y141: SI
I142: Totale Ordine | K142: =(K141*1.22) -> 0 | Y142: SI
Y143: SI

Sheet Config (hidden)
D2: Informazioni di Servizio per processamento Ordine | R2: SI
R3: SI
D4: =Riepilogo_Ordine!F3 -> Riepilogo Ordine N° (*) | R4: SI
D5: =Riepilogo_Ordine!F4 -> 0 | R5: SI
D6: =Riepilogo_Ordine!F5 -> Ente Ordinante (*) | G6: =Riepilogo_Ordine!I5 -> Data (*) | R6: SI
D7: =Riepilogo_Ordine!F6 -> 0 | G7: =Riepilogo_Ordine!I6 -> 00:00:00 | R7: SI
D8: =Riepilogo_Ordine!F7 -> Referente Consegna (*) | G8: =Riepilogo_Ordine!H7 -> Mail (*) | J8: =Riepilogo_Ordine!K7 -> Tel (*) | R8: SI
D9: =Riepilogo_Ordine!F8 -> 0 | G9: =Riepilogo_Ordine!I8 -> 0 | J9: =Riepilogo_Ordine!K8 -> 0 | R9: SI
D10: =Riepilogo_Ordine!F9 -> Referente Installazione (*) | G10: =Riepilogo_Ordine!H9 -> Mail (*) | J10: =Riepilogo_Ordine!K9 -> Tel (*) | R10: SI
D11: =Riepilogo_Ordine!F10 -> 0 | G11: =Riepilogo_Ordine!I10 -> 0 | J11: =Riepilogo_Ordine!K10 -> 0 | R11: SI
R12: SI
R13: SI
D17: =Lotto6_R940_1!L8 -> 0 | E17: Configurazione 1 | G17: =Lotto6_R940_2!L8 -> 0 | H17: Configurazione 2 | J17: =Lotto6_R940_3!L8 -> 0 | K17: Configurazione 3 | R17: SI
N18: conf1 | O18: conf2 | P18: conf3 | Q18: tot
C19: =IF(D19<>"",1,0) -> 0 | D19: =IF(Riepilogo_Ordine!R14>0,Riepilogo_Ordine!R14,"") ->  | E19: =IF(E71<>"","",IF(D19="","",CONCATENATE(Riepilogo_Ordine!Q14))) ->  | F19: =IF(G19<>"",1,0) -> 0 | G19: =IF(Riepilogo_Ordine!S14>0,Riepilogo_Ordine!S14,"") ->  | H19: =IF(H71<>"","",IF(G19="","",CONCATENATE(Riepilogo_Ordine!Q14))) ->  | I19: =IF(J19<>"",1,0) -> 0 | J19: =IF(Riepilogo_Ordine!T14>0,Riepilogo_Ordine!T14,"") ->  | K19: =IF(K71<>"","",IF(J19="","",CONCATENATE(Riepilogo_Ordine!Q14))) ->  | N19: =IF(D19="",0,D19) -> 0 | O19: =IF(G19="",0,G19) -> 0 | P19: =IF(J19="",0,J19) -> 0 | Q19: =SUM(N19:P19) -> 0 | R19: =IF(Q19>0,"SI","NO") -> NO
B20: =IF(AND(D20=1,E20=""),1,"") ->  | C20: =IF(D20<>"",1,0) -> 0 | D20: =IF(D70<>"","",IF(Riepilogo_Ordine!R17>0,Riepilogo_Ordine!R17,"")) ->  | E20: =IF(E69<>"","",IF(E70<>"","",IF(E71<>"","",IF(E72<>"","",IF(E73<>"","",IF(D20="","",CONCATENATE(Riepilogo_Ordine!Q17))))))) ->  | F20: =IF(G20<>"",1,0) -> 0 | G20: =IF(G70<>"","",IF(Riepilogo_Ordine!S17>0,Riepilogo_Ordine!S17,"")) ->  | H20: =IF(H69<>"","",IF(H70<>"","",IF(H71<>"","",IF(H72<>"","",IF(H73<>"","",IF(G20="","",CONCATENATE(Riepilogo_Ordine!Q17))))))) ->  | I20: =IF(J20<>"",1,0) -> 0 | J20: =IF(J70<>"","",IF(Riepilogo_Ordine!T17>0,Riepilogo_Ordine!T17,"")) ->  | K20: =IF(K69<>"","",IF(K70<>"","",IF(K71<>"","",IF(K72<>"","",IF(K73<>"","",IF(J20="","",CONCATENATE(Riepilogo_Ordine!Q17))))))) ->  | N20: =IF(D20="",0,D20) -> 0 | O20: =IF(G20="",0,G20) -> 0 | P20: =IF(J20="",0,J20) -> 0 | Q20: =SUM(N20:P20) -> 0 | R20: =IF(Q20>0,"SI","NO") -> NO
B21: =IF(AND(D21=1,E21=""),1,"") ->  | C21: =IF(D21<>"",1,0) -> 0 | D21: =IF(D141<>"","",IF(D139<>"","",IF(D142<>"","",IF(D140<>"","",IF(D70<>"","",IF(Riepilogo_Ordine!R15>0,Riepilogo_Ordine!R15,"")))))) ->  | E21: =IF(E70<>"","",IF(E71<>"","",IF(E69<>"","",IF(E72<>"","",IF(E73<>"","",IF(D21="","",CONCATENATE(Riepilogo_Ordine!Q15))))))) ->  | F21: =IF(G21<>"",1,0) -> 0 | G21: =IF(G141<>"","",IF(G139<>"","",IF(G142<>"","",IF(G140<>"","",IF(G70<>"","",IF(Riepilogo_Ordine!S15>0,Riepilogo_Ordine!S15,"")))))) ->  | H21: =IF(H70<>"","",IF(H71<>"","",IF(H69<>"","",IF(H72<>"","",IF(H73<>"","",IF(G21="","",CONCATENATE(Riepilogo_Ordine!Q15))))))) ->  | I21: =IF(J21<>"",1,0) -> 0 | J21: =IF(J141<>"","",IF(J139<>"","",IF(J142<>"","",IF(J140<>"","",IF(J70<>"","",IF(Riepilogo_Ordine!T15>0,Riepilogo_Ordine!T15,"")))))) ->  | K21: =IF(K70<>"","",IF(K71<>"","",IF(K69<>"","",IF(K72<>"","",IF(K73<>"","",IF(J21="","",CONCATENATE(Riepilogo_Ordine!Q15))))))) ->  | N21: 0 | O21: 0 | P21: 0 | Q21: 0 | R21: NO
D22: =IF(D70<>"","",IF(Riepilogo_Ordine!R18>0,Riepilogo_Ordine!R18,"")) ->  | E22: =IF(D22="","",CONCATENATE(Riepilogo_Ordine!Q18)) ->  | G22: =IF(G70<>"","",IF(Riepilogo_Ordine!S18>0,Riepilogo_Ordine!S18,"")) ->  | H22: =IF(G22="","",CONCATENATE(Riepilogo_Ordine!Q18)) ->  | J22: =IF(J70<>"","",IF(Riepilogo_Ordine!T18>0,Riepilogo_Ordine!T18,"")) ->  | K22: =IF(J22="","",CONCATENATE(Riepilogo_Ordine!Q18)) ->  | N22: 0 | O22: 0 | P22: 0 | Q22: 0 | R22: NO
D23: =IF(D70<>"","",IF(Riepilogo_Ordine!R19>0,Riepilogo_Ordine!R19,"")) ->  | E23: =IF(D23="","",CONCATENATE(Riepilogo_Ordine!Q19)) ->  | G23: =IF(G70<>"","",IF(Riepilogo_Ordine!S19>0,Riepilogo_Ordine!S19,"")) ->  | H23: =IF(G23="","",CONCATENATE(Riepilogo_Ordine!Q19)) ->  | J23: =IF(J70<>"","",IF(Riepilogo_Ordine!T19>0,Riepilogo_Ordine!T19,"")) ->  | K23: =IF(J23="","",CONCATENATE(Riepilogo_Ordine!Q19)) ->  | N23: 0 | O23: 0 | P23: 0 | Q23: 0 | R23: NO
D24: =IF(Riepilogo_Ordine!R20>0,Riepilogo_Ordine!R20,"") ->  | E24: =IF(D24="","",CONCATENATE(Riepilogo_Ordine!Q20)) ->  | G24: =IF(Riepilogo_Ordine!S20>0,Riepilogo_Ordine!S20,"") ->  | H24: =IF(G24="","",CONCATENATE(Riepilogo_Ordine!Q20)) ->  | J24: =IF(Riepilogo_Ordine!T20>0,Riepilogo_Ordine!T20,"") ->  | K24: =IF(J24="","",CONCATENATE(Riepilogo_Ordine!Q20)) ->  | N24: 0 | O24: 0 | P24: 0 | Q24: 0 | R24: NO
D25: =IF(Riepilogo_Ordine!R21>0,Riepilogo_Ordine!R21,"") ->  | E25: =IF(D25="","",CONCATENATE(Riepilogo_Ordine!Q21)) ->  | G25: =IF(Riepilogo_Ordine!S21>0,Riepilogo_Ordine!S21,"") ->  | H25: =IF(G25="","",CONCATENATE(Riepilogo_Ordine!Q21)) ->  | J25: =IF(Riepilogo_Ordine!T21>0,Riepilogo_Ordine!T21,"") ->  | K25: =IF(J25="","",CONCATENATE(Riepilogo_Ordine!Q21)) ->  | N25: 0 | O25: 0 | P25: 0 | Q25: 0 | R25: NO
D26: =IF(Riepilogo_Ordine!R22>0,Riepilogo_Ordine!R22,"") ->  | E26: =IF(D26="","",CONCATENATE(Riepilogo_Ordine!Q22)) ->  | G26: =IF(Riepilogo_Ordine!S22>0,Riepilogo_Ordine!S22,"") ->  | H26: =IF(G26="","",CONCATENATE(Riepilogo_Ordine!Q22)) ->  | J26: =IF(Riepilogo_Ordine!T22>0,Riepilogo_Ordine!T22,"") ->  | K26: =IF(J26="","",CONCATENATE(Riepilogo_Ordine!Q22)) ->  | N26: 0 | O26: 0 | P26: 0 | Q26: 0 | R26: NO
D27: =IF(Riepilogo_Ordine!R23>0,Riepilogo_Ordine!R23,"") ->  | E27: =IF(D27="","",CONCATENATE(Riepilogo_Ordine!Q23)) ->  | G27: =IF(Riepilogo_Ordine!S23>0,Riepilogo_Ordine!S23,"") ->  | H27: =IF(G27="","",CONCATENATE(Riepilogo_Ordine!Q23)) ->  | J27: =IF(Riepilogo_Ordine!T23>0,Riepilogo_Ordine!T23,"") ->  | K27: =IF(J27="","",CONCATENATE(Riepilogo_Ordine!Q23)) ->  | N27: 0 | O27: 0 | P27: 0 | Q27: 0 | R27: NO
D28: =IF(Riepilogo_Ordine!R24>0,Riepilogo_Ordine!R24,"") ->  | E28: =IF(D28="","",CONCATENATE(Riepilogo_Ordine!Q24)) ->  | G28: =IF(Riepilogo_Ordine!S24>0,Riepilogo_Ordine!S24,"") ->  | H28: =IF(G28="","",CONCATENATE(Riepilogo_Ordine!Q24)) ->  | J28: =IF(Riepilogo_Ordine!T24>0,Riepilogo_Ordine!T24,"") ->  | K28: =IF(J28="","",CONCATENATE(Riepilogo_Ordine!Q24)) ->  | N28: 0 | O28: 0 | P28: 0 | Q28: 0 | R28: NO
D29: =IF(Riepilogo_Ordine!R25>0,Riepilogo_Ordine!R25,"") ->  | E29: =IF(D29="","",CONCATENATE(Riepilogo_Ordine!Q25)) ->  | G29: =IF(Riepilogo_Ordine!S25>0,Riepilogo_Ordine!S25,"") ->  | H29: =IF(G29="","",CONCATENATE(Riepilogo_Ordine!Q25)) ->  | J29: =IF(Riepilogo_Ordine!T25>0,Riepilogo_Ordine!T25,"") ->  | K29: =IF(J29="","",CONCATENATE(Riepilogo_Ordine!Q25)) ->  | N29: 0 | O29: 0 | P29: 0 | Q29: 0 | R29: NO
D30: =IF(Riepilogo_Ordine!R26>0,Riepilogo_Ordine!R26,"") ->  | E30: =IF(D30="","",CONCATENATE(Riepilogo_Ordine!Q26)) ->  | G30: =IF(Riepilogo_Ordine!S26>0,Riepilogo_Ordine!S26,"") ->  | H30: =IF(G30="","",CONCATENATE(Riepilogo_Ordine!Q26)) ->  | J30: =IF(Riepilogo_Ordine!T26>0,Riepilogo_Ordine!T26,"") ->  | K30: =IF(J30="","",CONCATENATE(Riepilogo_Ordine!Q26)) ->  | N30: 0 | O30: 0 | P30: 0 | Q30: 0 | R30: NO
D31: =IF(Riepilogo_Ordine!R27>0,Riepilogo_Ordine!R27,"") ->  | E31: =IF(D31="","",CONCATENATE(Riepilogo_Ordine!Q27)) ->  | G31: =IF(Riepilogo_Ordine!S27>0,Riepilogo_Ordine!S27,"") ->  | H31: =IF(G31="","",CONCATENATE(Riepilogo_Ordine!Q27)) ->  | J31: =IF(Riepilogo_Ordine!T27>0,Riepilogo_Ordine!T27,"") ->  | K31: =IF(J31="","",CONCATENATE(Riepilogo_Ordine!Q27)) ->  | N31: 0 | O31: 0 | P31: 0 | Q31: 0 | R31: NO
D32: =IF(Riepilogo_Ordine!R28>0,Riepilogo_Ordine!R28,"") ->  | E32: =IF(D32="","",CONCATENATE(Riepilogo_Ordine!Q28)) ->  | G32: =IF(Riepilogo_Ordine!S28>0,Riepilogo_Ordine!S28,"") ->  | H32: =IF(G32="","",CONCATENATE(Riepilogo_Ordine!Q28)) ->  | J32: =IF(Riepilogo_Ordine!T28>0,Riepilogo_Ordine!T28,"") ->  | K32: =IF(J32="","",CONCATENATE(Riepilogo_Ordine!Q28)) ->  | N32: 0 | O32: 0 | P32: 0 | Q32: 0 | R32: NO
D33: =IF(Riepilogo_Ordine!R29>0,Riepilogo_Ordine!R29,"") ->  | E33: =IF(D33="","",CONCATENATE(Riepilogo_Ordine!Q29)) ->  | G33: =IF(Riepilogo_Ordine!S29>0,Riepilogo_Ordine!S29,"") ->  | H33: =IF(G33="","",CONCATENATE(Riepilogo_Ordine!Q29)) ->  | J33: =IF(Riepilogo_Ordine!T29>0,Riepilogo_Ordine!T29,"") ->  | K33: =IF(J33="","",CONCATENATE(Riepilogo_Ordine!Q29)) ->  | N33: 0 | O33: 0 | P33: 0 | Q33: 0 | R33: NO
D34: =IF(Riepilogo_Ordine!R30>0,Riepilogo_Ordine!R30,"") ->  | E34: =IF(D34="","",CONCATENATE(Riepilogo_Ordine!Q30)) ->  | G34: =IF(Riepilogo_Ordine!S30>0,Riepilogo_Ordine!S30,"") ->  | H34: =IF(G34="","",CONCATENATE(Riepilogo_Ordine!Q30)) ->  | J34: =IF(Riepilogo_Ordine!T30>0,Riepilogo_Ordine!T30,"") ->  | K34: =IF(J34="","",CONCATENATE(Riepilogo_Ordine!Q30)) ->  | N34: 0 | O34: 0 | P34: 0 | Q34: 0 | R34: NO
D35: =IF(Riepilogo_Ordine!R31>0,Riepilogo_Ordine!R31,"") ->  | E35: =IF(D35="","",CONCATENATE(Riepilogo_Ordine!Q31)) ->  | G35: =IF(Riepilogo_Ordine!S31>0,Riepilogo_Ordine!S31,"") ->  | H35: =IF(G35="","",CONCATENATE(Riepilogo_Ordine!Q31)) ->  | J35: =IF(Riepilogo_Ordine!T31>0,Riepilogo_Ordine!T31,"") ->  | K35: =IF(J35="","",CONCATENATE(Riepilogo_Ordine!Q31)) ->  | N35: 0 | O35: 0 | P35: 0 | Q35: 0 | R35: NO
D36: =IF(Riepilogo_Ordine!R32>0,Riepilogo_Ordine!R32,"") ->  | E36: =IF(D36="","",CONCATENATE(Riepilogo_Ordine!Q32)) ->  | G36: =IF(Riepilogo_Ordine!S32>0,Riepilogo_Ordine!S32,"") ->  | H36: =IF(G36="","",CONCATENATE(Riepilogo_Ordine!Q32)) ->  | J36: =IF(Riepilogo_Ordine!T32>0,Riepilogo_Ordine!T32,"") ->  | K36: =IF(J36="","",CONCATENATE(Riepilogo_Ordine!Q32)) ->  | N36: 0 | O36: 0 | P36: 0 | Q36: 0 | R36: NO
D37: =IF(Riepilogo_Ordine!R33>0,Riepilogo_Ordine!R33,"") ->  | E37: =IF(D37="","",CONCATENATE(Riepilogo_Ordine!Q33)) ->  | G37: =IF(Riepilogo_Ordine!S33>0,Riepilogo_Ordine!S33,"") ->  | H37: =IF(G37="","",CONCATENATE(Riepilogo_Ordine!Q33)) ->  | J37: =IF(Riepilogo_Ordine!T33>0,Riepilogo_Ordine!T33,"") ->  | K37: =IF(J37="","",CONCATENATE(Riepilogo_Ordine!Q33)) ->  | N37: 0 | O37: 0 | P37: 0 | Q37: 0 | R37: NO
D38: =IF(Riepilogo_Ordine!R34>0,Riepilogo_Ordine!R34,"") ->  | E38: =IF(D38="","",CONCATENATE(Riepilogo_Ordine!Q34)) ->  | G38: =IF(Riepilogo_Ordine!S34>0,Riepilogo_Ordine!S34,"") ->  | H38: =IF(G38="","",CONCATENATE(Riepilogo_Ordine!Q34)) ->  | J38: =IF(Riepilogo_Ordine!T34>0,Riepilogo_Ordine!T34,"") ->  | K38: =IF(J38="","",CONCATENATE(Riepilogo_Ordine!Q34)) ->  | N38: 0 | O38: 0 | P38: 0 | Q38: 0 | R38: NO
D39: =IF(Riepilogo_Ordine!R35>0,Riepilogo_Ordine!R35,"") ->  | E39: =IF(D39="","",CONCATENATE(Riepilogo_Ordine!Q35)) ->  | G39: =IF(Riepilogo_Ordine!S35>0,Riepilogo_Ordine!S35,"") ->  | H39: =IF(G39="","",CONCATENATE(Riepilogo_Ordine!Q35)) ->  | J39: =IF(Riepilogo_Ordine!T35>0,Riepilogo_Ordine!T35,"") ->  | K39: =IF(J39="","",CONCATENATE(Riepilogo_Ordine!Q35)) ->  | N39: 0 | O39: 0 | P39: 0 | Q39: 0 | R39: NO
D40: =IF(Riepilogo_Ordine!R36>0,Riepilogo_Ordine!R36,"") ->  | E40: =IF(D40="","",CONCATENATE(Riepilogo_Ordine!Q36)) ->  | G40: =IF(Riepilogo_Ordine!S36>0,Riepilogo_Ordine!S36,"") ->  | H40: =IF(G40="","",CONCATENATE(Riepilogo_Ordine!Q36)) ->  | J40: =IF(Riepilogo_Ordine!T36>0,Riepilogo_Ordine!T36,"") ->  | K40: =IF(J40="","",CONCATENATE(Riepilogo_Ordine!Q36)) ->  | N40: 0 | O40: 0 | P40: 0 | Q40: 0 | R40: NO
D41: =IF(Riepilogo_Ordine!R37>0,Riepilogo_Ordine!R37,"") ->  | E41: =IF(D41="","",CONCATENATE(Riepilogo_Ordine!Q37)) ->  | G41: =IF(Riepilogo_Ordine!S37>0,Riepilogo_Ordine!S37,"") ->  | H41: =IF(G41="","",CONCATENATE(Riepilogo_Ordine!Q37)) ->  | J41: =IF(Riepilogo_Ordine!T37>0,Riepilogo_Ordine!T37,"") ->  | K41: =IF(J41="","",CONCATENATE(Riepilogo_Ordine!Q37)) ->  | N41: 0 | O41: 0 | P41: 0 | Q41: 0 | R41: NO
D42: =IF(Riepilogo_Ordine!R38>0,Riepilogo_Ordine!R38,"") ->  | E42: =IF(D42="","",CONCATENATE(Riepilogo_Ordine!Q38)) ->  | G42: =IF(Riepilogo_Ordine!S38>0,Riepilogo_Ordine!S38,"") ->  | H42: =IF(G42="","",CONCATENATE(Riepilogo_Ordine!Q38)) ->  | J42: =IF(Riepilogo_Ordine!T38>0,Riepilogo_Ordine!T38,"") ->  | K42: =IF(J42="","",CONCATENATE(Riepilogo_Ordine!Q38)) ->  | N42: 0 | O42: 0 | P42: 0 | Q42: 0 | R42: NO
D43: =IF(Riepilogo_Ordine!R39>0,Riepilogo_Ordine!R39,"") ->  | E43: =IF(D43="","",CONCATENATE(Riepilogo_Ordine!Q39)) ->  | G43: =IF(Riepilogo_Ordine!S39>0,Riepilogo_Ordine!S39,"") ->  | H43: =IF(G43="","",CONCATENATE(Riepilogo_Ordine!Q39)) ->  | J43: =IF(Riepilogo_Ordine!T39>0,Riepilogo_Ordine!T39,"") ->  | K43: =IF(J43="","",CONCATENATE(Riepilogo_Ordine!Q39)) ->  | N43: 0 | O43: 0 | P43: 0 | Q43: 0 | R43: NO
D44: =IF(Riepilogo_Ordine!R43>0,Riepilogo_Ordine!R43,"") ->  | E44: =IF(D44="","",CONCATENATE(Riepilogo_Ordine!Q43)) ->  | G44: =IF(Riepilogo_Ordine!S43>0,Riepilogo_Ordine!S43,"") ->  | H44: =IF(G44="","",CONCATENATE(Riepilogo_Ordine!Q43)) ->  | J44: =IF(Riepilogo_Ordine!T43>0,Riepilogo_Ordine!T43,"") ->  | K44: =IF(J44="","",CONCATENATE(Riepilogo_Ordine!Q43)) ->  | N44: 0 | O44: 0 | P44: 0 | Q44: 0 | R44: NO
D45: =IF(Riepilogo_Ordine!R44>0,Riepilogo_Ordine!R44,"") ->  | E45: =IF(D45="","",CONCATENATE(Riepilogo_Ordine!Q44)) ->  | G45: =IF(Riepilogo_Ordine!S44>0,Riepilogo_Ordine!S44,"") ->  | H45: =IF(G45="","",CONCATENATE(Riepilogo_Ordine!Q44)) ->  | J45: =IF(Riepilogo_Ordine!T44>0,Riepilogo_Ordine!T44,"") ->  | K45: =IF(J45="","",CONCATENATE(Riepilogo_Ordine!Q44)) ->  | N45: 0 | O45: 0 | P45: 0 | Q45: 0 | R45: NO
D46: =IF(Riepilogo_Ordine!R45>0,Riepilogo_Ordine!R45,"") ->  | E46: =IF(D46="","",CONCATENATE(Riepilogo_Ordine!Q45)) ->  | G46: =IF(Riepilogo_Ordine!S45>0,Riepilogo_Ordine!S45,"") ->  | H46: =IF(G46="","",CONCATENATE(Riepilogo_Ordine!Q45)) ->  | J46: =IF(Riepilogo_Ordine!T45>0,Riepilogo_Ordine!T45,"") ->  | K46: =IF(J46="","",CONCATENATE(Riepilogo_Ordine!Q45)) ->  | N46: 0 | O46: 0 | P46: 0 | Q46: 0 | R46: NO
D47: =IF(Riepilogo_Ordine!R46>0,Riepilogo_Ordine!R46,"") ->  | E47: =IF(D47="","",CONCATENATE(Riepilogo_Ordine!Q46)) ->  | G47: =IF(Riepilogo_Ordine!S46>0,Riepilogo_Ordine!S46,"") ->  | H47: =IF(G47="","",CONCATENATE(Riepilogo_Ordine!Q46)) ->  | J47: =IF(Riepilogo_Ordine!T46>0,Riepilogo_Ordine!T46,"") ->  | K47: =IF(J47="","",CONCATENATE(Riepilogo_Ordine!Q46)) ->  | N47: 0 | O47: 0 | P47: 0 | Q47: 0 | R47: NO
D48: =IF(Riepilogo_Ordine!R47>0,Riepilogo_Ordine!R47,"") ->  | E48: =IF(D48="","",CONCATENATE(Riepilogo_Ordine!Q47)) ->  | G48: =IF(Riepilogo_Ordine!S47>0,Riepilogo_Ordine!S47,"") ->  | H48: =IF(G48="","",CONCATENATE(Riepilogo_Ordine!Q47)) ->  | J48: =IF(Riepilogo_Ordine!T47>0,Riepilogo_Ordine!T47,"") ->  | K48: =IF(J48="","",CONCATENATE(Riepilogo_Ordine!Q47)) ->  | N48: 0 | O48: 0 | P48: 0 | Q48: 0 | R48: NO
D49: =IF(Riepilogo_Ordine!R48>0,Riepilogo_Ordine!R48,"") ->  | E49: =IF(D49="","",CONCATENATE(Riepilogo_Ordine!Q48)) ->  | G49: =IF(Riepilogo_Ordine!S48>0,Riepilogo_Ordine!S48,"") ->  | H49: =IF(G49="","",CONCATENATE(Riepilogo_Ordine!Q48)) ->  | J49: =IF(Riepilogo_Ordine!T48>0,Riepilogo_Ordine!T48,"") ->  | K49: =IF(J49="","",CONCATENATE(Riepilogo_Ordine!Q48)) ->  | N49: 0 | O49: 0 | P49: 0 | Q49: 0 | R49: NO
D50: =IF(Riepilogo_Ordine!R49>0,Riepilogo_Ordine!R49,"") ->  | E50: =IF(D50="","",CONCATENATE(Riepilogo_Ordine!Q49)) ->  | G50: =IF(Riepilogo_Ordine!S49>0,Riepilogo_Ordine!S49,"") ->  | H50: =IF(G50="","",CONCATENATE(Riepilogo_Ordine!Q49)) ->  | J50: =IF(Riepilogo_Ordine!T49>0,Riepilogo_Ordine!T49,"") ->  | K50: =IF(J50="","",CONCATENATE(Riepilogo_Ordine!Q49)) ->  | N50: 0 | O50: 0 | P50: 0 | Q50: 0 | R50: NO
D51: =IF(Riepilogo_Ordine!R50>0,Riepilogo_Ordine!R50,"") ->  | E51: =IF(D51="","",CONCATENATE(Riepilogo_Ordine!Q50)) ->  | G51: =IF(Riepilogo_Ordine!S50>0,Riepilogo_Ordine!S50,"") ->  | H51: =IF(G51="","",CONCATENATE(Riepilogo_Ordine!Q50)) ->  | J51: =IF(Riepilogo_Ordine!T50>0,Riepilogo_Ordine!T50,"") ->  | K51: =IF(J51="","",CONCATENATE(Riepilogo_Ordine!Q50)) ->  | N51: 0 | O51: 0 | P51: 0 | Q51: 0 | R51: NO
D52: =IF(Riepilogo_Ordine!R51>0,Riepilogo_Ordine!R51,"") ->  | E52: =IF(D52="","",CONCATENATE(Riepilogo_Ordine!Q51)) ->  | G52: =IF(Riepilogo_Ordine!S51>0,Riepilogo_Ordine!S51,"") ->  | H52: =IF(G52="","",CONCATENATE(Riepilogo_Ordine!Q51)) ->  | J52: =IF(Riepilogo_Ordine!T51>0,Riepilogo_Ordine!T51,"") ->  | K52: =IF(J52="","",CONCATENATE(Riepilogo_Ordine!Q51)) ->  | N52: 0 | O52: 0 | P52: 0 | Q52: 0 | R52: NO
D53: =IF(Riepilogo_Ordine!R52>0,Riepilogo_Ordine!R52,"") ->  | E53: =IF(D53="","",CONCATENATE(Riepilogo_Ordine!Q52)) ->  | G53: =IF(Riepilogo_Ordine!S52>0,Riepilogo_Ordine!S52,"") ->  | H53: =IF(G53="","",CONCATENATE(Riepilogo_Ordine!Q52)) ->  | J53: =IF(Riepilogo_Ordine!T52>0,Riepilogo_Ordine!T52,"") ->  | K53: =IF(J53="","",CONCATENATE(Riepilogo_Ordine!Q52)) ->  | N53: 0 | O53: 0 | P53: 0 | Q53: 0 | R53: NO
D54: =IF(Riepilogo_Ordine!R91>0,Riepilogo_Ordine!R91,"") ->  | E54: =IF(D54="","",CONCATENATE(Riepilogo_Ordine!Q91)) ->  | G54: =IF(Riepilogo_Ordine!S91>0,Riepilogo_Ordine!S91,"") ->  | H54: =IF(G54="","",CONCATENATE(Riepilogo_Ordine!Q91)) ->  | J54: =IF(Riepilogo_Ordine!T91>0,Riepilogo_Ordine!T91,"") ->  | K54: =IF(J54="","",CONCATENATE(Riepilogo_Ordine!Q91)) ->  | N54: 0 | O54: 0 | P54: 0 | Q54: 0 | R54: NO
D55: =IF(Riepilogo_Ordine!R92>0,Riepilogo_Ordine!R92,"") ->  | E55: =IF(D55="","",CONCATENATE(Riepilogo_Ordine!Q92)) ->  | G55: =IF(Riepilogo_Ordine!S92>0,Riepilogo_Ordine!S92,"") ->  | H55: =IF(G55="","",CONCATENATE(Riepilogo_Ordine!Q92)) ->  | J55: =IF(Riepilogo_Ordine!T92>0,Riepilogo_Ordine!T92,"") ->  | K55: =IF(J55="","",CONCATENATE(Riepilogo_Ordine!Q92)) ->  | N55: 0 | O55: 0 | P55: 0 | Q55: 0 | R55: NO
D56: =IF(Riepilogo_Ordine!R93>0,Riepilogo_Ordine!R93,"") ->  | E56: =IF(D56="","",CONCATENATE(Riepilogo_Ordine!Q93)) ->  | G56: =IF(Riepilogo_Ordine!S93>0,Riepilogo_Ordine!S93,"") ->  | H56: =IF(G56="","",CONCATENATE(Riepilogo_Ordine!Q93)) ->  | J56: =IF(Riepilogo_Ordine!T93>0,Riepilogo_Ordine!T93,"") ->  | K56: =IF(J56="","",CONCATENATE(Riepilogo_Ordine!Q93)) ->  | N56: 0 | O56: 0 | P56: 0 | Q56: 0 | R56: NO
D57: =IF(Riepilogo_Ordine!R94>0,Riepilogo_Ordine!R94,"") ->  | E57: =IF(D57="","",CONCATENATE(Riepilogo_Ordine!Q94)) ->  | G57: =IF(Riepilogo_Ordine!S94>0,Riepilogo_Ordine!S94,"") ->  | H57: =IF(G57="","",CONCATENATE(Riepilogo_Ordine!Q94)) ->  | J57: =IF(Riepilogo_Ordine!T94>0,Riepilogo_Ordine!T94,"") ->  | K57: =IF(J57="","",CONCATENATE(Riepilogo_Ordine!Q94)) ->  | N57: 0 | O57: 0 | P57: 0 | Q57: 0 | R57: NO
D58: =IF(Riepilogo_Ordine!R95>0,Riepilogo_Ordine!R95,"") ->  | E58: =IF(D58="","",CONCATENATE(Riepilogo_Ordine!Q95)) ->  | G58: =IF(Riepilogo_Ordine!S95>0,Riepilogo_Ordine!S95,"") ->  | H58: =IF(G58="","",CONCATENATE(Riepilogo_Ordine!Q95)) ->  | J58: =IF(Riepilogo_Ordine!T95>0,Riepilogo_Ordine!T95,"") ->  | K58: =IF(J58="","",CONCATENATE(Riepilogo_Ordine!Q95)) ->  | N58: 0 | O58: 0 | P58: 0 | Q58: 0 | R58: NO
D59: =IF(Riepilogo_Ordine!R96>0,Riepilogo_Ordine!R96,"") ->  | E59: =IF(D59="","",CONCATENATE(Riepilogo_Ordine!Q96)) ->  | G59: =IF(Riepilogo_Ordine!S96>0,Riepilogo_Ordine!S96,"") ->  | H59: =IF(G59="","",CONCATENATE(Riepilogo_Ordine!Q96)) ->  | J59: =IF(Riepilogo_Ordine!T96>0,Riepilogo_Ordine!T96,"") ->  | K59: =IF(J59="","",CONCATENATE(Riepilogo_Ordine!Q96)) ->  | N59: 0 | O59: 0 | P59: 0 | Q59: 0 | R59: NO
D60: =IF(Riepilogo_Ordine!R97>0,Riepilogo_Ordine!R97,"") ->  | E60: =IF(D60="","",CONCATENATE(Riepilogo_Ordine!Q97)) ->  | G60: =IF(Riepilogo_Ordine!S97>0,Riepilogo_Ordine!S97,"") ->  | H60: =IF(G60="","",CONCATENATE(Riepilogo_Ordine!Q97)) ->  | J60: =IF(Riepilogo_Ordine!T97>0,Riepilogo_Ordine!T97,"") ->  | K60: =IF(J60="","",CONCATENATE(Riepilogo_Ordine!Q97)) ->  | N60: 0 | O60: 0 | P60: 0 | Q60: 0 | R60: NO
D61: =IF(Riepilogo_Ordine!R98>0,Riepilogo_Ordine!R98,"") ->  | E61: =IF(D61="","",CONCATENATE(Riepilogo_Ordine!Q98)) ->  | G61: =IF(Riepilogo_Ordine!S98>0,Riepilogo_Ordine!S98,"") ->  | H61: =IF(G61="","",CONCATENATE(Riepilogo_Ordine!Q98)) ->  | J61: =IF(Riepilogo_Ordine!T98>0,Riepilogo_Ordine!T98,"") ->  | K61: =IF(J61="","",CONCATENATE(Riepilogo_Ordine!Q98)) ->  | N61: 0 | O61: 0 | P61: 0 | Q61: 0 | R61: NO
D62: =IF(Riepilogo_Ordine!R99>0,Riepilogo_Ordine!R99,"") ->  | E62: =IF(D62="","",CONCATENATE(Riepilogo_Ordine!Q99)) ->  | G62: =IF(Riepilogo_Ordine!S99>0,Riepilogo_Ordine!S99,"") ->  | H62: =IF(G62="","",CONCATENATE(Riepilogo_Ordine!Q99)) ->  | J62: =IF(Riepilogo_Ordine!T99>0,Riepilogo_Ordine!T99,"") ->  | K62: =IF(J62="","",CONCATENATE(Riepilogo_Ordine!Q99)) ->  | N62: 0 | O62: 0 | P62: 0 | Q62: 0 | R62: NO
D63: =IF(Riepilogo_Ordine!R100>0,Riepilogo_Ordine!R100,"") ->  | E63: =IF(D63="","",CONCATENATE(Riepilogo_Ordine!Q100)) ->  | G63: =IF(Riepilogo_Ordine!S100>0,Riepilogo_Ordine!S100,"") ->  | H63: =IF(G63="","",CONCATENATE(Riepilogo_Ordine!Q100)) ->  | J63: =IF(Riepilogo_Ordine!T100>0,Riepilogo_Ordine!T100,"") ->  | K63: =IF(J63="","",CONCATENATE(Riepilogo_Ordine!Q100)) ->  | N63: 0 | O63: 0 | P63: 0 | Q63: 0 | R63: NO
D64: =IF(Riepilogo_Ordine!R101>0,Riepilogo_Ordine!R101,"") ->  | E64: =IF(D64="","",CONCATENATE(Riepilogo_Ordine!Q101)) ->  | G64: =IF(Riepilogo_Ordine!S101>0,Riepilogo_Ordine!S101,"") ->  | H64: =IF(G64="","",CONCATENATE(Riepilogo_Ordine!Q101)) ->  | J64: =IF(Riepilogo_Ordine!T101>0,Riepilogo_Ordine!T101,"") ->  | K64: =IF(J64="","",CONCATENATE(Riepilogo_Ordine!Q101)) ->  | N64: 0 | O64: 0 | P64: 0 | Q64: 0 | R64: NO
D65: =IF(Riepilogo_Ordine!R102>0,Riepilogo_Ordine!R102,"") ->  | E65: =IF(D65="","",CONCATENATE(Riepilogo_Ordine!Q102)) ->  | G65: =IF(Riepilogo_Ordine!S102>0,Riepilogo_Ordine!S102,"") ->  | H65: =IF(G65="","",CONCATENATE(Riepilogo_Ordine!Q102)) ->  | J65: =IF(Riepilogo_Ordine!T102>0,Riepilogo_Ordine!T102,"") ->  | K65: =IF(J65="","",CONCATENATE(Riepilogo_Ordine!Q102)) ->  | N65: 0 | O65: 0 | P65: 0 | Q65: 0 | R65: NO
D66: =IF(Riepilogo_Ordine!R103>0,Riepilogo_Ordine!R103,"") ->  | E66: =IF(D66="","",CONCATENATE(Riepilogo_Ordine!Q103)) ->  | G66: =IF(Riepilogo_Ordine!S103>0,Riepilogo_Ordine!S103,"") ->  | H66: =IF(G66="","",CONCATENATE(Riepilogo_Ordine!Q103)) ->  | J66: =IF(Riepilogo_Ordine!T103>0,Riepilogo_Ordine!T103,"") ->  | K66: =IF(J66="","",CONCATENATE(Riepilogo_Ordine!Q103)) ->  | N66: 0 | O66: 0 | P66: 0 | Q66: 0 | R66: NO
D67: =IF(Riepilogo_Ordine!R117>0,Riepilogo_Ordine!R117,"") ->  | E67: =IF(D67="","",CONCATENATE(Riepilogo_Ordine!Q117)) ->  | G67: =IF(Riepilogo_Ordine!S117>0,Riepilogo_Ordine!S117,"") ->  | H67: =IF(G67="","",CONCATENATE(Riepilogo_Ordine!Q117)) ->  | J67: =IF(Riepilogo_Ordine!T117>0,Riepilogo_Ordine!T117,"") ->  | K67: =IF(J67="","",CONCATENATE(Riepilogo_Ordine!Q117)) ->  | N67: 0 | O67: 0 | P67: 0 | Q67: 0 | R67: NO
D68: =IF(Riepilogo_Ordine!R118>0,Riepilogo_Ordine!R118,"") ->  | E68: =IF(D68="","",CONCATENATE(Riepilogo_Ordine!Q118)) ->  | G68: =IF(Riepilogo_Ordine!S118>0,Riepilogo_Ordine!S118,"") ->  | H68: =IF(G68="","",CONCATENATE(Riepilogo_Ordine!Q118)) ->  | J68: =IF(Riepilogo_Ordine!T118>0,Riepilogo_Ordine!T118,"") ->  | K68: =IF(J68="","",CONCATENATE(Riepilogo_Ordine!Q118)) ->  | N68: 0 | O68: 0 | P68: 0 | Q68: 0 | R68: NO
C69: =IF(D69=1,1,0) -> 0 | D69: =IF(Riepilogo_Ordine!R119>0,Riepilogo_Ordine!R119,"") ->  | E69: =IF(E73<>"","",IF(E72<>"","",IF(D69="","",CONCATENATE(Riepilogo_Ordine!Q119)))) ->  | F69: =IF(G69=1,1,0) -> 0 | G69: =IF(Riepilogo_Ordine!S119>0,Riepilogo_Ordine!S119,"") ->  | H69: =IF(H73<>"","",IF(H72<>"","",IF(G69="","",CONCATENATE(Riepilogo_Ordine!Q119)))) ->  | I69: =IF(J69=1,1,0) -> 0 | J69: =IF(Riepilogo_Ordine!T119>0,Riepilogo_Ordine!T119,"") ->  | K69: =IF(K73<>"","",IF(K72<>"","",IF(J69="","",CONCATENATE(Riepilogo_Ordine!Q119)))) ->  | N69: 0 | O69: 0 | P69: 0 | Q69: 0 | R69: NO
D70: =IF(Riepilogo_Ordine!R120>0,Riepilogo_Ordine!R120,"") ->  | E70: =IF(D70="","",CONCATENATE(Riepilogo_Ordine!Q120)) ->  | G70: =IF(Riepilogo_Ordine!S120>0,Riepilogo_Ordine!S120,"") ->  | H70: =IF(G70="","",CONCATENATE(Riepilogo_Ordine!Q120)) ->  | J70: =IF(Riepilogo_Ordine!T120>0,Riepilogo_Ordine!T120,"") ->  | K70: =IF(J70="","",CONCATENATE(Riepilogo_Ordine!Q120)) ->  | N70: 0 | O70: 0 | P70: 0 | Q70: 0 | R70: NO
C71: =IF(D71=1,1,0) -> 0 | D71: =IF(D69<>"","",IF(SUM(C19:C20)=2,1*D17,"")) ->  | E71: =IF(E72<>"","",IF(D71<>"","SERVER BASE 4 CPU","")) ->  | F71: =IF(G71=1,1,0) -> 0 | G71: =IF(G69<>"","",IF(SUM(F19:F20)=2,1*G17,"")) ->  | H71: =IF(H72<>"","",IF(G71<>"","SERVER BASE 4 CPU","")) ->  | I71: =IF(J71=1,1,0) -> 0 | J71: =IF(J69<>"","",IF(SUM(I19:I20)=2,1*J17,"")) ->  | K71: =IF(K72<>"","",IF(J71<>"","SERVER BASE 4 CPU","")) ->  | Q71: =SUM(D144:D147) -> 0 | R71: NO
C72: =IF(C69+C71=2,1,0) -> 0 | D72: =IF(D71<>"","",IF(AND(SUM(C21,C74)=2,D69<>""),1*D17,"")) ->  | E72: =IF(D72<>"","SERVER vSAN 4 CPU","") ->  | F72: =IF(F69+F71=2,1,0) -> 0 | G72: =IF(G71<>"","",IF(AND(SUM(F21,F74)=2,G69<>""),1*G17,"")) ->  | H72: =IF(G72<>"","SERVER vSAN 4 CPU","") ->  | I72: =IF(I69+I71=2,1,0) -> 0 | J72: =IF(J71<>"","",IF(AND(SUM(I21,I74)=2,J69<>""),1*J17,"")) ->  | K72: =IF(J72<>"","SERVER vSAN 4 CPU","") ->  | N72: =IF(D72="",0,D72) -> 0 | O72: =IF(G72="",0,G72) -> 0 | P72: =IF(J72="",0,J72) -> 0 | Q72: =SUM(N72:P72) -> 0 | R72: =IF(Q72>0,"SI","NO") -> NO
D73: =IF(D141<>"","",IF(D142<>"","",IF(E72<>"","",IF(SUM(C21,C74)=2,1*D17,"")))) ->  | E73: =IF(D73<>"","SERVER nVME 4 CPU","") ->  | G73: =IF(G141<>"","",IF(G142<>"","",IF(H72<>"","",IF(SUM(F21,F74)=2,1*G17,"")))) ->  | H73: =IF(G73<>"","SERVER nVME 4 CPU","") ->  | J73: =IF(J141<>"","",IF(J142<>"","",IF(K72<>"","",IF(SUM(I21,I74)=2,1*J17,"")))) ->  | K73: =IF(J73<>"","SERVER nVME 4 CPU","") ->  | Q73: =SUM(D146:D149) -> 0 | R73: NO
C74: =IF(D74<>"",1,0) -> 0 | D74: =IF(D141<>"","",IF(D142<>"","",IF(Riepilogo_Ordine!R54>0,Riepilogo_Ordine!R54,""))) ->  | E74: =IF(E70<>"","",IF(E71<>"","",IF(E69<>"","",IF(E72<>"","",IF(E73<>"","",IF(D74="","",CONCATENATE(Riepilogo_Ordine!Q54))))))) ->  | F74: =IF(G74<>"",1,0) -> 0 | G74: =IF(G141<>"","",IF(G142<>"","",IF(Riepilogo_Ordine!S54>0,Riepilogo_Ordine!S54,""))) ->  | H74: =IF(H70<>"","",IF(H71<>"","",IF(H69<>"","",IF(H72<>"","",IF(H73<>"","",IF(G74="","",CONCATENATE(Riepilogo_Ordine!Q54))))))) ->  | I74: =IF(J74<>"",1,0) -> 0 | J74: =IF(J141<>"","",IF(J142<>"","",IF(Riepilogo_Ordine!T54>0,Riepilogo_Ordine!T54,""))) ->  | K74: =IF(K70<>"","",IF(K71<>"","",IF(K69<>"","",IF(K72<>"","",IF(K73<>"","",IF(J74="","",CONCATENATE(Riepilogo_Ordine!Q54))))))) ->  | N74: =IF(D74="",0,D74) -> 0 | O74: =IF(G74="",0,G74) -> 0 | P74: =IF(J74="",0,J74) -> 0 | Q74: =SUM(N74:P74) -> 0 | R74: NO
D75: =IF(E70<>"","",IF(Riepilogo_Ordine!R55>0,Riepilogo_Ordine!R55,"")) ->  | E75: =IF(D75="","",CONCATENATE(Riepilogo_Ordine!Q55)) ->  | G75: =IF(H70<>"","",IF(Riepilogo_Ordine!S55>0,Riepilogo_Ordine!S55,"")) ->  | H75: =IF(G75="","",CONCATENATE(Riepilogo_Ordine!Q55)) ->  | J75: =IF(K70<>"","",IF(Riepilogo_Ordine!T55>0,Riepilogo_Ordine!T55,"")) ->  | K75: =IF(J75="","",CONCATENATE(Riepilogo_Ordine!Q55)) ->  | N75: 0 | O75: 0 | P75: 0 | Q75: 0 | R75: NO
D76: =IF(D142<>"","",IF(D141<>"","",IF(D140<>"","",IF(D139<>"","",IF(E70<>"","",IF(Riepilogo_Ordine!R56>0,Riepilogo_Ordine!R56,"")))))) ->  | E76: =IF(D76="","",CONCATENATE(Riepilogo_Ordine!Q56)) ->  | G76: =IF(G142<>"","",IF(G141<>"","",IF(G140<>"","",IF(G139<>"","",IF(H70<>"","",IF(Riepilogo_Ordine!S56>0,Riepilogo_Ordine!S56,"")))))) ->  | H76: =IF(G76="","",CONCATENATE(Riepilogo_Ordine!Q56)) ->  | J76: =IF(J142<>"","",IF(J141<>"","",IF(J140<>"","",IF(J139<>"","",IF(K70<>"","",IF(Riepilogo_Ordine!T56>0,Riepilogo_Ordine!T56,"")))))) ->  | K76: =IF(J76="","",CONCATENATE(Riepilogo_Ordine!Q56)) ->  | N76: 0 | O76: 0 | P76: 0 | Q76: 0 | R76: NO
D77: =IF(Riepilogo_Ordine!R57>0,Riepilogo_Ordine!R57,"") ->  | E77: =IF(D77="","",CONCATENATE(Riepilogo_Ordine!Q57)) ->  | G77: =IF(Riepilogo_Ordine!S57>0,Riepilogo_Ordine!S57,"") ->  | H77: =IF(G77="","",CONCATENATE(Riepilogo_Ordine!Q57)) ->  | J77: =IF(Riepilogo_Ordine!T57>0,Riepilogo_Ordine!T57,"") ->  | K77: =IF(J77="","",CONCATENATE(Riepilogo_Ordine!Q57)) ->  | N77: 0 | O77: 0 | P77: 0 | Q77: 0 | R77: NO
D78: =IF(Riepilogo_Ordine!R58>0,Riepilogo_Ordine!R58,"") ->  | E78: =IF(D78="","",CONCATENATE(Riepilogo_Ordine!Q58)) ->  | G78: =IF(Riepilogo_Ordine!S58>0,Riepilogo_Ordine!S58,"") ->  | H78: =IF(G78="","",CONCATENATE(Riepilogo_Ordine!Q58)) ->  | J78: =IF(Riepilogo_Ordine!T58>0,Riepilogo_Ordine!T58,"") ->  | K78: =IF(J78="","",CONCATENATE(Riepilogo_Ordine!Q58)) ->  | N78: 0 | O78: 0 | P78: 0 | Q78: 0 | R78: NO
D79: =IF(Riepilogo_Ordine!R59>0,Riepilogo_Ordine!R59,"") ->  | E79: =IF(D79="","",CONCATENATE(Riepilogo_Ordine!Q59)) ->  | G79: =IF(Riepilogo_Ordine!S59>0,Riepilogo_Ordine!S59,"") ->  | H79: =IF(G79="","",CONCATENATE(Riepilogo_Ordine!Q59)) ->  | J79: =IF(Riepilogo_Ordine!T59>0,Riepilogo_Ordine!T59,"") ->  | K79: =IF(J79="","",CONCATENATE(Riepilogo_Ordine!Q59)) ->  | N79: 0 | O79: 0 | P79: 0 | Q79: 0 | R79: NO
D80: =IF(Riepilogo_Ordine!R60>0,Riepilogo_Ordine!R60,"") ->  | E80: =IF(D80="","",CONCATENATE(Riepilogo_Ordine!Q60)) ->  | G80: =IF(Riepilogo_Ordine!S60>0,Riepilogo_Ordine!S60,"") ->  | H80: =IF(G80="","",CONCATENATE(Riepilogo_Ordine!Q60)) ->  | J80: =IF(Riepilogo_Ordine!T60>0,Riepilogo_Ordine!T60,"") ->  | K80: =IF(J80="","",CONCATENATE(Riepilogo_Ordine!Q60)) ->  | N80: 0 | O80: 0 | P80: 0 | Q80: 0 | R80: NO
D81: =IF(Riepilogo_Ordine!R61>0,Riepilogo_Ordine!R61,"") ->  | E81: =IF(D81="","",CONCATENATE(Riepilogo_Ordine!Q61)) ->  | G81: =IF(Riepilogo_Ordine!S61>0,Riepilogo_Ordine!S61,"") ->  | H81: =IF(G81="","",CONCATENATE(Riepilogo_Ordine!Q61)) ->  | J81: =IF(Riepilogo_Ordine!T61>0,Riepilogo_Ordine!T61,"") ->  | K81: =IF(J81="","",CONCATENATE(Riepilogo_Ordine!Q61)) ->  | N81: 0 | O81: 0 | P81: 0 | Q81: 0 | R81: NO
D82: =IF(Riepilogo_Ordine!R62>0,Riepilogo_Ordine!R62,"") ->  | E82: =IF(D82="","",CONCATENATE(Riepilogo_Ordine!Q62)) ->  | G82: =IF(Riepilogo_Ordine!S62>0,Riepilogo_Ordine!S62,"") ->  | H82: =IF(G82="","",CONCATENATE(Riepilogo_Ordine!Q62)) ->  | J82: =IF(Riepilogo_Ordine!T62>0,Riepilogo_Ordine!T62,"") ->  | K82: =IF(J82="","",CONCATENATE(Riepilogo_Ordine!Q62)) ->  | N82: 0 | O82: 0 | P82: 0 | Q82: 0 | R82: NO
D83: =IF(Riepilogo_Ordine!R63>0,Riepilogo_Ordine!R63,"") ->  | E83: =IF(D83="","",CONCATENATE(Riepilogo_Ordine!Q63)) ->  | G83: =IF(Riepilogo_Ordine!S63>0,Riepilogo_Ordine!S63,"") ->  | H83: =IF(G83="","",CONCATENATE(Riepilogo_Ordine!Q63)) ->  | J83: =IF(Riepilogo_Ordine!T63>0,Riepilogo_Ordine!T63,"") ->  | K83: =IF(J83="","",CONCATENATE(Riepilogo_Ordine!Q63)) ->  | N83: 0 | O83: 0 | P83: 0 | Q83: 0 | R83: NO
D84: =IF(Riepilogo_Ordine!R64>0,Riepilogo_Ordine!R64,"") ->  | E84: =IF(D84="","",CONCATENATE(Riepilogo_Ordine!Q64)) ->  | G84: =IF(Riepilogo_Ordine!S64>0,Riepilogo_Ordine!S64,"") ->  | H84: =IF(G84="","",CONCATENATE(Riepilogo_Ordine!Q64)) ->  | J84: =IF(Riepilogo_Ordine!T64>0,Riepilogo_Ordine!T64,"") ->  | K84: =IF(J84="","",CONCATENATE(Riepilogo_Ordine!Q64)) ->  | N84: 0 | O84: 0 | P84: 0 | Q84: 0 | R84: NO
D85: =IF(Riepilogo_Ordine!R65>0,Riepilogo_Ordine!R65,"") ->  | E85: =IF(D85="","",CONCATENATE(Riepilogo_Ordine!Q65)) ->  | G85: =IF(Riepilogo_Ordine!S65>0,Riepilogo_Ordine!S65,"") ->  | H85: =IF(G85="","",CONCATENATE(Riepilogo_Ordine!Q65)) ->  | J85: =IF(Riepilogo_Ordine!T65>0,Riepilogo_Ordine!T65,"") ->  | K85: =IF(J85="","",CONCATENATE(Riepilogo_Ordine!Q65)) ->  | N85: 0 | O85: 0 | P85: 0 | Q85: 0 | R85: NO
D86: =IF(Riepilogo_Ordine!R66>0,Riepilogo_Ordine!R66,"") ->  | E86: =IF(D86="","",CONCATENATE(Riepilogo_Ordine!Q66)) ->  | G86: =IF(Riepilogo_Ordine!S66>0,Riepilogo_Ordine!S66,"") ->  | H86: =IF(G86="","",CONCATENATE(Riepilogo_Ordine!Q66)) ->  | J86: =IF(Riepilogo_Ordine!T66>0,Riepilogo_Ordine!T66,"") ->  | K86: =IF(J86="","",CONCATENATE(Riepilogo_Ordine!Q66)) ->  | N86: 0 | O86: 0 | P86: 0 | Q86: 0 | R86: NO
D87: =IF(Riepilogo_Ordine!R67>0,Riepilogo_Ordine!R67,"") ->  | E87: =IF(D87="","",CONCATENATE(Riepilogo_Ordine!Q67)) ->  | G87: =IF(Riepilogo_Ordine!S67>0,Riepilogo_Ordine!S67,"") ->  | H87: =IF(G87="","",CONCATENATE(Riepilogo_Ordine!Q67)) ->  | J87: =IF(Riepilogo_Ordine!T67>0,Riepilogo_Ordine!T67,"") ->  | K87: =IF(J87="","",CONCATENATE(Riepilogo_Ordine!Q67)) ->  | N87: 0 | O87: 0 | P87: 0 | Q87: 0 | R87: NO
D88: =IF(Riepilogo_Ordine!R68>0,Riepilogo_Ordine!R68,"") ->  | E88: =IF(D88="","",CONCATENATE(Riepilogo_Ordine!Q68)) ->  | G88: =IF(Riepilogo_Ordine!S68>0,Riepilogo_Ordine!S68,"") ->  | H88: =IF(G88="","",CONCATENATE(Riepilogo_Ordine!Q68)) ->  | J88: =IF(Riepilogo_Ordine!T68>0,Riepilogo_Ordine!T68,"") ->  | K88: =IF(J88="","",CONCATENATE(Riepilogo_Ordine!Q68)) ->  | N88: 0 | O88: 0 | P88: 0 | Q88: 0 | R88: NO
D89: =IF(Riepilogo_Ordine!R69>0,Riepilogo_Ordine!R69,"") ->  | E89: =IF(D89="","",CONCATENATE(Riepilogo_Ordine!Q69)) ->  | G89: =IF(Riepilogo_Ordine!S69>0,Riepilogo_Ordine!S69,"") ->  | H89: =IF(G89="","",CONCATENATE(Riepilogo_Ordine!Q69)) ->  | J89: =IF(Riepilogo_Ordine!T69>0,Riepilogo_Ordine!T69,"") ->  | K89: =IF(J89="","",CONCATENATE(Riepilogo_Ordine!Q69)) ->  | N89: 0 | O89: 0 | P89: 0 | Q89: 0 | R89: NO
D90: =IF(Riepilogo_Ordine!R70>0,Riepilogo_Ordine!R70,"") ->  | E90: =IF(D90="","",CONCATENATE(Riepilogo_Ordine!Q70)) ->  | G90: =IF(Riepilogo_Ordine!S70>0,Riepilogo_Ordine!S70,"") ->  | H90: =IF(G90="","",CONCATENATE(Riepilogo_Ordine!Q70)) ->  | J90: =IF(Riepilogo_Ordine!T70>0,Riepilogo_Ordine!T70,"") ->  | K90: =IF(J90="","",CONCATENATE(Riepilogo_Ordine!Q70)) ->  | N90: 0 | O90: 0 | P90: 0 | Q90: 0 | R90: NO
D91: =IF(Riepilogo_Ordine!R71>0,Riepilogo_Ordine!R71,"") ->  | E91: =IF(D91="","",CONCATENATE(Riepilogo_Ordine!Q71)) ->  | G91: =IF(Riepilogo_Ordine!S71>0,Riepilogo_Ordine!S71,"") ->  | H91: =IF(G91="","",CONCATENATE(Riepilogo_Ordine!Q71)) ->  | J91: =IF(Riepilogo_Ordine!T71>0,Riepilogo_Ordine!T71,"") ->  | K91: =IF(J91="","",CONCATENATE(Riepilogo_Ordine!Q71)) ->  | N91: 0 | O91: 0 | P91: 0 | Q91: 0 | R91: NO
D92: =IF(Riepilogo_Ordine!R72>0,Riepilogo_Ordine!R72,"") ->  | E92: =IF(D92="","",CONCATENATE(Riepilogo_Ordine!Q72)) ->  | G92: =IF(Riepilogo_Ordine!S72>0,Riepilogo_Ordine!S72,"") ->  | H92: =IF(G92="","",CONCATENATE(Riepilogo_Ordine!Q72)) ->  | J92: =IF(Riepilogo_Ordine!T72>0,Riepilogo_Ordine!T72,"") ->  | K92: =IF(J92="","",CONCATENATE(Riepilogo_Ordine!Q72)) ->  | N92: 0 | O92: 0 | P92: 0 | Q92: 0 | R92: NO
D93: =IF(Riepilogo_Ordine!R73>0,Riepilogo_Ordine!R73,"") ->  | E93: =IF(D93="","",CONCATENATE(Riepilogo_Ordine!Q73)) ->  | G93: =IF(Riepilogo_Ordine!S73>0,Riepilogo_Ordine!S73,"") ->  | H93: =IF(G93="","",CONCATENATE(Riepilogo_Ordine!Q73)) ->  | J93: =IF(Riepilogo_Ordine!T73>0,Riepilogo_Ordine!T73,"") ->  | K93: =IF(J93="","",CONCATENATE(Riepilogo_Ordine!Q73)) ->  | N93: 0 | O93: 0 | P93: 0 | Q93: 0 | R93: NO
D94: =IF(Riepilogo_Ordine!R74>0,Riepilogo_Ordine!R74,"") ->  | E94: =IF(D94="","",CONCATENATE(Riepilogo_Ordine!Q74)) ->  | G94: =IF(Riepilogo_Ordine!S74>0,Riepilogo_Ordine!S74,"") ->  | H94: =IF(G94="","",CONCATENATE(Riepilogo_Ordine!Q74)) ->  | J94: =IF(Riepilogo_Ordine!T74>0,Riepilogo_Ordine!T74,"") ->  | K94: =IF(J94="","",CONCATENATE(Riepilogo_Ordine!Q74)) ->  | N94: 0 | O94: 0 | P94: 0 | Q94: 0 | R94: NO
D95: =IF(Riepilogo_Ordine!R75>0,Riepilogo_Ordine!R75,"") ->  | E95: =IF(D95="","",CONCATENATE(Riepilogo_Ordine!Q75)) ->  | G95: =IF(Riepilogo_Ordine!S75>0,Riepilogo_Ordine!S75,"") ->  | H95: =IF(G95="","",CONCATENATE(Riepilogo_Ordine!Q75)) ->  | J95: =IF(Riepilogo_Ordine!T75>0,Riepilogo_Ordine!T75,"") ->  | K95: =IF(J95="","",CONCATENATE(Riepilogo_Ordine!Q75)) ->  | N95: 0 | O95: 0 | P95: 0 | Q95: 0 | R95: NO
D96: =IF(Riepilogo_Ordine!R76>0,Riepilogo_Ordine!R76,"") ->  | E96: =IF(D96="","",CONCATENATE(Riepilogo_Ordine!Q76)) ->  | G96: =IF(Riepilogo_Ordine!S76>0,Riepilogo_Ordine!S76,"") ->  | H96: =IF(G96="","",CONCATENATE(Riepilogo_Ordine!Q76)) ->  | J96: =IF(Riepilogo_Ordine!T76>0,Riepilogo_Ordine!T76,"") ->  | K96: =IF(J96="","",CONCATENATE(Riepilogo_Ordine!Q76)) ->  | N96: 0 | O96: 0 | P96: 0 | Q96: 0 | R96: NO
D97: =IF(Riepilogo_Ordine!R77>0,Riepilogo_Ordine!R77,"") ->  | E97: =IF(D97="","",CONCATENATE(Riepilogo_Ordine!Q77)) ->  | G97: =IF(Riepilogo_Ordine!S77>0,Riepilogo_Ordine!S77,"") ->  | H97: =IF(G97="","",CONCATENATE(Riepilogo_Ordine!Q77)) ->  | J97: =IF(Riepilogo_Ordine!T77>0,Riepilogo_Ordine!T77,"") ->  | K97: =IF(J97="","",CONCATENATE(Riepilogo_Ordine!Q77)) ->  | N97: 0 | O97: 0 | P97: 0 | Q97: 0 | R97: NO
D98: =IF(Riepilogo_Ordine!R78>0,Riepilogo_Ordine!R78,"") ->  | E98: =IF(D98="","",CONCATENATE(Riepilogo_Ordine!Q78)) ->  | G98: =IF(Riepilogo_Ordine!S78>0,Riepilogo_Ordine!S78,"") ->  | H98: =IF(G98="","",CONCATENATE(Riepilogo_Ordine!Q78)) ->  | J98: =IF(Riepilogo_Ordine!T78>0,Riepilogo_Ordine!T78,"") ->  | K98: =IF(J98="","",CONCATENATE(Riepilogo_Ordine!Q78)) ->  | N98: 0 | O98: 0 | P98: 0 | Q98: 0 | R98: NO
D99: =IF(Riepilogo_Ordine!R79>0,Riepilogo_Ordine!R79,"") ->  | E99: =IF(D99="","",CONCATENATE(Riepilogo_Ordine!Q79)) ->  | G99: =IF(Riepilogo_Ordine!S79>0,Riepilogo_Ordine!S79,"") ->  | H99: =IF(G99="","",CONCATENATE(Riepilogo_Ordine!Q79)) ->  | J99: =IF(Riepilogo_Ordine!T79>0,Riepilogo_Ordine!T79,"") ->  | K99: =IF(J99="","",CONCATENATE(Riepilogo_Ordine!Q79)) ->  | N99: 0 | O99: 0 | P99: 0 | Q99: 0 | R99: NO
D100: =IF(Riepilogo_Ordine!R80>0,Riepilogo_Ordine!R80,"") ->  | E100: =IF(D100="","",CONCATENATE(Riepilogo_Ordine!Q80)) ->  | G100: =IF(Riepilogo_Ordine!S80>0,Riepilogo_Ordine!S80,"") ->  | H100: =IF(G100="","",CONCATENATE(Riepilogo_Ordine!Q80)) ->  | J100: =IF(Riepilogo_Ordine!T80>0,Riepilogo_Ordine!T80,"") ->  | K100: =IF(J100="","",CONCATENATE(Riepilogo_Ordine!Q80)) ->  | N100: 0 | O100: 0 | P100: 0 | Q100: 0 | R100: NO
D101: =IF(Riepilogo_Ordine!R81>0,Riepilogo_Ordine!R81,"") ->  | E101: =IF(D101="","",CONCATENATE(Riepilogo_Ordine!Q81)) ->  | G101: =IF(Riepilogo_Ordine!S81>0,Riepilogo_Ordine!S81,"") ->  | H101: =IF(G101="","",CONCATENATE(Riepilogo_Ordine!Q81)) ->  | J101: =IF(Riepilogo_Ordine!T81>0,Riepilogo_Ordine!T81,"") ->  | K101: =IF(J101="","",CONCATENATE(Riepilogo_Ordine!Q81)) ->  | N101: 0 | O101: 0 | P101: 0 | Q101: 0 | R101: NO
D102: =IF(Riepilogo_Ordine!R82>0,Riepilogo_Ordine!R82,"") ->  | E102: =IF(D102="","",CONCATENATE(Riepilogo_Ordine!Q82)) ->  | G102: =IF(Riepilogo_Ordine!S82>0,Riepilogo_Ordine!S82,"") ->  | H102: =IF(G102="","",CONCATENATE(Riepilogo_Ordine!Q82)) ->  | J102: =IF(Riepilogo_Ordine!T82>0,Riepilogo_Ordine!T82,"") ->  | K102: =IF(J102="","",CONCATENATE(Riepilogo_Ordine!Q82)) ->  | N102: 0 | O102: 0 | P102: 0 | Q102: 0 | R102: NO
D103: =IF(Riepilogo_Ordine!R83>0,Riepilogo_Ordine!R83,"") ->  | E103: =IF(D103="","",CONCATENATE(Riepilogo_Ordine!Q83)) ->  | G103: =IF(Riepilogo_Ordine!S83>0,Riepilogo_Ordine!S83,"") ->  | H103: =IF(G103="","",CONCATENATE(Riepilogo_Ordine!Q83)) ->  | J103: =IF(Riepilogo_Ordine!T83>0,Riepilogo_Ordine!T83,"") ->  | K103: =IF(J103="","",CONCATENATE(Riepilogo_Ordine!Q83)) ->  | N103: 0 | O103: 0 | P103: 0 | Q103: 0 | R103: NO
D104: =IF(Riepilogo_Ordine!R84>0,Riepilogo_Ordine!R84,"") ->  | E104: =IF(D104="","",CONCATENATE(Riepilogo_Ordine!Q84)) ->  | G104: =IF(Riepilogo_Ordine!S84>0,Riepilogo_Ordine!S84,"") ->  | H104: =IF(G104="","",CONCATENATE(Riepilogo_Ordine!Q84)) ->  | J104: =IF(Riepilogo_Ordine!T84>0,Riepilogo_Ordine!T84,"") ->  | K104: =IF(J104="","",CONCATENATE(Riepilogo_Ordine!Q84)) ->  | N104: 0 | O104: 0 | P104: 0 | Q104: 0 | R104: NO
D105: =IF(Riepilogo_Ordine!R85>0,Riepilogo_Ordine!R85,"") ->  | E105: =IF(D105="","",CONCATENATE(Riepilogo_Ordine!Q85)) ->  | G105: =IF(Riepilogo_Ordine!S85>0,Riepilogo_Ordine!S85,"") ->  | H105: =IF(G105="","",CONCATENATE(Riepilogo_Ordine!Q85)) ->  | J105: =IF(Riepilogo_Ordine!T85>0,Riepilogo_Ordine!T85,"") ->  | K105: =IF(J105="","",CONCATENATE(Riepilogo_Ordine!Q85)) ->  | N105: 0 | O105: 0 | P105: 0 | Q105: 0 | R105: NO
D106: =IF(Riepilogo_Ordine!R86>0,Riepilogo_Ordine!R86,"") ->  | E106: =IF(D106="","",CONCATENATE(Riepilogo_Ordine!Q86)) ->  | G106: =IF(Riepilogo_Ordine!S86>0,Riepilogo_Ordine!S86,"") ->  | H106: =IF(G106="","",CONCATENATE(Riepilogo_Ordine!Q86)) ->  | J106: =IF(Riepilogo_Ordine!T86>0,Riepilogo_Ordine!T86,"") ->  | K106: =IF(J106="","",CONCATENATE(Riepilogo_Ordine!Q86)) ->  | N106: 0 | O106: 0 | P106: 0 | Q106: 0 | R106: NO
D107: =IF(Riepilogo_Ordine!R87>0,Riepilogo_Ordine!R87,"") ->  | E107: =IF(D107="","",CONCATENATE(Riepilogo_Ordine!Q87)) ->  | G107: =IF(Riepilogo_Ordine!S87>0,Riepilogo_Ordine!S87,"") ->  | H107: =IF(G107="","",CONCATENATE(Riepilogo_Ordine!Q87)) ->  | J107: =IF(Riepilogo_Ordine!T87>0,Riepilogo_Ordine!T87,"") ->  | K107: =IF(J107="","",CONCATENATE(Riepilogo_Ordine!Q87)) ->  | N107: 0 | O107: 0 | P107: 0 | Q107: 0 | R107: NO
D108: =IF(Riepilogo_Ordine!R88>0,Riepilogo_Ordine!R88,"") ->  | E108: =IF(D108="","",CONCATENATE(Riepilogo_Ordine!Q88)) ->  | G108: =IF(Riepilogo_Ordine!S88>0,Riepilogo_Ordine!S88,"") ->  | H108: =IF(G108="","",CONCATENATE(Riepilogo_Ordine!Q88)) ->  | J108: =IF(Riepilogo_Ordine!T88>0,Riepilogo_Ordine!T88,"") ->  | K108: =IF(J108="","",CONCATENATE(Riepilogo_Ordine!Q88)) ->  | N108: 0 | O108: 0 | P108: 0 | Q108: 0 | R108: NO
D109: =IF(Riepilogo_Ordine!R89>0,Riepilogo_Ordine!R89,"") ->  | E109: =IF(D109="","",CONCATENATE(Riepilogo_Ordine!Q89)) ->  | G109: =IF(Riepilogo_Ordine!S89>0,Riepilogo_Ordine!S89,"") ->  | H109: =IF(G109="","",CONCATENATE(Riepilogo_Ordine!Q89)) ->  | J109: =IF(Riepilogo_Ordine!T89>0,Riepilogo_Ordine!T89,"") ->  | K109: =IF(J109="","",CONCATENATE(Riepilogo_Ordine!Q89)) ->  | N109: 0 | O109: 0 | P109: 0 | Q109: 0 | R109: NO
D110: =IF(Riepilogo_Ordine!R90>0,Riepilogo_Ordine!R90,"") ->  | E110: =IF(D110="","",CONCATENATE(Riepilogo_Ordine!Q90)) ->  | G110: =IF(Riepilogo_Ordine!S90>0,Riepilogo_Ordine!S90,"") ->  | H110: =IF(G110="","",CONCATENATE(Riepilogo_Ordine!Q90)) ->  | J110: =IF(Riepilogo_Ordine!T90>0,Riepilogo_Ordine!T90,"") ->  | K110: =IF(J110="","",CONCATENATE(Riepilogo_Ordine!Q90)) ->  | N110: 0 | O110: 0 | P110: 0 | Q110: 0 | R110: NO
D111: =IF(Riepilogo_Ordine!R91>0,Riepilogo_Ordine!R91,"") ->  | E111: =IF(D111="","",CONCATENATE(Riepilogo_Ordine!Q91)) ->  | G111: =IF(Riepilogo_Ordine!S91>0,Riepilogo_Ordine!S91,"") ->  | H111: =IF(G111="","",CONCATENATE(Riepilogo_Ordine!Q91)) ->  | J111: =IF(Riepilogo_Ordine!T91>0,Riepilogo_Ordine!T91,"") ->  | K111: =IF(J111="","",CONCATENATE(Riepilogo_Ordine!Q91)) ->  | N111: 0 | O111: 0 | P111: 0 | Q111: 0 | R111: NO
D112: =IF(Riepilogo_Ordine!R104>0,Riepilogo_Ordine!R104,"") ->  | E112: =IF(D112="","",CONCATENATE(Riepilogo_Ordine!Q104)) ->  | G112: =IF(Riepilogo_Ordine!S104>0,Riepilogo_Ordine!S104,"") ->  | H112: =IF(G112="","",CONCATENATE(Riepilogo_Ordine!Q104)) ->  | J112: =IF(Riepilogo_Ordine!T104>0,Riepilogo_Ordine!T104,"") ->  | K112: =IF(J112="","",CONCATENATE(Riepilogo_Ordine!Q104)) ->  | N112: =IF(D112="",0,D112) -> 0 | O112: =IF(G112="",0,G112) -> 0 | P112: =IF(J112="",0,J112) -> 0 | Q112: =SUM(N112:P112) -> 0 | R112: =IF(Q112>0,"SI","NO") -> NO
D113: =IF(Riepilogo_Ordine!R105>0,Riepilogo_Ordine!R105,"") ->  | E113: =IF(D113="","",CONCATENATE(Riepilogo_Ordine!Q105)) ->  | G113: =IF(Riepilogo_Ordine!S105>0,Riepilogo_Ordine!S105,"") ->  | H113: =IF(G113="","",CONCATENATE(Riepilogo_Ordine!Q105)) ->  | J113: =IF(Riepilogo_Ordine!T105>0,Riepilogo_Ordine!T105,"") ->  | K113: =IF(J113="","",CONCATENATE(Riepilogo_Ordine!Q105)) ->  | N113: 0 | O113: 0 | P113: 0 | Q113: 0 | R113: NO
D114: =IF(Riepilogo_Ordine!R106>0,Riepilogo_Ordine!R106,"") ->  | E114: =IF(D114="","",CONCATENATE(Riepilogo_Ordine!Q106)) ->  | G114: =IF(Riepilogo_Ordine!S106>0,Riepilogo_Ordine!S106,"") ->  | H114: =IF(G114="","",CONCATENATE(Riepilogo_Ordine!Q106)) ->  | J114: =IF(Riepilogo_Ordine!T106>0,Riepilogo_Ordine!T106,"") ->  | K114: =IF(J114="","",CONCATENATE(Riepilogo_Ordine!Q106)) ->  | N114: 0 | O114: 0 | P114: 0 | Q114: 0 | R114: NO
D115: =IF(Riepilogo_Ordine!R107>0,Riepilogo_Ordine!R107,"") ->  | E115: =IF(D115="","",CONCATENATE(Riepilogo_Ordine!Q107)) ->  | G115: =IF(Riepilogo_Ordine!S107>0,Riepilogo_Ordine!S107,"") ->  | H115: =IF(G115="","",CONCATENATE(Riepilogo_Ordine!Q107)) ->  | J115: =IF(Riepilogo_Ordine!T107>0,Riepilogo_Ordine!T107,"") ->  | K115: =IF(J115="","",CONCATENATE(Riepilogo_Ordine!Q107)) ->  | N115: 0 | O115: 0 | P115: 0 | Q115: 0 | R115: NO
D116: =IF(Riepilogo_Ordine!R108>0,Riepilogo_Ordine!R108,"") ->  | E116: =IF(D116="","",CONCATENATE(Riepilogo_Ordine!Q108)) ->  | G116: =IF(Riepilogo_Ordine!S108>0,Riepilogo_Ordine!S108,"") ->  | H116: =IF(G116="","",CONCATENATE(Riepilogo_Ordine!Q108)) ->  | J116: =IF(Riepilogo_Ordine!T108>0,Riepilogo_Ordine!T108,"") ->  | K116: =IF(J116="","",CONCATENATE(Riepilogo_Ordine!Q108)) ->  | N116: 0 | O116: 0 | P116: 0 | Q116: 0 | R116: NO
D117: =IF(Riepilogo_Ordine!R109>0,Riepilogo_Ordine!R109,"") ->  | E117: =IF(D117="","",CONCATENATE(Riepilogo_Ordine!Q109)) ->  | G117: =IF(Riepilogo_Ordine!S109>0,Riepilogo_Ordine!S109,"") ->  | H117: =IF(G117="","",CONCATENATE(Riepilogo_Ordine!Q109)) ->  | J117: =IF(Riepilogo_Ordine!T109>0,Riepilogo_Ordine!T109,"") ->  | K117: =IF(J117="","",CONCATENATE(Riepilogo_Ordine!Q109)) ->  | N117: 0 | O117: 0 | P117: 0 | Q117: 0 | R117: NO
D118: =IF(Riepilogo_Ordine!R110>0,Riepilogo_Ordine!R110,"") ->  | E118: =IF(D118="","",CONCATENATE(Riepilogo_Ordine!Q110)) ->  | G118: =IF(Riepilogo_Ordine!S110>0,Riepilogo_Ordine!S110,"") ->  | H118: =IF(G118="","",CONCATENATE(Riepilogo_Ordine!Q110)) ->  | J118: =IF(Riepilogo_Ordine!T110>0,Riepilogo_Ordine!T110,"") ->  | K118: =IF(J118="","",CONCATENATE(Riepilogo_Ordine!Q110)) ->  | N118: 0 | O118: 0 | P118: 0 | Q118: 0 | R118: NO
D119: =IF(Riepilogo_Ordine!R111>0,Riepilogo_Ordine!R111,"") ->  | E119: =IF(D119="","",CONCATENATE(Riepilogo_Ordine!Q111)) ->  | G119: =IF(Riepilogo_Ordine!S111>0,Riepilogo_Ordine!S111,"") ->  | H119: =IF(G119="","",CONCATENATE(Riepilogo_Ordine!Q111)) ->  | J119: =IF(Riepilogo_Ordine!T111>0,Riepilogo_Ordine!T111,"") ->  | K119: =IF(J119="","",CONCATENATE(Riepilogo_Ordine!Q111)) ->  | N119: 0 | O119: 0 | P119: 0 | Q119: 0 | R119: NO
D120: =IF(Riepilogo_Ordine!R112>0,Riepilogo_Ordine!R112,"") ->  | E120: =IF(D120="","",CONCATENATE(Riepilogo_Ordine!Q112)) ->  | G120: =IF(Riepilogo_Ordine!S112>0,Riepilogo_Ordine!S112,"") ->  | H120: =IF(G120="","",CONCATENATE(Riepilogo_Ordine!Q112)) ->  | J120: =IF(Riepilogo_Ordine!T112>0,Riepilogo_Ordine!T112,"") ->  | K120: =IF(J120="","",CONCATENATE(Riepilogo_Ordine!Q112)) ->  | N120: 0 | O120: 0 | P120: 0 | Q120: 0 | R120: NO
D121: =IF(Riepilogo_Ordine!R113>0,Riepilogo_Ordine!R113,"") ->  | E121: =IF(D121="","",CONCATENATE(Riepilogo_Ordine!Q113)) ->  | G121: =IF(Riepilogo_Ordine!S113>0,Riepilogo_Ordine!S113,"") ->  | H121: =IF(G121="","",CONCATENATE(Riepilogo_Ordine!Q113)) ->  | J121: =IF(Riepilogo_Ordine!T113>0,Riepilogo_Ordine!T113,"") ->  | K121: =IF(J121="","",CONCATENATE(Riepilogo_Ordine!Q113)) ->  | N121: 0 | O121: 0 | P121: 0 | Q121: 0 | R121: NO
D122: =IF(Riepilogo_Ordine!R114>0,Riepilogo_Ordine!R114,"") ->  | E122: =IF(D122="","",CONCATENATE(Riepilogo_Ordine!Q114)) ->  | G122: =IF(Riepilogo_Ordine!S114>0,Riepilogo_Ordine!S114,"") ->  | H122: =IF(G122="","",CONCATENATE(Riepilogo_Ordine!Q114)) ->  | J122: =IF(Riepilogo_Ordine!T114>0,Riepilogo_Ordine!T114,"") ->  | K122: =IF(J122="","",CONCATENATE(Riepilogo_Ordine!Q114)) ->  | N122: 0 | O122: 0 | P122: 0 | Q122: 0 | R122: NO
D123: =IF(Riepilogo_Ordine!R115>0,Riepilogo_Ordine!R115,"") ->  | E123: =IF(D123="","",CONCATENATE(Riepilogo_Ordine!Q115)) ->  | G123: =IF(Riepilogo_Ordine!S115>0,Riepilogo_Ordine!S115,"") ->  | H123: =IF(G123="","",CONCATENATE(Riepilogo_Ordine!Q115)) ->  | J123: =IF(Riepilogo_Ordine!T115>0,Riepilogo_Ordine!T115,"") ->  | K123: =IF(J123="","",CONCATENATE(Riepilogo_Ordine!Q115)) ->  | N123: 0 | O123: 0 | P123: 0 | Q123: 0 | R123: NO
D124: =IF(Riepilogo_Ordine!R116>0,Riepilogo_Ordine!R116,"") ->  | E124: =IF(D124="","",CONCATENATE(Riepilogo_Ordine!Q116)) ->  | G124: =IF(Riepilogo_Ordine!S116>0,Riepilogo_Ordine!S116,"") ->  | H124: =IF(G124="","",CONCATENATE(Riepilogo_Ordine!Q116)) ->  | J124: =IF(Riepilogo_Ordine!T116>0,Riepilogo_Ordine!T116,"") ->  | K124: =IF(J124="","",CONCATENATE(Riepilogo_Ordine!Q116)) ->  | N124: 0 | O124: 0 | P124: 0 | Q124: 0 | R124: NO
D125: =IF(Riepilogo_Ordine!R117>0,Riepilogo_Ordine!R117,"") ->  | E125: =IF(D125="","",CONCATENATE(Riepilogo_Ordine!Q117)) ->  | G125: =IF(Riepilogo_Ordine!S117>0,Riepilogo_Ordine!S117,"") ->  | H125: =IF(G125="","",CONCATENATE(Riepilogo_Ordine!Q117)) ->  | J125: =IF(Riepilogo_Ordine!T117>0,Riepilogo_Ordine!T117,"") ->  | K125: =IF(J125="","",CONCATENATE(Riepilogo_Ordine!Q117)) ->  | N125: 0 | O125: 0 | P125: 0 | Q125: 0 | R125: NO
D126: =IF(Riepilogo_Ordine!R118>0,Riepilogo_Ordine!R118,"") ->  | E126: =IF(D126="","",CONCATENATE(Riepilogo_Ordine!Q118)) ->  | G126: =IF(Riepilogo_Ordine!S118>0,Riepilogo_Ordine!S118,"") ->  | H126: =IF(G126="","",CONCATENATE(Riepilogo_Ordine!Q118)) ->  | J126: =IF(Riepilogo_Ordine!T118>0,Riepilogo_Ordine!T118,"") ->  | K126: =IF(J126="","",CONCATENATE(Riepilogo_Ordine!Q118)) ->  | N126: 0 | O126: 0 | P126: 0 | Q126: 0 | R126: NO
D127: =IF(Riepilogo_Ordine!R107>0,Riepilogo_Ordine!R107,"") ->  | E127: =IF(D127="","",CONCATENATE(Riepilogo_Ordine!Q107)) ->  | G127: =IF(Riepilogo_Ordine!S107>0,Riepilogo_Ordine!S107,"") ->  | H127: =IF(G127="","",CONCATENATE(Riepilogo_Ordine!Q107)) ->  | J127: =IF(Riepilogo_Ordine!T107>0,Riepilogo_Ordine!T107,"") ->  | K127: =IF(J127="","",CONCATENATE(Riepilogo_Ordine!Q107)) ->  | N127: 0 | O127: 0 | P127: 0 | Q127: 0 | R127: NO
D128: =IF(Riepilogo_Ordine!R108>0,Riepilogo_Ordine!R108,"") ->  | E128: =IF(D128="","",CONCATENATE(Riepilogo_Ordine!Q108)) ->  | G128: =IF(Riepilogo_Ordine!S108>0,Riepilogo_Ordine!S108,"") ->  | H128: =IF(G128="","",CONCATENATE(Riepilogo_Ordine!Q108)) ->  | J128: =IF(Riepilogo_Ordine!T108>0,Riepilogo_Ordine!T108,"") ->  | K128: =IF(J128="","",CONCATENATE(Riepilogo_Ordine!Q108)) ->  | N128: 0 | O128: 0 | P128: 0 | Q128: 0 | R128: NO
D129: =IF(Riepilogo_Ordine!R121>0,Riepilogo_Ordine!R121,"") ->  | E129: =IF(D129="","",CONCATENATE(Riepilogo_Ordine!Q121)) ->  | G129: =IF(Riepilogo_Ordine!S121>0,Riepilogo_Ordine!S121,"") ->  | H129: =IF(G129="","",CONCATENATE(Riepilogo_Ordine!Q121)) ->  | J129: =IF(Riepilogo_Ordine!T121>0,Riepilogo_Ordine!T121,"") ->  | K129: =IF(J129="","",CONCATENATE(Riepilogo_Ordine!Q121)) ->  | N129: =IF(D129="",0,D129) -> 0 | O129: =IF(G129="",0,G129) -> 0 | P129: =IF(J129="",0,J129) -> 0 | Q129: =SUM(N129:P129) -> 0 | R129: =IF(Q129>0,"SI","NO") -> NO
D130: =IF(Riepilogo_Ordine!R122>0,Riepilogo_Ordine!R122,"") ->  | E130: =IF(D130="","",CONCATENATE(Riepilogo_Ordine!Q122)) ->  | G130: =IF(Riepilogo_Ordine!S122>0,Riepilogo_Ordine!S122,"") ->  | H130: =IF(G130="","",CONCATENATE(Riepilogo_Ordine!Q122)) ->  | J130: =IF(Riepilogo_Ordine!T122>0,Riepilogo_Ordine!T122,"") ->  | K130: =IF(J130="","",CONCATENATE(Riepilogo_Ordine!Q122)) ->  | N130: 0 | O130: 0 | P130: 0 | Q130: 0 | R130: NO
D131: =IF(Riepilogo_Ordine!R123>0,Riepilogo_Ordine!R123,"") ->  | E131: =IF(D131="","",CONCATENATE(Riepilogo_Ordine!Q123)) ->  | G131: =IF(Riepilogo_Ordine!S123>0,Riepilogo_Ordine!S123,"") ->  | H131: =IF(G131="","",CONCATENATE(Riepilogo_Ordine!Q123)) ->  | J131: =IF(Riepilogo_Ordine!T123>0,Riepilogo_Ordine!T123,"") ->  | K131: =IF(J131="","",CONCATENATE(Riepilogo_Ordine!Q123)) ->  | N131: 0 | O131: 0 | P131: 0 | Q131: 0 | R131: NO
D132: =IF(Riepilogo_Ordine!R124>0,Riepilogo_Ordine!R124,"") ->  | E132: =IF(D132="","",CONCATENATE(Riepilogo_Ordine!Q124)) ->  | G132: =IF(Riepilogo_Ordine!S124>0,Riepilogo_Ordine!S124,"") ->  | H132: =IF(G132="","",CONCATENATE(Riepilogo_Ordine!Q124)) ->  | J132: =IF(Riepilogo_Ordine!T124>0,Riepilogo_Ordine!T124,"") ->  | K132: =IF(J132="","",CONCATENATE(Riepilogo_Ordine!Q124)) ->  | N132: 0 | O132: 0 | P132: 0 | Q132: 0 | R132: NO
D133: =IF(Riepilogo_Ordine!R125>0,Riepilogo_Ordine!R125,"") ->  | E133: =IF(D133="","",CONCATENATE(Riepilogo_Ordine!Q125)) ->  | G133: =IF(Riepilogo_Ordine!S125>0,Riepilogo_Ordine!S125,"") ->  | H133: =IF(G133="","",CONCATENATE(Riepilogo_Ordine!Q125)) ->  | J133: =IF(Riepilogo_Ordine!T125>0,Riepilogo_Ordine!T125,"") ->  | K133: =IF(J133="","",CONCATENATE(Riepilogo_Ordine!Q125)) ->  | N133: 0 | O133: 0 | P133: 0 | Q133: 0 | R133: NO
D134: =IF(Riepilogo_Ordine!R126>0,Riepilogo_Ordine!R126,"") ->  | E134: =IF(D134="","",CONCATENATE(Riepilogo_Ordine!Q126)) ->  | G134: =IF(Riepilogo_Ordine!S126>0,Riepilogo_Ordine!S126,"") ->  | H134: =IF(G134="","",CONCATENATE(Riepilogo_Ordine!Q126)) ->  | J134: =IF(Riepilogo_Ordine!T126>0,Riepilogo_Ordine!T126,"") ->  | K134: =IF(J134="","",CONCATENATE(Riepilogo_Ordine!Q126)) ->  | N134: 0 | O134: 0 | P134: 0 | Q134: 0 | R134: NO
D135: =IF(Riepilogo_Ordine!R127>0,Riepilogo_Ordine!R127,"") ->  | E135: =IF(D135="","",CONCATENATE(Riepilogo_Ordine!Q127)) ->  | G135: =IF(Riepilogo_Ordine!S127>0,Riepilogo_Ordine!S127,"") ->  | H135: =IF(G135="","",CONCATENATE(Riepilogo_Ordine!Q127)) ->  | J135: =IF(Riepilogo_Ordine!T127>0,Riepilogo_Ordine!T127,"") ->  | K135: =IF(J135="","",CONCATENATE(Riepilogo_Ordine!Q127)) ->  | N135: 0 | O135: 0 | P135: 0 | Q135: 0 | R135: NO
D136: =IF(Riepilogo_Ordine!R128>0,Riepilogo_Ordine!R128,"") ->  | E136: =IF(D136="","",CONCATENATE(Riepilogo_Ordine!Q128)) ->  | G136: =IF(Riepilogo_Ordine!S128>0,Riepilogo_Ordine!S128,"") ->  | H136: =IF(G136="","",CONCATENATE(Riepilogo_Ordine!Q128)) ->  | J136: =IF(Riepilogo_Ordine!T128>0,Riepilogo_Ordine!T128,"") ->  | K136: =IF(J136="","",CONCATENATE(Riepilogo_Ordine!Q128)) ->  | N136: 0 | O136: 0 | P136: 0 | Q136: 0 | R136: NO
D137: =IF(Riepilogo_Ordine!R129>0,Riepilogo_Ordine!R129,"") ->  | E137: =IF(D137="","",CONCATENATE(Riepilogo_Ordine!Q129)) ->  | G137: =IF(Riepilogo_Ordine!S129>0,Riepilogo_Ordine!S129,"") ->  | H137: =IF(G137="","",CONCATENATE(Riepilogo_Ordine!Q129)) ->  | J137: =IF(Riepilogo_Ordine!T129>0,Riepilogo_Ordine!T129,"") ->  | K137: =IF(J137="","",CONCATENATE(Riepilogo_Ordine!Q129)) ->  | N137: 0 | O137: 0 | P137: 0 | Q137: 0 | R137: NO
D138: =IF(Riepilogo_Ordine!R130>0,Riepilogo_Ordine!R130,"") ->  | E138: =IF(D138="","",CONCATENATE(Riepilogo_Ordine!Q130)) ->  | G138: =IF(Riepilogo_Ordine!S130>0,Riepilogo_Ordine!S130,"") ->  | H138: =IF(G138="","",CONCATENATE(Riepilogo_Ordine!Q130)) ->  | J138: =IF(Riepilogo_Ordine!T130>0,Riepilogo_Ordine!T130,"") ->  | K138: =IF(J138="","",CONCATENATE(Riepilogo_Ordine!Q130)) ->  | N138: 0 | O138: 0 | P138: 0 | Q138: 0 | R138: NO
D139: =IF(Riepilogo_Ordine!R131>0,Riepilogo_Ordine!R131,"") ->  | E139: =IF(D139="","",CONCATENATE(Riepilogo_Ordine!Q131)) ->  | G139: =IF(Riepilogo_Ordine!S131>0,Riepilogo_Ordine!S131,"") ->  | H139: =IF(G139="","",CONCATENATE(Riepilogo_Ordine!Q131)) ->  | J139: =IF(Riepilogo_Ordine!T131>0,Riepilogo_Ordine!T131,"") ->  | K139: =IF(J139="","",CONCATENATE(Riepilogo_Ordine!Q131)) ->  | N139: 0 | O139: 0 | P139: 0 | Q139: 0 | R139: NO
D140: =IF(Riepilogo_Ordine!R132>0,Riepilogo_Ordine!R132,"") ->  | E140: =IF(D140="","",CONCATENATE(Riepilogo_Ordine!Q132)) ->  | G140: =IF(Riepilogo_Ordine!S132>0,Riepilogo_Ordine!S132,"") ->  | H140: =IF(G140="","",CONCATENATE(Riepilogo_Ordine!Q132)) ->  | J140: =IF(Riepilogo_Ordine!T132>0,Riepilogo_Ordine!T132,"") ->  | K140: =IF(J140="","",CONCATENATE(Riepilogo_Ordine!Q132)) ->  | N140: 0 | O140: 0 | P140: 0 | Q140: 0 | R140: NO
D141: =IF(Riepilogo_Ordine!R133>0,Riepilogo_Ordine!R133,"") ->  | E141: =IF(D141="","",CONCATENATE(Riepilogo_Ordine!Q133)) ->  | G141: =IF(Riepilogo_Ordine!S133>0,Riepilogo_Ordine!S133,"") ->  | H141: =IF(G141="","",CONCATENATE(Riepilogo_Ordine!Q133)) ->  | J141: =IF(Riepilogo_Ordine!T133>0,Riepilogo_Ordine!T133,"") ->  | K141: =IF(J141="","",CONCATENATE(Riepilogo_Ordine!Q133)) ->  | N141: 0 | O141: 0 | P141: 0 | Q141: 0 | R141: NO
D142: =IF(Riepilogo_Ordine!R134>0,Riepilogo_Ordine!R134,"") ->  | E142: =IF(D142="","",CONCATENATE(Riepilogo_Ordine!Q134)) ->  | G142: =IF(Riepilogo_Ordine!S134>0,Riepilogo_Ordine!S134,"") ->  | H142: =IF(G142="","",CONCATENATE(Riepilogo_Ordine!Q134)) ->  | J142: =IF(Riepilogo_Ordine!T134>0,Riepilogo_Ordine!T134,"") ->  | K142: =IF(J142="","",CONCATENATE(Riepilogo_Ordine!Q134)) ->  | N142: 0 | O142: 0 | P142: 0 | Q142: 0 | R142: NO
D143: =IF(Riepilogo_Ordine!R135>0,Riepilogo_Ordine!R135,"") ->  | E143: =IF(D143="","",CONCATENATE(Riepilogo_Ordine!Q135)) ->  | G143: =IF(Riepilogo_Ordine!S135>0,Riepilogo_Ordine!S135,"") ->  | H143: =IF(G143="","",CONCATENATE(Riepilogo_Ordine!Q135)) ->  | J143: =IF(Riepilogo_Ordine!T135>0,Riepilogo_Ordine!T135,"") ->  | K143: =IF(J143="","",CONCATENATE(Riepilogo_Ordine!Q135)) ->  | N143: 0 | O143: 0 | P143: 0 | Q143: 0 | R143: NO
E144: Altre Opzioni | Q144: =SUM(D145:D148) -> 0 | R144: NO
D145: =IF(Riepilogo_Ordine!U40>0,Riepilogo_Ordine!U40,"") ->  | E145: =IF(D145="","",CONCATENATE(Riepilogo_Ordine!Q40)) ->  | Q145: =IF(D145<>"",1,0) -> 0 | R145: NO
D146: =IF(Riepilogo_Ordine!U41>0,Riepilogo_Ordine!U41,"") ->  | E146: =IF(D146="","",CONCATENATE(Riepilogo_Ordine!Q41)) ->  | Q146: =IF(D146<>"",1,0) -> 0 | R146: NO
D147: =IF(Riepilogo_Ordine!U42>0,Riepilogo_Ordine!U42,"") ->  | E147: =IF(D147="","",CONCATENATE(Riepilogo_Ordine!Q42)) ->  | Q147: 0 | R147: NO
D148: =IF(Riepilogo_Ordine!U53>0,Riepilogo_Ordine!U53,"") ->  | E148: =IF(D148="","",CONCATENATE(Riepilogo_Ordine!Q53)) ->  | Q148: 0 | R148: NO

Sheet ConfTS4L6 (hidden)
A1: ="" ->  | B1: ="" ->  | C1: ="" ->  | D1: ="" ->  | E1: ="" ->  | F1: ="" ->  | G1: ="" ->  | H1: ="" ->  | I1: ="" ->  | J1: ="" ->  | K1: ="" ->  | L1: ="" ->  | M1: ="" ->  | N1: ="" ->  | O1: ="" ->  | P1: ="" ->  | Q1: ="" -> 
B2: Module Name | C2: Option ID | D2: Option Name | E2: Option List Price | F2: SKUs | G2: Qty | H2: SKU Customer Kit | I2: Attributo | J2: Valore inserito | L2: N° | M2: Codice Convenzione
A3: PowerEdge R940 Server (General Purpose) | B3: Chassis with Up to 12X 2.5 SAS/SATA + 12X 2.5 for 2CPU Configuration | C3: Chassis with Up to 12X 2.5 SAS/SATA + 12X 2.5 for 4CPU Configuration | D3: =VLOOKUP(L3,Tabella_prezzi!$A$2:$L$91,8,FALSE) -> PowerEdge R940 Server | H3: =VLOOKUP(L3,Tabella_prezzi!$A$2:$L$91,9,FALSE) -> PowerEdge R940 Server | I3: =VLOOKUP(L3,Tabella_prezzi!$A$2:$L$91,3,FALSE) -> server rackable quad-processore (prestazionale) | J3: =VLOOKUP(L3,Tabella_prezzi!$A$2:$L$91,4,FALSE) -> 5754.51 | L3: L6N01 | M3: TS4L6-SRV
A4: PowerEdge R940 Server (nVME) | B4: Chassis with Up to 12X 2.5 SAS/SATA + 12X 2.5 NVME for 2CPU Configuration | C4: Chassis with Up to 12X 2.5 SAS/SATA + 12X 2.5 NVME for 4CPU Configuration | D4: =VLOOKUP(L4,Tabella_prezzi!$A$2:$L$91,8,FALSE) -> PowerEdge R940 Server-NVMe | H4: =VLOOKUP(L4,Tabella_prezzi!$A$2:$L$91,9,FALSE) -> PowerEdge R940 Server | I4: =VLOOKUP(L4,Tabella_prezzi!$A$2:$L$91,3,FALSE) -> server rackable quad-processore (prestazionale) | J4: =J3*1.02 -> 5869.6002 | L4: L6N01-NVMe | M4: TS4L6-SRV-NVME
A5: PowerEdge R940 Server (vSAN Ready) | B5: Chassis with Up to 12X 2.5 SAS/SATA + 12X 2.5 vSAN for 2CPU Configuration | C5: Chassis with Up to 12X 2.5 SAS/SATA + 12X 2.5 vSAN for 4CPU Configuration | D5: =VLOOKUP(L5,Tabella_prezzi!$A$2:$L$91,8,FALSE) -> PowerEdge R940 Server-NVMe | H5: =VLOOKUP(L5,Tabella_prezzi!$A$2:$L$91,9,FALSE) -> PowerEdge R940 Server | I5: =VLOOKUP(L5,Tabella_prezzi!$A$2:$L$91,3,FALSE) -> server rackable quad-processore (prestazionale) | J5: =J3*1.02 -> 5869.6002 | L5: L6N01-NVme | M5: =VLOOKUP(L5,Tabella_prezzi!$A$2:$L$91,6,FALSE) -> TS4L6-SRV-NVMe
A6: PowerEdge R940 Server (vSAN Ready) 64GB | B6: Chassis with Up to 12X 2.5 SAS/SATA + 12X 2.5 vSAN for 2CPU Configuration | C6: Chassis with Up to 12X 2.5 SAS/SATA + 12X 2.5 vSAN for 4CPU Configuration | D6: =VLOOKUP(L6,Tabella_prezzi!$A$2:$L$91,8,FALSE) -> PowerEdge R940 Server-NVMe | H6: =VLOOKUP(L6,Tabella_prezzi!$A$2:$L$91,9,FALSE) -> PowerEdge R940 Server | I6: =VLOOKUP(L6,Tabella_prezzi!$A$2:$L$91,3,FALSE) -> server rackable quad-processore (prestazionale) | J6: =J3*1.02 -> 5869.6002 | L6: L6N01-NVme | M6: =VLOOKUP(L6,Tabella_prezzi!$A$2:$L$91,6,FALSE) -> TS4L6-SRV-NVMe
A7: PowerEdge R940 Server (BOSS 3TB 48x64 GB RAM) | B7: Chassis with Up to 12X 2.5 SAS/SATA + 12X 2.5 vSAN for 4CPU Configuration 2TB RAM Comprensivo di BOSS e HBA 330+ | C7: Chassis with Up to 12X 2.5 SAS/SATA + 12X 2.5 vSAN for 4CPU Configuration 2TB RAM Comprensivo di BOSS e HBA 330+ | D7: PowerEdge R940 Server-NVMe | G7: 1 | H7: PowerEdge R940 Server | I7: server rackable quad-processore (prestazionale) | J7: =J3*1.02 -> 5869.6002 | L7: L6N01-NVme | M7: =VLOOKUP(L7,Tabella_prezzi!$A$2:$L$91,6,FALSE) -> TS4L6-SRV-NVMe
A8: PowerEdge R940 Server (vSAN Ready) | B8: Chassis with Up to 16 x 2.5 Hard Drives for 2CPU, GPU Double-Wide Configuration | D8: =VLOOKUP(L8,Tabella_prezzi!$A$2:$L$91,8,FALSE) -> PowerEdge R940 Server-NVMe | H8: =VLOOKUP(L8,Tabella_prezzi!$A$2:$L$91,9,FALSE) -> PowerEdge R940 Server | I8: =VLOOKUP(L8,Tabella_prezzi!$A$2:$L$91,3,FALSE) -> server rackable quad-processore (prestazionale) | J8: =VLOOKUP(L8,Tabella_prezzi!$A$2:$L$91,4,FALSE) -> 5869.6002 | L8: L6N01-NVMe | M8: =VLOOKUP(L8,Tabella_prezzi!$A$2:$L$91,6,FALSE) -> TS4L6-SRV-NVMe
A10: TS4L6_Chassis
A11: PowerEdge R940 Server (General Purpose) | B11: Chassis with Up to 12X 2.5 SAS/SATA + 12X 2.5 for 2CPU Configuration | C11: Chassis with Up to 12X 2.5 SAS/SATA + 12X 2.5 for 4CPU Configuration | D11: 0 | F11: ="" ->  | G11: ="" ->  | H11: PowerEdge R940 Server | I11: server rackable quad-processore (prestazionale) | M11: ="" -> 
A12: PowerEdge R940 Server (nVME) | B12: Chassis with Up to 12X 2.5 SAS/SATA + 12X 2.5 NVME for 2CPU Configuration | C12: Chassis with Up to 12X 2.5 SAS/SATA + 12X 2.5 NVME for 4CPU Configuration | D12: Kit vSAN Comprensivo di BOSS e HBA 330+ | F12: ="" ->  | G12: ="" ->  | H12: Kit vSAN Comprensivo di BOSS e HBA 330+ | I12: OpzVSAN2TB | M12: ="" -> 
A13: PowerEdge R940 Server (vSAN Ready) | B13: Chassis with Up to 12X 2.5 SAS/SATA + 12X 2.5 vSAN for 2CPU Configuration Comprensivo di BOSS e HBA 330+ | C13: Chassis with Up to 12X 2.5 SAS/SATA + 12X 2.5 vSAN for 4CPU Configuration Comprensivo di BOSS e HBA 330+ | D13: =VLOOKUP(L13,Tabella_prezzi!$A$2:$L$91,8,FALSE) -> Kit vSAN Comprensivo di BOSS e HBA 330+ (NO RAID) In sostituzione del base. | G13: 1 | H13: =VLOOKUP(L13,Tabella_prezzi!$A$2:$L$91,9,FALSE) -> Kit vSAN Comprensivo di BOSS e HBA 330+ | I13: =VLOOKUP(L13,Tabella_prezzi!$A$2:$L$91,3,FALSE) -> OpzVSAN | K13: =VLOOKUP(L13,Tabella_prezzi!$A$2:$L$91,4,FALSE) -> 716.6 | L13: L6N110 | M13: =VLOOKUP(L13,Tabella_prezzi!$A$2:$L$91,6,FALSE) -> TS4L6-2CPU-vSAN | O13: 1TB | Q13: 1,5TB | S13: 2TB | U13: 3TB
A14: PowerEdge R940 Server (vSAN Ready) 64GB | B14: Chassis with Up to 12X 2.5 SAS/SATA + 12X 2.5 vSAN for 2CPU Configuration | C14: Chassis with Up to 12X 2.5 SAS/SATA + 12X 2.5 vSAN for 4CPU Configuration | D14: =VLOOKUP(L14,Tabella_prezzi!$A$2:$L$91,8,FALSE) -> Kit vSAN Comprensivo di sostituzione controller con HBA Vsan ready ed aggiunta di BOSS card 2 x M2 480GB + kit abilitazione 1TB (16x64GB) 2CPU | G14: 1 | H14: =VLOOKUP(L14,Tabella_prezzi!$A$2:$L$91,9,FALSE) -> Kit vSAN Comprensivo di sostituzione controller con HBA Vsan ready ed aggiunta di BOSS card 2 x M2 480GB + kit abilitazione 1TB (16x64GB) 2CPU | I14: =VLOOKUP(L14,Tabella_prezzi!$A$2:$L$91,3,FALSE) -> OpzVsan1TB | K14: =VLOOKUP(L14,Tabella_prezzi!$A$2:$L$91,4,FALSE) -> 2721.48 | L14: L6N123 | M14: =VLOOKUP(L14,Tabella_prezzi!$A$2:$L$91,6,FALSE) -> TS4L6-vSAN-2CPU-1TB
A15: PowerEdge R940 Server (BOSS 3TB 48x64 GB RAM) | B15: Chassis with Up to 12X 2.5 SAS/SATA + 12X 2.5 for 4CPU 3TB RAM Comprensivo di BOSS | C15: Chassis with Up to 12X 2.5 SAS/SATA + 12X 2.5 for 4CPU 3TB RAM Comprensivo di BOSS | D15: =VLOOKUP(L15,Tabella_prezzi!$A$2:$L$91,8,FALSE) -> Kit vSAN Comprensivo di sostituzione controller con HBA Vsan ready ed aggiunta di BOSS card 2 x M2 480GB + kit abilitazione 2TB (32x64GB) 4CPU | G15: 1 | H15: =VLOOKUP(L15,Tabella_prezzi!$A$2:$L$91,9,FALSE) -> Kit vSAN Comprensivo di sostituzione controller con HBA Vsan ready ed aggiunta di BOSS card 2 x M2 480GB + kit abilitazione 2TB (32x64GB) 4CPU | I15: =VLOOKUP(L15,Tabella_prezzi!$A$2:$L$91,3,FALSE) -> OpzVsan2TB | K15: =VLOOKUP(L15,Tabella_prezzi!$A$2:$L$91,4,FALSE) -> 4674.92 | L15: L6N124 | M15: =VLOOKUP(L15,Tabella_prezzi!$A$2:$L$91,6,FALSE) -> TS4L6-vSAN-4CPU-2TB
A16: PowerEdge R7525 Server (GPU Double-Wide Ready) | B16: Chassis with Up to 16 x 2.5 Hard Drives for 2CPU, GPU Double-Wide Configuration | C16: Chassis with Up to 16 x 2.5 Hard Drives for 2CPU, GPU Double-Wide Configuration | D16: =VLOOKUP(L16,Tabella_prezzi!$A$2:$L$91,8,FALSE) -> Kit abilitazione 3TB (48x64GB) 4CPU con aggiunta di BOSS card 2 x M2 480GB | G16: 1 | H16: =VLOOKUP(L16,Tabella_prezzi!$A$2:$L$91,9,FALSE) -> Kit abilitazione 3TB (48x64GB) 4CPU con aggiunta di BOSS card 2 x M2 480GB | I16: =VLOOKUP(L16,Tabella_prezzi!$A$2:$L$91,9,FALSE) -> Kit abilitazione 3TB (48x64GB) 4CPU con aggiunta di BOSS card 2 x M2 480GB | K16: =VLOOKUP(L16,Tabella_prezzi!$A$2:$L$91,4,FALSE) -> 6473.12 | L16: L6N125 | M16: =VLOOKUP(L16,Tabella_prezzi!$A$2:$L$91,6,FALSE) -> TS4L6-BOSS-4CPU-3TB
A18: TS4L6_CPU
A19: No Additional Processor | G19: 0 | I19: ="" ->  | L19: ="" ->  | M19: ="" -> 
A20: =D20 -> 2 x Intel Xeon Gold 6252N, 2.3G, 24C/48T, 10.4GT/s, 35.75M Cache, Turbo, HT (150W) DDR4-2933 | D20: =VLOOKUP(L20,Tabella_prezzi!$A$2:$L$91,8,FALSE) -> 2 x Intel Xeon Gold 6252N, 2.3G, 24C/48T, 10.4GT/s, 35.75M Cache, Turbo, HT (150W) DDR4-2933 | G20: 1 | H20: =VLOOKUP(L20,Tabella_prezzi!$A$2:$L$91,9,FALSE) -> 2 x Intel Xeon Gold 6252N, 2.3G, 24C/48T, 10.4GT/s, 35.75M Cache, Turbo, HT (150W) DDR4-2933 | I20: =VLOOKUP(L20,Tabella_prezzi!$A$2:$L$91,3,FALSE) -> Kit n. 2 Processori aggiuntivi | J20: =VLOOKUP(L20,Tabella_prezzi!$A$2:$L$91,4,FALSE) -> 1908.9 | L20: L6N02 | M20: =VLOOKUP(L20,Tabella_prezzi!$A$2:$L$91,6,FALSE) -> TS4L6-CPU
A22: TS4L6_RAM (2CPU)
A24: 512 | B24: Memory Capacity | D24: =VLOOKUP(L24,Tabella_prezzi!$A$2:$L$91,8,FALSE) -> 32GB - 2Rx4 DDR4 RDIMM 3200MHz | F24: 370-AEVP | G24: 0 | H24: =VLOOKUP(L24,Tabella_prezzi!$A$2:$L$91,9,FALSE) -> 32GB - 2Rx4 DDR4 RDIMM 3200MHz | I24: =VLOOKUP(L24,Tabella_prezzi!$A$2:$L$91,3,FALSE) -> OpzRAM32GB | J24: =VLOOKUP(L24,Tabella_prezzi!$A$2:$L$91,4,FALSE)*G24 -> 0 | L24: L6N03 | M24: =VLOOKUP(L24,Tabella_prezzi!$A$2:$L$91,6,FALSE) -> TS4L6-RAM32 | P24: 0
A25: =(32*G25)+$A$24 -> 576 | B25: Memory Capacity | D25: =VLOOKUP(L25,Tabella_prezzi!$A$2:$L$91,8,FALSE) -> 32GB - 2Rx4 DDR4 RDIMM 3200MHz | F25: 370-AEVP | G25: 2 | H25: =VLOOKUP(L25,Tabella_prezzi!$A$2:$L$91,9,FALSE) -> 32GB - 2Rx4 DDR4 RDIMM 3200MHz | I25: =VLOOKUP(L25,Tabella_prezzi!$A$2:$L$91,3,FALSE) -> OpzRAM32GB | J25: =VLOOKUP(L25,Tabella_prezzi!$A$2:$L$91,4,FALSE)*G25 -> 527.28 | L25: L6N03 | M25: =VLOOKUP(L25,Tabella_prezzi!$A$2:$L$91,6,FALSE) -> TS4L6-RAM32 | P25: 0
A26: =(32*G26)+$A$24 -> 640 | B26: Memory Capacity | D26: =VLOOKUP(L26,Tabella_prezzi!$A$2:$L$91,8,FALSE) -> 32GB - 2Rx4 DDR4 RDIMM 3200MHz | F26: 370-AEVP | G26: 4 | H26: =VLOOKUP(L26,Tabella_prezzi!$A$2:$L$91,9,FALSE) -> 32GB - 2Rx4 DDR4 RDIMM 3200MHz | I26: =VLOOKUP(L26,Tabella_prezzi!$A$2:$L$91,3,FALSE) -> OpzRAM32GB | J26: =VLOOKUP(L26,Tabella_prezzi!$A$2:$L$91,4,FALSE)*G26 -> 1054.56 | L26: L6N03 | M26: =VLOOKUP(L26,Tabella_prezzi!$A$2:$L$91,6,FALSE) -> TS4L6-RAM32 | P26: 0
A27: =(32*G27)+$A$24 -> 704 | B27: Memory Capacity | D27: =VLOOKUP(L27,Tabella_prezzi!$A$2:$L$91,8,FALSE) -> 32GB - 2Rx4 DDR4 RDIMM 3200MHz | F27: 370-AEVP | G27: 6 | H27: =VLOOKUP(L27,Tabella_prezzi!$A$2:$L$91,9,FALSE) -> 32GB - 2Rx4 DDR4 RDIMM 3200MHz | I27: =VLOOKUP(L27,Tabella_prezzi!$A$2:$L$91,3,FALSE) -> OpzRAM32GB | J27: =VLOOKUP(L27,Tabella_prezzi!$A$2:$L$91,4,FALSE)*G27 -> 1581.84 | L27: L6N03 | M27: =VLOOKUP(L27,Tabella_prezzi!$A$2:$L$91,6,FALSE) -> TS4L6-RAM32 | P27: 0
A28: 768 | B28: Memory Capacity | D28: =VLOOKUP(L28,Tabella_prezzi!$A$2:$L$91,8,FALSE) -> 32GB - 2Rx4 DDR4 RDIMM 3200MHz | F28: 370-AEVP | G28: 8 | H28: =VLOOKUP(L28,Tabella_prezzi!$A$2:$L$91,9,FALSE) -> 32GB - 2Rx4 DDR4 RDIMM 3200MHz | I28: =VLOOKUP(L28,Tabella_prezzi!$A$2:$L$91,3,FALSE) -> OpzRAM32GB | J28: =VLOOKUP(L28,Tabella_prezzi!$A$2:$L$91,4,FALSE)*G28 -> 2109.12 | L28: L6N03 | M28: =VLOOKUP(L28,Tabella_prezzi!$A$2:$L$91,6,FALSE) -> TS4L6-RAM32 | P28: 0
A29: 832 | B29: Memory Capacity | D29: =VLOOKUP(L29,Tabella_prezzi!$A$2:$L$91,8,FALSE) -> 32GB - 2Rx4 DDR4 RDIMM 3200MHz | F29: 370-AEVP | G29: 10 | H29: =VLOOKUP(L29,Tabella_prezzi!$A$2:$L$91,9,FALSE) -> 32GB - 2Rx4 DDR4 RDIMM 3200MHz | I29: =VLOOKUP(L29,Tabella_prezzi!$A$2:$L$91,3,FALSE) -> OpzRAM32GB | J29: =VLOOKUP(L29,Tabella_prezzi!$A$2:$L$91,4,FALSE)*G29 -> 2636.4 | L29: L6N03 | M29: =VLOOKUP(L29,Tabella_prezzi!$A$2:$L$91,6,FALSE) -> TS4L6-RAM32 | P29: 0
A30: 896 | B30: Memory Capacity | D30: =VLOOKUP(L30,Tabella_prezzi!$A$2:$L$91,8,FALSE) -> 32GB - 2Rx4 DDR4 RDIMM 3200MHz | F30: 370-AEVP | G30: 12 | H30: =VLOOKUP(L30,Tabella_prezzi!$A$2:$L$91,9,FALSE) -> 32GB - 2Rx4 DDR4 RDIMM 3200MHz | I30: =VLOOKUP(L30,Tabella_prezzi!$A$2:$L$91,3,FALSE) -> OpzRAM32GB | J30: =VLOOKUP(L30,Tabella_prezzi!$A$2:$L$91,4,FALSE)*G30 -> 3163.68 | L30: L6N03 | M30: =VLOOKUP(L30,Tabella_prezzi!$A$2:$L$91,6,FALSE) -> TS4L6-RAM32 | P30: 0
A31: 960 | B31: Memory Capacity | D31: =VLOOKUP(L31,Tabella_prezzi!$A$2:$L$91,8,FALSE) -> 32GB - 2Rx4 DDR4 RDIMM 3200MHz | F31: 370-AEVP | G31: 14 | H31: =VLOOKUP(L31,Tabella_prezzi!$A$2:$L$91,9,FALSE) -> 32GB - 2Rx4 DDR4 RDIMM 3200MHz | I31: =VLOOKUP(L31,Tabella_prezzi!$A$2:$L$91,3,FALSE) -> OpzRAM32GB | J31: =VLOOKUP(L31,Tabella_prezzi!$A$2:$L$91,4,FALSE)*G31 -> 3690.96 | L31: L6N03 | M31: =VLOOKUP(L31,Tabella_prezzi!$A$2:$L$91,6,FALSE) -> TS4L6-RAM32 | P31: 0
A32: 1024 | B32: Memory Capacity | D32: =VLOOKUP(L32,Tabella_prezzi!$A$2:$L$91,8,FALSE) -> 32GB - 2Rx4 DDR4 RDIMM 3200MHz | F32: 370-AEVP | G32: 16 | H32: =VLOOKUP(L32,Tabella_prezzi!$A$2:$L$91,9,FALSE) -> 32GB - 2Rx4 DDR4 RDIMM 3200MHz | I32: =VLOOKUP(L32,Tabella_prezzi!$A$2:$L$91,3,FALSE) -> OpzRAM32GB | J32: =VLOOKUP(L32,Tabella_prezzi!$A$2:$L$91,4,FALSE)*G32 -> 4218.24 | L32: L6N03 | M32: =VLOOKUP(L32,Tabella_prezzi!$A$2:$L$91,6,FALSE) -> TS4L6-RAM32 | P32: 0
A33: 1088 | B33: Memory Capacity | D33: =VLOOKUP(L33,Tabella_prezzi!$A$2:$L$91,8,FALSE) -> 32GB - 2Rx4 DDR4 RDIMM 3200MHz | F33: 370-AEVP | G33: 18 | H33: =VLOOKUP(L70,Tabella_prezzi!$A$2:$L$91,9,FALSE) -> 64GB - 2RX4 DDR4 RDIMM 3200MHz | I33: =VLOOKUP(L70,Tabella_prezzi!$A$2:$L$91,3,FALSE) -> OpzRAM64GB | J33: =VLOOKUP(L70,Tabella_prezzi!$A$2:$L$91,4,FALSE)*G33 -> 6108.48 | L33: L6N03 | M33: =VLOOKUP(L70,Tabella_prezzi!$A$2:$L$91,6,FALSE) -> TS4L6-RAM64 | P33: 0
A34: 1152 | B34: Memory Capacity | D34: =VLOOKUP(L34,Tabella_prezzi!$A$2:$L$91,8,FALSE) -> 32GB - 2Rx4 DDR4 RDIMM 3200MHz | F34: 370-AEVP | G34: 20 | H34: =VLOOKUP(L71,Tabella_prezzi!$A$2:$L$91,9,FALSE) -> 64GB - 2RX4 DDR4 RDIMM 3200MHz | I34: =VLOOKUP(L71,Tabella_prezzi!$A$2:$L$91,3,FALSE) -> OpzRAM64GB | J34: =VLOOKUP(L71,Tabella_prezzi!$A$2:$L$91,4,FALSE)*G34 -> 6787.2 | L34: L6N03 | M34: =VLOOKUP(L71,Tabella_prezzi!$A$2:$L$91,6,FALSE) -> TS4L6-RAM64 | P34: 0
A35: 1216 | B35: Memory Capacity | D35: =VLOOKUP(L35,Tabella_prezzi!$A$2:$L$91,8,FALSE) -> 32GB - 2Rx4 DDR4 RDIMM 3200MHz | F35: 370-AEVP | G35: 22 | H35: =VLOOKUP(L72,Tabella_prezzi!$A$2:$L$91,9,FALSE) -> 64GB - 2RX4 DDR4 RDIMM 3200MHz | I35: =VLOOKUP(L72,Tabella_prezzi!$A$2:$L$91,3,FALSE) -> OpzRAM64GB | J35: =VLOOKUP(L72,Tabella_prezzi!$A$2:$L$91,4,FALSE)*G35 -> 7465.92 | L35: L6N03 | M35: =VLOOKUP(L72,Tabella_prezzi!$A$2:$L$91,6,FALSE) -> TS4L6-RAM64 | P35: 0
A36: 1280 | B36: Memory Capacity | D36: =VLOOKUP(L36,Tabella_prezzi!$A$2:$L$91,8,FALSE) -> 32GB - 2Rx4 DDR4 RDIMM 3200MHz | F36: 370-AEVP | G36: 24 | H36: =VLOOKUP(#REF!,Tabella_prezzi!$A$2:$L$91,9,FALSE) ->  | I36: =VLOOKUP(#REF!,Tabella_prezzi!$A$2:$L$91,3,FALSE) ->  | J36: =VLOOKUP(#REF!,Tabella_prezzi!$A$2:$L$91,4,FALSE)*G36 ->  | L36: L6N03 | M36: =VLOOKUP(#REF!,Tabella_prezzi!$A$2:$L$91,6,FALSE) ->  | P36: 0
A37: 1344 | B37: Memory Capacity | D37: =VLOOKUP(L37,Tabella_prezzi!$A$2:$L$91,8,FALSE) -> 32GB - 2Rx4 DDR4 RDIMM 3200MHz | F37: 370-AEVP | G37: 26 | H37: =VLOOKUP(L73,Tabella_prezzi!$A$2:$L$91,9,FALSE) -> 64GB - 2RX4 DDR4 RDIMM 3200MHz | I37: =VLOOKUP(L73,Tabella_prezzi!$A$2:$L$91,3,FALSE) -> OpzRAM64GB | J37: =VLOOKUP(L73,Tabella_prezzi!$A$2:$L$91,4,FALSE)*G37 -> 8823.36 | L37: L6N03 | M37: =VLOOKUP(L73,Tabella_prezzi!$A$2:$L$91,6,FALSE) -> TS4L6-RAM64 | P37: 0
A38: ="" ->  | B38: 0 | C38: 0 | D38: 0 | E38: 0 | F38: 0 | G38: 0 | H38: 0 | I38: 0 | J38: 0 | K38: 0 | L38: 0 | M38: 0 | N38: 0 | O38: ="" ->  | P38: ="" -> 
A39: TS4L6_RAM_VSAN 512(2CPU) | P39: 0
A40: 512 | B40: Memory Capacity | D40: =VLOOKUP(L40,Tabella_prezzi!$A$2:$L$91,8,FALSE) -> 32GB - 2Rx4 DDR4 RDIMM 3200MHz | F40: 370-AEVP | G40: 0 | H40: =VLOOKUP(L40,Tabella_prezzi!$A$2:$L$91,9,FALSE) -> 32GB - 2Rx4 DDR4 RDIMM 3200MHz | I40: =VLOOKUP(L40,Tabella_prezzi!$A$2:$L$91,3,FALSE) -> OpzRAM32GB | J40: =VLOOKUP(L40,Tabella_prezzi!$A$2:$L$91,4,FALSE)*G40 -> 0 | L40: L6N03 | M40: =VLOOKUP(L40,Tabella_prezzi!$A$2:$L$91,6,FALSE) -> TS4L6-RAM32 | P40: 0
A41: =(32*G41)+$A$24 -> 768 | B41: Memory Capacity | D41: =VLOOKUP(L41,Tabella_prezzi!$A$2:$L$91,8,FALSE) -> 32GB - 2Rx4 DDR4 RDIMM 3200MHz | F41: 370-AEVP | G41: 8 | H41: =VLOOKUP(L41,Tabella_prezzi!$A$2:$L$91,9,FALSE) -> 32GB - 2Rx4 DDR4 RDIMM 3200MHz | I41: =VLOOKUP(L41,Tabella_prezzi!$A$2:$L$91,3,FALSE) -> OpzRAM32GB | J41: =VLOOKUP(L41,Tabella_prezzi!$A$2:$L$91,4,FALSE)*G41 -> 2109.12 | L41: L6N03 | M41: =VLOOKUP(L41,Tabella_prezzi!$A$2:$L$91,6,FALSE) -> TS4L6-RAM32
A42: TS4L6_RAM_VSAN 512(4CPU)
A43: =(32*G43)+$A$24 -> 1024 | B43: Memory Capacity | D43: =VLOOKUP(L43,Tabella_prezzi!$A$2:$L$91,8,FALSE) -> 32GB - 2Rx4 DDR4 RDIMM 3200MHz | F43: 370-AEVP | G43: 16 | H43: =VLOOKUP(L43,Tabella_prezzi!$A$2:$L$91,9,FALSE) -> 32GB - 2Rx4 DDR4 RDIMM 3200MHz | I43: =VLOOKUP(L43,Tabella_prezzi!$A$2:$L$91,3,FALSE) -> OpzRAM32GB | J43: =VLOOKUP(L43,Tabella_prezzi!$A$2:$L$91,4,FALSE)*G43 -> 4218.24 | L43: L6N03 | M43: =VLOOKUP(L43,Tabella_prezzi!$A$2:$L$91,6,FALSE) -> TS4L6-RAM32
A44: =(32*G44)+$A$24 -> 1536 | B44: Memory Capacity | D44: =VLOOKUP(L44,Tabella_prezzi!$A$2:$L$91,8,FALSE) -> 32GB - 2Rx4 DDR4 RDIMM 3200MHz | F44: 370-AEVP | G44: 32 | H44: =VLOOKUP(L44,Tabella_prezzi!$A$2:$L$91,9,FALSE) -> 32GB - 2Rx4 DDR4 RDIMM 3200MHz | I44: =VLOOKUP(L44,Tabella_prezzi!$A$2:$L$91,3,FALSE) -> OpzRAM32GB | J44: =VLOOKUP(L44,Tabella_prezzi!$A$2:$L$91,4,FALSE)*G44 -> 8436.48 | L44: L6N03 | M44: =VLOOKUP(L44,Tabella_prezzi!$A$2:$L$91,6,FALSE) -> TS4L6-RAM32
A45: TS4L6_RAM_VSAN1TB(2CPU)
A46: ="" ->  | B46: ="" ->  | C46: ="" ->  | D46: ="" ->  | E46: ="" ->  | F46: ="" ->  | G46: ="" ->  | H46: ="" ->  | I46: ="" ->  | J46: ="" ->  | K46: ="" ->  | L46: ="" ->  | M46: ="" -> 
A47: =(64*G47) -> 1024 | B47: Memory Capacity | D47: =VLOOKUP(L47,Tabella_prezzi!$A$2:$L$91,8,FALSE) -> 64GB - 2RX4 DDR4 RDIMM 3200MHz | F47: 370-AEVP | G47: 16 | H47: =VLOOKUP(L47,Tabella_prezzi!$A$2:$L$91,9,FALSE) -> 64GB - 2RX4 DDR4 RDIMM 3200MHz | I47: =VLOOKUP(L47,Tabella_prezzi!$A$2:$L$91,3,FALSE) -> OpzRAM64GB | J47: =VLOOKUP(L47,Tabella_prezzi!$A$2:$L$91,4,FALSE)*G47 -> 5429.76 | L47: L6N04 | M47: =VLOOKUP(L47,Tabella_prezzi!$A$2:$L$91,6,FALSE) -> TS4L6-RAM64
A48: =(64*G48) -> 1536 | B48: Memory Capacity | D48: =VLOOKUP(L48,Tabella_prezzi!$A$2:$L$91,8,FALSE) -> 64GB - 2RX4 DDR4 RDIMM 3200MHz | F48: 370-AEVP | G48: 24 | H48: =VLOOKUP(L48,Tabella_prezzi!$A$2:$L$91,9,FALSE) -> 64GB - 2RX4 DDR4 RDIMM 3200MHz | I48: =VLOOKUP(L48,Tabella_prezzi!$A$2:$L$91,3,FALSE) -> OpzRAM64GB | J48: =VLOOKUP(L48,Tabella_prezzi!$A$2:$L$91,4,FALSE)*G48 -> 8144.64 | L48: L6N04 | M48: =VLOOKUP(L48,Tabella_prezzi!$A$2:$L$91,6,FALSE) -> TS4L6-RAM64
A49: TS4L6_RAM_VSAN2TB(4CPU)64
A50: ="" ->  | B50: 0 | C50: 0 | D50: 0 | E50: 0 | F50: 0 | G50: 0 | H50: 0 | I50: 0 | J50: 0 | K50: 0 | L50: 0 | M50: ="" -> 
A51: =(64*G51) -> 2048 | B51: Memory Capacity | D51: =VLOOKUP(L51,Tabella_prezzi!$A$2:$L$91,8,FALSE) -> 64GB - 2RX4 DDR4 RDIMM 3200MHz | F51: 370-AEVP | G51: 32 | H51: =VLOOKUP(L51,Tabella_prezzi!$A$2:$L$91,9,FALSE) -> 64GB - 2RX4 DDR4 RDIMM 3200MHz | I51: =VLOOKUP(L51,Tabella_prezzi!$A$2:$L$91,3,FALSE) -> OpzRAM64GB | J51: =VLOOKUP(L51,Tabella_prezzi!$A$2:$L$91,4,FALSE)*G51 -> 10859.52 | K51: 0 | L51: L6N04 | M51: =VLOOKUP(L51,Tabella_prezzi!$A$2:$L$91,6,FALSE) -> TS4L6-RAM64
A52: =(64*G52) -> 3072 | B52: Memory Capacity | D52: =VLOOKUP(L52,Tabella_prezzi!$A$2:$L$91,8,FALSE) -> 64GB - 2RX4 DDR4 RDIMM 3200MHz | F52: 370-AEVP | G52: 48 | H52: =VLOOKUP(L52,Tabella_prezzi!$A$2:$L$91,9,FALSE) -> 64GB - 2RX4 DDR4 RDIMM 3200MHz | I52: =VLOOKUP(L52,Tabella_prezzi!$A$2:$L$91,3,FALSE) -> OpzRAM64GB | J52: =VLOOKUP(L52,Tabella_prezzi!$A$2:$L$91,4,FALSE)*G52 -> 16289.28 | L52: L6N04 | M52: =VLOOKUP(L52,Tabella_prezzi!$A$2:$L$91,6,FALSE) -> TS4L6-RAM64
A53: TS4L6_RAM_VSAN 2tb(4CPU)
A54: Aggiungere Terzo e Quarto Processore | N54: ="" ->  | O54: ="" ->  | P54: ="" ->  | Q54: ="" ->  | R54: ="" ->  | S54: ="" -> 
A55: =((32*G55)+$A$24+(64*Q55)) -> 2048 | B55: Memory Capacity | D55: =VLOOKUP(L55,Tabella_prezzi!$A$2:$L$91,8,FALSE) -> 32GB - 2Rx4 DDR4 RDIMM 3200MHz | F55: 370-AEVP | G55: 16 | H55: =VLOOKUP(L55,Tabella_prezzi!$A$2:$L$91,9,FALSE) -> 32GB - 2Rx4 DDR4 RDIMM 3200MHz | I55: =VLOOKUP(L55,Tabella_prezzi!$A$2:$L$91,3,FALSE) -> OpzRAM32GB | J55: =VLOOKUP(L55,Tabella_prezzi!$A$2:$L$91,4,FALSE)*G55 -> 4218.24 | L55: L6N03 | M55: =VLOOKUP(L55,Tabella_prezzi!$A$2:$L$91,6,FALSE) -> TS4L6-RAM32 | N55: =A55 -> 2048 | O55: =VLOOKUP(S55,Tabella_prezzi!$A$2:$L$91,6,FALSE) -> TS4L6-RAM64 | P55: =VLOOKUP(S55,Tabella_prezzi!$A$2:$L$91,4,FALSE)*Q55 -> 5429.76 | Q55: 16 | R55: =VLOOKUP(S55,Tabella_prezzi!$A$2:$L$91,8,FALSE) -> 64GB - 2RX4 DDR4 RDIMM 3200MHz | S55: L6N04
A56: TS4L6_RAM (4CPU)
A57: 512 | B57: Memory Capacity | D57: =VLOOKUP(L57,Tabella_prezzi!$A$2:$L$91,8,FALSE) -> 32GB - 2Rx4 DDR4 RDIMM 3200MHz | F57: 370-AEVP | G57: 0 | H57: =VLOOKUP(L57,Tabella_prezzi!$A$2:$L$91,9,FALSE) -> 32GB - 2Rx4 DDR4 RDIMM 3200MHz | I57: =VLOOKUP(L57,Tabella_prezzi!$A$2:$L$91,3,FALSE) -> OpzRAM32GB | J57: =VLOOKUP(L57,Tabella_prezzi!$A$2:$L$91,4,FALSE)*G57 -> 0 | L57: L6N03 | M57: =VLOOKUP(L57,Tabella_prezzi!$A$2:$L$91,6,FALSE) -> TS4L6-RAM32 | N57: =A57 -> 512 | O57: =VLOOKUP(S57,Tabella_prezzi!$A$2:$L$91,6,FALSE) -> TS4L6-RAM64 | P57: 0 | Q57: 0 | R57: =VLOOKUP(S57,Tabella_prezzi!$A$2:$L$91,8,FALSE) -> 64GB - 2RX4 DDR4 RDIMM 3200MHz | S57: L6N04
A58: =(32*G58)+$A$57 -> 640 | B58: Memory Capacity | D58: =VLOOKUP(L58,Tabella_prezzi!$A$2:$L$91,8,FALSE) -> 32GB - 2Rx4 DDR4 RDIMM 3200MHz | F58: 370-AEVP | G58: 4 | H58: =VLOOKUP(L58,Tabella_prezzi!$A$2:$L$91,9,FALSE) -> 32GB - 2Rx4 DDR4 RDIMM 3200MHz | I58: =VLOOKUP(L58,Tabella_prezzi!$A$2:$L$91,3,FALSE) -> OpzRAM32GB | J58: =VLOOKUP(L58,Tabella_prezzi!$A$2:$L$91,4,FALSE)*G58 -> 1054.56 | L58: L6N03 | M58: =VLOOKUP(L58,Tabella_prezzi!$A$2:$L$91,6,FALSE) -> TS4L6-RAM32 | N58: =A58 -> 640 | O58: =VLOOKUP(S58,Tabella_prezzi!$A$2:$L$91,6,FALSE) -> TS4L6-RAM64 | P58: 0 | Q58: 0 | R58: =VLOOKUP(S58,Tabella_prezzi!$A$2:$L$91,8,FALSE) -> 64GB - 2RX4 DDR4 RDIMM 3200MHz | S58: L6N04
A59: =(32*G59)+$A$57 -> 768 | B59: Memory Capacity | D59: =VLOOKUP(L59,Tabella_prezzi!$A$2:$L$91,8,FALSE) -> 32GB - 2Rx4 DDR4 RDIMM 3200MHz | F59: 370-AEVP | G59: 8 | H59: =VLOOKUP(L59,Tabella_prezzi!$A$2:$L$91,9,FALSE) -> 32GB - 2Rx4 DDR4 RDIMM 3200MHz | I59: =VLOOKUP(L59,Tabella_prezzi!$A$2:$L$91,3,FALSE) -> OpzRAM32GB | J59: =VLOOKUP(L59,Tabella_prezzi!$A$2:$L$91,4,FALSE)*G59 -> 2109.12 | L59: L6N03 | M59: =VLOOKUP(L59,Tabella_prezzi!$A$2:$L$91,6,FALSE) -> TS4L6-RAM32 | N59: 768 | O59: =VLOOKUP(S59,Tabella_prezzi!$A$2:$L$91,6,FALSE) -> TS4L6-RAM64 | P59: 0 | Q59: 0 | R59: =VLOOKUP(S59,Tabella_prezzi!$A$2:$L$91,8,FALSE) -> 64GB - 2RX4 DDR4 RDIMM 3200MHz | S59: L6N04
A60: 896 | B60: Memory Capacity | D60: =VLOOKUP(L60,Tabella_prezzi!$A$2:$L$91,8,FALSE) -> 32GB - 2Rx4 DDR4 RDIMM 3200MHz | F60: 370-AEVP | G60: 12 | H60: =VLOOKUP(L60,Tabella_prezzi!$A$2:$L$91,9,FALSE) -> 32GB - 2Rx4 DDR4 RDIMM 3200MHz | I60: =VLOOKUP(L60,Tabella_prezzi!$A$2:$L$91,3,FALSE) -> OpzRAM32GB | J60: =VLOOKUP(L60,Tabella_prezzi!$A$2:$L$91,4,FALSE)*G60 -> 3163.68 | L60: L6N03 | M60: =VLOOKUP(L60,Tabella_prezzi!$A$2:$L$91,6,FALSE) -> TS4L6-RAM32 | N60: 896 | O60: =VLOOKUP(S60,Tabella_prezzi!$A$2:$L$91,6,FALSE) -> TS4L6-RAM64 | P60: 0 | Q60: 0 | R60: =VLOOKUP(S60,Tabella_prezzi!$A$2:$L$91,8,FALSE) -> 64GB - 2RX4 DDR4 RDIMM 3200MHz | S60: L6N04
A61: 1024 | B61: Memory Capacity | D61: =VLOOKUP(L61,Tabella_prezzi!$A$2:$L$91,8,FALSE) -> 32GB - 2Rx4 DDR4 RDIMM 3200MHz | F61: 370-AEVP | G61: 16 | H61: =VLOOKUP(L61,Tabella_prezzi!$A$2:$L$91,9,FALSE) -> 32GB - 2Rx4 DDR4 RDIMM 3200MHz | I61: =VLOOKUP(L61,Tabella_prezzi!$A$2:$L$91,3,FALSE) -> OpzRAM32GB | J61: =VLOOKUP(L61,Tabella_prezzi!$A$2:$L$91,4,FALSE)*G61 -> 4218.24 | L61: L6N03 | M61: =VLOOKUP(L61,Tabella_prezzi!$A$2:$L$91,6,FALSE) -> TS4L6-RAM32 | N61: 1024 | O61: =VLOOKUP(S61,Tabella_prezzi!$A$2:$L$91,6,FALSE) -> TS4L6-RAM64 | P61: 0 | Q61: 0 | R61: =VLOOKUP(S61,Tabella_prezzi!$A$2:$L$91,8,FALSE) -> 64GB - 2RX4 DDR4 RDIMM 3200MHz | S61: L6N04
A62: 1152 | B62: Memory Capacity | D62: =VLOOKUP(L62,Tabella_prezzi!$A$2:$L$91,8,FALSE) -> 32GB - 2Rx4 DDR4 RDIMM 3200MHz | F62: 370-AEVP | G62: 20 | H62: =VLOOKUP(L62,Tabella_prezzi!$A$2:$L$91,9,FALSE) -> 32GB - 2Rx4 DDR4 RDIMM 3200MHz | I62: =VLOOKUP(L62,Tabella_prezzi!$A$2:$L$91,3,FALSE) -> OpzRAM32GB | J62: =VLOOKUP(L62,Tabella_prezzi!$A$2:$L$91,4,FALSE)*G62 -> 5272.8 | L62: L6N03 | M62: =VLOOKUP(L62,Tabella_prezzi!$A$2:$L$91,6,FALSE) -> TS4L6-RAM32 | N62: 1152 | O62: =VLOOKUP(S62,Tabella_prezzi!$A$2:$L$91,6,FALSE) -> TS4L6-RAM64 | P62: 0 | Q62: 0 | R62: =VLOOKUP(S62,Tabella_prezzi!$A$2:$L$91,8,FALSE) -> 64GB - 2RX4 DDR4 RDIMM 3200MHz | S62: L6N04
A63: 1280 | B63: Memory Capacity | D63: =VLOOKUP(L63,Tabella_prezzi!$A$2:$L$91,8,FALSE) -> 32GB - 2Rx4 DDR4 RDIMM 3200MHz | F63: 370-AEVP | G63: 24 | H63: =VLOOKUP(L63,Tabella_prezzi!$A$2:$L$91,9,FALSE) -> 32GB - 2Rx4 DDR4 RDIMM 3200MHz | I63: =VLOOKUP(L63,Tabella_prezzi!$A$2:$L$91,3,FALSE) -> OpzRAM32GB | J63: =VLOOKUP(L63,Tabella_prezzi!$A$2:$L$91,4,FALSE)*G63 -> 6327.36 | L63: L6N03 | M63: =VLOOKUP(L63,Tabella_prezzi!$A$2:$L$91,6,FALSE) -> TS4L6-RAM32 | N63: 1280 | O63: =VLOOKUP(S63,Tabella_prezzi!$A$2:$L$91,6,FALSE) -> TS4L6-RAM64 | P63: 0 | Q63: 0 | R63: =VLOOKUP(S63,Tabella_prezzi!$A$2:$L$91,8,FALSE) -> 64GB - 2RX4 DDR4 RDIMM 3200MHz | S63: L6N04
A64: 1408 | B64: Memory Capacity | D64: =VLOOKUP(L64,Tabella_prezzi!$A$2:$L$91,8,FALSE) -> 32GB - 2Rx4 DDR4 RDIMM 3200MHz | F64: 370-AEVP | G64: 28 | H64: =VLOOKUP(L64,Tabella_prezzi!$A$2:$L$91,9,FALSE) -> 32GB - 2Rx4 DDR4 RDIMM 3200MHz | I64: =VLOOKUP(L64,Tabella_prezzi!$A$2:$L$91,3,FALSE) -> OpzRAM32GB | J64: =VLOOKUP(L64,Tabella_prezzi!$A$2:$L$91,4,FALSE)*G64 -> 7381.92 | L64: L6N03 | M64: =VLOOKUP(L64,Tabella_prezzi!$A$2:$L$91,6,FALSE) -> TS4L6-RAM32 | N64: 1408 | O64: =VLOOKUP(S64,Tabella_prezzi!$A$2:$L$91,6,FALSE) -> TS4L6-RAM64 | P64: 0 | Q64: 0 | R64: =VLOOKUP(S64,Tabella_prezzi!$A$2:$L$91,8,FALSE) -> 64GB - 2RX4 DDR4 RDIMM 3200MHz | S64: L6N04
A65: 1536 | B65: Memory Capacity | D65: =VLOOKUP(L65,Tabella_prezzi!$A$2:$L$91,8,FALSE) -> 32GB - 2Rx4 DDR4 RDIMM 3200MHz | F65: 370-AEVP | G65: 32 | H65: =VLOOKUP(L65,Tabella_prezzi!$A$2:$L$91,9,FALSE) -> 32GB - 2Rx4 DDR4 RDIMM 3200MHz | I65: =VLOOKUP(L65,Tabella_prezzi!$A$2:$L$91,3,FALSE) -> OpzRAM32GB | J65: =VLOOKUP(L65,Tabella_prezzi!$A$2:$L$91,4,FALSE)*G65 -> 8436.48 | L65: L6N03 | M65: =VLOOKUP(L65,Tabella_prezzi!$A$2:$L$91,6,FALSE) -> TS4L6-RAM32 | N65: 1536 | O65: =VLOOKUP(S65,Tabella_prezzi!$A$2:$L$91,6,FALSE) -> TS4L6-RAM64 | P65: 0 | Q65: 0 | R65: =VLOOKUP(S65,Tabella_prezzi!$A$2:$L$91,8,FALSE) -> 64GB - 2RX4 DDR4 RDIMM 3200MHz | S65: L6N04
A66: =(32*G66)+(64*G67) -> 2048 | B66: Memory Capacity | D66: =VLOOKUP(L66,Tabella_prezzi!$A$2:$L$91,8,FALSE) -> 32GB - 2Rx4 DDR4 RDIMM 3200MHz | F66: 370-AEVP | G66: 32 | H66: =VLOOKUP(L66,Tabella_prezzi!$A$2:$L$91,9,FALSE) -> 32GB - 2Rx4 DDR4 RDIMM 3200MHz | I66: =VLOOKUP(L66,Tabella_prezzi!$A$2:$L$91,3,FALSE) -> OpzRAM32GB | J66: =VLOOKUP(L66,Tabella_prezzi!$A$2:$L$91,4,FALSE)*G66 -> 8436.48 | L66: L6N03 | M66: =VLOOKUP(L66,Tabella_prezzi!$A$2:$L$91,6,FALSE) -> TS4L6-RAM32 | N66: 2048 | O66: =VLOOKUP(S66,Tabella_prezzi!$A$2:$L$91,6,FALSE) -> TS4L6-RAM64 | P66: 0 | Q66: 16 | R66: =VLOOKUP(S66,Tabella_prezzi!$A$2:$L$91,8,FALSE) -> 64GB - 2RX4 DDR4 RDIMM 3200MHz | S66: L6N04
B67: Memory Capacity | D67: =VLOOKUP(L67,Tabella_prezzi!$A$2:$L$91,8,FALSE) -> 32GB - 2Rx4 DDR4 RDIMM 3200MHz | F67: 370-AEVP | G67: 16 | H67: =VLOOKUP(L67,Tabella_prezzi!$A$2:$L$91,9,FALSE) -> 32GB - 2Rx4 DDR4 RDIMM 3200MHz | I67: =VLOOKUP(L67,Tabella_prezzi!$A$2:$L$91,3,FALSE) -> OpzRAM32GB | J67: =VLOOKUP(L67,Tabella_prezzi!$A$2:$L$91,4,FALSE)*G67 -> 4218.24 | L67: L6N03 | M67: =VLOOKUP(L67,Tabella_prezzi!$A$2:$L$91,6,FALSE) -> TS4L6-RAM32 | N67: 0 | O67: =VLOOKUP(S67,Tabella_prezzi!$A$2:$L$91,6,FALSE) -> TS4L6-RAM64 | P67: 0 | Q67: 16 | R67: =VLOOKUP(S67,Tabella_prezzi!$A$2:$L$91,8,FALSE) -> 64GB - 2RX4 DDR4 RDIMM 3200MHz | S67: L6N04
A68: 1920 | B68: Memory Capacity | D68: =VLOOKUP(L68,Tabella_prezzi!$A$2:$L$91,8,FALSE) -> 32GB - 2Rx4 DDR4 RDIMM 3200MHz | F68: 370-AEVP | G68: 44 | H68: =VLOOKUP(L68,Tabella_prezzi!$A$2:$L$91,9,FALSE) -> 32GB - 2Rx4 DDR4 RDIMM 3200MHz | I68: =VLOOKUP(L68,Tabella_prezzi!$A$2:$L$91,3,FALSE) -> OpzRAM32GB | J68: =VLOOKUP(L68,Tabella_prezzi!$A$2:$L$91,4,FALSE)*G68 -> 11600.16 | L68: L6N03 | M68: =VLOOKUP(L68,Tabella_prezzi!$A$2:$L$91,6,FALSE) -> TS4L6-RAM32 | N68: 1920 | O68: =VLOOKUP(S68,Tabella_prezzi!$A$2:$L$91,6,FALSE) -> TS4L6-RAM64 | P68: =VLOOKUP(S68,Tabella_prezzi!$A$2:$L$91,4,FALSE)*Q68 -> 5429.76 | Q68: 16 | R68: =VLOOKUP(S68,Tabella_prezzi!$A$2:$L$91,8,FALSE) -> 64GB - 2RX4 DDR4 RDIMM 3200MHz | S68: L6N04
A69: 2048 | B69: Memory Capacity | D69: =VLOOKUP(L69,Tabella_prezzi!$A$2:$L$91,8,FALSE) -> 64GB - 2RX4 DDR4 RDIMM 3200MHz | F69: 370-AEVP | G69: 48 | H69: =VLOOKUP(L69,Tabella_prezzi!$A$2:$L$91,9,FALSE) -> 64GB - 2RX4 DDR4 RDIMM 3200MHz | I69: =VLOOKUP(L69,Tabella_prezzi!$A$2:$L$91,3,FALSE) -> OpzRAM64GB | J69: =VLOOKUP(L69,Tabella_prezzi!$A$2:$L$91,4,FALSE)*(G69) -> 16289.28 | L69: L6N04 | M69: =VLOOKUP(L69,Tabella_prezzi!$A$2:$L$91,6,FALSE) -> TS4L6-RAM64 | N69: 2048 | O69: =VLOOKUP(S69,Tabella_prezzi!$A$2:$L$91,6,FALSE) -> TS4L6-RAM64 | P69: =VLOOKUP(S69,Tabella_prezzi!$A$2:$L$91,4,FALSE)*Q69 -> 5429.76 | Q69: 16 | R69: =VLOOKUP(S69,Tabella_prezzi!$A$2:$L$91,8,FALSE) -> 64GB - 2RX4 DDR4 RDIMM 3200MHz | S69: L6N04
A70: 2176 | B70: Memory Capacity | D70: =VLOOKUP(L70,Tabella_prezzi!$A$2:$L$91,8,FALSE) -> 64GB - 2RX4 DDR4 RDIMM 3200MHz | F70: 370-AEVP | G70: 52 | H70: =VLOOKUP(L70,Tabella_prezzi!$A$2:$L$91,9,FALSE) -> 64GB - 2RX4 DDR4 RDIMM 3200MHz | I70: =VLOOKUP(L70,Tabella_prezzi!$A$2:$L$91,3,FALSE) -> OpzRAM64GB | J70: =VLOOKUP(L70,Tabella_prezzi!$A$2:$L$91,4,FALSE)*(G70) -> 17646.72 | L70: L6N04 | M70: =VLOOKUP(L70,Tabella_prezzi!$A$2:$L$91,6,FALSE) -> TS4L6-RAM64 | N70: 2176 | O70: =VLOOKUP(S70,Tabella_prezzi!$A$2:$L$91,6,FALSE) -> TS4L6-RAM64 | P70: =VLOOKUP(S70,Tabella_prezzi!$A$2:$L$91,4,FALSE)*Q70 -> 5429.76 | Q70: 16 | R70: =VLOOKUP(S70,Tabella_prezzi!$A$2:$L$91,8,FALSE) -> 64GB - 2RX4 DDR4 RDIMM 3200MHz | S70: L6N04
A71: 2304 | B71: Memory Capacity | D71: =VLOOKUP(L71,Tabella_prezzi!$A$2:$L$91,8,FALSE) -> 64GB - 2RX4 DDR4 RDIMM 3200MHz | F71: 370-AEVP | G71: 56 | H71: =VLOOKUP(L71,Tabella_prezzi!$A$2:$L$91,9,FALSE) -> 64GB - 2RX4 DDR4 RDIMM 3200MHz | I71: =VLOOKUP(L71,Tabella_prezzi!$A$2:$L$91,3,FALSE) -> OpzRAM64GB | J71: =VLOOKUP(L71,Tabella_prezzi!$A$2:$L$91,4,FALSE)*(G71) -> 19004.16 | L71: L6N04 | M71: =VLOOKUP(L71,Tabella_prezzi!$A$2:$L$91,6,FALSE) -> TS4L6-RAM64 | N71: 2304 | O71: =VLOOKUP(S71,Tabella_prezzi!$A$2:$L$91,6,FALSE) -> TS4L6-RAM64 | P71: =VLOOKUP(S71,Tabella_prezzi!$A$2:$L$91,4,FALSE)*Q71 -> 5429.76 | Q71: 16 | R71: =VLOOKUP(S71,Tabella_prezzi!$A$2:$L$91,8,FALSE) -> 64GB - 2RX4 DDR4 RDIMM 3200MHz | S71: L6N04
A72: 2432 | B72: Memory Capacity | D72: =VLOOKUP(L72,Tabella_prezzi!$A$2:$L$91,8,FALSE) -> 64GB - 2RX4 DDR4 RDIMM 3200MHz | F72: 370-AEVP | G72: 60 | H72: =VLOOKUP(L72,Tabella_prezzi!$A$2:$L$91,9,FALSE) -> 64GB - 2RX4 DDR4 RDIMM 3200MHz | I72: =VLOOKUP(L72,Tabella_prezzi!$A$2:$L$91,3,FALSE) -> OpzRAM64GB | J72: =VLOOKUP(L72,Tabella_prezzi!$A$2:$L$91,4,FALSE)*(G72) -> 20361.6 | L72: L6N04 | M72: =VLOOKUP(L72,Tabella_prezzi!$A$2:$L$91,6,FALSE) -> TS4L6-RAM64 | N72: 2432 | O72: =VLOOKUP(S72,Tabella_prezzi!$A$2:$L$91,6,FALSE) -> TS4L6-RAM64 | P72: =VLOOKUP(S72,Tabella_prezzi!$A$2:$L$91,4,FALSE)*Q72 -> 5429.76 | Q72: 16 | R72: =VLOOKUP(S72,Tabella_prezzi!$A$2:$L$91,8,FALSE) -> 64GB - 2RX4 DDR4 RDIMM 3200MHz | S72: L6N04
A73: 2688 | B73: Memory Capacity | D73: =VLOOKUP(L73,Tabella_prezzi!$A$2:$L$91,8,FALSE) -> 64GB - 2RX4 DDR4 RDIMM 3200MHz | F73: 370-AEVP | G73: 68 | H73: =VLOOKUP(L73,Tabella_prezzi!$A$2:$L$91,9,FALSE) -> 64GB - 2RX4 DDR4 RDIMM 3200MHz | I73: =VLOOKUP(L73,Tabella_prezzi!$A$2:$L$91,3,FALSE) -> OpzRAM64GB | J73: =VLOOKUP(L73,Tabella_prezzi!$A$2:$L$91,4,FALSE)*(G73) -> 23076.48 | L73: L6N04 | M73: =VLOOKUP(L73,Tabella_prezzi!$A$2:$L$91,6,FALSE) -> TS4L6-RAM64 | N73: 2688 | O73: =VLOOKUP(S73,Tabella_prezzi!$A$2:$L$91,6,FALSE) -> TS4L6-RAM64 | P73: =VLOOKUP(S73,Tabella_prezzi!$A$2:$L$91,4,FALSE)*Q73 -> 5429.76 | Q73: 16 | R73: =VLOOKUP(S73,Tabella_prezzi!$A$2:$L$91,8,FALSE) -> 64GB - 2RX4 DDR4 RDIMM 3200MHz | S73: L6N04
A74: 2816 | B74: Memory Capacity | D74: =VLOOKUP(L74,Tabella_prezzi!$A$2:$L$91,8,FALSE) -> 64GB - 2RX4 DDR4 RDIMM 3200MHz | F74: 370-AEVP | G74: 72 | H74: =VLOOKUP(L74,Tabella_prezzi!$A$2:$L$91,9,FALSE) -> 64GB - 2RX4 DDR4 RDIMM 3200MHz | I74: =VLOOKUP(L74,Tabella_prezzi!$A$2:$L$91,3,FALSE) -> OpzRAM64GB | J74: =VLOOKUP(L74,Tabella_prezzi!$A$2:$L$91,4,FALSE)*(G74) -> 24433.92 | L74: L6N04 | M74: =VLOOKUP(L74,Tabella_prezzi!$A$2:$L$91,6,FALSE) -> TS4L6-RAM64 | N74: 2816 | O74: =VLOOKUP(S74,Tabella_prezzi!$A$2:$L$91,6,FALSE) -> TS4L6-RAM64 | P74: =VLOOKUP(S74,Tabella_prezzi!$A$2:$L$91,4,FALSE)*Q74 -> 5429.76 | Q74: 16 | R74: =VLOOKUP(S74,Tabella_prezzi!$A$2:$L$91,8,FALSE) -> 64GB - 2RX4 DDR4 RDIMM 3200MHz | S74: L6N04
A75: 2944 | B75: Memory Capacity | D75: =VLOOKUP(L75,Tabella_prezzi!$A$2:$L$91,8,FALSE) -> 64GB - 2RX4 DDR4 RDIMM 3200MHz | F75: 370-AEVP | G75: 76 | H75: =VLOOKUP(L75,Tabella_prezzi!$A$2:$L$91,9,FALSE) -> 64GB - 2RX4 DDR4 RDIMM 3200MHz | I75: =VLOOKUP(L75,Tabella_prezzi!$A$2:$L$91,3,FALSE) -> OpzRAM64GB | J75: =VLOOKUP(L75,Tabella_prezzi!$A$2:$L$91,4,FALSE)*(G75) -> 25791.36 | L75: L6N04 | M75: =VLOOKUP(L75,Tabella_prezzi!$A$2:$L$91,6,FALSE) -> TS4L6-RAM64 | N75: 2944 | O75: =VLOOKUP(S75,Tabella_prezzi!$A$2:$L$91,6,FALSE) -> TS4L6-RAM64 | P75: =VLOOKUP(S75,Tabella_prezzi!$A$2:$L$91,4,FALSE)*Q75 -> 5429.76 | Q75: 16 | R75: =VLOOKUP(S75,Tabella_prezzi!$A$2:$L$91,8,FALSE) -> 64GB - 2RX4 DDR4 RDIMM 3200MHz | S75: L6N04
A76: 1 | B76: 2 | C76: 3 | D76: 4 | E76: 5 | F76: 6 | G76: 7 | H76: 8 | I76: 9 | J76: 10 | K76: 11 | L76: 12 | M76: 13 | O76: 14 | P76: 0 | Q76: 16 | R76: 17 | S76: 18 | T76: 19 | U76: 20 | V76: 21 | W76: 22 | X76: 23
P77: 0
A78: TS4L6_OS | P78: 0
A79: No Operating System | B79: Operating System | G79: 0 | I79: ="" ->  | L79: ="" ->  | M79: ="" ->  | O79: 0 | Q79: ="" ->  | R79: ="" ->  | T79: 0 | U79: 0 | X79: ="" -> 
A80: =D80 -> Windows Server 2022,Standard,ROK,16CORE | B80: Operating System | D80: =VLOOKUP(L80,Tabella_prezzi!$A$2:$L$91,9,FALSE) -> Windows Server 2022,Standard,ROK,16CORE | G80: 1 | H80: =VLOOKUP(L80,Tabella_prezzi!$A$2:$L$91,9,FALSE) -> Windows Server 2022,Standard,ROK,16CORE | I80: =VLOOKUP(L80,Tabella_prezzi!$A$2:$L$91,3,FALSE) -> OpzWinServSTD | J80: =VLOOKUP(L80,Tabella_prezzi!$A$2:$L$91,4,FALSE) -> 728.56 | L80: L6N22 | M80: =VLOOKUP(L80,Tabella_prezzi!$A$2:$L$91,6,FALSE) -> TS4L6-WINSRVSTD | O80: 16 | P80: =VLOOKUP(U80,Tabella_prezzi!$A$2:$L$91,9,FALSE) -> 1-pack of Windows Server 2022/2019 Device CALs (STD or DC) | Q80: =VLOOKUP(U80,Tabella_prezzi!$A$2:$L$91,3,FALSE) -> OpzDeviceCal | R80: =VLOOKUP(U80,Tabella_prezzi!$A$2:$L$91,4,FALSE)*O80 -> 407.2 | T80: 6 | U80: L6N23 | V80: =VLOOKUP(U80,Tabella_prezzi!$A$2:$L$91,4,FALSE)*T80 -> 152.7 | X80: =VLOOKUP(U80,Tabella_prezzi!$A$2:$L$91,6,FALSE) -> TS4L6-WINDEVCAL
A81: =D81 -> Ubuntu Server 22.04 LTS 64 Bit | B81: Operating System | D81: =VLOOKUP(L81,Tabella_prezzi!$A$2:$L$91,9,FALSE) -> Ubuntu Server 22.04 LTS 64 Bit | G81: 1 | H81: =VLOOKUP(L81,Tabella_prezzi!$A$2:$L$91,9,FALSE) -> Ubuntu Server 22.04 LTS 64 Bit | I81: =VLOOKUP(L81,Tabella_prezzi!$A$2:$L$91,3,FALSE) -> OpzOpenSource | J81: =VLOOKUP(L81,Tabella_prezzi!$A$2:$L$91,4,FALSE) -> 37.12 | L81: L6N28 | M81: =VLOOKUP(L81,Tabella_prezzi!$A$2:$L$91,6,FALSE) -> TS4L6-LINUX | O81: 20 | P81: =VLOOKUP(U81,Tabella_prezzi!$A$2:$L$91,9,FALSE) -> 1-pack of Windows Server 2022/2019 User CALs (STD or DC) | Q81: =VLOOKUP(U81,Tabella_prezzi!$A$2:$L$91,3,FALSE) -> OpzUserCal | R81: =VLOOKUP(U81,Tabella_prezzi!$A$2:$L$91,4,FALSE)*O81 -> 700 | T81: 6 | U81: L6N24 | W81: =VLOOKUP(U81,Tabella_prezzi!$A$2:$L$91,4,FALSE)*T81 -> 210 | X81: =VLOOKUP(U81,Tabella_prezzi!$A$2:$L$91,6,FALSE) -> TS4L6-WINUSRCAL
A82: =D82 -> Windows Server 2022 Standard Edition, Add License,2CORE | B82: Operating System | D82: =VLOOKUP(L82,Tabella_prezzi!$A$2:$L$91,9,FALSE) -> Windows Server 2022 Standard Edition, Add License,2CORE | G82: 1 | H82: =VLOOKUP(L82,Tabella_prezzi!$A$2:$L$91,9,FALSE) -> Windows Server 2022 Standard Edition, Add License,2CORE | I82: =VLOOKUP(L82,Tabella_prezzi!$A$2:$L$91,3,FALSE) -> OpzWinServSTD2core | J82: =VLOOKUP(L82,Tabella_prezzi!$A$2:$L$91,4,FALSE) -> 97.28 | L82: L6N25 | M82: =VLOOKUP(L82,Tabella_prezzi!$A$2:$L$91,6,FALSE) -> TS4L6-WINSRV2C | O82: 16 | P82: =VLOOKUP(U82,Tabella_prezzi!$A$2:$L$91,9,FALSE) -> 1-pack of Windows Server 2022/2019 Device CALs (STD or DC) | Q82: =VLOOKUP(U82,Tabella_prezzi!$A$2:$L$91,3,FALSE) -> OpzDeviceCal | R82: =VLOOKUP(U82,Tabella_prezzi!$A$2:$L$91,4,FALSE)*O82 -> 407.2 | T82: 6 | U82: L6N23 | V82: =VLOOKUP(U82,Tabella_prezzi!$A$2:$L$91,4,FALSE)*T82 -> 152.7 | X82: =VLOOKUP(U82,Tabella_prezzi!$A$2:$L$91,6,FALSE) -> TS4L6-WINDEVCAL
A83: =D83 -> 1-pack of Windows Server 2022/2019 Device CALs (STD or DC) | B83: Operating System | D83: =VLOOKUP(L83,Tabella_prezzi!$A$2:$L$91,9,FALSE) -> 1-pack of Windows Server 2022/2019 Device CALs (STD or DC) | G83: 1 | H83: =VLOOKUP(L83,Tabella_prezzi!$A$2:$L$91,9,FALSE) -> 1-pack of Windows Server 2022/2019 Device CALs (STD or DC) | I83: =VLOOKUP(L83,Tabella_prezzi!$A$2:$L$91,3,FALSE) -> OpzDeviceCal | J83: =VLOOKUP(L83,Tabella_prezzi!$A$2:$L$91,4,FALSE) -> 25.45 | L83: L6N23 | M83: =VLOOKUP(L83,Tabella_prezzi!$A$2:$L$91,6,FALSE) -> TS4L6-WINDEVCAL | O83: 20 | P83: =VLOOKUP(U83,Tabella_prezzi!$A$2:$L$91,9,FALSE) -> 1-pack of Windows Server 2022/2019 User CALs (STD or DC) | Q83: =VLOOKUP(U83,Tabella_prezzi!$A$2:$L$91,3,FALSE) -> OpzUserCal | R83: =VLOOKUP(U83,Tabella_prezzi!$A$2:$L$91,4,FALSE)*O83 -> 700 | T83: 6 | U83: L6N24 | W83: =VLOOKUP(U83,Tabella_prezzi!$A$2:$L$91,4,FALSE)*T83 -> 210 | X83: =VLOOKUP(U83,Tabella_prezzi!$A$2:$L$91,6,FALSE) -> TS4L6-WINUSRCAL
A84: =D84 -> 1-pack of Windows Server 2022/2019 User CALs (STD or DC) | B84: Operating System | D84: =VLOOKUP(L84,Tabella_prezzi!$A$2:$L$91,9,FALSE) -> 1-pack of Windows Server 2022/2019 User CALs (STD or DC) | G84: 1 | H84: =VLOOKUP(L84,Tabella_prezzi!$A$2:$L$91,9,FALSE) -> 1-pack of Windows Server 2022/2019 User CALs (STD or DC) | I84: =VLOOKUP(L84,Tabella_prezzi!$A$2:$L$91,3,FALSE) -> OpzUserCal | J84: =VLOOKUP(L84,Tabella_prezzi!$A$2:$L$91,4,FALSE) -> 35 | L84: L6N24 | M84: =VLOOKUP(L84,Tabella_prezzi!$A$2:$L$91,6,FALSE) -> TS4L6-WINUSRCAL | O84: 0 | Q84: ="" ->  | R84: ="" ->  | T84: 0 | U84: 0 | X84: ="" -> 
A85: No Operating System | B85: Operating System | G85: 0 | I85: ="" ->  | L85: ="" ->  | M85: ="" ->  | O85: 0 | Q85: ="" ->  | R85: ="" ->  | T85: 0 | U85: 0 | X85: ="" -> 
A86: =D86 -> Windows Server 2022,Datacenter,ROK,16CORE | B86: Operating System | D86: =VLOOKUP(L86,Tabella_prezzi!$A$2:$L$91,9,FALSE) -> Windows Server 2022,Datacenter,ROK,16CORE | G86: 1 | H86: =VLOOKUP(L86,Tabella_prezzi!$A$2:$L$91,9,FALSE) -> Windows Server 2022,Datacenter,ROK,16CORE | I86: =VLOOKUP(L86,Tabella_prezzi!$A$2:$L$91,3,FALSE) -> OpzWinServDC | J86: =VLOOKUP(L86,Tabella_prezzi!$A$2:$L$91,4,FALSE) -> 2230.59 | L86: L6N26 | M86: =VLOOKUP(L86,Tabella_prezzi!$A$2:$L$91,6,FALSE) -> TS4L6-WinServDC | O86: 16 | P86: =VLOOKUP(U86,Tabella_prezzi!$A$2:$L$91,9,FALSE) -> 1-pack of Windows Server 2022/2019 Device CALs (STD or DC) | Q86: =VLOOKUP(U86,Tabella_prezzi!$A$2:$L$91,3,FALSE) -> OpzDeviceCal | R86: =VLOOKUP(U86,Tabella_prezzi!$A$2:$L$91,4,FALSE)*O86 -> 407.2 | T86: 6 | U86: L6N23 | V86: =VLOOKUP(U86,Tabella_prezzi!$A$2:$L$91,4,FALSE)*T86 -> 152.7 | X86: =VLOOKUP(U86,Tabella_prezzi!$A$2:$L$91,6,FALSE) -> TS4L6-WINDEVCAL
A87: =D87 -> Windows Server 2022 / 2019 Datacenter Edition,Add License,2CORE | B87: Operating System | D87: =VLOOKUP(L87,Tabella_prezzi!$A$2:$L$91,9,FALSE) -> Windows Server 2022 / 2019 Datacenter Edition,Add License,2CORE | G87: 1 | H87: =VLOOKUP(L87,Tabella_prezzi!$A$2:$L$91,9,FALSE) -> Windows Server 2022 / 2019 Datacenter Edition,Add License,2CORE | I87: =VLOOKUP(L87,Tabella_prezzi!$A$2:$L$91,3,FALSE) -> OpzWinServDC2core | J87: =VLOOKUP(L87,Tabella_prezzi!$A$2:$L$91,4,FALSE) -> 438.85 | L87: L6N27 | M87: =VLOOKUP(L87,Tabella_prezzi!$A$2:$L$91,6,FALSE) -> TS4L6-WinServDC2core | O87: 16 | P87: =VLOOKUP(U87,Tabella_prezzi!$A$2:$L$91,9,FALSE) -> 1-pack of Windows Server 2022/2019 Device CALs (STD or DC) | Q87: =VLOOKUP(U87,Tabella_prezzi!$A$2:$L$91,3,FALSE) -> OpzDeviceCal | R87: =VLOOKUP(U87,Tabella_prezzi!$A$2:$L$91,4,FALSE)*O87 -> 407.2 | T87: 6 | U87: L6N23 | V87: =VLOOKUP(U87,Tabella_prezzi!$A$2:$L$91,4,FALSE)*T87 -> 152.7 | X87: =VLOOKUP(U87,Tabella_prezzi!$A$2:$L$91,6,FALSE) -> TS4L6-WINDEVCAL
A89: TS4L6_HDD
A90: ="" ->  | G90: ="" ->  | I90: ="" ->  | L90: ="" ->  | M90: ="" -> 
A91: =VLOOKUP(L91,Tabella_prezzi!$A$2:$L$91,8,FALSE) -> 2.4TB 10k SAS ISE 12Gbps | B91: Hard Drives | D91: =VLOOKUP(L91,Tabella_prezzi!$A$2:$L$91,9,FALSE) -> 2.4TB 10k 512e SAS ISE 12Gbps 2.5in Hot Plug Hard Drive | G91: 1 | H91: =VLOOKUP(L91,Tabella_prezzi!$A$2:$L$91,9,FALSE) -> 2.4TB 10k 512e SAS ISE 12Gbps 2.5in Hot Plug Hard Drive | I91: =VLOOKUP(L91,Tabella_prezzi!$A$2:$L$91,3,FALSE) -> OpzHDD2TB | J91: =VLOOKUP(L91,Tabella_prezzi!$A$2:$L$91,4,FALSE) -> 137.87 | L91: L6N11 | M91: =VLOOKUP(L91,Tabella_prezzi!$A$2:$L$91,6,FALSE) -> TS4L6-HDD2TB
A92: =VLOOKUP(L92,Tabella_prezzi!$A$2:$L$91,8,FALSE) -> 1.2TB 10K RPM SAS ISE 12Gbps | B92: Hard Drives | D92: =VLOOKUP(L92,Tabella_prezzi!$A$2:$L$91,9,FALSE) -> 1.2TB 10k 512n SAS ISE 12Gbps 2.5in Hot Plug Hard Drive | G92: 1 | H92: =VLOOKUP(L92,Tabella_prezzi!$A$2:$L$91,9,FALSE) -> 1.2TB 10k 512n SAS ISE 12Gbps 2.5in Hot Plug Hard Drive | I92: =VLOOKUP(L92,Tabella_prezzi!$A$2:$L$91,3,FALSE) -> OpzHDD1TB | J92: =VLOOKUP(L92,Tabella_prezzi!$A$2:$L$91,4,FALSE) -> 79.54 | L92: L6N12 | M92: =VLOOKUP(L92,Tabella_prezzi!$A$2:$L$91,6,FALSE) -> TS4L6-HDD1TB
A93: =VLOOKUP(L93,Tabella_prezzi!$A$2:$L$91,8,FALSE) -> 3.84TB SSD SAS ISE RI 12Gbps | B93: Hard Drives | D93: =VLOOKUP(L93,Tabella_prezzi!$A$2:$L$91,9,FALSE) -> 3.84TB SSD SAS ISE RI 12Gbps 512e 2.5in PM6 Hot-Plug 1 DWPD | G93: 1 | H93: =VLOOKUP(L93,Tabella_prezzi!$A$2:$L$91,9,FALSE) -> 3.84TB SSD SAS ISE RI 12Gbps 512e 2.5in PM6 Hot-Plug 1 DWPD | I93: =VLOOKUP(L93,Tabella_prezzi!$A$2:$L$91,3,FALSE) -> OpzSSD-RI3,8TB | J93: =VLOOKUP(L93,Tabella_prezzi!$A$2:$L$91,4,FALSE) -> 944.35 | L93: L6N13 | M93: =VLOOKUP(L93,Tabella_prezzi!$A$2:$L$91,6,FALSE) -> TS4L6-SSD-RI3,8TB
A94: =VLOOKUP(L94,Tabella_prezzi!$A$2:$L$91,8,FALSE) -> 1.92TB SSD SAS ISE RI 12Gbps | B94: Hard Drives | D94: =VLOOKUP(L94,Tabella_prezzi!$A$2:$L$91,9,FALSE) -> 1.92TB SSD SAS ISE RI 12Gbps 512e 2.5in Hot-Plug 1 DWP | G94: 1 | H94: =VLOOKUP(L94,Tabella_prezzi!$A$2:$L$91,9,FALSE) -> 1.92TB SSD SAS ISE RI 12Gbps 512e 2.5in Hot-Plug 1 DWP | I94: =VLOOKUP(L94,Tabella_prezzi!$A$2:$L$91,3,FALSE) -> OpzSSD-RI1,6TB | J94: =VLOOKUP(L94,Tabella_prezzi!$A$2:$L$91,4,FALSE) -> 445.41 | L94: L6N14 | M94: =VLOOKUP(L94,Tabella_prezzi!$A$2:$L$91,6,FALSE) -> TS4L6-SSD-RI1,6TB
A95: =VLOOKUP(L95,Tabella_prezzi!$A$2:$L$91,8,FALSE) -> 1.6TB SSD SAS ISE MU 12Gbps | B95: Hard Drives | D95: =VLOOKUP(L95,Tabella_prezzi!$A$2:$L$91,9,FALSE) -> 1.6TB SSD SAS ISE MU 12Gbps 512e 2.5in Hot-Plug PM6 3 DWPD | G95: 1 | H95: =VLOOKUP(L95,Tabella_prezzi!$A$2:$L$91,9,FALSE) -> 1.6TB SSD SAS ISE MU 12Gbps 512e 2.5in Hot-Plug PM6 3 DWPD | I95: =VLOOKUP(L95,Tabella_prezzi!$A$2:$L$91,3,FALSE) -> OpzSSD-MU1,6TB | J95: =VLOOKUP(L95,Tabella_prezzi!$A$2:$L$91,4,FALSE) -> 442.13 | L95: L6N15 | M95: =VLOOKUP(L95,Tabella_prezzi!$A$2:$L$91,6,FALSE) -> TS4L6-SSD-MU1,6TB
A96: =VLOOKUP(L96,Tabella_prezzi!$A$2:$L$91,8,FALSE) -> 960GB SSD SAS ISE RI 12Gbps | B96: Hard Drives | D96: =VLOOKUP(L96,Tabella_prezzi!$A$2:$L$91,9,FALSE) -> 960GB SSD SAS ISE RI 12Gbps 512e 2.5in Hot-Plug 1 DWPD | G96: 1 | H96: =VLOOKUP(L96,Tabella_prezzi!$A$2:$L$91,9,FALSE) -> 960GB SSD SAS ISE RI 12Gbps 512e 2.5in Hot-Plug 1 DWPD | I96: =VLOOKUP(L96,Tabella_prezzi!$A$2:$L$91,3,FALSE) -> OpzSSD-RI800GB | J96: =VLOOKUP(L96,Tabella_prezzi!$A$2:$L$91,4,FALSE) -> 265.13 | L96: L6N16 | M96: =VLOOKUP(L96,Tabella_prezzi!$A$2:$L$91,6,FALSE) -> TS4L6-SSD-RI800GB
A97: =VLOOKUP(L97,Tabella_prezzi!$A$2:$L$91,8,FALSE) -> 800GB SSD SAS ISE Mix Use 12Gbps | B97: Hard Drives | D97: =VLOOKUP(L97,Tabella_prezzi!$A$2:$L$91,9,FALSE) -> 800GB SSD SAS ISE Mix Use 12Gbps 512e 2.5in Hot-plug, 3 DWPD | G97: 1 | H97: =VLOOKUP(L97,Tabella_prezzi!$A$2:$L$91,9,FALSE) -> 800GB SSD SAS ISE Mix Use 12Gbps 512e 2.5in Hot-plug, 3 DWPD | I97: =VLOOKUP(L97,Tabella_prezzi!$A$2:$L$91,3,FALSE) -> OpzSSD-MU800GB | J97: =VLOOKUP(L97,Tabella_prezzi!$A$2:$L$91,4,FALSE) -> 275.73 | L97: L6N17 | M97: =VLOOKUP(L97,Tabella_prezzi!$A$2:$L$91,6,FALSE) -> TS4L6-SSD-MU800GB
A98: =VLOOKUP(L98,Tabella_prezzi!$A$2:$L$91,8,FALSE) -> 1.6TB Enterprise NVMe Mixed Use Drive U.2 | B98: Hard Drives | D98: =VLOOKUP(L98,Tabella_prezzi!$A$2:$L$91,9,FALSE) -> 1.6TB, Enterprise, NVMe, Mixed Use Drive, U.2, Gen4 with carrier | G98: 1 | H98: =VLOOKUP(L98,Tabella_prezzi!$A$2:$L$91,9,FALSE) -> 1.6TB, Enterprise, NVMe, Mixed Use Drive, U.2, Gen4 with carrier | I98: =VLOOKUP(L98,Tabella_prezzi!$A$2:$L$91,3,FALSE) -> OpzNVME1,6TB | J98: =VLOOKUP(L98,Tabella_prezzi!$A$2:$L$91,4,FALSE) -> 566.61 | L98: L6N18 | M98: =VLOOKUP(L98,Tabella_prezzi!$A$2:$L$91,6,FALSE) -> TS4L6-NVME1,6TB
A99: =VLOOKUP(L99,Tabella_prezzi!$A$2:$L$91,8,FALSE) -> 7.68TB SSD RI SAS ISE 12Gbps | B99: Hard Drives | D99: =VLOOKUP(L99,Tabella_prezzi!$A$2:$L$91,9,FALSE) -> 7.68TB SSD RI SAS ISE 12Gbps 512e 2.5in PM1643a Hot-Plug 1 DWPD | G99: 1 | H99: =VLOOKUP(L99,Tabella_prezzi!$A$2:$L$91,9,FALSE) -> 7.68TB SSD RI SAS ISE 12Gbps 512e 2.5in PM1643a Hot-Plug 1 DWPD | I99: =VLOOKUP(L99,Tabella_prezzi!$A$2:$L$91,3,FALSE) -> OpzSSD7,68 | J99: =VLOOKUP(L99,Tabella_prezzi!$A$2:$L$91,4,FALSE) -> 2844.45 | L99: L6N32 | M99: =VLOOKUP(L99,Tabella_prezzi!$A$2:$L$91,6,FALSE) -> TS4L6-SSD7.68RI
A100: =VLOOKUP(L100,Tabella_prezzi!$A$2:$L$91,8,FALSE) -> 3.2TB, Enterprise, NVMe, Mixed Use | B100: Hard Drives | D100: =VLOOKUP(L100,Tabella_prezzi!$A$2:$L$91,9,FALSE) -> 3.2TB, Enterprise, NVMe, Mixed Use, U2, G4, P5600 with carrier | G100: 1 | H100: =VLOOKUP(L100,Tabella_prezzi!$A$2:$L$91,9,FALSE) -> 3.2TB, Enterprise, NVMe, Mixed Use, U2, G4, P5600 with carrier | I100: =VLOOKUP(L100,Tabella_prezzi!$A$2:$L$91,3,FALSE) -> OpzNVMe3,2 | J100: =VLOOKUP(L100,Tabella_prezzi!$A$2:$L$91,4,FALSE) -> 1578.15 | L100: L6N33 | M100: =VLOOKUP(L100,Tabella_prezzi!$A$2:$L$91,6,FALSE) -> TS4L6-NVMe3.2MU
A101: =VLOOKUP(L101,Tabella_prezzi!$A$2:$L$91,8,FALSE) -> 1.92TB, Enterprise, NVMe, Read Intensive | B101: Hard Drives | D101: =VLOOKUP(L101,Tabella_prezzi!$A$2:$L$91,9,FALSE) -> 1.92TB, Enterprise, NVMe, Read Intensive, U2, G4, P5500 | G101: 1 | H101: =VLOOKUP(L101,Tabella_prezzi!$A$2:$L$91,9,FALSE) -> 1.92TB, Enterprise, NVMe, Read Intensive, U2, G4, P5500 | I101: =VLOOKUP(L101,Tabella_prezzi!$A$2:$L$91,3,FALSE) -> OpzNVMe1,92 | J101: =VLOOKUP(L101,Tabella_prezzi!$A$2:$L$91,4,FALSE) -> 938.25 | L101: L6N34 | M101: =VLOOKUP(L101,Tabella_prezzi!$A$2:$L$91,6,FALSE) -> TS4L6-NVMe1.92RI
A102: =VLOOKUP(L102,Tabella_prezzi!$A$2:$L$91,8,FALSE) -> 3.84TB, Enterprise, NVMe, Read Intensive | B102: Hard Drives | D102: =VLOOKUP(L102,Tabella_prezzi!$A$2:$L$91,9,FALSE) -> 3.84TB, Enterprise, NVMe, Read Intensive, U2, G4, P5500 | G102: 1 | H102: =VLOOKUP(L102,Tabella_prezzi!$A$2:$L$91,9,FALSE) -> 3.84TB, Enterprise, NVMe, Read Intensive, U2, G4, P5500 | I102: =VLOOKUP(L102,Tabella_prezzi!$A$2:$L$91,3,FALSE) -> OpzNVMe3,84 | J102: =VLOOKUP(L102,Tabella_prezzi!$A$2:$L$91,4,FALSE) -> 1576.8 | L102: L6N35 | M102: =VLOOKUP(L102,Tabella_prezzi!$A$2:$L$91,6,FALSE) -> TS4L6-NVMe3.84RI
A104: TS4L6_PSU
A105: Dual, Hot-plug, Redundant Power Supply (1+1), 750W | B105: Power Supply | D105: Dual, Hot-plug, Redundant Power Supply (1+1), 750W | G105: ="" ->  | I105: ="" ->  | L105: ="" ->  | M105: ="" -> 
A106: Dual, Hot-plug Power Supply (1+1), 1400W | B106: Power Supply | D106: =VLOOKUP(L106,Tabella_prezzi!$A$2:$L$91,8,FALSE) -> Dual, Hot-plug Power Supply (1+1), 1400W in sostituzione di quelli in configurazione BASE | G106: 1 | H106: =VLOOKUP(L106,Tabella_prezzi!$A$2:$L$91,9,FALSE) -> Dual, Hot-plug Power Supply (1+1), 1400W in sostituzione di quelli in configurazione BASE | I106: =VLOOKUP(L106,Tabella_prezzi!$A$2:$L$91,3,FALSE) -> OpzPSU1400W | K106: =VLOOKUP(L106,Tabella_prezzi!$A$2:$L$91,4,FALSE) -> 0 | L106: L6N49 | M106: =VLOOKUP(L106,Tabella_prezzi!$A$2:$L$91,6,FALSE) -> TS4L6-PSU1400W
A107: Dual, Hot-plug Power Supply (1+1), 2000W | B107: Power Supply | D107: =VLOOKUP(L107,Tabella_prezzi!$A$2:$L$91,8,FALSE) -> SFP+ SR Optic for all SFP+ ports except high temp validation warning cards | G107: 1 | H107: =VLOOKUP(L107,Tabella_prezzi!$A$2:$L$91,9,FALSE) -> SFP+ SR Optic for all SFP+ ports except high temp validation warning cards | I107: =VLOOKUP(L107,Tabella_prezzi!$A$2:$L$91,3,FALSE) -> OpzSFP+ | K107: =VLOOKUP(L107,Tabella_prezzi!$A$2:$L$91,4,FALSE) -> 17.55 | L107: L6N50 | M107: =VLOOKUP(L107,Tabella_prezzi!$A$2:$L$91,6,FALSE) -> TS4L6-OT10GB
A109: TS4L6_AddCPU | K109: ="" -> 
A110: ="" ->  | B110: ="" ->  | C110: ="" ->  | D110: ="" ->  | E110: ="" ->  | F110: ="" ->  | G110: ="" ->  | H110: ="" ->  | I110: ="" ->  | J110: ="" ->  | K110: ="" -> 
A111: Aggiungere Secondo Processore | B111: ="" ->  | C111: ="" ->  | D111: ="" ->  | E111: ="" ->  | F111: ="" ->  | G111: ="" ->  | H111: ="" ->  | I111: ="" ->  | J111: ="" ->  | K111: 0 | L111: ="" ->  | M111: ="" -> 
A113: TS4L6_CTRL
G114: ="" ->  | I114: ="" ->  | L114: ="" ->  | M114: ="" -> 
A115: =D115 -> PERC H740P RAID Controller, 8Gb NV Cache, Adapter, Full Height | B115: =D115 -> PERC H740P RAID Controller, 8Gb NV Cache, Adapter, Full Height | D115: =VLOOKUP(L115,Tabella_prezzi!$A$2:$L$91,9,FALSE) -> PERC H740P RAID Controller, 8Gb NV Cache, Adapter, Full Height | G115: ="" ->  | H115: =VLOOKUP(L115,Tabella_prezzi!$A$2:$L$91,9,FALSE) -> PERC H740P RAID Controller, 8Gb NV Cache, Adapter, Full Height | I115: ="" ->  | L115: L6N44 | M115: ="" -> 
A116: =D116 -> HBA330+ Adapter FH for R940 | B116: =D116 -> HBA330+ Adapter FH for R940 | D116: =VLOOKUP(L116,Tabella_prezzi!$A$2:$L$91,9,FALSE) -> HBA330+ Adapter FH for R940 | G116: 1 | H116: =VLOOKUP(L116,Tabella_prezzi!$A$2:$L$91,9,FALSE) -> HBA330+ Adapter FH for R940 | I116: ="" ->  | K116: =VLOOKUP(L116,Tabella_prezzi!$A$2:$L$91,4,FALSE) -> 0 | L116: L6N53 | M116: =VLOOKUP(L116,Tabella_prezzi!$A$2:$L$91,6,FALSE) -> TS4L6-HBA
A118: TS4L6_ISDM
A119: No Boss card | G119: ="" ->  | I119: ="" ->  | L119: ="" ->  | M119: ="" -> 
A120: Opzioni 20% | G120: Selezionare BOSS card | I120: ="" ->  | L120: ="" ->  | M120: ="" -> 
A121: BOSS controller card + with 2 M.2 Sticks 480GB (RAID 1),FH | D121: =VLOOKUP(L121,Tabella_Prezzi,8,FALSE) -> BOSS controller card + with 2 M.2 Sticks 480GB (RAID 1),FH | G121: 1 | H121: =VLOOKUP(L121,Tabella_prezzi!$A$2:$L$91,9,FALSE) -> BOSS controller card + with 2 M.2 Sticks 480GB (RAID 1),FH | I121: =VLOOKUP(L121,Tabella_prezzi!$A$2:$L$91,3,FALSE) -> OpzBOSS | K121: =VLOOKUP(L121,Tabella_prezzi!$A$2:$L$91,4,FALSE) -> 0 | L121: L6N42 | M121: =VLOOKUP(L121,Tabella_prezzi!$A$2:$L$91,6,FALSE) -> TS4L6-OpzBOSS
A123: TS4L6_OME
A124: No OMEA | G124: ="" ->  | I124: ="" ->  | L124: ="" ->  | M124: ="" -> 
A125: [TS4L6-OMEA] OpenManage Enterprise Advanced | B125: OpenManage Enterprise Advanced | C125: TS4L6-OMEA | D125: OpenManage Enterprise Advanced | G125: 1 | H125: =VLOOKUP(L125,Tabella_prezzi!$A$2:$L$91,9,FALSE) ->  | I125: =VLOOKUP(L125,Tabella_prezzi!$A$2:$L$91,3,FALSE) ->  | K125: =VLOOKUP(L125,Tabella_prezzi!$A$2:$L$91,4,FALSE) ->  | L125: L6N96 | M125: =VLOOKUP(L125,Tabella_prezzi!$A$2:$L$91,6,FALSE) -> 
A127: TS4L6_WARRANTY
A128: Manutenzione in garanzia (36 mesi) | B128: Dell Services: Extended Service | D128: RESTRICTED:ProSupport One Data Center and Next Business Day Onsite Service Volume Low, 39 Month(s) | G128: ="" ->  | I128: ="" ->  | L128: ="" ->  | M128: ="" -> 
A129: =D129 -> Estensione della manutenzione in garanzia per ulteriori 24 mesi | B129: Dell Services: Extended Service | D129: =VLOOKUP(L129,Tabella_prezzi!$A$2:$L$91,8,FALSE) -> Estensione della manutenzione in garanzia per ulteriori 24 mesi | G129: 1 | H129: =VLOOKUP(L129,Tabella_prezzi!$A$2:$L$286,9,FALSE) -> Estensione della manutenzione in garanzia per ulteriori 24 mesi | I129: =VLOOKUP(L129,Tabella_prezzi!$A$2:$L$286,3,FALSE) -> OpzEstensione24 | J129: =VLOOKUP(L129,Tabella_prezzi!$A$2:$L$286,4,FALSE) -> 522.78 | L129: L6N30 | M129: =VLOOKUP(L129,Tabella_prezzi!$A$2:$L$91,6,FALSE) -> TS4L6-OpzEst24
A131: TS4L6_HDDRET
A132: ="" ->  | B132: ="" ->  | C132: ="" ->  | D132: ="" ->  | E132: ="" ->  | F132: ="" ->  | G132: ="" ->  | H132: ="" ->  | I132: ="" ->  | J132: ="" ->  | K132: ="" ->  | L132: ="" ->  | M132: ="" -> 
A133: =D133 -> Hard Disk Retention 36 mesi | B133: Dell Services: Extended Service | D133: =Tabella_prezzi!H51 -> Hard Disk Retention 36 mesi | G133: 1 | H133: =VLOOKUP(L133,Tabella_prezzi!$A$2:$L$286,9,FALSE) -> Hard Disk Retention 36 mesi | I133: =VLOOKUP(L133,Tabella_prezzi!$A$2:$L$286,3,FALSE) -> OpzHDDRetention | J133: =VLOOKUP(L133,Tabella_prezzi!$A$2:$L$286,4,FALSE) -> 31.82 | L133: L6N29 | M133: =VLOOKUP(L133,Tabella_prezzi!$A$2:$L$91,6,FALSE) -> TS4L6-HDRTN36
A134: =D134 -> Hard Disk Retention 60 mesi | B134: Dell Services: Extended Service | D134: =VLOOKUP(L134,Tabella_prezzi!$A$2:$L$91,8,FALSE) -> Hard Disk Retention 60 mesi | G134: 1 | H134: =VLOOKUP(L134,Tabella_prezzi!$A$2:$L$286,9,FALSE) -> Hard Disk Retention 60 mesi | I134: =VLOOKUP(L134,Tabella_prezzi!$A$2:$L$286,3,FALSE) -> OpzHDDRetention | J134: =VLOOKUP(L134,Tabella_prezzi!$A$2:$L$286,4,FALSE) -> 52.82 | L134: L6N29b | M134: =VLOOKUP(L134,Tabella_prezzi!$A$2:$L$91,6,FALSE) -> TS4L6-HDRTN60
A135: TS44_KYHDD
A136: =D136 -> Dispositivo UPS di tipo On-line doppia conversione, strutturato per il montaggio a rack da 19” | D136: =VLOOKUP(L136,Tabella_prezzi!$A$2:$L$91,8,FALSE) -> Dispositivo UPS di tipo On-line doppia conversione, strutturato per il montaggio a rack da 19” | G136: 1 | H136: =VLOOKUP(L136,Tabella_prezzi!$A$2:$L$91,9,FALSE) -> Dispositivo UPS di tipo On-line doppia conversione, strutturato per il montaggio a rack da 19” | I136: =VLOOKUP(L136,Tabella_prezzi!$A$2:$L$91,3,FALSE) -> OpzUps (3000VA) | J136: =VLOOKUP(L136,Tabella_prezzi!$A$2:$L$91,4,FALSE) -> 386.02 | L136: L6N19 | M136: =VLOOKUP(L136,Tabella_prezzi!$A$2:$L$91,6,FALSE) -> TS4L6-UPS
A137: =D137 -> Unità KVM - monitor 17", cavo combi PS/2&USB da 1,8mt, tastiera italiana, touch pad | D137: =VLOOKUP(L137,Tabella_prezzi!$A$2:$L$91,9,FALSE) -> Unità KVM - monitor 17", cavo combi PS/2&USB da 1,8mt, tastiera italiana, touch pad | G137: 1 | H137: =VLOOKUP(L137,Tabella_prezzi!$A$2:$L$91,9,FALSE) -> Unità KVM - monitor 17", cavo combi PS/2&USB da 1,8mt, tastiera italiana, touch pad | I137: =VLOOKUP(L137,Tabella_prezzi!$A$2:$L$91,3,FALSE) -> OpzGUI | J137: =VLOOKUP(L137,Tabella_prezzi!$A$2:$L$91,4,FALSE) -> 491.62 | L137: L6N20 | M137: =VLOOKUP(L137,Tabella_prezzi!$A$2:$L$91,6,FALSE) -> TS4L6-GUI
A138: =D138 -> KVM Switch IP per GUI 16P | D138: =VLOOKUP(L138,Tabella_prezzi!$A$2:$L$91,9,FALSE) -> KVM Switch IP per GUI 16P | G138: 1 | H138: =VLOOKUP(L138,Tabella_prezzi!$A$2:$L$91,9,FALSE) -> KVM Switch IP per GUI 16P | I138: =VLOOKUP(L138,Tabella_prezzi!$A$2:$L$91,3,FALSE) -> OpzKVM | J138: =VLOOKUP(L138,Tabella_prezzi!$A$2:$L$91,4,FALSE) -> 552.47 | L138: L6N21 | M138: =VLOOKUP(L138,Tabella_prezzi!$A$2:$L$91,6,FALSE) -> TS4L6-KVM
A139: 1-pack of Windows Server 2019/2016 Device CALs (STD or DC) | D139: =VLOOKUP(L139,Tabella_prezzi!$A$2:$L$91,9,FALSE) -> 1-pack of Windows Server 2022/2019 Device CALs (STD or DC) | G139: 1 | H139: =VLOOKUP(L139,Tabella_prezzi!$A$2:$L$91,9,FALSE) -> 1-pack of Windows Server 2022/2019 Device CALs (STD or DC) | I139: =VLOOKUP(L139,Tabella_prezzi!$A$2:$L$91,3,FALSE) -> OpzDeviceCal | J139: =VLOOKUP(L139,Tabella_prezzi!$A$2:$L$91,4,FALSE) -> 25.45 | L139: L6N23 | M139: =VLOOKUP(L139,Tabella_prezzi!$A$2:$L$91,6,FALSE) -> TS4L6-WINDEVCAL
A140: 1-pack of Windows Server 2019/2016 User CALs (STD or DC) | D140: =VLOOKUP(L140,Tabella_prezzi!$A$2:$L$91,9,FALSE) -> 1-pack of Windows Server 2022/2019 User CALs (STD or DC) | G140: 1 | H140: =VLOOKUP(L140,Tabella_prezzi!$A$2:$L$91,9,FALSE) -> 1-pack of Windows Server 2022/2019 User CALs (STD or DC) | I140: =VLOOKUP(L140,Tabella_prezzi!$A$2:$L$91,3,FALSE) -> OpzUserCal | J140: =VLOOKUP(L140,Tabella_prezzi!$A$2:$L$91,4,FALSE) -> 35 | L140: L6N24 | M140: =VLOOKUP(L140,Tabella_prezzi!$A$2:$L$91,6,FALSE) -> TS4L6-WINUSRCAL
A141: Armadio Rack 42U | D141: =VLOOKUP(L141,Tabella_prezzi!$A$2:$L$91,9,FALSE) -> Armadio Rack 42U | G141: 1 | H141: =VLOOKUP(L141,Tabella_prezzi!$A$2:$L$91,9,FALSE) -> Armadio Rack 42U | I141: =VLOOKUP(L141,Tabella_prezzi!$A$2:$L$91,3,FALSE) -> OpzRack | J141: =VLOOKUP(L141,Tabella_prezzi!$A$2:$L$91,4,FALSE) -> 579.63 | L141: L6N31 | M141: =VLOOKUP(L141,Tabella_prezzi!$A$2:$L$91,6,FALSE) -> TS4L6-RACK
A143: TS4L2_PCI_A
A144: ="" ->  | B144: ="" ->  | C144: ="" ->  | D144: ="" ->  | E144: ="" ->  | F144: ="" ->  | G144: ="" ->  | H144: ="" ->  | I144: ="" ->  | J144: ="" ->  | K144: ="" ->  | L144: ="" ->  | M144: ="" -> 
A145: =D145 -> Broadcom 5720 DP 1Gb Network Interface Card,Full Height | D145: =VLOOKUP(L145,Tabella_Prezzi,9,FALSE) -> Broadcom 5720 DP 1Gb Network Interface Card,Full Height | F145: 540-BBCX | G145: 1 | H145: =VLOOKUP(L145,Tabella_Prezzi,9,FALSE) -> Broadcom 5720 DP 1Gb Network Interface Card,Full Height | I145: =VLOOKUP(L145,Tabella_Prezzi,3,FALSE) -> OpzGigabit | J145: =VLOOKUP(L145,Tabella_Prezzi,4,FALSE) -> 27.27 | L145: L6N05 | M145: =VLOOKUP(L145,Tabella_Prezzi,6,FALSE) -> TS4L6-LAN1
A146: Broadcom 57412 Dual Port 10Gb, SFP+, PCIe Adapter, Full Height + Optics | D146: Broadcom 57412 Dual Port 10Gb, SFP+, PCIe Adapter, Full Height + Optics | F146: 540-BBCX | G146: 1 | H146: Broadcom 57412 Dual Port 10Gb, SFP+, PCIe Adapter, Full Height + Optics | I146: OpzGigabit10Gbps | J146: 149.99 | L146: L6N06 | M146: TS4L6-LAN10
A147: Intel Ethernet XXV710 Dual Port 10/25GbE SFP28 Adapter, PCIe Full Height + Optics | D147: Intel Ethernet XXV710 Dual Port 10/25GbE SFP28 Adapter, PCIe Full Height + Optics | F147: 540-BBCX | G147: 1 | H147: Intel Ethernet XXV710 Dual Port 10/25GbE SFP28 Adapter, PCIe Full Height + Optics | I147: OpzGigabit25Gbps | J147: 233.31 | L147: L6N07 | M147: TS4L6-LAN25
A148: CNA QLogic 41262 Dual Port 10Gb SFP28 Adapter, Full Height +10 Gbps Optics | D148: CNA QLogic 41262 Dual Port 10Gb SFP28 Adapter, Full Height +10 Gbps Optics | F148: 540-BBCX | G148: 1 | H148: CNA QLogic 41262 Dual Port 10Gb SFP28 Adapter, Full Height +10 Gbps Optics | I148: OpzGigabit10Gbps CNA | J148: 143.17 | L148: L6N08 | M148: TS4L6-CNA10
A149: Intel X710-T2L Dual Port 10GbE BASE-T Adapter, PCIe Full Height | D149: Intel X710-T2L Dual Port 10GbE BASE-T Adapter, PCIe Full Height | F149: 540-BBCX | G149: 1 | H149: Intel X710-T2L Dual Port 10GbE BASE-T Adapter, PCIe Full Height | I149: Opz10Gigabit BaseT | J149: 137.87 | L149: L6N09 | M149: TS4L6-BaseT
A150: QLogic 2772 Dual Port 32Gb Fibre Channel HBA, PCIe Full Height + Optics | D150: QLogic 2772 Dual Port 32Gb Fibre Channel HBA, PCIe Full Height + Optics | F150: 540-BBCX | G150: 1 | H150: QLogic 2772 Dual Port 32Gb Fibre Channel HBA, PCIe Full Height + Optics | I150: OpzFibreChannel | J150: 414.1 | L150: L6N10 | M150: TS4L6- FibreChannel
A152: Opzioni 20 %
A153: ="" -> 
A154: =D154 -> Intel X710 Quad Port 10Gb Direct Attach, SFP+, PCIe Full height | D154: =VLOOKUP(L154,Tabella_Prezzi,9,FALSE) -> Intel X710 Quad Port 10Gb Direct Attach, SFP+, PCIe Full height | G154: 1 | H154: =VLOOKUP(L154,Tabella_Prezzi,9,FALSE) -> Intel X710 Quad Port 10Gb Direct Attach, SFP+, PCIe Full height | I154: =VLOOKUP(L154,Tabella_Prezzi,3,FALSE) -> Opz10GBQP | K154: =VLOOKUP(L154,Tabella_Prezzi,4,FALSE) -> 541.35 | L154: L6N36 | M154: =VLOOKUP(L154,Tabella_Prezzi,6,FALSE) -> TS4L6-10GBs-INTQP
A155: Broadcom 57508 Dual Port 100GbE QSFP Adapter, PCIe Full Height | D155: Broadcom 57508 Dual Port 100GbE QSFP Adapter, PCIe Full Height | G155: 1 | H155: Broadcom 57508 Dual Port 100GbE QSFP Adapter, PCIe Full Height | I155: Opz100GB | K155: 683.1 | L155: L6N39 | M155: TS4L6-100GBs-B
A156: Intel E810 Dual Port 100GbE QSFP28 Adapter, PCIe Full Height, 100GbE max bandwidth | D156: Intel E810 Dual Port 100GbE QSFP28 Adapter, PCIe Full Height, 100GbE max bandwidth | G156: 1 | H156: Intel E810 Dual Port 100GbE QSFP28 Adapter, PCIe Full Height, 100GbE max bandwidth | I156: Opz100GB_I | K156: 711.45 | L156: L6N40 | M156: TS4L6-100GBs-INT
A157: ROCK Port 100Gbs (include scheda pci, cavo, patch panel e manutenzione) | D157: ROCK Port 100Gbs (include scheda pci, cavo, patch panel e manutenzione) | G157: 1 | H157: ROCK Port 100Gbs (include scheda pci, cavo, patch panel e manutenzione) | I157: OpzRock | K157: 3780 | L157: L6N116 | M157: TS4L6-ROCK
A158: Mellanox ConnectX-6 Single Port HDR100 QSFP56 Infiniband Adapter, PCIe Full Height | D158: =VLOOKUP(L158,Tabella_Prezzi,9,FALSE) -> Mellanox ConnectX-6 Single Port HDR100 QSFP56 Infiniband Adapter, PCIe Full Height | G158: 1 | H158: =VLOOKUP(L158,Tabella_Prezzi,9,FALSE) -> Mellanox ConnectX-6 Single Port HDR100 QSFP56 Infiniband Adapter, PCIe Full Height | I158: =VLOOKUP(L158,Tabella_Prezzi,3,FALSE) -> Opz100GB_M | K158: 1017.9 | L158: L6N41 | M158: =VLOOKUP(L158,Tabella_Prezzi,6,FALSE) -> TS4L6-100GBs-INF
A159: Riservato Boss Card | B159: ="" ->  | C159: ="" ->  | D159: ="" ->  | E159: ="" ->  | F159: ="" ->  | G159: ="" ->  | H159: ="" ->  | I159: ="" ->  | J159: 0 | K159: 0 | L159: ="" ->  | M159: ="" -> 
A161: Non utilizzabile in Configurazione 2CPU
A162: ="" -> 
A163: Non utilizzabile in Configurazione 4CPU
A164: TS4L6_SFP
A165: =D165 -> SFP+ SR Optic for all SFP+ ports except high temp validation warning cards | D165: =VLOOKUP(L165,Tabella_Prezzi,9,FALSE) -> SFP+ SR Optic for all SFP+ ports except high temp validation warning cards | H165: =VLOOKUP(L165,Tabella_Prezzi,9,FALSE) -> SFP+ SR Optic for all SFP+ ports except high temp validation warning cards | I165: =VLOOKUP(L165,Tabella_Prezzi,3,FALSE) -> OpzSFP+ | K165: =VLOOKUP(L165,Tabella_Prezzi,4,FALSE) -> 17.55 | L165: L6N50 | M165: =VLOOKUP(L165,Tabella_Prezzi,6,FALSE) -> TS4L6-OT10GB
A166: =D166 -> SFP28 SR Optic, 25GbE, 85C, for all SFP28 ports | D166: =VLOOKUP(L166,Tabella_Prezzi,9,FALSE) -> SFP28 SR Optic, 25GbE, 85C, for all SFP28 ports | H166: =VLOOKUP(L166,Tabella_Prezzi,9,FALSE) -> SFP28 SR Optic, 25GbE, 85C, for all SFP28 ports | I166: =VLOOKUP(L166,Tabella_Prezzi,3,FALSE) -> OpzSFP25 | K166: =VLOOKUP(L166,Tabella_Prezzi,4,FALSE) -> 112.05 | L166: L6N51 | M166: =VLOOKUP(L166,Tabella_Prezzi,6,FALSE) -> TS4L6-OT25GB
A167: Dell EMC PowerEdge QSFP28 SR4 100GbE 85C optic | D167: Dell EMC PowerEdge QSFP28 SR4 100GbE 85C optic | H167: Dell EMC PowerEdge QSFP28 SR4 100GbE 85C optic | I167: OpzSFP100 | K167: =VLOOKUP(L167,Tabella_Prezzi,4,FALSE) -> 484.65 | L167: L6N52 | M167: TS4L6-OT100GB
A171: TS4L6_CMA
A173: =D173 ->  | D173: =VLOOKUP(L173,Tabella_Prezzi,9,FALSE) ->  | H173: =VLOOKUP(L173,Tabella_Prezzi,9,FALSE) ->  | I173: =VLOOKUP(L173,Tabella_Prezzi,3,FALSE) ->  | K173: =VLOOKUP(L173,Tabella_Prezzi,4,FALSE) ->  | L173: L6N54 | M173: =VLOOKUP(L173,Tabella_Prezzi,6,FALSE) -> 
A175: TS4L6_20%
A177: =D177 -> Rack 42RU DellEmc | D177: =VLOOKUP(L177,Tabella_Prezzi,9,FALSE) -> Rack 42RU DellEmc | H177: =VLOOKUP(L177,Tabella_Prezzi,9,FALSE) -> Rack 42RU DellEmc | I177: =VLOOKUP(L177,Tabella_Prezzi,3,FALSE) -> OpzRackD | K177: =VLOOKUP(L177,Tabella_Prezzi,4,FALSE) -> 2929.5 | L177: L6N112 | M177: =VLOOKUP(L177,Tabella_Prezzi,6,FALSE) -> TS4L6-RACK-D
A178: PDU 220 mono output 20-C13 + 4-C19 IEC 320, input C20 | D178: PDU 220 mono output 20-C13 + 4-C19 IEC 320, input C20 | H178: PDU 220 mono output 20-C13 + 4-C19 IEC 320, input C20 | I178: OpzPDUT | K178: 540 | L178: L6N113 | M178: TS4L6-PDU-M
A179: =D179 -> PDU 220 Trifase output 6-C19 e 36-C13, input Spina 3P+T 400V 16A | D179: =VLOOKUP(L179,Tabella_Prezzi,9,FALSE) -> PDU 220 Trifase output 6-C19 e 36-C13, input Spina 3P+T 400V 16A | H179: =VLOOKUP(L179,Tabella_Prezzi,9,FALSE) -> PDU 220 Trifase output 6-C19 e 36-C13, input Spina 3P+T 400V 16A | I179: =VLOOKUP(L179,Tabella_Prezzi,3,FALSE) -> OpzPDUT | K179: 1080 | L179: L6N114 | M179: =VLOOKUP(L179,Tabella_Prezzi,6,FALSE) -> TS4L6-PDU-T
A180: =D180 -> Dell KVM + Switch 8 porte + cavi | D180: =VLOOKUP(L180,Tabella_Prezzi,9,FALSE) -> Dell KVM + Switch 8 porte + cavi | H180: =VLOOKUP(L180,Tabella_Prezzi,9,FALSE) -> Dell KVM + Switch 8 porte + cavi | I180: =VLOOKUP(L180,Tabella_Prezzi,3,FALSE) -> OpzKVMD | K180: 3300.75 | L180: L6N115 | M180: =VLOOKUP(L180,Tabella_Prezzi,6,FALSE) -> TS4L6-KVM-D
A181: ROCK Port 100Gbs (include scheda pci, cavo, patch panel e manutenzione) | D181: ROCK Port 100Gbs (include scheda pci, cavo, patch panel e manutenzione) | H181: ROCK Port 100Gbs (include scheda pci, cavo, patch panel e manutenzione) | I181: OpzRock | K181: 3780 | L181: L6N116 | M181: TS4L6-ROCK
A182: Cable Management Arm for PowerEdge Systems | D182: Cable Management Arm for PowerEdge Systems | H182: Cable Management Arm for PowerEdge Systems | I182: OpzCMA | K182: 54 | L182: L6N117 | M182: TS4L6-CMA
A183: Enclosure di espansione JBOD 12 slot 3,5'' + HBA (H840) | D183: Enclosure di espansione JBOD 12 slot 3,5'' + HBA (H840) | H183: Enclosure di espansione JBOD 12 slot 3,5'' + HBA (H840) | I183: OpzJBOD | K183: 5838.75 | L183: L6N118 | M183: TS4L6-JBOD
A184: =D184 -> 12TB 7.2K RPM NLSAS ISE 12Gbps 512e 3.5in Hot-plug Hard Drive | D184: =VLOOKUP(L184,Tabella_Prezzi,9,FALSE) -> 12TB 7.2K RPM NLSAS ISE 12Gbps 512e 3.5in Hot-plug Hard Drive | H184: =VLOOKUP(L184,Tabella_Prezzi,9,FALSE) -> 12TB 7.2K RPM NLSAS ISE 12Gbps 512e 3.5in Hot-plug Hard Drive | I184: =VLOOKUP(L184,Tabella_Prezzi,3,FALSE) -> Opz12TBNLSAS | K184: 405 | L184: L6N119 | M184: =VLOOKUP(L184,Tabella_Prezzi,6,FALSE) -> TS4L6-12TBNLSAS
A185: 16TB Hard Drive SAS ISE 12Gbps 7.2K 512e 3.5in Hot-Plug | D185: 16TB Hard Drive SAS ISE 12Gbps 7.2K 512e 3.5in Hot-Plug | H185: 16TB Hard Drive SAS ISE 12Gbps 7.2K 512e 3.5in Hot-Plug | I185: Opz16TBSAS | K185: 438.75 | L185: L6N120 | M185: TS4L6-16TBSAS
A186: =D186 -> 20TB HDD SAS ISE 12Gbps 7.2K 512e 3.5in Hot-Plug | D186: =VLOOKUP(L186,Tabella_Prezzi,9,FALSE) -> 20TB HDD SAS ISE 12Gbps 7.2K 512e 3.5in Hot-Plug | H186: =VLOOKUP(L186,Tabella_Prezzi,9,FALSE) -> 20TB HDD SAS ISE 12Gbps 7.2K 512e 3.5in Hot-Plug | I186: =VLOOKUP(L186,Tabella_Prezzi,3,FALSE) -> Opz20TBSAS | K186: 594 | L186: L6N121 | M186: =VLOOKUP(L186,Tabella_Prezzi,6,FALSE) -> TS4L6-20TBSAS
A192: Aggiungere Terzo e Quarto Processore
A193: 0 | C193: Riservato per PERC
A194: 2
A195: 4 | D195: Standard | G195: Datacenter
A196: 6 | D196: 2CPU | E196: 4CPU | G196: 2CPU | H196: 4CPU
A197: Illimitate | D197: 48 | E197: 96 | G197: 48 | H197: 96
A200: 1 | B200: 3 | D200: 16 | E200: 40 | G200: 16 | H200: 40
A201: 3 | B201: 6 | D201: 40 | E201: 88 | G201: 40 | H201: 88
A202: 4 | B202: 9 | D202: 64 | E202: 136 | G202: 64 | H202: 136
A204: 1
A205: 2
A206: 3
A207: 4
A208: 5
A209: 6
A210: 7
A211: 8
A212: 9
A213: 10
A214: 11
A215: 12
A216: 13
A217: 14
A218: 15
A219: 16

Sheet Tabella_prezzi (hidden)
A1: N° | C1: Attributo | D1: Valore inserito | E1: N° | F1: Codice Convenzione | G1: Qty: | I1: Description: | J1: Manufacturer Part | K1: Sku Number: | L1: Brand
A2: L6N01 | B2: 1 | C2: server rackable quad-processore (prestazionale) | D2: 5754.51 | E2: L6N01 | F2: TS4L6-SRV | G2: 1 | H2: PowerEdge R940 Server | I2: PowerEdge R940 Server | J2: L6N01-ServerR940 | K2: 210-AMTE | L2: DELL | M2: TS4L6-SRV | Q2: 210-321-BCPX | R2: -
A3: L6N01-NVMe | B3: 1 | C3: server rackable quad-processore (prestazionale) | D3: =D2*1.02 -> 5869.6002 | E3: L6N01 | F3: TS4L6-SRV-NVMe | G3: 1 | H3: PowerEdge R940 Server-NVMe | I3: PowerEdge R940 Server | J3: L6N01-ServerR940-NVMe | K3: 210-AMTE | L3: DELL | M3: TS4L6-SRV-NVME | Q3: 210-321-BCPX | R3: -
A4: L6N01-NVMe | B4: 1 | C4: server rackable quad-processore (prestazionale) | D4: =D2*1.02 -> 5869.6002 | E4: L6N01 | F4: TS4L6-SRV-NVMe | G4: 1 | H4: PowerEdge R940 Server-NVMe | I4: PowerEdge R940 Server | J4: L6N01-ServerR940-NVMe | K4: 210-AMTE | L4: DELL | M4: TS4L6-SRV-vSAN | Q4: 210-321-BCPX | R4: -
A5: L6N02 | B5: 2 | C5: Kit n. 2 Processori aggiuntivi | D5: 1908.9 | E5: L6N02 | F5: TS4L6-CPU | G5: 1 | H5: 2 x Intel Xeon Gold 6252N, 2.3G, 24C/48T, 10.4GT/s, 35.75M Cache, Turbo, HT (150W) DDR4-2933 | I5: 2 x Intel Xeon Gold 6252N, 2.3G, 24C/48T, 10.4GT/s, 35.75M Cache, Turbo, HT (150W) DDR4-2933 | J5: L6N02-OpzCPU | K5: 338-BZSB | L5: DELL | M5: TS4L6-CPU-NVME | Q5: 338-BZSB | R5: WX6G7
G6: 1 | H6: L Shape Heatsink for 2nd CPU equal to or greater than 180W,PowerEdge R6525/R7525, Customer Install | I6: L Shape Heatsink for 2nd CPU equal to or greater than 180W,PowerEdge R6525/R7525, Customer Install | K6: 412-AASW | L6: DELL | Q6: 412-AASW | R6: 4RCGC
G7: 1 | H7: PowerEdge R7525 High Performance Fan Customer Kit V3 | I7: PowerEdge R7525 High Performance Fan Customer Kit V3 | K7: 121-BBBI | L7: DELL | Q7: 121-BBBI | R7: HVVRP
G8: 1 | H8: Riser with Two x8(x16 connector) PCIe Gen4 (Slots 4 & 5), Customer Install | I8: Riser with Two x8(x16 connector) PCIe Gen4 (Slots 4 & 5), Customer Install | K8: 330-BBTM | L8: DELL | Q8: 330-BBTM | R8: 234T7
G9: 1 | H9: Riser 4B, PCIe Gen4 1x16 (x16 connector), Half Length, PowerEdge R7525, CK | I9: Riser 4B, PCIe Gen4 1x16 (x16 connector), Half Length, PowerEdge R7525, CK | K9: 330-BBPR | L9: DELL | Q9: 330-BBPR
G10: 1 | H10: Riser 1B, PCIe Gen4 2x8 (x16 connector), Half Length, PowerEdge R7525, CK | I10: Riser 1B, PCIe Gen4 2x8 (x16 connector), Half Length, PowerEdge R7525, CK | K10: 330-BBPV | L10: DELL | Q10: 330-BBPV | R10: R80PP
G11: 1 | H11: Riser 2A, PCIe Gen4 2x16 (x16 connector), PowerEdge R7525, CK | I11: Riser 2A, PCIe Gen4 2x16 (x16 connector), PowerEdge R7525, CK | K11: 330-BBPO | L11: DELL | Q11: 330-BBPO
A12: L6N03 | B12: 3 | C12: OpzRAM32GB | D12: 263.64 | E12: L6N03 | F12: TS4L6-RAM32 | G12: 1 | H12: 32GB - 2Rx4 DDR4 RDIMM 3200MHz | I12: 32GB - 2Rx4 DDR4 RDIMM 3200MHz | J12: L6N03-OpzRAM32GB | K12: AA799087 | L12: DELL | M12: TS4L6-RAM32-NVME | Q12: AA79SNP75X1VC/32G | R12: SNP75X1VC/32G
A13: L6N04 | B13: 4 | C13: OpzRAM64GB | D13: 339.36 | E13: L6N04 | F13: TS4L6-RAM64 | G13: 1 | H13: 64GB - 2RX4 DDR4 RDIMM 3200MHz | I13: 64GB - 2RX4 DDR4 RDIMM 3200MHz | J13: L6N04-OpzRAM64GB | K13: AA799110 | L13: DELL | M13: TS4L6-RAM64-NVME | Q13: AA79SNPP2MYXC/64G | R13: SNPP2MYXC/64G
A14: L6N05 | B14: 5 | C14: OpzGigabit | D14: 27.27 | E14: L6N05 | F14: TS4L6-LAN1 | G14: 1 | H14: Broadcom 5720 DP 1Gb Network Interface Card,Full Height | I14: Broadcom 5720 DP 1Gb Network Interface Card,Full Height | J14: L6N05-OpzGigabit | K14: 540-BBGX | L14: DELL | M14: TS4L6-LAN1-NVME | N14: 1 | O14: 2 | P14: 3 | Q14: 540-XF9VF | R14: XF9VF
A15: L6N75 | B15: 5 | C15: OpzGigabit | D15: 27.27 | E15: L6N05b | F15: TS4L6-LAN1-L | G15: 1 | H15: Broadcom 5719 Quad Port 1Gb Network Interface Card, Low Profile | I15: Broadcom 5719 Quad Port 1Gb Network Interface Card, Low Profile | J15: L6N75-OpzGigabitLP | K15: 540-BBHB | L15: DELL | M15: TS4L6-LAN1-L-NVME | N15: 4 | Q15: 540-W0N4T | R15: W0N4T
A16: L6N06 | B16: 6 | C16: OpzGigabit10Gbps | D16: 149.99 | E16: L6N06 | F16: TS4L6-LAN10 | G16: 1 | H16: Broadcom 57412 Dual Port 10Gb, SFP+, PCIe Adapter, Full Height + Optics | I16: Broadcom 57412 Dual Port 10Gb, SFP+, PCIe Adapter, Full Height + Optics | J16: L6N06-OpzGigabit10Gbps | K16: 540-BBUP | L16: DELL | M16: TS4L6-LAN10-NVME | N16: 1 | O16: 2 | P16: 3 | Q16: 540-H6N50 | R16: H6N50
G17: 2 | H17: Dell Networking, Transceiver, SFP+, 10GbE, SR, 850nm Wavelength, 300m Reach - Kit | I17: Dell Networking, Transceiver, SFP+, 10GbE, SR, 850nm Wavelength, 300m Reach - Kit | K17: 407-BBOU | L17: DELL | Q17: 407-4Y8DN | R17: 4Y8DN
A18: L6N76 | B18: 6 | C18: OpzGigabit10Gbps | D18: 149.99 | E18: L6N06b | F18: TS4L6-LAN10-L | G18: 1 | H18: Broadcom 57414 Dual Port 25Gb, SFP28, PCIe Adapter, LOW PROFILE + Optics | I18: Broadcom 57414 Dual Port 25Gb, SFP28, PCIe Adapter, LOW PROFILE + Optics | J18: L6N76-OpzGigabit10GbpsLP | K18: 540-BBVL | L18: DELL | M18: TS4L6-LAN10-L-NVME | N18: 4 | Q18: 540-N7R67 | R18: N7R67
G19: 2 | H19: Dell Networking, Transceiver, SFP+, 10GbE, SR, 850nm Wavelength, 300m Reach | I19: Dell Networking, Transceiver, SFP+, 10GbE, SR, 850nm Wavelength, 300m Reach | K19: 407-BBOU | L19: DELL | Q19: 407-4Y8DN | R19: 4Y8DN
A20: L6N07 | B20: 7 | C20: OpzGigabit25Gbps | D20: 233.31 | E20: L6N07 | F20: TS4L6-LAN25 | G20: 1 | H20: Intel Ethernet XXV710 Dual Port 10/25GbE SFP28 Adapter, PCIe Full Height + Optics | I20: Intel Ethernet XXV710 Dual Port 10/25GbE SFP28 Adapter, PCIe Full Height + Optics | J20: L6N07-OpzGigabit25Gbps | K20: 540-BBYI | L20: DELL | M20: TS4L6-LAN25-NVME | N20: 1 | O20: 2 | P20: 3 | Q20: 540-86P4V | R20: 86P4V
G21: 2 | H21: Dell Networking, Transceiver, 25GbE SFP28 SR, No FEC, MMF, Duplex LC | I21: Dell Networking, Transceiver, 25GbE SFP28 SR, No FEC, MMF, Duplex LC | K21: 407-BCHI | L21: DELL | Q21: 407-PY7V9 | R21: PY7V9
A22: L6N77 | B22: 7 | C22: OpzGigabit25Gbps | D22: 233.31 | E22: L6N07b | F22: TS4L6-LAN25-L | G22: 1 | H22: Intel Ethernet XXV710 Dual Port 10/25GbE SFP28 Adapter, PCIe Low Profile + Optics | I22: Intel Ethernet XXV710 Dual Port 10/25GbE SFP28 Adapter, PCIe Low Profile + Optics | J22: L6N77-OpzGigabit25GbpsLP | K22: 540-BBZO | L22: DELL | M22: TS4L6-LAN25-L-NVME | N22: 4 | Q22: 540-9RVF0 | R22: 9RVF0
G23: 2 | H23: Dell Networking, Transceiver, 25GbE SFP28 SR, No FEC, MMF, Duplex LC | I23: Dell Networking, Transceiver, 25GbE SFP28 SR, No FEC, MMF, Duplex LC | K23: 407-BBXU | L23: DELL | Q23: 407-PY7V9 | R23: PY7V9
A24: L6N08 | B24: 8 | C24: OpzGigabit10Gbps CNA | D24: 143.17 | E24: L6N08 | F24: TS4L6-CNA10 | G24: 1 | H24: CNA QLogic 41262 Dual Port 10Gb SFP28 Adapter, Full Height +10 Gbps Optics | I24: CNA QLogic 41262 Dual Port 10Gb SFP28 Adapter, Full Height +10 Gbps Optics | J24: L6N08-OpzCNA10Gbps | K24: 540-BBYH | L24: DELL | M24: TS4L6-CNA10-NVME | N24: 1 | O24: 2 | P24: 3 | Q24: 540-42H35 | R24: 42H35
G25: 2 | H25: Dell Networking, Transceiver, SFP+, 10GbE, SR, 850nm Wavelength, 300m Reach - Kit | I25: Dell Networking, Transceiver, SFP+, 10GbE, SR, 850nm Wavelength, 300m Reach - Kit | K25: 407-BBOU | L25: DELL | Q25: 407-4Y8DN | R25: 4Y8DN
A26: L6N78 | B26: 8 | C26: OpzGigabit10Gbps CNA | D26: 143.17 | E26: L6N08b | F26: TS4L6-CNA10-L | G26: 1 | H26: CNA QLogic 41262 Dual Port 10Gb SFP28 Adapter, Low Profile + 10 Gbps Optics | I26: CNA QLogic 41262 Dual Port 10Gb SFP28 Adapter, Low Profile + 10 Gbps Optics | J26: L6N78-OpzCNA10GbpsLP | K26: 540-BBZM | L26: DELL | M26: TS4L6-CNA10-L-NVME | N26: 4 | Q26: 540-01CN1 | R26: 01CN1
G27: 2 | H27: Dell Networking, Transceiver, SFP+, 10GbE, SR, 850nm Wavelength, 300m Reach - Kit | I27: Dell Networking, Transceiver, SFP+, 10GbE, SR, 850nm Wavelength, 300m Reach - Kit | K27: 407-BBOU | L27: DELL | Q27: 407-4Y8DN | R27: 4Y8DN
A28: L6N09 | B28: 9 | C28: Opz10Gigabit BaseT | D28: 137.87 | E28: L6N09 | F28: TS4L6-BaseT | G28: 1 | H28: Intel X710-T2L Dual Port 10GbE BASE-T Adapter, PCIe Full Height | I28: Intel X710-T2L Dual Port 10GbE BASE-T Adapter, PCIe Full Height | J28: L6N09-Opz-BaseT | K28: 540-BCSC | L28: DELL | M28: TS4L6-BaseT-NVME | N28: 1 | O28: 2 | P28: 3 | Q28: 403-YH1DK | R28: YH1DK
A29: L6N79 | B29: 9 | C29: Opz10Gigabit BaseT | D29: 137.87 | E29: L6N09b | F29: TS4L6- BaseT-L | G29: 1 | H29: Intel X710-T2L Dual Port 10GbE BASE-T Adapter, PCIe LP | I29: Intel X710-T2L Dual Port 10GbE BASE-T Adapter, PCIe LP | J29: L6N79-Opz-BaseT | K29: 403-BBMT | L29: DELL | M29: TS4L6- BaseT-L-NVME | N29: 4 | Q29: 403-P0TRP | R29: P0TRP
A30: L6N10 | B30: 10 | C30: OpzFibreChannel | D30: 414.1 | E30: L6N10 | F30: TS4L6- FibreChannel | G30: 1 | H30: QLogic 2772 Dual Port 32Gb Fibre Channel HBA, PCIe Full Height + Optics | I30: QLogic 2772 Dual Port 32Gb Fibre Channel HBA, PCIe Full Height + Optics | J30: L6N10-OpzFibreChannel | K30: 540-BDHC | L30: DELL | M30: TS4L6- FibreChannel-NVME | N30: 4 | Q30: 403-P0TRP | R30: P0TRP
A31: L6N101 | B31: 10 | C31: OpzFibreChannel | D31: 414.1 | E31: L6N10 | F31: TS4L6- FibreChannel | G31: 1 | H31: QLogic 2772 Dual Port 32GbE Fibre Channel HBA, PCIe Low Profile + Optics | I31: QLogic 2772 Dual Port 32GbE Fibre Channel HBA, PCIe Low Profile + Optics | J31: L6N10-OpzFibreChannel | K31: 540-BDGU | L31: DELL | M31: TS4L6- FibreChannel-NVME | N31: 4 | Q31: 403-P0TRP | R31: P0TRP
A32: L6N11 | B32: 11 | C32: OpzHDD2TB | D32: 137.87 | E32: L6N11 | F32: TS4L6-HDD2TB | G32: 1 | H32: 2.4TB 10k SAS ISE 12Gbps | I32: 2.4TB 10k 512e SAS ISE 12Gbps 2.5in Hot Plug Hard Drive | J32: L6N10-OpzHDD2TB | K32: 400-BEGI | L32: DELL | M32: TS4L6-HDD2TB-NVME | Q32: 400-HTMGW | R32: HTMGW
A33: L6N12 | B33: 12 | C33: OpzHDD1TB | D33: 79.54 | E33: L6N12 | F33: TS4L6-HDD1TB | G33: 1 | H33: 1.2TB 10K RPM SAS ISE 12Gbps | I33: 1.2TB 10k 512n SAS ISE 12Gbps 2.5in Hot Plug Hard Drive | J33: L6N11-OpzHDD1TB | K33: 400-ATJL | L33: DELL | M33: TS4L6-HDD1TB-NVME | Q33: 400-400-ATJL | R33: 400-ATJL
A34: L6N13 | B34: 13 | C34: OpzSSD-RI3,8TB | D34: 944.35 | E34: L6N13 | F34: TS4L6-SSD-RI3,8TB | G34: 1 | H34: 3.84TB SSD SAS ISE RI 12Gbps | I34: 3.84TB SSD SAS ISE RI 12Gbps 512e 2.5in PM6 Hot-Plug 1 DWPD | J34: L6N12-OpzSSD-RI3,8TB | K34: 345-BBXY | L34: DELL | M34: TS4L6-SSD-RI3,8TB-NVME | Q34: 400-PDNT1 | R34: PDNT1
A35: L6N14 | B35: 14 | C35: OpzSSD-RI1,6TB | D35: 445.41 | E35: L6N14 | F35: TS4L6-SSD-RI1,6TB | G35: 1 | H35: 1.92TB SSD SAS ISE RI 12Gbps | I35: 1.92TB SSD SAS ISE RI 12Gbps 512e 2.5in Hot-Plug 1 DWP | J35: L6N13-OpzSSD-RI1,6TB | K35: 345-BBYK | L35: DELL | M35: TS4L6-SSD-RI1,6TB-NVME | Q35: 400-2H59H | R35: 2H59H
A36: L6N15 | B36: 15 | C36: OpzSSD-MU1,6TB | D36: 442.13 | E36: L6N15 | F36: TS4L6-SSD-MU1,6TB | G36: 1 | H36: 1.6TB SSD SAS ISE MU 12Gbps | I36: 1.6TB SSD SAS ISE MU 12Gbps 512e 2.5in Hot-Plug PM6 3 DWPD | J36: L6N14-OpzSSD-MU1,6TB | K36: 345-BCIP | L36: DELL | M36: TS4L6-SSD-MU1,6TB-NVME | Q36: 400-CDPWY | R36: CDPWY
A37: L6N16 | B37: 16 | C37: OpzSSD-RI800GB | D37: 265.13 | E37: L6N16 | F37: TS4L6-SSD-RI800GB | G37: 1 | H37: 960GB SSD SAS ISE RI 12Gbps | I37: 960GB SSD SAS ISE RI 12Gbps 512e 2.5in Hot-Plug 1 DWPD | J37: L6N15-OpzSSD-RI800GB | K37: 345-BBYU | L37: DELL | M37: TS4L6-SSD-RI800GB-NVME | Q37: 400-VPV60 | R37: VPV60
A38: L6N17 | B38: 17 | C38: OpzSSD-MU800GB | D38: 275.73 | E38: L6N17 | F38: TS4L6-SSD-MU800GB | G38: 1 | H38: 800GB SSD SAS ISE Mix Use 12Gbps | I38: 800GB SSD SAS ISE Mix Use 12Gbps 512e 2.5in Hot-plug, 3 DWPD | J38: L6N16-OpzSSD-MU800GB | K38: 400-AZII | L38: DELL | M38: TS4L6-SSD-MU800GB-NVME | Q38: 400-MW0DK | R38: MW0DK
A39: L6N18 | B39: 18 | C39: OpzNVME1,6TB | D39: 566.61 | E39: L6N18 | F39: TS4L6-NVME1,6TB | G39: 1 | H39: 1.6TB Enterprise NVMe Mixed Use Drive U.2 | I39: 1.6TB, Enterprise, NVMe, Mixed Use Drive, U.2, Gen4 with carrier | J39: L6N18-OpzNVME1,6TB | K39: 400-BMVP | L39: DELL | M39: TS4L6-NVME1,6TB-NVME | Q39: 403-C359R | R39: C359R
A40: L6N19 | B40: 19 | C40: OpzUps (3000VA) | D40: 386.02 | E40: L6N19 | F40: TS4L6-UPS | G40: 1 | H40: Dispositivo UPS di tipo On-line doppia conversione, strutturato per il montaggio a rack da 19” | I40: Dispositivo UPS di tipo On-line doppia conversione, strutturato per il montaggio a rack da 19” | J40: L6N19-OpzUps | K40: RPMM9/3K | M40: TS4L6-UPS-NVME | Q40: RPMMRPMM9/3K | R40: RPMM9/3K
A42: L6N20 | B42: 20 | C42: OpzGUI | D42: 491.62 | E42: L6N20 | F42: TS4L6-GUI | G42: 1 | H42: Unità KVM - monitor 17", cavo combi PS/2&USB da 1,8mt, tastiera italiana, touch pad | I42: Unità KVM - monitor 17", cavo combi PS/2&USB da 1,8mt, tastiera italiana, touch pad | J42: L6N20-OpzGUI | K42: F9857N | M42: TS4L6-GUI-NVME | Q42: F985F9857N | R42: F9857N
A43: L6N21 | B43: 21 | C43: OpzKVM | D43: 552.47 | E43: L6N21 | F43: TS4L6-KVM | G43: 1 | H43: KVM Switch IP per GUI 16P | I43: KVM Switch IP per GUI 16P | J43: L6N21-OpzKVM | K43: T9816NIP | M43: TS4L6-KVM-NVME | Q43: T981T9816NIP | R43: T9816NIP
A44: L6N22 | B44: 22 | C44: OpzWinServSTD | D44: 728.56 | E44: L6N22 | F44: TS4L6-WINSRVSTD | G44: 1 | H44: Windows Server 2022,Standard,ROK,16CORE | I44: Windows Server 2022,Standard,ROK,16CORE | J44: L6N22-OpzWinServSTD | K44: 634-BYKR | L44: DELL | M44: TS4L6-WINSRVSTD-NVME | Q44: 634-634-BSFX | R44: 634-BSFX
A45: L6N23 | B45: 23 | C45: OpzDeviceCal | D45: 25.45 | E45: L6N23 | F45: TS4L6-WINDEVCAL | G45: 1 | H45: 1-pack of Windows Server 2022/2019 Device CALs (STD or DC) | I45: 1-pack of Windows Server 2022/2019 Device CALs (STD or DC) | J45: L6N23-OpzDeviceCal | K45: 634-BYLD | L45: DELL | M45: TS4L6-WINDEVCAL-NVME | Q45: 623-623-BBCV | R45: 623-BBCV
A46: L6N24 | B46: 24 | C46: OpzUserCal | D46: 35 | E46: L6N24 | F46: TS4L6-WINUSRCAL | G46: 1 | H46: 1-pack of Windows Server 2022/2019 User CALs (STD or DC) | I46: 1-pack of Windows Server 2022/2019 User CALs (STD or DC) | J46: L6N24-OpzUserCal | K46: 634-BYKZ | L46: DELL | M46: TS4L6-WINUSRCAL-NVME | Q46: 623-623-BBCT | R46: 623-BBCT
A47: L6N25 | B47: 25 | C47: OpzWinServSTD2core | D47: 97.28 | E47: L6N25 | F47: TS4L6-WINSRV2C | G47: 1 | H47: Windows Server 2022 Standard Edition, Add License,2CORE | I47: Windows Server 2022 Standard Edition, Add License,2CORE | J47: L6N25-OpzWinServSTD2core | K47: 634-BYKQ | L47: DELL | M47: TS4L6-WINSRV2C-NVME | Q47: 634-634-BSGS | R47: 634-BSGS
A48: L6N26 | B48: 27 | C48: OpzWinServDC | D48: 2230.59 | E48: L6N27 | F48: TS4L6-WinServDC | G48: 1 | H48: Windows Server 2022,Datacenter,ROK,16CORE | I48: Windows Server 2022,Datacenter,ROK,16CORE | J48: L6N27-OpzWinServDC | K48: 634-BYLC | L48: DELL | M48: TS4L6-WinServDC-NVME | Q48: 785-785-10921 | R48: 785-10921
A49: L6N27 | B49: 28 | C49: OpzWinServDC2core | D49: 438.85 | E49: L6N28 | F49: TS4L6-WinServDC2core | G49: 1 | H49: Windows Server 2022 / 2019 Datacenter Edition,Add License,2CORE | I49: Windows Server 2022 / 2019 Datacenter Edition,Add License,2CORE | J49: L6N28-OpzWinServDC2core | K49: 634-BYKX | L49: DELL | M49: TS4L6-WinServDC2core-NVME | Q49: 742-742-10105 | R49: 742-10105
A50: L6N28 | B50: 26 | C50: OpzOpenSource | D50: 37.12 | E50: L6N26 | F50: TS4L6-LINUX | G50: 1 | H50: Ubuntu Server 22.04 LTS 64 Bit | I50: Ubuntu Server 22.04 LTS 64 Bit | J50: L6N26-OpzOpenSource | M50: TS4L6-LINUX-NVME
A51: L6N29 | B51: 29 | C51: OpzHDDRetention | D51: 31.82 | E51: L6N29 | F51: TS4L6-HDRTN36 | G51: 1 | H51: Hard Disk Retention 36 mesi | I51: Hard Disk Retention 36 mesi | J51: L6N29-OpzHDDRetention36 | K51: 785-10921 | L51: DELL | M51: TS4L6-HDRTN60-NVME | N51: 1 | O51: 2 | P51: 3 | Q51: 405-V5FKR | R51: V5FKR
A52: L6N29b | B52: 29 | C52: OpzHDDRetention | D52: 52.82 | E52: L6N29b | F52: TS4L6-HDRTN60 | G52: 1 | H52: Hard Disk Retention 60 mesi | I52: Hard Disk Retention 60 mesi | J52: L6N29-OpzHDDRetention60 | K52: 785-10921 | L52: DELL | M52: TS4L6-HDRTN60-NVME | N52: 1 | O52: 2 | P52: 3 | Q52: 405-V5FKR | R52: V5FKR
A53: L6N30 | B53: 30 | C53: OpzEstensione24 | D53: 522.78 | E53: L6N30 | F53: TS4L6-OpzEst24 | G53: 1 | H53: Estensione della manutenzione in garanzia per ulteriori 24 mesi | I53: Estensione della manutenzione in garanzia per ulteriori 24 mesi | J53: L6N30-OpzEst24 | K53: P6142NCONSIP | M53: TS4L6-OpzEst24-NVME | Q53: P614P6142NCONSIP | R53: P6142NCONSIP
A54: L6N31 | B54: 31 | C54: OpzRack | D54: 579.63 | E54: L6N31 | F54: TS4L6-RACK | G54: 1 | H54: Armadio Rack 42U | I54: Armadio Rack 42U | J54: L6N31-OpzRack | K54: P6142NCONSIP | M54: TS4L6-RACK-NVME | Q54: P614P6142NCONSIP | R54: P6142NCONSIP
A55: L6N44 | B55: 44 | E55: L6N44 | G55: 1 | H55: PERC H740P RAID Controller, 8Gb NV Cache, Adapter, Full Height | I55: PERC H740P RAID Controller, 8Gb NV Cache, Adapter, Full Height | K55: 405-AAMX | L55: DELL | N55: 4 | Q55: 405-39M19 | R55: 39M19
A56: L6N45 | B56: 45 | E56: L6N45 | G56: 1 | H56: Customer Kit,Card,Controller,H740P,Minicard | I56: Customer Kit,Card,Controller,H740P,Minicard | K56: 405-AANL | L56: DELL | N56: int | Q56: 405-4R84R | R56: 4R84R
A57: L6N49 | B57: 49 | C57: OpzPSU1400W | D57: 0 | E57: L6N49 | F57: TS4L6-PSU1400W | G57: 1 | H57: Dual, Hot-plug Power Supply (1+1), 1400W in sostituzione di quelli in configurazione BASE | I57: Dual, Hot-plug Power Supply (1+1), 1400W in sostituzione di quelli in configurazione BASE | J57: TS4-OpzA201100W | K57: 450-AEBL | L57: DELL | Q57: 450-T4RTF | R57: T4RTF
A58: L6N32 | B58: 32 | C58: OpzSSD7,68 | D58: 2844.45 | E58: L6N32 | F58: TS4L6-SSD7.68RI | G58: 1 | H58: 7.68TB SSD RI SAS ISE 12Gbps | I58: 7.68TB SSD RI SAS ISE 12Gbps 512e 2.5in PM1643a Hot-Plug 1 DWPD | J58: L6N32-OpzSSD7.68RI | K58: 345-BBCL | M58: =CONCATENATE(F58,"-NVME") -> TS4L6-SSD7.68RI-NVME
A59: L6N33 | B59: 33 | C59: OpzNVMe3,2 | D59: 1578.15 | E59: L6N33 | F59: TS4L6-NVMe3.2MU | G59: 1 | H59: 3.2TB, Enterprise, NVMe, Mixed Use | I59: 3.2TB, Enterprise, NVMe, Mixed Use, U2, G4, P5600 with carrier | J59: L6N33-OpzNVMe3.2MU | K59: 400-BLJB | M59: =CONCATENATE(F59,"-NVME") -> TS4L6-NVMe3.2MU-NVME
A60: L6N34 | B60: 34 | C60: OpzNVMe1,92 | D60: 938.25 | E60: L6N34 | F60: TS4L6-NVMe1.92RI | G60: 1 | H60: 1.92TB, Enterprise, NVMe, Read Intensive | I60: 1.92TB, Enterprise, NVMe, Read Intensive, U2, G4, P5500 | J60: L6N34-OpzNVMe1.92RI | K60: 400-BLJV | M60: TS4L6-NVMe1.92RI-NVME
A61: L6N35 | B61: 35 | C61: OpzNVMe3,84 | D61: 1576.8 | E61: L6N35 | F61: TS4L6-NVMe3.84RI | G61: 1 | H61: 3.84TB, Enterprise, NVMe, Read Intensive | I61: 3.84TB, Enterprise, NVMe, Read Intensive, U2, G4, P5500 | J61: L6N35-OpzNVMe3.84RI | K61: 400-BLJO | M61: TS4L6-NVMe3.84RI-NVME
A62: L6N36 | B62: 36 | C62: Opz10GBQP | D62: 541.35 | E62: L6N36 | F62: TS4L6-10GBs-INTQP | G62: 1 | H62: Intel X710 Quad Port 10Gb Direct Attach, SFP+, PCIe Full height | I62: Intel X710 Quad Port 10Gb Direct Attach, SFP+, PCIe Full height | J62: L6N36-Opz10GBs-INTQP | K62: 540-BBIW | M62: TS4L6-10GBs-INTQP-NVME
A63: L6N38 | B63: 38 | C63: Opz100GBCX | D63: 742.5 | E63: L6N38 | F63: TS4L6-100GBs-M | G63: 1 | H63: Mellanox ConnectX-6 DX Dual Port 100GbE QSFP56 Network Adapter, Full Height | I63: Mellanox ConnectX-6 DX Dual Port 100GbE QSFP56 Network Adapter, Full Height | J63: L6N38-Opz100GBs-M | K63: 540-BCXP | M63: TS4L6-100GBs-M-NVME
A64: L6N39 | B64: 39 | C64: Opz100GB | D64: 683.1 | E64: L6N39 | F64: TS4L6-100GBs-B | G64: 1 | H64: Broadcom 57508 Dual Port 100GbE QSFP Adapter, PCIe Full Height | I64: Broadcom 57508 Dual Port 100GbE QSFP Adapter, PCIe Full Height | J64: L6N39-Opz100GBs-B | K64: 540-BDEC | M64: TS4L6-100GBs-B-NVME
A65: L6N40 | B65: 40 | C65: Opz100GB_I | D65: 711.45 | E65: L6N40 | F65: TS4L6-100GBs-INT | G65: 1 | H65: Intel E810 Dual Port 100GbE QSFP28 Adapter, PCIe Full Height, 100GbE max bandwidth | I65: Intel E810 Dual Port 100GbE QSFP28 Adapter, PCIe Full Height, 100GbE max bandwidth | J65: L6N40-Opz100GBs-INT | K65: 540-BDDW | M65: TS4L6-100GBs-INT-NVME
A66: L6N41 | B66: 41 | C66: Opz100GB_M | D66: 1017.9 | E66: L6N41 | F66: TS4L6-100GBs-INF | G66: 1 | H66: Mellanox ConnectX-6 Single Port HDR100 QSFP56 Infiniband Adapter | I66: Mellanox ConnectX-6 Single Port HDR100 QSFP56 Infiniband Adapter, PCIe Full Height | J66: L6N41-Opz100GBs-INF | K66: 540-BCMU | M66: TS4L6-100GBs-INF-NVME
A67: L6N42 | B67: 42 | C67: OpzBOSS | D67: 0 | E67: L6N42 | F67: TS4L6-OpzBOSS | G67: 1 | H67: BOSS controller card + with 2 M.2 Sticks 480GB (RAID 1),FH | I67: BOSS controller card + with 2 M.2 Sticks 480GB (RAID 1),FH | J67: L6N42-BOSS | M67: TS4L6-OpzBOSS-NVME
A68: L6N50 | B68: 50 | C68: OpzSFP+ | D68: 17.55 | E68: L6N50 | F68: TS4L6-OT10GB | G68: 1 | H68: SFP+ SR Optic for all SFP+ ports except high temp validation warning cards | I68: SFP+ SR Optic for all SFP+ ports except high temp validation warning cards | J68: L6N50-OpzOT10GB | K68: 407-BCBN | M68: TS4L6-OT10GB-NVME
A69: L6N51 | B69: 51 | C69: OpzSFP25 | D69: 112.05 | E69: L6N51 | F69: TS4L6-OT25GB | G69: 1 | H69: SFP28 SR Optic, 25GbE, 85C, for all SFP28 ports | I69: SFP28 SR Optic, 25GbE, 85C, for all SFP28 ports | J69: L6N51-OpzOT25GB | K69: 407-BCHI | M69: TS4L6-OT25GB-NVME
A70: L6N52 | B70: 52 | C70: OpzSFP100 | D70: 484.65 | E70: L6N52 | F70: TS4L6-OT100GB | G70: 1 | H70: Dell EMC PowerEdge QSFP28 SR4 100GbE 85C optic | I70: Dell EMC PowerEdge QSFP28 SR4 100GbE 85C optic | J70: L6N52-OpzOT100GB | K70: 407-BCEX | M70: TS4L6-OT100GB-NVME
A71: L6N53 | B71: 53 | C71: OpzHBA | D71: 0 | E71: L6N53 | F71: TS4L6-HBA | G71: 1 | H71: HBA330+ Adapter FH for R940 | I71: HBA330+ Adapter FH for R940 | J71: L6N53-OpzHBA | M71: TS4L6-HBA-NVME
B72: 53 | C72: OpzCMA | D72: 0 | E72: L6N54 | F72: TS4L6-OpzCMA | G72: 1 | H72: Cable Management Arm for PowerEdge Systems - Kit | I72: Cable Management Arm for PowerEdge Systems - Kit | J72: L6N54-CMA | M72: TS4L6-OpzCMA-NVME
A73: L6N110 | B73: 101 | C73: OpzVSAN | D73: 716.6 | E73: L6N110 | F73: TS4L6-2CPU-vSAN | G73: 1 | H73: Kit vSAN Comprensivo di BOSS e HBA 330+ (NO RAID) In sostituzione del base. | I73: Kit vSAN Comprensivo di BOSS e HBA 330+ | J73: L6N110-Opz2CPU-vSAN | M73: TS4L6-2CPU-vSAN-NVME
A74: L6N111 | B74: 102 | C74: OpzVSAN2TB | D74: 2104.37 | E74: L6N111 | F74: TS4L6-4CPU-vSAN-2TB | G74: 1 | H74: Kit vSAN Comprensivo di BOSS e HBA 330+ (NO RAID) In sostituzione del base. | I74: Kit vSAN Comprensivo di BOSS e HBA 330+ | J74: L6N111-Opz4CPU-vSAN-2TB | M74: TS4L6-4CPU-vSAN-2TB-NVME
A75: L6N112 | B75: 103 | C75: OpzRackD | D75: 2929.5 | E75: L6N103 | F75: TS4L6-RACK-D | G75: 1 | H75: Rack 42RU DellEmc | I75: Rack 42RU DellEmc | J75: =CONCATENATE(A74,"-",C75) -> L6N111-OpzRackD | M75: TS4L6-RACK-D-NVME
A76: L6N113 | B76: 104 | C76: OpzPDUT | D76: 540 | E76: L6N103 | F76: TS4L6-PDU-M | G76: 1 | H76: PDU 220 mono output 20-C13 + 4-C19 IEC 320, input C20 | I76: PDU 220 mono output 20-C13 + 4-C19 IEC 320, input C20 | J76: =CONCATENATE(A75,"-",C76) -> L6N112-OpzPDUT | M76: TS4L6-PDU-M
A77: L6N114 | B77: 105 | C77: OpzPDUT | D77: 1080 | E77: L6N103 | F77: TS4L6-PDU-T | G77: 1 | H77: PDU 220 Trifase output 6-C19 e 36-C13, input Spina 3P+T 400V 16A | I77: PDU 220 Trifase output 6-C19 e 36-C13, input Spina 3P+T 400V 16A | J77: L6N113-OpzPDUT | M77: TS4L6-PDU-T
A78: L6N115 | B78: 106 | C78: OpzKVMD | D78: 3300.75 | E78: L6N103 | F78: TS4L6-KVM-D | G78: 1 | H78: Dell KVM + Switch 8 porte + cavi | I78: Dell KVM + Switch 8 porte + cavi | J78: L6N114-OpzKVMD | M78: TS4L6-KVM-D
A79: L6N116 | B79: 107 | C79: OpzRock | D79: 3780 | E79: L6N103 | F79: TS4L6-ROCK | G79: 1 | H79: ROCK Port 100Gbs (include scheda pci, cavo, patch panel e manutenzione) | I79: ROCK Port 100Gbs (include scheda pci, cavo, patch panel e manutenzione) | J79: L6N115-OpzRock | M79: TS4L6-ROCK
A80: L6N117 | B80: 108 | C80: OpzCMA | D80: 54 | E80: L6N103 | F80: TS4L6-CMA | G80: 1 | H80: Cable Management Arm for PowerEdge Systems | I80: Cable Management Arm for PowerEdge Systems | J80: L6N116-OpzCMA | M80: TS4L6-CMA
A81: L6N118 | B81: 109 | C81: OpzJBOD | D81: 5838.75 | E81: L6N103 | F81: TS4L6-JBOD | G81: 1 | H81: Enclosure di espansione JBOD 12 slot 3,5'' + HBA (H840) | I81: Enclosure di espansione JBOD 12 slot 3,5'' + HBA (H840) | J81: L6N117-OpzJBOD | M81: TS4L6-JBOD
A82: L6N119 | B82: 110 | C82: Opz12TBNLSAS | D82: 405 | E82: L6N103 | F82: TS4L6-12TBNLSAS | G82: 1 | H82: 12TB 7.2K RPM NLSAS ISE 12Gbps 512e 3.5in Hot-plug Hard Drive | I82: 12TB 7.2K RPM NLSAS ISE 12Gbps 512e 3.5in Hot-plug Hard Drive | J82: L6N118-Opz12TBNLSAS | M82: TS4L6-12TBNLSAS
A83: L6N120 | B83: 111 | C83: Opz16TBSAS | D83: 438.75 | E83: L6N103 | F83: TS4L6-16TBSAS | G83: 1 | H83: 16TB Hard Drive SAS ISE 12Gbps 7.2K 512e 3.5in Hot-Plug | I83: 16TB Hard Drive SAS ISE 12Gbps 7.2K 512e 3.5in Hot-Plug | J83: L6N119-Opz16TBSAS | M83: TS4L6-16TBSAS
A84: L6N121 | B84: 112 | C84: Opz20TBSAS | D84: 594 | E84: L6N103 | F84: TS4L6-20TBSAS | G84: 1 | H84: 20TB HDD SAS ISE 12Gbps 7.2K 512e 3.5in Hot-Plug | I84: 20TB HDD SAS ISE 12Gbps 7.2K 512e 3.5in Hot-Plug | J84: L6N120-Opz20TBSAS | M84: TS4L6-20TBSAS
A85: L6N122 | B85: 113 | C85: OpzVsan1,5TB | D85: 3698.15 | E85: L6N103 | F85: TS4L6-vSAN-2CPU-1.5TB | G85: 1 | H85: Kit vSAN Comprensivo di sostituzione controller con HBA Vsan ready ed aggiunta di BOSS card 2 x M2 480GB + kit abilitazione 1,5TB (24x64GB) 2CPU | I85: Kit vSAN Comprensivo di sostituzione controller con HBA Vsan ready ed aggiunta di BOSS card 2 x M2 480GB + kit abilitazione 1,5TB (24x64GB) 2CPU | J85: L6N121-OpzVsan1,5TB | M85: TS4L6-vSAN-2CPU-1.5TB
A86: L6N123 | B86: 114 | C86: OpzVsan1TB | D86: 2721.48 | E86: L6N103 | F86: TS4L6-vSAN-2CPU-1TB | G86: 1 | H86: Kit vSAN Comprensivo di sostituzione controller con HBA Vsan ready ed aggiunta di BOSS card 2 x M2 480GB + kit abilitazione 1TB (16x64GB) 2CPU | I86: Kit vSAN Comprensivo di sostituzione controller con HBA Vsan ready ed aggiunta di BOSS card 2 x M2 480GB + kit abilitazione 1TB (16x64GB) 2CPU | J86: L6N122-OpzVsan1TB | M86: TS4L6-vSAN-2CPU-1TB
A87: L6N124 | B87: 115 | C87: OpzVsan2TB | D87: 4674.92 | E87: L6N103 | F87: TS4L6-vSAN-4CPU-2TB | G87: 1 | H87: Kit vSAN Comprensivo di sostituzione controller con HBA Vsan ready ed aggiunta di BOSS card 2 x M2 480GB + kit abilitazione 2TB (32x64GB) 4CPU | I87: Kit vSAN Comprensivo di sostituzione controller con HBA Vsan ready ed aggiunta di BOSS card 2 x M2 480GB + kit abilitazione 2TB (32x64GB) 4CPU | J87: L6N123-OpzVsan2TB | M87: TS4L6-vSAN-4CPU-2TB
A88: L6N125 | B88: 116 | C88: OpzBOSS3TB | D88: 6473.12 | E88: L6N103 | F88: TS4L6-BOSS-4CPU-3TB | G88: 1 | H88: Kit abilitazione 3TB (48x64GB) 4CPU con aggiunta di BOSS card 2 x M2 480GB | I88: Kit abilitazione 3TB (48x64GB) 4CPU con aggiunta di BOSS card 2 x M2 480GB | J88: L6N124-OpzBOSS3TB | M88: TS4L6-BOSS-4CPU-3TB
